Workbook

Sheet ADSI
B1: =IF($G$12<>"",CONCATENATE(PROPER($G$12),", ",PROPER($G$14),IF($G$18<>"",", "&$G$18,""),", ADSI-",$K$12),IF($G$16<>"",CONCATENATE("Mega City: ",PROPER($G$16),", ADSI-",$K$12))) -> Goa, , ADSI-2021 | K1: ADSI v3.0 | L1: 2016-12-22
A3: Accidental Deaths & Suicides in India
A4: (Proformae Revision year 2016)
A6: Data Entry Module v4.0
H11: Code | K11: =YEAR(NOW())-1 -> 2021
C12: Select the Name of the State / UT | G12: GOA | H12: =IF(ISERROR(LOOKUP(G12,StateList,StateCode)),"",LOOKUP(G12,StateList,StateCode)) -> 6 | J12: Data Year | K12: 2021
G13: =SUBSTITUTE(SUBSTITUTE(G12," ","_"),"&","_") -> GOA
C14: Select the Name of the District | H14: =IF(ISERROR(LOOKUP(G14,INDIRECT(G13),INDIRECT(CONCATENATE(MID(G13,1,7),"Code")))),"",LOOKUP(G14,INDIRECT(G13),INDIRECT(CONCATENATE(MID(G13,1,7),"Code")))) ->  | K14: Total Number of Errors | L14: =SUM('P-I:P-XXIII'!C2) -> 0
C16: Select the name of the Mega City | H16: =IF(ISNA(LOOKUP(G16,MegaCityName,MegaCityCode)),"",LOOKUP(G16,MegaCityName,MegaCityCode)) ->  | K16: Total Abnormal Variations in Data | L16: =SUM('P-I:P-XXIII'!F2) -> 55
C18: Police Station Name
C20: Name of the Officer preparing this report
K21: (Authorized Signatory)
C22: Whether Original / Revised data? | G22: Original data | J22: Name : | K22: Shri Bossuet Silva, GPS
J23: Rank : | K23: Superintendent of Police, SCRB, GOA
C24: Date of Submission of this report | G24: =NOW() -> 2022-04-22T12:31:32.210 | J24: Office seal :
C26: Note: 1. The output file (after data entry) must be saved in .xlsm format only.
D27: 2. NCRB/SCRB can not import/accept the data until the data is error free (i.e. Error count = 0)
D28: 3. The proformae output can be printed only on LEGAL size paper.
A495: Errors: | C495: =L14 -> 0

Sheet FormData (hidden)
A1: StateCode | B1: StateList | D1: A&N ISLCode | E1: A&N ISLANDS | G1: ANDHRA Code | H1: ANDHRA PRADESH | J1: ARUNACHCode | K1: ARUNACHAL PRADESH | M1: ASSAMCode | N1: ASSAM | P1: BIHARCode | Q1: BIHAR | S1: CHANDIGCode | T1: CHANDIGARH | V1: CHHATTICode | W1: CHHATTISGARH | Y1: D&N HAVCode | Z1: D&N HAVELI AND DAMAN&DIU | AB1: LADAKHCode | AC1: LADAKH | AE1: DELHICode | AF1: DELHI | AH1: GOACode | AI1: GOA | AK1: GUJARATCode | AL1: GUJARAT | AN1: HARYANACode | AO1: HARYANA | AQ1: HIMACHACode | AR1: HIMACHAL PRADESH | AT1: JAMMU &Code | AU1: JAMMU & KASHMIR | AW1: JHARKHACode | AX1: JHARKHAND | AZ1: KARNATACode | BA1: KARNATAKA | BC1: KERALACode | BD1: KERALA | BF1: LAKSHADCode | BG1: LAKSHADWEEP | BI1: MADHYA Code | BJ1: MADHYA PRADESH | BL1: MAHARASCode | BM1: MAHARASHTRA | BO1: MANIPURCode | BP1: MANIPUR | BR1: MEGHALACode | BS1: MEGHALAYA | BU1: MIZORAMCode | BV1: MIZORAM | BX1: NAGALANCode | BY1: NAGALAND | CA1: ODISHACode | CB1: ODISHA | CD1: PUDUCHECode | CE1: PUDUCHERRY | CG1: PUNJABCode | CH1: PUNJAB | CJ1: RAJASTHCode | CK1: RAJASTHAN | CM1: SIKKIMCode | CN1: SIKKIM | CP1: TAMIL NCode | CQ1: TAMIL NADU | CS1: TELANGACode | CT1: TELANGANA | CV1: TRIPURACode | CW1: TRIPURA | CY1: UTTAR PCode | CZ1: UTTAR PRADESH | DB1: UTTARAKCode | DC1: UTTARAKHAND | DE1: WEST BECode | DF1: WEST BENGAL | DH1: MegaCityCode | DI1: MegaCityName | DK1: LangCode | DL1: LangName
A2: 29 | B2: A&N ISLANDS | D2: 0 | E2: - All Districts - | G2: 0 | H2: - All Districts - | J2: 0 | K2: - All Districts - | M2: 0 | N2: - All Districts - | P2: 0 | Q2: - All Districts - | S2: 0 | T2: - All Districts - | V2: 0 | W2: - All Districts - | Y2: 0 | Z2: - All Districts - | AB2: 0 | AC2: - All Districts - | AE2: 0 | AF2: - All Districts - | AH2: 0 | AI2: - All Districts - | AK2: 0 | AL2: - All Districts - | AN2: 0 | AO2: - All Districts - | AQ2: 0 | AR2: - All Districts - | AT2: 0 | AU2: - All Districts - | AW2: 0 | AX2: - All Districts - | AZ2: 0 | BA2: - All Districts - | BC2: 0 | BD2: - All Districts - | BF2: 0 | BG2: - All Districts - | BI2: 0 | BJ2: - All Districts - | BL2: 0 | BM2: - All Districts - | BO2: 0 | BP2: - All Districts - | BR2: 0 | BS2: - All Districts - | BU2: 0 | BV2: - All Districts - | BX2: 0 | BY2: - All Districts - | CA2: 0 | CB2: - All Districts - | CD2: 0 | CE2: - All Districts - | CG2: 0 | CH2: - All Districts - | CJ2: 0 | CK2: - All Districts - | CM2: 0 | CN2: - All Districts - | CP2: 0 | CQ2: - All Districts - | CS2: 0 | CT2: - All Districts - | CV2: 0 | CW2: - All Districts - | CY2: 0 | CZ2: - All Districts - | DB2: 0 | DC2: - All Districts - | DE2: 0 | DF2: - All Districts - | DH2: 37 | DI2: AGRA | DK2: 1 | DL2: English
A3: 1 | B3: ANDHRA PRADESH | D3: 3 | E3: Nicobar | G3: 1 | H3: Anantapur | J3: 1 | K3: Anjaw | M3: 1 | N3: B.I.E.O | P3: 46 | Q3: Anti Terrorist Squad | S3: 1 | T3: Chandigarh | V3: 1 | W3: Balod | Y3: 1 | Z3: D&N Haveli | AB3: 1 | AC3: Kargil | AE3: 1 | AF3: Central | AH3: 3 | AI3: CID | AK3: 1 | AL3: Ahmedabad City | AN3: 25 | AO3: Ambala | AQ3: 1 | AR3: Baddi | AT3: 1 | AU3: Anantnag | AW3: 1 | AX3: Bokaro | AZ3: 1 | BA3: Bagalkot | BC3: 1 | BD3: Alapuzha | BF3: 1 | BG3: Lakshadweep | BI3: 1 | BJ3: Agar | BL3: 1 | BM3: Ahmednagar | BO3: 1 | BP3: Bishnupur | BR3: 1 | BS3: Garo Hills East | BU3: 1 | BV3: Aizawl | BX3: 1 | BY3: Dimapur | CA3: 1 | CB3: Angul | CD3: 1 | CE3: Karaikal | CG3: 1 | CH3: Amritsar Rural | CJ3: 1 | CK3: Ajmer | CM3: 1 | CN3: East | CP3: 1 | CQ3: Ariyalur | CS3: 30 | CT3: Adilabad | CV3: 1 | CW3: Dhalai | CY3: 1 | CZ3: Agra | DB3: 1 | DC3: Almora | DE3: 3 | DF3: Alipurduar | DH3: 38 | DI3: AHMEDABAD | DK3: 2 | DL3: Hindi
A4: 2 | B4: ARUNACHAL PRADESH | D4: 2 | E4: North & Middle Andaman | G4: 2 | H4: Chittoor | J4: 2 | K4: Changlang | M4: 3 | N4: Baksa | P4: 1 | Q4: Araria | V4: 2 | W4: Balodbazar | Y4: 2 | Z4: Daman | AB4: 2 | AC4: Leh | AE4: 2 | AF4: Crime Branch | AH4: 1 | AI4: North Goa | AK4: 2 | AL4: Ahmedabad Rural | AN4: 3 | AO4: Bhiwani | AQ4: 2 | AR4: Bilaspur | AT4: 2 | AU4: Awantipora | AW4: 2 | AX4: Chaibasa | AZ4: 5 | BA4: Ballari | BC4: 21 | BD4: Crime Branch | BI4: 2 | BJ4: Alirajpur | BL4: 2 | BM4: Akola | BO4: 2 | BP4: Chandel | BR4: 2 | BS4: Garo Hills North | BU4: 2 | BV4: Champhai | BX4: 2 | BY4: Kiphire | CA4: 2 | CB4: Balasore | CD4: 2 | CE4: Puducherry | CG4: 2 | CH4: Barnala | CJ4: 2 | CK4: Alwar | CM4: 2 | CN4: North | CP4: 41 | CQ4: Chengalpattu | CS4: 31 | CT4: Badhradhri Kothagudem | CV4: 2 | CW4: Gomati | CY4: 2 | CZ4: Aligarh | DB4: 2 | DC4: Bageshwar | DE4: 4 | DF4: Asansol-Durgapur PC | DH4: 39 | DI4: ALLAHABAD | DK4: 3 | DL4: Regional Language
A5: 3 | B5: ASSAM | D5: 1 | E5: South Andaman | G5: 3 | H5: Cuddapah | J5: 3 | K5: Crime Branch | M5: 2 | N5: Barpeta | P5: 2 | Q5: Arwal | V5: 3 | W5: Balrampur | Y5: 3 | Z5: Diu | AE5: 22 | AF5: Dwarka | AH5: 2 | AI5: South Goa | AK5: 3 | AL5: Amreli | AN5: 26 | AO5: Charkhi Dadri | AQ5: 3 | AR5: Chamba | AT5: 3 | AU5: Bandipora | AW5: 3 | AX5: Chatra | AZ5: 36 | BA5: Belagavi City | BC5: 2 | BD5: Ernakulam Commr. | BI5: 3 | BJ5: Anuppur | BL5: 3 | BM5: Amravati Commr. | BO5: 3 | BP5: Churachandpur | BR5: 3 | BS5: Garo Hills South | BU5: 11 | BV5: Hnahthial | BX5: 3 | BY5: Kohima | CA5: 3 | CB5: Baragarh | CG5: 3 | CH5: Batala | CJ5: 3 | CK5: Banswara | CM5: 3 | CN5: South | CP5: 2 | CQ5: Chennai | CS5: 21 | CT5: Cyberabad Commissionerate | CV5: 3 | CW5: GRP | CY5: 3 | CZ5: Allahabad | DB5: 3 | DC5: Chamoli | DE5: 5 | DF5: Bankura | DH5: 40 | DI5: AMRITSAR
A6: 4 | B6: BIHAR | G6: 4 | H6: East Godavari | J6: 4 | K6: Dibang Valley | M6: 37 | N6: Biswanath | P6: 3 | Q6: Aurangabad | V6: 4 | W6: Bemetra | AE6: 3 | AF6: East | AK6: 4 | AL6: Anand | AN6: 4 | AO6: Faridabad | AQ6: 4 | AR6: CID | AT6: 4 | AU6: Baramulla | AW6: 4 | AX6: Deoghar | AZ6: 4 | BA6: Belagavi District | BC6: 3 | BD6: Ernakulam Rural | BI6: 4 | BJ6: Ashok Nagar | BL6: 4 | BM6: Amravati Rural | BO6: 4 | BP6: CID | BR6: 4 | BS6: Garo Hills South West | BU6: 12 | BV6: Khawzawl | BX6: 4 | BY6: Longleng | CA6: 4 | CB6: Berhampur | CG6: 4 | CH6: Bathinda | CJ6: 4 | CK6: Baran | CM6: 4 | CN6: West | CP6: 3 | CQ6: Coimbatore | CS6: 22 | CT6: Hyderabad Commissionerate | CV6: 4 | CW6: Kowai | CY6: 4 | CZ6: Ambedkar Nagar | DB6: 4 | DC6: Champawat | DE6: 38 | DF6: Barasat Police District | DH6: 41 | DI6: ASANSOL
A7: 30 | B7: CHANDIGARH | G7: 5 | H7: Guntakal Railway | J7: 5 | K7: Kameng East | M7: 4 | N7: Bongaigaon | P7: 4 | Q7: Bagaha | V7: 5 | W7: Bilaspur | AE7: 4 | AF7: EOW | AK7: 5 | AL7: Arvalli | AN7: 5 | AO7: Fatehabad | AQ7: 5 | AR7: GRP | AT7: 5 | AU7: Budgam | AW7: 5 | AX7: Dhanbad | AZ7: 2 | BA7: Bengaluru City | BC7: 4 | BD7: Idukki | BI7: 5 | BJ7: Balaghat | BL7: 5 | BM7: Aurangabad Commr. | BO7: 5 | BP7: Imphal East | BR7: 5 | BS7: Garo Hills West | BU7: 3 | BV7: Kolasib | BX7: 5 | BY7: Mokokchung | CA7: 5 | CB7: Bhadrak | CG7: 5 | CH7: CP Amritsar | CJ7: 5 | CK7: Barmer | CP7: 4 | CQ7: Coimbatore City | CS7: 32 | CT7: Jagityal | CV7: 5 | CW7: North | CY7: 5 | CZ7: Amethi | DB7: 5 | DC7: Dehradun | DE7: 6 | DF7: Barrackpur PC | DH7: 42 | DI7: AURANGABAD
A8: 5 | B8: CHHATTISGARH | G8: 6 | H8: Guntur | J8: 6 | K8: Kameng West | M8: 5 | N8: C.I.D. | P8: 5 | Q8: Banka | V8: 6 | W8: Bizapur | AE8: 5 | AF8: IGI Airport | AK8: 6 | AL8: Banaskantha | AN8: 6 | AO8: GRP | AQ8: 6 | AR8: Hamirpur | AT8: 6 | AU8: Crime Jammu | AW8: 6 | AX8: Dhanbad Railway | AZ8: 3 | BA8: Bengaluru District | BC8: 5 | BD8: Kannur City | BI8: 6 | BJ8: Barwani | BL8: 48 | BM8: Aurangabad Railway | BO8: 6 | BP8: Imphal West | BR8: 7 | BS8: Jaintia Hills East | BU8: 4 | BV8: Lawngtlai | BX8: 6 | BY8: Mon | CA8: 6 | CB8: Bolangir | CG8: 6 | CH8: CP Jalandhar | CJ8: 6 | CK8: Bharatpur | CP8: 5 | CQ8: Cuddalore | CS8: 33 | CT8: Jayashankar Bhupalpalli | CV8: 6 | CW8: Sipahijala | CY8: 6 | CZ8: Amroha | DB8: 14 | DC8: GRP | DE8: 31 | DF8: Baruipur Police | DH8: 43 | DI8: BENGALURU
A9: 31 | B9: D&N HAVELI AND DAMAN & DIU | G9: 7 | H9: Guntur Urban | J9: 27 | K9: Kamle | M9: 6 | N9: Cachar | P9: 6 | Q9: Begusarai | V9: 7 | W9: Dantewara | AE9: 6 | AF9: Metro | AK9: 7 | AL9: Bharuch | AN9: 7 | AO9: Gurgaon | AQ9: 7 | AR9: Kangra | AT9: 7 | AU9: Crime Srinagar | AW9: 7 | AX9: Dumka | AZ9: 6 | BA9: Bidar | BC9: 22 | BD9: Kannur Rural | BI9: 7 | BJ9: Betul | BL9: 6 | BM9: Aurangabad Rural | BO9: 11 | BP9: Jiribam | BR9: 6 | BS9: Jaintia Hills West | BU9: 5 | BV9: Lunglei | BX9: 7 | BY9: Peren | CA9: 7 | CB9: Boudh | CG9: 7 | CH9: CP Ludhiana | CJ9: 7 | CK9: Bhilwara | CP9: 6 | CQ9: Dharmapuri | CS9: 34 | CT9: Jogulamba Gadwal | CV9: 7 | CW9: South | CY9: 7 | CZ9: Auraiya | DB9: 6 | DC9: Haridwar | DE9: 43 | DF9: Basirhat Police District | DH9: 44 | DI9: BHOPAL
A10: 32 | B10: DELHI | G10: 8 | H10: Krishna | J10: 23 | K10: Kra Daadi | M10: 40 | N10: Charaideo | P10: 7 | Q10: Bettiah | V10: 8 | W10: Dhamtari | AE10: 7 | AF10: New Delhi | AK10: 8 | AL10: Bhavnagar | AN10: 27 | AO10: Hansi | AQ10: 8 | AR10: Kinnaur | AT10: 8 | AU10: Doda | AW10: 8 | AX10: Garhwa | AZ10: 9 | BA10: Chamarajnagar | BC10: 6 | BD10: Kasargod | BI10: 8 | BJ10: Bhind | BL10: 7 | BM10: Beed | BO10: 13 | BP10: Kakching | BR10: 8 | BS10: Khasi Hills East | BU10: 6 | BV10: Mamit | BX10: 8 | BY10: Phek | CA10: 8 | CB10: Cuttack | CG10: 8 | CH10: Faridkot | CJ10: 49 | CK10: Bhiwadi | CP10: 7 | CQ10: Dindigul | CS10: 35 | CT10: Kamareddy | CV10: 8 | CW10: Unakoti | CY10: 8 | CZ10: Azamgarh | DB10: 7 | DC10: Nainital | DE10: 7 | DF10: Bidhannagar PC | DH10: 45 | DI10: CHANDIGARH CITY
A11: 6 | B11: GOA | G11: 9 | H11: Kurnool | J11: 7 | K11: Kurung Kumey | M11: 7 | N11: Chirang | P11: 8 | Q11: Bhabhua | V11: 9 | W11: Durg | AE11: 8 | AF11: North | AK11: 9 | AL11: Botad | AN11: 8 | AO11: Hissar | AQ11: 9 | AR11: Kullu | AT11: 9 | AU11: Ganderbal | AW11: 9 | AX11: Giridih | AZ11: 8 | BA11: Chikkaballapura | BC11: 7 | BD11: Kollam Commr. | BI11: 9 | BJ11: Bhopal | BL11: 8 | BM11: Bhandara | BO11: 15 | BP11: Kamjong | BR11: 9 | BS11: Khasi Hills South West | BU11: 7 | BV11: Saiha | BX11: 9 | BY11: Tuensang | CA11: 9 | CB11: DCP BBSR | CG11: 9 | CH11: Fatehgarh Sahib | CJ11: 8 | CK11: Bikaner | CP11: 8 | CQ11: Erode | CS11: 23 | CT11: Karimnagar Commissionerate | CV11: 9 | CW11: West | CY11: 9 | CZ11: Badaun | DB11: 8 | DC11: Pauri Garhwal | DE11: 8 | DF11: Birbhum | DH11: 46 | DI11: CHENNAI
A12: 7 | B12: GUJARAT | G12: 10 | H12: Nellore | J12: 25 | K12: Lepa Rada | M12: 8 | N12: Darrang | P12: 9 | Q12: Bhagalpur | V12: 10 | W12: Gariyaband | AE12: 9 | AF12: North-East | AK12: 10 | AL12: Chhotaudepur | AN12: 24 | AO12: Irrigation & Power | AQ12: 10 | AR12: Lahaul & Spiti | AT12: 10 | AU12: Handwara | AW12: 10 | AX12: Godda | AZ12: 10 | BA12: Chikkamagaluru | BC12: 8 | BD12: Kollam Rural | BI12: 10 | BJ12: Bhopal Railway | BL12: 9 | BM12: Buldhana | BO12: 12 | BP12: Kangpokpi | BR12: 10 | BS12: Khasi Hills West | BU12: 13 | BV12: Saitual | BX12: 10 | BY12: Wokha | CA12: 10 | CB12: DCP CTC | CG12: 10 | CH12: Fazilka | CJ12: 9 | CK12: Bundi | CP12: 42 | CQ12: Kallakurichi | CS12: 24 | CT12: Khammam Commissionerate | CY12: 10 | CZ12: Baghpat | DB12: 9 | DC12: Pithoragarh | DE12: 37 | DF12: Bongaon Police District | DH12: 47 | DI12: COIMBATORE
A13: 8 | B13: HARYANA | G13: 11 | H13: Prakasham | J13: 8 | K13: Lohit | M13: 9 | N13: Dhemaji | P13: 10 | Q13: Bhojpur | V13: 30 | W13: Gaurela-Pendra-Marwahi | AE13: 10 | AF13: North-West | AK13: 11 | AL13: CID Crime | AN13: 9 | AO13: Jhajjar | AQ13: 11 | AR13: Mandi | AT13: 11 | AU13: Jammu | AW13: 11 | AX13: Gumla | AZ13: 11 | BA13: Chitradurga | BC13: 9 | BD13: Kottayam | BI13: 11 | BJ13: Burhanpur | BL13: 10 | BM13: Chandrapur | BO13: 16 | BP13: Noney | BR13: 11 | BS13: Ri-Bhoi | BU13: 8 | BV13: Serchhip | BX13: 11 | BY13: Zunheboto | CA13: 11 | CB13: Deogarh | CG13: 11 | CH13: Ferozepur | CJ13: 10 | CK13: Chittorgarh | CP13: 9 | CQ13: Kanchipuram | CS13: 36 | CT13: Komarmbheem Asifabad | CY13: 11 | CZ13: Bahraich | DB13: 10 | DC13: Rudra Prayag | DE13: 32 | DF13: Chandannagar PC | DH13: 48 | DI13: DELHI CITY
A14: 9 | B14: HIMACHAL PRADESH | G14: 12 | H14: Rajahmundry | J14: 9 | K14: Longding | M14: 10 | N14: Dhubri | P14: 11 | Q14: Buxar | V14: 11 | W14: GRP Raipur | AE14: 11 | AF14: Outer | AK14: 12 | AL14: Dahod | AN14: 10 | AO14: Jind | AQ14: 12 | AR14: Shimla | AT14: 13 | AU14: Kathua | AW14: 12 | AX14: Hazaribagh | AZ14: 12 | BA14: Dakshina Kannada | BC14: 10 | BD14: Kozhikode Commr. | BI14: 12 | BJ14: Chhatarpur | BL14: 11 | BM14: Dhule | BO14: 17 | BP14: Pherzawl | BU14: 10 | BV14: Spl Narcotic | CA14: 12 | CB14: Dhenkanal | CG14: 12 | CH14: G.R.P | CJ14: 11 | CK14: Churu | CP14: 10 | CQ14: Kanyakumari | CS14: 37 | CT14: Mahabubbad | CY14: 12 | CZ14: Ballia | DB14: 11 | DC14: Tehri Garhwal | DE14: 10 | DF14: Coochbehar | DH14: 49 | DI14: DHANBAD
A15: 33 | B15: JAMMU & KASHMIR | G15: 13 | H15: Srikakulam | J15: 10 | K15: Lower Dibang Valley | M15: 11 | N15: Dibrugarh | P15: 12 | Q15: Darbhanga | V15: 12 | W15: Jagdalpur | AE15: 23 | AF15: Outer North | AK15: 13 | AL15: Dang | AN15: 11 | AO15: Kaithal | AQ15: 13 | AR15: Sirmaur | AT15: 14 | AU15: Kishtwar | AW15: 13 | AX15: Jamshedpur | AZ15: 13 | BA15: Davanagere | BC15: 11 | BD15: Kozhikode Rural | BI15: 13 | BJ15: Chhindwara | BL15: 12 | BM15: Gadchiroli | BO15: 7 | BP15: Senapati | BU15: 9 | BV15: Spl Traffic | CA15: 13 | CB15: Gajapati | CG15: 13 | CH15: Gurdaspur | CJ15: 12 | CK15: Dausa | CP15: 11 | CQ15: Karur | CS15: 38 | CT15: Mahabubnagar | CY15: 13 | CZ15: Balrampur | DB15: 12 | DC15: Udhamsingh Nagar | DE15: 11 | DF15: Dakshin Dinajpur | DH15: 50 | DI15: DURG-BHILAINAGAR
A16: 10 | B16: JHARKHAND | G16: 14 | H16: Tirupathi Urban | J16: 22 | K16: Lower Siang | M16: 25 | N16: Dima Hasao | P16: 45 | Q16: Economic Offences Unit | V16: 13 | W16: Janjgir | AE16: 12 | AF16: RAILWAY | AK16: 14 | AL16: Devbhumi Dwarka | AN16: 12 | AO16: Karnal | AQ16: 14 | AR16: Solan | AT16: 15 | AU16: Kulgam | AW16: 14 | AX16: Jamshedpur Railway | AZ16: 14 | BA16: Dharwad | BC16: 12 | BD16: Malappuram | BI16: 14 | BJ16: Damoh | BL16: 13 | BM16: Gondia | BO16: 8 | BP16: Tamenglong | CA16: 14 | CB16: Ganjam | CG16: 14 | CH16: Hoshiarpur | CJ16: 13 | CK16: Dholpur | CP16: 12 | CQ16: Krishnagiri | CS16: 39 | CT16: Medak | CY16: 14 | CZ16: Banda | DB16: 13 | DC16: Uttarkashi | DE16: 12 | DF16: Darjeeling | DH16: 51 | DI16: FARIDABAD
A17: 11 | B17: KARNATAKA | G17: 15 | H17: Vijayawada City | J17: 20 | K17: Namsai | M17: 12 | N17: G.R.P. | P17: 13 | Q17: Gaya | V17: 14 | W17: Jashpur | AE17: 20 | AF17: Rohini | AK17: 15 | AL17: Gandhinagar | AN17: 13 | AO17: Kurukshetra | AQ17: 15 | AR17: Una | AT17: 16 | AU17: Kupwara | AW17: 15 | AX17: Jamtara | AZ17: 15 | BA17: Gadag | BC17: 13 | BD17: Palakkad | BI17: 15 | BJ17: Datia | BL17: 14 | BM17: Hingoli | BO17: 14 | BP17: Tengnoupal | CA17: 15 | CB17: Jagatsinghpur | CG17: 15 | CH17: Jalandhar Rural | CJ17: 43 | CK17: DISCOM | CP17: 13 | CQ17: Madurai | CS17: 49 | CT17: Mulug | CY17: 15 | CZ17: Barabanki | DE17: 33 | DF17: Diamond Harbour Police | DH17: 52 | DI17: GHAZIABAD
A18: 12 | B18: KERALA | G18: 16 | H18: Vijayawada Railway | J18: 26 | K18: Pakke Kessang | M18: 13 | N18: Goalpara | P18: 14 | Q18: Gopalganj | V18: 15 | W18: Kabirdham | AE18: 21 | AF18: Shahdara | AK18: 16 | AL18: Gir Somnath | AN18: 14 | AO18: Mahendergarh | AT18: 18 | AU18: Poonch | AW18: 16 | AX18: Khunti | AZ18: 17 | BA18: Hassan | BC18: 14 | BD18: Pathanamthitta | BI18: 16 | BJ18: Dewas | BL18: 15 | BM18: Jalgaon | BO18: 9 | BP18: Thoubal | CA18: 16 | CB18: Jajpur | CG18: 16 | CH18: Kapurthala | CJ18: 14 | CK18: Dungarpur | CP18: 14 | CQ18: Madurai City | CS18: 40 | CT18: Nagarkurnool | CY18: 16 | CZ18: Bareilly | DE18: 13 | DF18: Hooghly Rural Police | DH18: 53 | DI18: GWALIOR
A19: 34 | B19: LADAKH | G19: 17 | H19: Visakha Rural | J19: 11 | K19: Papum Pare City | M19: 14 | N19: Golaghat | P19: 15 | Q19: Jamalpur Railway | V19: 16 | W19: Kanker | AE19: 13 | AF19: South | AK19: 17 | AL19: Jamnagar | AN19: 15 | AO19: Mewat | AT19: 19 | AU19: Pulwama | AW19: 17 | AX19: Koderma | AZ19: 18 | BA19: Haveri | BC19: 15 | BD19: Railways | BI19: 17 | BJ19: Dhar | BL19: 16 | BM19: Jalna | BO19: 10 | BP19: Ukhrul | CA19: 17 | CB19: Jharsuguda | CG19: 17 | CH19: Khanna | CJ19: 15 | CK19: G.R.P.Ajmer | CP19: 46 | CQ19: Mayiladuthurai | CS19: 41 | CT19: Nalgonda | CY19: 17 | CZ19: Basti | DE19: 14 | DF19: Howrah G. R. P. | DH19: 54 | DI19: HYDERABAD
A20: 35 | B20: LAKSHADWEEP | G20: 18 | H20: Visakhapatnam | J20: 12 | K20: Papum Pare Rural | M20: 15 | N20: Guwahati City | P20: 16 | Q20: Jamui | V20: 17 | W20: Kondagaon | AE20: 14 | AF20: South-East | AK20: 18 | AL20: Junagadh | AN20: 16 | AO20: Palwal | AT20: 20 | AU20: Railways Jammu | AW20: 18 | AX20: Latehar | AZ20: 19 | BA20: Hubballi Dharwad City | BC20: 16 | BD20: Thrissur Commr. | BI20: 18 | BJ20: Dindori | BL20: 17 | BM20: Kolhapur | CA20: 18 | CB20: Kalahandi | CG20: 18 | CH20: Ludhiana Rural | CJ20: 16 | CK20: G.R.P.Jodhpur | CP20: 15 | CQ20: Nagapattinam | CS20: 50 | CT20: Narayanpet | CY20: 18 | CZ20: Bijnor | DE20: 15 | DF20: Howrah PC | DH20: 55 | DI20: INDORE
A21: 13 | B21: MADHYA PRADESH | G21: 19 | H21: Vizianagaram | J21: 24 | K21: Shiyomi | M21: 16 | N21: Hailakandi | P21: 17 | Q21: Jehanabad | V21: 18 | W21: Korba | AE21: 15 | AF21: South-West | AK21: 19 | AL21: Kachchh East(G) | AN21: 17 | AO21: Panchkula | AT21: 21 | AU21: Railways Kashmir | AW21: 19 | AX21: Lohardagga | AZ21: 20 | BA21: K.G.F. | BC21: 17 | BD21: Thrissur Rural | BI21: 19 | BJ21: Guna | BL21: 18 | BM21: Latur | CA21: 19 | CB21: Kandhamal | CG21: 29 | CH21: Malerkotla | CJ21: 17 | CK21: Ganganagar | CP21: 16 | CQ21: Namakkal | CS21: 42 | CT21: Nirmal | CY21: 19 | CZ21: Bulandshahar | DE21: 16 | DF21: Howrah Rural | DH21: 56 | DI21: JABALPUR
A22: 14 | B22: MAHARASHTRA | G22: 20 | H22: West Godavari | J22: 21 | K22: Siang | M22: 17 | N22: Hamren | P22: 18 | Q22: Katihar | V22: 19 | W22: Koria | AE22: 16 | AF22: Spl Cell | AK22: 20 | AL22: Kachchh West(B) | AN22: 18 | AO22: Panipat | AT22: 22 | AU22: Railways Katra | AW22: 20 | AX22: Pakur | AZ22: 29 | BA22: K.Railways | BC22: 18 | BD22: Trivandrum Commr. | BI22: 20 | BJ22: Gwalior | BL22: 49 | BM22: Mira Bhayandar Vasai Virar | CA22: 20 | CB22: Kendrapara | CG22: 19 | CH22: Mansa | CJ22: 18 | CK22: Hanumangarh | CP22: 17 | CQ22: Nilgiris | CS22: 25 | CT22: Nizamabad Commissionerate | CY22: 20 | CZ22: Chandoli | DE22: 39 | DF22: Islampore Police District | DH22: 57 | DI22: JAIPUR
A23: 15 | B23: MANIPUR | J23: 13 | K23: Siang East | M23: 38 | N23: Hojai | P23: 19 | Q23: Katihar Railway | V23: 20 | W23: Koriya | AE23: 17 | AF23: SPUWAC | AK23: 21 | AL23: Kheda | AN23: 19 | AO23: Rewari | AT23: 23 | AU23: Rajouri | AW23: 21 | AX23: Palamu | AZ23: 16 | BA23: Kalaburagi | BC23: 19 | BD23: Trivandrum Rural | BI23: 21 | BJ23: Harda | BL23: 19 | BM23: Mumbai Commr. | CA23: 21 | CB23: Keonjhar | CG23: 20 | CH23: Moga | CJ23: 48 | CK23: Jaipur Crime | CP23: 18 | CQ23: Perambalur | CS23: 26 | CT23: Rachakonda Commissionerate | CY23: 21 | CZ23: Chitrakoot | DE23: 17 | DF23: Jalpaiguri | DH23: 58 | DI23: JAMSHEDPUR
A24: 16 | B24: MEGHALAYA | J24: 14 | K24: Siang Upper | M24: 18 | N24: Jorhat | P24: 20 | Q24: Khagaria | V24: 21 | W24: Mahasamund | AE24: 18 | AF24: Vigilance | AK24: 22 | AL24: Mahisagar | AN24: 20 | AO24: Rohtak | AT24: 24 | AU24: Ramban | AW24: 22 | AX24: Ramgarh | AZ24: 37 | BA24: Kalaburagi City | BC24: 20 | BD24: Wayanadu | BI24: 22 | BJ24: Hoshangabad | BL24: 20 | BM24: Mumbai Railway | CA24: 22 | CB24: Khurda | CG24: 21 | CH24: Muktsar | CJ24: 19 | CK24: Jaipur East | CP24: 19 | CQ24: Pudukottai | CS24: 48 | CT24: Railway Police Secunderabad | CY24: 22 | CZ24: Deoria | DE24: 46 | DF24: Jangipur Police District | DH24: 59 | DI24: JODHPUR
A25: 17 | B25: MIZORAM | J25: 15 | K25: Siang West | M25: 19 | N25: Kamrup | P25: 21 | Q25: Kishanganj | V25: 22 | W25: Mungali | AE25: 19 | AF25: West | AK25: 23 | AL25: Mehsana | AN25: 21 | AO25: Sirsa | AT25: 25 | AU25: Reasi | AW25: 23 | AX25: Ranchi | AZ25: 21 | BA25: Kodagu | BI25: 23 | BJ25: Indore | BL25: 21 | BM25: Nagpur Commr. | CA25: 23 | CB25: Koraput | CG25: 22 | CH25: Pathankot | CJ25: 44 | CK25: Jaipur Metro | CP25: 21 | CQ25: Railway Chennai | CS25: 43 | CT25: Rajanna Siricilla | CY25: 23 | CZ25: Etah | DE25: 18 | DF25: Jhargram | DH25: 60 | DI25: KANNUR
A26: 18 | B26: NAGALAND | J26: 16 | K26: Subansiri Lower | M26: 20 | N26: Karbi Anglong | P26: 22 | Q26: Lakhisarai | V26: 23 | W26: Narayanpur | AK26: 24 | AL26: Morbi | AN26: 22 | AO26: Sonipat | AT26: 26 | AU26: Samba | AW26: 24 | AX26: Sahebganj | AZ26: 22 | BA26: Kolar | BI26: 24 | BJ26: Indore Railway | BL26: 22 | BM26: Nagpur Railway | CA26: 24 | CB26: Malkangiri | CG26: 23 | CH26: Patiala | CJ26: 20 | CK26: Jaipur North | CP26: 22 | CQ26: Railway Trichy | CS26: 27 | CT26: Ramagundam Commissionerate | CY26: 24 | CZ26: Etawah | DE26: 34 | DF26: Kalimpong | DH26: 61 | DI26: KANPUR
A27: 19 | B27: ODISHA | J27: 17 | K27: Subansiri Upper | M27: 21 | N27: Karimganj | P27: 23 | Q27: Madhepura | V27: 24 | W27: Raigarh | AK27: 25 | AL27: Narmada | AN27: 23 | AO27: Yamunanagar | AT27: 27 | AU27: Shopian | AW27: 25 | AX27: Saraikela | AZ27: 23 | BA27: Koppal | BI27: 25 | BJ27: Jabalpur | BL27: 23 | BM27: Nagpur Rural | CA27: 25 | CB27: Mayurbhanj | CG27: 24 | CH27: Ropar | CJ27: 21 | CK27: Jaipur Rural | CP27: 20 | CQ27: Ramnathapuram | CS27: 44 | CT27: Sangareddy | CY27: 25 | CZ27: Faizabad | DE27: 19 | DF27: Kharagpur G. R. P. | DH27: 62 | DI27: KOCHI
A28: 36 | B28: PUDUCHERRY | J28: 18 | K28: Tawang | M28: 22 | N28: Kokrajhar | P28: 24 | Q28: Madhubani | V28: 25 | W28: Raipur | AK28: 26 | AL28: Navsari | AT28: 28 | AU28: Sopore | AW28: 26 | AX28: Simdega | AZ28: 24 | BA28: Mandya | BI28: 26 | BJ28: Jabalpur Railway | BL28: 24 | BM28: Nanded | CA28: 27 | CB28: Nabarangpur | CG28: 25 | CH28: Sangrur | CJ28: 22 | CK28: Jaipur South | CP28: 43 | CQ28: Ranipet | CS28: 28 | CT28: Siddipet Commissionerate | CY28: 26 | CZ28: Fatehgarh | DE28: 20 | DF28: Kolkata | DH28: 63 | DI28: KOLKATA
A29: 20 | B29: PUNJAB | J29: 19 | K29: Tirap | M29: 23 | N29: Lakhimpur | P29: 25 | Q29: Motihari | V29: 26 | W29: Rajnandgaon | AK29: 27 | AL29: Panchmahal | AT29: 29 | AU29: Srinagar | AZ29: 25 | BA29: Mangaluru City | BI29: 27 | BJ29: Jhabua | BL29: 25 | BM29: Nandurbar | CA29: 26 | CB29: Nayagarh | CG29: 26 | CH29: SAS Nagar | CJ29: 23 | CK29: Jaipur West | CP29: 23 | CQ29: Salem | CS29: 45 | CT29: Suryapet | CY29: 27 | CZ29: Fatehpur | DE29: 45 | DF29: Krishna Nagar Police District | DH29: 64 | DI29: KOLLAM
A30: 21 | B30: RAJASTHAN | M30: 36 | N30: Majuli | P30: 26 | Q30: Munger | V30: 27 | W30: Sarguja | AK30: 28 | AL30: Patan | AT30: 30 | AU30: Udhampur | AZ30: 26 | BA30: Mysuru City | BI30: 28 | BJ30: Katni | BL30: 26 | BM30: Nasik Commr. | CA30: 28 | CB30: Nuapada | CG30: 27 | CH30: SBS Nagar | CJ30: 24 | CK30: Jaisalmer | CP30: 24 | CQ30: Salem City | CS30: 46 | CT30: Vikarabad | CY30: 28 | CZ30: Firozabad | DE30: 21 | DF30: Malda | DH30: 65 | DI30: KOTA
A31: 22 | B31: SIKKIM | M31: 24 | N31: Morigaon | P31: 27 | Q31: Muzaffarpur | V31: 28 | W31: Sukma | AK31: 29 | AL31: Porbandar | AZ31: 27 | BA31: Mysuru District | BI31: 29 | BJ31: Khandwa | BL31: 27 | BM31: Nasik Rural | CA31: 29 | CB31: Puri | CG31: 28 | CH31: Tarn Taran | CJ31: 25 | CK31: Jalore | CP31: 25 | CQ31: Sivagangai | CS31: 47 | CT31: Wanaparthy | CY31: 29 | CZ31: G.R.P. | DE31: 22 | DF31: Murshidabad Police District | DH31: 66 | DI31: KOZHIKODE
A32: 23 | B32: TAMIL NADU | M32: 26 | N32: Nagaon | P32: 28 | Q32: Muzaffarpur Railway | V32: 29 | W32: Surajpur | AK32: 30 | AL32: Rajkot City | AZ32: 28 | BA32: Raichur | BI32: 30 | BJ32: Khargone | BL32: 28 | BM32: Navi Mumbai | CA32: 30 | CB32: Rayagada | CJ32: 26 | CK32: Jhalawar | CP32: 44 | CQ32: Tenkasi | CS32: 29 | CT32: Warangal Commissionerate | CY32: 30 | CZ32: Gautambudh Nagar Commissionerate | DE32: 24 | DF32: Paschim Medinipur | DH32: 67 | DI32: LUCKNOW
A33: 24 | B33: TELANGANA | M33: 27 | N33: Nalbari | P33: 29 | Q33: Nalanda | AK33: 31 | AL33: Rajkot Rural | AZ33: 30 | BA33: Ramanagar | BI33: 31 | BJ33: Mandla | BL33: 29 | BM33: Osmanabad | CA33: 31 | CB33: Rourkela | CJ33: 27 | CK33: Jhunjhunu | CP33: 26 | CQ33: Thanjavur | CY33: 31 | CZ33: Ghaziabad | DE33: 25 | DF33: Purab Medinipur | DH33: 68 | DI33: LUDHIANA
A34: 25 | B34: TRIPURA | M34: 28 | N34: R.P.O. | P34: 30 | Q34: Naugachia | AK34: 32 | AL34: Sabarkantha | AZ34: 31 | BA34: Shimoga | BI34: 32 | BJ34: Mandsaur | BL34: 30 | BM34: Palghar | CA34: 32 | CB34: Sambalpur | CJ34: 28 | CK34: Jodhpur (East) | CP34: 27 | CQ34: Theni | CY34: 32 | CZ34: Ghazipur | DE34: 35 | DF34: Purba Bardhaman | DH34: 69 | DI34: MADURAI
A35: 26 | B35: UTTAR PRADESH | M35: 29 | N35: S.O.U. | P35: 31 | Q35: Nawadah | AK35: 33 | AL35: Surat City | AZ35: 32 | BA35: Tumakuru | BI35: 33 | BJ35: Morena | BL35: 31 | BM35: Parbhani | CA35: 33 | CB35: Sonepur | CJ35: 30 | CK35: Jodhpur (West) | CP35: 28 | CQ35: Thirunelveli | CY35: 33 | CZ35: Gonda | DE35: 26 | DF35: Purulia | DH35: 70 | DI35: MALAPPURAM
A36: 27 | B36: UTTARAKHAND | M36: 30 | N36: S.T.F. | P36: 32 | Q36: Patna | AK36: 34 | AL36: Surat Rural | AZ36: 33 | BA36: Udupi | BI36: 34 | BJ36: Narsinghpur | BL36: 47 | BM36: Pimpri Chinchwad City | CA36: 34 | CB36: SRP(Cuttack) | CJ36: 29 | CK36: Jodhpur Rural | CP36: 29 | CQ36: Thirunelveli City | CY36: 34 | CZ36: Gorakhpur | DE36: 44 | DF36: Raiganj Police District | DH36: 71 | DI36: MEERUT
A37: 28 | B37: WEST BENGAL | M37: 35 | N37: Sadia | P37: 33 | Q37: Patna Railway | AK37: 35 | AL37: Surendranagar | AZ37: 34 | BA37: Uttara Kannada | BI37: 35 | BJ37: Neemuch | BL37: 32 | BM37: Pune Commr. | CA37: 35 | CB37: SRP(Rourkela) | CJ37: 31 | CK37: Karauli | CP37: 30 | CQ37: Thiruvallur | CY37: 35 | CZ37: Hamirpur | DE37: 40 | DF37: Ranaghat Police District | DH37: 72 | DI37: MUMBAI
M38: 31 | N38: Sibsagar | P38: 34 | Q38: Purnea | AK38: 36 | AL38: Tapi | AZ38: 7 | BA38: Vijayapura | BI38: 55 | BJ38: Niwari | BL38: 33 | BM38: Pune Railway | CA38: 36 | CB38: Sundargarh | CJ38: 32 | CK38: Kota City | CP38: 31 | CQ38: Thiruvannamalai | CY38: 36 | CZ38: Hapur | DE38: 27 | DF38: Sealdah G. R. P. | DH38: 73 | DI38: NAGPUR
M39: 32 | N39: Sonitpur | P39: 35 | Q39: Rohtas | AK39: 37 | AL39: Vadodara City | AZ39: 35 | BA39: Yadgiri | BI39: 36 | BJ39: Panna | BL39: 34 | BM39: Pune Rural | CJ39: 33 | CK39: Kota Rural | CP39: 32 | CQ39: Thiruvarur | CY39: 37 | CZ39: Hardoi | DE39: 28 | DF39: Siliguri G. R. P. | DH39: 74 | DI39: NASIK
M40: 39 | N40: South Salmara | P40: 36 | Q40: Saharsa | AK40: 38 | AL40: Vadodara Rural | BI40: 37 | BJ40: Raisen | BL40: 35 | BM40: Raigad | CJ40: 34 | CK40: Nagaur | CP40: 33 | CQ40: Thoothugudi | CY40: 38 | CZ40: Hathras | DE40: 29 | DF40: Siliguri PC | DH40: 75 | DI40: PATNA
M41: 33 | N41: Tinsukia | P41: 37 | Q41: Samastipur | AK41: 39 | AL41: Valsad | BI41: 38 | BJ41: Rajgarh | BL41: 36 | BM41: Ratnagiri | CJ41: 35 | CK41: Pali | CP41: 45 | CQ41: Tiruppattur | CY41: 39 | CZ41: Jalaun | DE41: 36 | DF41: Sundarban Police District | DH41: 76 | DI41: PUNE
M42: 34 | N42: Udalguri | P42: 38 | Q42: Saran | AK42: 40 | AL42: W.Rly Ahmedabad | BI42: 39 | BJ42: Ratlam | BL42: 37 | BM42: Sangli | CJ42: 36 | CK42: Pratapgarh | CP42: 34 | CQ42: Tiruppur | CY42: 40 | CZ42: Jaunpur | DH42: 77 | DI42: RAIPUR
P43: 39 | Q43: Sheikhpura | AK43: 41 | AL43: W.Rly Vadodara | BI43: 40 | BJ43: Rewa | BL43: 38 | BM43: Satara | CJ43: 37 | CK43: Rajsamand | CP43: 35 | CQ43: Tiruppur City | CY43: 41 | CZ43: Jhansi | DH43: 78 | DI43: RAJKOT
P44: 40 | Q44: Sheohar | BI44: 41 | BJ44: Sagar | BL44: 39 | BM44: Sindhudurg | CJ44: 38 | CK44: Sawai Madhopur | CP44: 36 | CQ44: Trichy | CY44: 42 | CZ44: Kannauj | DH44: 79 | DI44: RANCHI
P45: 41 | Q45: Sitamarhi | BI45: 42 | BJ45: Satna | BL45: 40 | BM45: Solapur Commr. | CJ45: 45 | CK45: SCRB | CP45: 37 | CQ45: Trichy City | CY45: 44 | CZ45: Kanpur Commissionerate | DH45: 80 | DI45: SRINAGAR
P46: 42 | Q46: Siwan | BI46: 49 | BJ46: Sehore | BL46: 41 | BM46: Solapur Rural | CJ46: 39 | CK46: Sikar | CP46: 38 | CQ46: Vellore | CY46: 43 | CZ46: Kanpur Dehat | DH46: 81 | DI46: SURAT
P47: 48 | Q47: Special Unit Vigilence | BI47: 43 | BJ47: Seoni | BL47: 42 | BM47: Thane Commr. | CJ47: 40 | CK47: Sirohi | CP47: 39 | CQ47: Villupuram | CY47: 78 | CZ47: Kanpur Outer | DH47: 82 | DI47: THIRUVANANTHAPURAM
P48: 47 | Q48: State Vigilence | BI48: 44 | BJ48: Shahdol | BL48: 43 | BM48: Thane Rural | CJ48: 46 | CK48: SOG | CP48: 40 | CQ48: Virudhunagar | CY48: 45 | CZ48: Kasganj | DH48: 83 | DI48: THRISSUR
P49: 43 | Q49: Supaul | BI49: 45 | BJ49: Shajapur | BL49: 44 | BM49: Wardha | CJ49: 47 | CK49: SSB | CY49: 46 | CZ49: Kaushambi | DH49: 84 | DI49: TIRUCHIRAPALLI
P50: 44 | Q50: Vaishali | BI50: 46 | BJ50: Sheopur | BL50: 45 | BM50: Washim | CJ50: 41 | CK50: Tonk | CY50: 47 | CZ50: Khiri | DH50: 85 | DI50: VADODARA
BI51: 47 | BJ51: Shivpuri | BL51: 46 | BM51: Yavatmal | CJ51: 42 | CK51: Udaipur | CY51: 48 | CZ51: Kushi Nagar | DH51: 86 | DI51: VARANASI
BI52: 48 | BJ52: Sidhi | CY52: 49 | CZ52: Lalitpur | DH52: 87 | DI52: VASAI VIRAR
BI53: 50 | BJ53: Singrauli | CY53: 50 | CZ53: Lucknow Commissionerate | DH53: 88 | DI53: VIJAYAWADA
BI54: 51 | BJ54: Tikamgarh | CY54: 77 | CZ54: Lucknow Grameen | DH54: 89 | DI54: VISHAKHAPATNAM
BI55: 52 | BJ55: Ujjain | CY55: 51 | CZ55: Maharajganj
BI56: 53 | BJ56: Umaria | CY56: 52 | CZ56: Mahoba
BI57: 54 | BJ57: Vidisha | CY57: 53 | CZ57: Mainpuri
CY58: 54 | CZ58: Mathura
CY59: 55 | CZ59: Mau
CY60: 56 | CZ60: Meerut
CY61: 57 | CZ61: Mirzapur
CY62: 58 | CZ62: Moradabad
CY63: 59 | CZ63: Muzaffarnagar
CY64: 60 | CZ64: Pilibhit
CY65: 61 | CZ65: Pratapgarh
CY66: 62 | CZ66: Raibareilly
CY67: 63 | CZ67: Rampur
CY68: 64 | CZ68: Saharanpur
CY69: 65 | CZ69: Sambhal
CY70: 66 | CZ70: Sant Kabirnagar
CY71: 67 | CZ71: Shahjahanpur
CY72: 68 | CZ72: Shamli
CY73: 69 | CZ73: Shrawasti
CY74: 70 | CZ74: Sidharthnagar
CY75: 71 | CZ75: Sitapur
CY76: 72 | CZ76: Sonbhadra
CY77: 73 | CZ77: St.Ravidasnagar
CY78: 74 | CZ78: Sultanpur
CY79: 75 | CZ79: Unnao
CY80: 76 | CZ80: Varanasi Commissionerate
CY81: 79 | CZ81: Varanasi Dehat

Sheet P-I
A1: =ADSI!$B$1 -> Goa, , ADSI-2021
A2: Proforma–I | E2: Abnormal Variations | F2: =COUNTIF(D24:Y24,"ABVAR") -> 3
A3: Accidental Deaths due to Natural Calamities
A4: Code | B4: Sl. No. | C4: Factors | D4: N u m b e r o f A c c i d e n t a l D e a t h s | Y4: Grand Total (9) + (16)+(23)
D5: M a l e | K5: F e m a l e | R5: Transgender
D6: below 14 years | E6: 14 and above – below 18 years | F6: 18 and above – below 30 years | G6: 30 and above – below 45 years | H6: 45 and above – below 60 years | I6: 60 years & above | J6: Total [sum of (3) to (8)] | K6: below 14 years | L6: 14 and above – below 18 years | M6: 18 and above – below 30 years | N6: 30 and above – below 45 years | O6: 45 and above – below 60 years | P6: 60 years & above | Q6: Total [sum of (10) to (15)] | R6: below 14 years | S6: 14 and above – below 18 years | T6: 18 and above – below 30 years | U6: 30 and above – below 45 years | V6: 45 and above – below 60 years | W6: 60 years & above | X6: Total [sum of (17) to (22)]
B7: (1) | C7: (2) | D7: (3) | E7: (4) | F7: (5) | G7: (6) | H7: (7) | I7: (8) | J7: (9) | K7: (10) | L7: (11) | M7: (12) | N7: (13) | O7: (14) | P7: (15) | Q7: (16) | R7: (17) | S7: (18) | T7: (19) | U7: (20) | V7: (21) | W7: (22) | X7: (23) | Y7: (24)
A8: 1 | B8: 1 | C8: Avalanche | D8: 0 | E8: 0 | F8: 0 | G8: 0 | H8: 0 | I8: 0 | J8: =SUM(D8:I8) -> 0 | K8: 0 | L8: 0 | M8: 0 | N8: 0 | O8: 0 | P8: 0 | Q8: =SUM(K8:P8) -> 0 | R8: 0 | S8: 0 | T8: 0 | U8: 0 | V8: 0 | W8: 0 | X8: =SUM(R8:W8) -> 0 | Y8: =J8+Q8+X8 -> 0
A9: 2 | B9: 2 | C9: Exposure to cold | D9: 0 | E9: 0 | F9: 0 | G9: 0 | H9: 0 | I9: 0 | J9: =SUM(D9:I9) -> 0 | K9: 0 | L9: 0 | M9: 0 | N9: 0 | O9: 0 | P9: 0 | Q9: =SUM(K9:P9) -> 0 | R9: 0 | S9: 0 | T9: 0 | U9: 0 | V9: 0 | W9: 0 | X9: =SUM(R9:W9) -> 0 | Y9: =J9+Q9+X9 -> 0
A10: 3 | B10: 3 | C10: Cyclone | D10: 0 | E10: 0 | F10: 0 | G10: 0 | H10: 0 | I10: 0 | J10: 0 | K10: 0 | L10: 0 | M10: 0 | N10: 0 | O10: 0 | P10: 0 | Q10: 0 | R10: 0 | S10: 0 | T10: 0 | U10: 0 | V10: 0 | W10: 0 | X10: 0 | Y10: 0
A11: 4 | B11: 4 | C11: Tornado | D11: 0 | E11: 0 | F11: 0 | G11: 0 | H11: 0 | I11: 0 | J11: 0 | K11: 0 | L11: 0 | M11: 0 | N11: 0 | O11: 0 | P11: 0 | Q11: 0 | R11: 0 | S11: 0 | T11: 0 | U11: 0 | V11: 0 | W11: 0 | X11: 0 | Y11: 0
A12: 5 | B12: 5 | C12: Tsunami | D12: 0 | E12: 0 | F12: 0 | G12: 0 | H12: 0 | I12: 0 | J12: 0 | K12: 0 | L12: 0 | M12: 0 | N12: 0 | O12: 0 | P12: 0 | Q12: 0 | R12: 0 | S12: 0 | T12: 0 | U12: 0 | V12: 0 | W12: 0 | X12: 0 | Y12: 0
A13: 6 | B13: 6 | C13: Starvation due to natural calamity | D13: 0 | E13: 0 | F13: 0 | G13: 0 | H13: 0 | I13: 0 | J13: 0 | K13: 0 | L13: 0 | M13: 0 | N13: 0 | O13: 0 | P13: 0 | Q13: 0 | R13: 0 | S13: 0 | T13: 0 | U13: 0 | V13: 0 | W13: 0 | X13: 0 | Y13: 0
A14: 7 | B14: 7 | C14: Earthquake | D14: 0 | E14: 0 | F14: 0 | G14: 0 | H14: 0 | I14: 0 | J14: 0 | K14: 0 | L14: 0 | M14: 0 | N14: 0 | O14: 0 | P14: 0 | Q14: 0 | R14: 0 | S14: 0 | T14: 0 | U14: 0 | V14: 0 | W14: 0 | X14: 0 | Y14: 0
A15: 8 | B15: 8 | C15: Epidemic | D15: 0 | E15: 0 | F15: 0 | G15: 0 | H15: 0 | I15: 0 | J15: 0 | K15: 0 | L15: 0 | M15: 0 | N15: 0 | O15: 0 | P15: 0 | Q15: 0 | R15: 0 | S15: 0 | T15: 0 | U15: 0 | V15: 0 | W15: 0 | X15: 0 | Y15: 0
A16: 9 | B16: 9 | C16: Flood | D16: 0 | E16: 0 | F16: 0 | G16: 0 | H16: 0 | I16: 0 | J16: 0 | K16: 0 | L16: 0 | M16: 0 | N16: 0 | O16: 0 | P16: 0 | Q16: 0 | R16: 0 | S16: 0 | T16: 0 | U16: 0 | V16: 0 | W16: 0 | X16: 0 | Y16: 0
A17: 10 | B17: 10 | C17: Heat/Sun Stroke | D17: 0 | E17: 0 | F17: 0 | G17: 0 | H17: 0 | I17: 0 | J17: 0 | K17: 0 | L17: 0 | M17: 0 | N17: 0 | O17: 0 | P17: 0 | Q17: 0 | R17: 0 | S17: 0 | T17: 0 | U17: 0 | V17: 0 | W17: 0 | X17: 0 | Y17: 0
A18: 11 | B18: 11 | C18: Landslide | D18: 0 | E18: 0 | F18: 0 | G18: 0 | H18: 0 | I18: 0 | J18: 0 | K18: 0 | L18: 0 | M18: 0 | N18: 0 | O18: 0 | P18: 0 | Q18: 0 | R18: 0 | S18: 0 | T18: 0 | U18: 0 | V18: 0 | W18: 0 | X18: 0 | Y18: 0
A19: 12 | B19: 12 | C19: Lightning | D19: 0 | E19: 0 | F19: 0 | G19: 1 | H19: 0 | I19: 0 | J19: 1 | K19: 0 | L19: 0 | M19: 0 | N19: 0 | O19: 0 | P19: 0 | Q19: 0 | R19: 0 | S19: 0 | T19: 0 | U19: 0 | V19: 0 | W19: 0 | X19: 0 | Y19: 1
A20: 13 | B20: 13 | C20: Torrential Rain | D20: 0 | E20: 0 | F20: 0 | G20: 0 | H20: 1 | I20: 0 | J20: 1 | K20: 0 | L20: 0 | M20: 0 | N20: 0 | O20: 0 | P20: 0 | Q20: 0 | R20: 0 | S20: 0 | T20: 0 | U20: 0 | V20: 0 | W20: 0 | X20: 0 | Y20: 1
A21: 14 | B21: 14 | C21: Forest Fire | D21: 0 | E21: 0 | F21: 0 | G21: 0 | H21: 0 | I21: 0 | J21: 0 | K21: 0 | L21: 0 | M21: 0 | N21: 0 | O21: 0 | P21: 0 | Q21: 0 | R21: 0 | S21: 0 | T21: 0 | U21: 0 | V21: 0 | W21: 0 | X21: 0 | Y21: 0
A22: 15 | B22: 15 | C22: Other Natural Causes | D22: 0 | E22: 0 | F22: 0 | G22: 0 | H22: 1 | I22: 0 | J22: 1 | K22: 0 | L22: 0 | M22: 0 | N22: 0 | O22: 0 | P22: 0 | Q22: 0 | R22: 0 | S22: 0 | T22: 0 | U22: 0 | V22: 0 | W22: 0 | X22: 0 | Y22: 1
A23: 30 | B23: 16 | C23: Total (sum of Sl. 1 to 15) | D23: =SUM(D8:D22) -> 0 | E23: =SUM(E8:E22) -> 0 | F23: 0 | G23: 1 | H23: 2 | I23: 0 | J23: =SUM(D23:I23) -> 3 | K23: 0 | L23: 0 | M23: 0 | N23: 0 | O23: 0 | P23: 0 | Q23: =SUM(K23:P23) -> 0 | R23: =SUM(R8:R22) -> 0 | S23: 0 | T23: 0 | U23: 0 | V23: 0 | W23: 0 | X23: =SUM(R23:W23) -> 0 | Y23: =J23+Q23+X23 -> 3
A24: SL-15 ABNORMAL VARIATION IN "OTHER NATURAL CAUSES" DATA | D24: =IF(D23>0,IF((D22/D23*100)>20,"ABVAR",""),"") ->  | E24: =IF(E23>0,IF((E22/E23*100)>20,"ABVAR",""),"") ->  | H24: ABVAR | J24: ABVAR | Y24: ABVAR
BA200: =A1 -> Goa, , ADSI-2021
BA201: =A2 -> Proforma–I | BE201: =E2 -> Abnormal Variations | BF201: =F2 -> 3
BA202: =A3 -> Accidental Deaths due to Natural Calamities
BA203: =B4 -> Sl. No. | BB203: =C4 -> Factors | BC203: =D4 -> N u m b e r o f A c c i d e n t a l D e a t h s | BX203: =Y4 -> Grand Total (9) + (16)+(23)
BC204: =D5 -> M a l e | BJ204: =K5 -> F e m a l e | BQ204: =R5 -> Transgender
BC205: below 14 years | BD205: =E6 -> 14 and above – below 18 years | BE205: =F6 -> 18 and above – below 30 years | BF205: =G6 -> 30 and above – below 45 years | BG205: =H6 -> 45 and above – below 60 years | BH205: =I6 -> 60 years & above | BI205: =J6 -> Total [sum of (3) to (8)] | BJ205: below 14 years | BK205: =L6 -> 14 and above – below 18 years | BL205: =M6 -> 18 and above – below 30 years | BM205: =N6 -> 30 and above – below 45 years | BN205: =O6 -> 45 and above – below 60 years | BO205: =P6 -> 60 years & above | BP205: =Q6 -> Total [sum of (10) to (15)] | BQ205: below 14 years | BR205: =S6 -> 14 and above – below 18 years | BS205: =T6 -> 18 and above – below 30 years | BT205: =U6 -> 30 and above – below 45 years | BU205: =V6 -> 45 and above – below 60 years | BV205: =W6 -> 60 years & above | BW205: =X6 -> Total [sum of (17) to (22)]
BA206: =B7 -> (1) | BB206: =C7 -> (2) | BC206: (3) | BD206: (4) | BE206: (5) | BF206: (6) | BG206: (7) | BH206: (8) | BI206: (9) | BJ206: (10) | BK206: (11) | BL206: (12) | BM206: (13) | BN206: (14) | BO206: (15) | BP206: (16) | BQ206: (17) | BR206: (18) | BS206: (19) | BT206: (20) | BU206: (21) | BV206: (22) | BW206: (23) | BX206: =Y7 -> (24)
BA207: 1 | BB207: Avalanche | BC207: 0 | BD207: 0 | BE207: 0 | BF207: 0 | BG207: 0 | BH207: 0 | BI207: 0 | BJ207: 0 | BK207: 0 | BL207: 0 | BM207: 0 | BN207: 0 | BO207: 0 | BP207: 0 | BQ207: 0 | BR207: 0 | BS207: 0 | BT207: 0 | BU207: 0 | BV207: 0 | BW207: 0 | BX207: 0
BA208: 2 | BB208: Exposure to cold | BC208: 0 | BD208: 0 | BE208: 0 | BF208: 0 | BG208: 0 | BH208: 0 | BI208: 0 | BJ208: 0 | BK208: 0 | BL208: 0 | BM208: 0 | BN208: 0 | BO208: 0 | BP208: 0 | BQ208: 0 | BR208: 0 | BS208: 0 | BT208: 0 | BU208: 0 | BV208: 0 | BW208: 0 | BX208: 0
BA209: 3 | BB209: Cyclone | BC209: 0 | BD209: 0 | BE209: 0 | BF209: 0 | BG209: 0 | BH209: 0 | BI209: 0 | BJ209: 0 | BK209: 0 | BL209: 0 | BM209: 0 | BN209: 0 | BO209: 0 | BP209: 0 | BQ209: 0 | BR209: 0 | BS209: 0 | BT209: 0 | BU209: 0 | BV209: 0 | BW209: 0 | BX209: 0
BA210: 4 | BB210: Tornado | BC210: 0 | BD210: 0 | BE210: 0 | BF210: 0 | BG210: 0 | BH210: 0 | BI210: 0 | BJ210: 0 | BK210: 0 | BL210: 0 | BM210: 0 | BN210: 0 | BO210: 0 | BP210: 0 | BQ210: 0 | BR210: 0 | BS210: 0 | BT210: 0 | BU210: 0 | BV210: 0 | BW210: 0 | BX210: 0
BA211: 5 | BB211: Tsunami | BC211: 0 | BD211: 0 | BE211: 0 | BF211: 0 | BG211: 0 | BH211: 0 | BI211: 0 | BJ211: 0 | BK211: 0 | BL211: 0 | BM211: 0 | BN211: 0 | BO211: 0 | BP211: 0 | BQ211: 0 | BR211: 0 | BS211: 0 | BT211: 0 | BU211: 0 | BV211: 0 | BW211: 0 | BX211: 0
BA212: 6 | BB212: Starvation due to natural calamity | BC212: 0 | BD212: 0 | BE212: 0 | BF212: 0 | BG212: 0 | BH212: 0 | BI212: 0 | BJ212: 0 | BK212: 0 | BL212: 0 | BM212: 0 | BN212: 0 | BO212: 0 | BP212: 0 | BQ212: 0 | BR212: 0 | BS212: 0 | BT212: 0 | BU212: 0 | BV212: 0 | BW212: 0 | BX212: 0
BA213: 7 | BB213: Earthquake | BC213: 0 | BD213: 0 | BE213: 0 | BF213: 0 | BG213: 0 | BH213: 0 | BI213: 0 | BJ213: 0 | BK213: 0 | BL213: 0 | BM213: 0 | BN213: 0 | BO213: 0 | BP213: 0 | BQ213: 0 | BR213: 0 | BS213: 0 | BT213: 0 | BU213: 0 | BV213: 0 | BW213: 0 | BX213: 0
BA214: 8 | BB214: Epidemic | BC214: 0 | BD214: 0 | BE214: 0 | BF214: 0 | BG214: 0 | BH214: 0 | BI214: 0 | BJ214: 0 | BK214: 0 | BL214: 0 | BM214: 0 | BN214: 0 | BO214: 0 | BP214: 0 | BQ214: 0 | BR214: 0 | BS214: 0 | BT214: 0 | BU214: 0 | BV214: 0 | BW214: 0 | BX214: 0
BA215: 9 | BB215: Flood | BC215: 0 | BD215: 0 | BE215: 0 | BF215: 0 | BG215: 0 | BH215: 0 | BI215: 0 | BJ215: 0 | BK215: 0 | BL215: 0 | BM215: 0 | BN215: 0 | BO215: 0 | BP215: 0 | BQ215: 0 | BR215: 0 | BS215: 0 | BT215: 0 | BU215: 0 | BV215: 0 | BW215: 0 | BX215: 0
BA216: 10 | BB216: Heat/Sun Stroke | BC216: 0 | BD216: 0 | BE216: 0 | BF216: 0 | BG216: 0 | BH216: 0 | BI216: 0 | BJ216: 0 | BK216: 0 | BL216: 0 | BM216: 0 | BN216: 0 | BO216: 0 | BP216: 0 | BQ216: 0 | BR216: 0 | BS216: 0 | BT216: 0 | BU216: 0 | BV216: 0 | BW216: 0 | BX216: 0
BA217: 11 | BB217: Landslide | BC217: 0 | BD217: 0 | BE217: 0 | BF217: 0 | BG217: 0 | BH217: 0 | BI217: 0 | BJ217: 0 | BK217: 0 | BL217: 0 | BM217: 0 | BN217: 0 | BO217: 0 | BP217: 0 | BQ217: 0 | BR217: 0 | BS217: 0 | BT217: 0 | BU217: 0 | BV217: 0 | BW217: 0 | BX217: 0
BA218: 12 | BB218: Lightning | BC218: 0 | BD218: 0 | BE218: 0 | BF218: 1 | BG218: 0 | BH218: 0 | BI218: 1 | BJ218: 0 | BK218: 0 | BL218: 0 | BM218: 0 | BN218: 0 | BO218: 0 | BP218: 0 | BQ218: 0 | BR218: 0 | BS218: 0 | BT218: 0 | BU218: 0 | BV218: 0 | BW218: 0 | BX218: 1
BA219: 13 | BB219: Torrential Rain | BC219: 0 | BD219: 0 | BE219: 0 | BF219: 0 | BG219: 1 | BH219: 0 | BI219: 1 | BJ219: 0 | BK219: 0 | BL219: 0 | BM219: 0 | BN219: 0 | BO219: 0 | BP219: 0 | BQ219: 0 | BR219: 0 | BS219: 0 | BT219: 0 | BU219: 0 | BV219: 0 | BW219: 0 | BX219: 1
BA220: 14 | BB220: Forest Fire | BC220: 0 | BD220: 0 | BE220: 0 | BF220: 0 | BG220: 0 | BH220: 0 | BI220: 0 | BJ220: 0 | BK220: 0 | BL220: 0 | BM220: 0 | BN220: 0 | BO220: 0 | BP220: 0 | BQ220: 0 | BR220: 0 | BS220: 0 | BT220: 0 | BU220: 0 | BV220: 0 | BW220: 0 | BX220: 0
BA221: 15 | BB221: Other Natural Causes | BC221: 0 | BD221: 0 | BE221: 0 | BF221: 0 | BG221: 1 | BH221: 0 | BI221: 1 | BJ221: 0 | BK221: 0 | BL221: 0 | BM221: 0 | BN221: 0 | BO221: 0 | BP221: 0 | BQ221: 0 | BR221: 0 | BS221: 0 | BT221: 0 | BU221: 0 | BV221: 0 | BW221: 0 | BX221: 1
BA222: 16 | BB222: Total (sum of Sl. 1 to 15) | BC222: 0 | BD222: 0 | BE222: 0 | BF222: 1 | BG222: 2 | BH222: 0 | BI222: 3 | BJ222: 0 | BK222: 0 | BL222: 0 | BM222: 0 | BN222: 0 | BO222: 0 | BP222: 0 | BQ222: 0 | BR222: 0 | BS222: 0 | BT222: 0 | BU222: 0 | BV222: 0 | BW222: 0 | BX222: 3
BA223: =A24 -> SL-15 ABNORMAL VARIATION IN "OTHER NATURAL CAUSES" DATA | BG223: ABVAR | BI223: ABVAR | BX223: ABVAR
A500: StateUTCityCode | B500: DistrictCode | C500: CrimeCode | D500: DataYear | E500: Male_below 14 years | F500: Male_14 and above – below 18 years | G500: Male_18 and above – below 30 years | H500: Male_30 and above – below 45 years | I500: Male_45 and above – below 60 years | J500: Male_60 years & above | K500: Male_Total | L500: Female_below 14 years | M500: Female_14 and above – below 18 years | N500: Female_18 and above – below 30 years | O500: Female_30 and above – below 45 years | P500: Female_45 and above – below 60 years | Q500: Female_60 years & above | R500: Female_Total | S500: Trans_below 14 years | T500: Trans_14 and above – below 18 years | U500: Trans_18 and above – below 30 years | V500: Trans_30 and above – below 45 years | W500: Trans_45 and above – below 60 years | X500: Trans_60 years & above | Y500: Trans_Total | Z500: Grand Total
A501: =IF(ADSI!$G$12="",ADSI!$H$16,ADSI!$H$12) -> 6 | B501: =IF(ADSI!$G$12="",ADSI!$H$16,ADSI!$H$14) ->  | C501: =A8 -> 1 | D501: =ADSI!$K$12 -> 2021 | E501: =D8 -> 0 | F501: =E8 -> 0 | G501: 0 | H501: 0 | I501: 0 | J501: 0 | K501: 0 | L501: 0 | M501: 0 | N501: 0 | O501: 0 | P501: 0 | Q501: 0 | R501: 0 | S501: 0 | T501: 0 | U501: 0 | V501: 0 | W501: 0 | X501: 0 | Y501: 0 | Z501: 0
A502: =IF(ADSI!$G$12="",ADSI!$H$16,ADSI!$H$12) -> 6 | B502: =IF(ADSI!$G$12="",ADSI!$H$16,ADSI!$H$14) ->  | C502: =A9 -> 2 | D502: =ADSI!$K$12 -> 2021 | E502: =D9 -> 0 | F502: 0 | G502: 0 | H502: 0 | I502: 0 | J502: 0 | K502: 0 | L502: 0 | M502: 0 | N502: 0 | O502: 0 | P502: 0 | Q502: 0 | R502: 0 | S502: 0 | T502: 0 | U502: 0 | V502: 0 | W502: 0 | X502: 0 | Y502: 0 | Z502: 0
A503: =IF(ADSI!$G$12="",ADSI!$H$16,ADSI!$H$12) -> 6 | B503: =IF(ADSI!$G$12="",ADSI!$H$16,ADSI!$H$14) ->  | C503: 3 | D503: =ADSI!$K$12 -> 2021 | E503: =D10 -> 0 | F503: 0 | G503: 0 | H503: 0 | I503: 0 | J503: 0 | K503: 0 | L503: 0 | M503: 0 | N503: 0 | O503: 0 | P503: 0 | Q503: 0 | R503: 0 | S503: 0 | T503: 0 | U503: 0 | V503: 0 | W503: 0 | X503: 0 | Y503: 0 | Z503: 0
A504: =IF(ADSI!$G$12="",ADSI!$H$16,ADSI!$H$12) -> 6 | B504: =IF(ADSI!$G$12="",ADSI!$H$16,ADSI!$H$14) ->  | C504: 4 | D504: =ADSI!$K$12 -> 2021 | E504: =D11 -> 0 | F504: 0 | G504: 0 | H504: 0 | I504: 0 | J504: 0 | K504: 0 | L504: 0 | M504: 0 | N504: 0 | O504: 0 | P504: 0 | Q504: 0 | R504: 0 | S504: 0 | T504: 0 | U504: 0 | V504: 0 | W504: 0 | X504: 0 | Y504: 0 | Z504: 0
A505: =IF(ADSI!$G$12="",ADSI!$H$16,ADSI!$H$12) -> 6 | B505: =IF(ADSI!$G$12="",ADSI!$H$16,ADSI!$H$14) ->  | C505: 5 | D505: =ADSI!$K$12 -> 2021 | E505: =D12 -> 0 | F505: 0 | G505: 0 | H505: 0 | I505: 0 | J505: 0 | K505: 0 | L505: 0 | M505: 0 | N505: 0 | O505: 0 | P505: 0 | Q505: 0 | R505: 0 | S505: 0 | T505: 0 | U505: 0 | V505: 0 | W505: 0 | X505: 0 | Y505: 0 | Z505: 0
A506: =IF(ADSI!$G$12="",ADSI!$H$16,ADSI!$H$12) -> 6 | B506: =IF(ADSI!$G$12="",ADSI!$H$16,ADSI!$H$14) ->  | C506: 6 | D506: =ADSI!$K$12 -> 2021 | E506: =D13 -> 0 | F506: 0 | G506: 0 | H506: 0 | I506: 0 | J506: 0 | K506: 0 | L506: 0 | M506: 0 | N506: 0 | O506: 0 | P506: 0 | Q506: 0 | R506: 0 | S506: 0 | T506: 0 | U506: 0 | V506: 0 | W506: 0 | X506: 0 | Y506: 0 | Z506: 0
A507: =IF(ADSI!$G$12="",ADSI!$H$16,ADSI!$H$12) -> 6 | B507: =IF(ADSI!$G$12="",ADSI!$H$16,ADSI!$H$14) ->  | C507: 7 | D507: =ADSI!$K$12 -> 2021 | E507: =D14 -> 0 | F507: 0 | G507: 0 | H507: 0 | I507: 0 | J507: 0 | K507: 0 | L507: 0 | M507: 0 | N507: 0 | O507: 0 | P507: 0 | Q507: 0 | R507: 0 | S507: 0 | T507: 0 | U507: 0 | V507: 0 | W507: 0 | X507: 0 | Y507: 0 | Z507: 0
A508: =IF(ADSI!$G$12="",ADSI!$H$16,ADSI!$H$12) -> 6 | B508: =IF(ADSI!$G$12="",ADSI!$H$16,ADSI!$H$14) ->  | C508: 8 | D508: =ADSI!$K$12 -> 2021 | E508: =D15 -> 0 | F508: 0 | G508: 0 | H508: 0 | I508: 0 | J508: 0 | K508: 0 | L508: 0 | M508: 0 | N508: 0 | O508: 0 | P508: 0 | Q508: 0 | R508: 0 | S508: 0 | T508: 0 | U508: 0 | V508: 0 | W508: 0 | X508: 0 | Y508: 0 | Z508: 0
A509: =IF(ADSI!$G$12="",ADSI!$H$16,ADSI!$H$12) -> 6 | B509: =IF(ADSI!$G$12="",ADSI!$H$16,ADSI!$H$14) ->  | C509: 9 | D509: =ADSI!$K$12 -> 2021 | E509: =D16 -> 0 | F509: 0 | G509: 0 | H509: 0 | I509: 0 | J509: 0 | K509: 0 | L509: 0 | M509: 0 | N509: 0 | O509: 0 | P509: 0 | Q509: 0 | R509: 0 | S509: 0 | T509: 0 | U509: 0 | V509: 0 | W509: 0 | X509: 0 | Y509: 0 | Z509: 0
A510: =IF(ADSI!$G$12="",ADSI!$H$16,ADSI!$H$12) -> 6 | B510: =IF(ADSI!$G$12="",ADSI!$H$16,ADSI!$H$14) ->  | C510: 10 | D510: =ADSI!$K$12 -> 2021 | E510: =D17 -> 0 | F510: 0 | G510: 0 | H510: 0 | I510: 0 | J510: 0 | K510: 0 | L510: 0 | M510: 0 | N510: 0 | O510: 0 | P510: 0 | Q510: 0 | R510: 0 | S510: 0 | T510: 0 | U510: 0 | V510: 0 | W510: 0 | X510: 0 | Y510: 0 | Z510: 0
A511: =IF(ADSI!$G$12="",ADSI!$H$16,ADSI!$H$12) -> 6 | B511: =IF(ADSI!$G$12="",ADSI!$H$16,ADSI!$H$14) ->  | C511: 11 | D511: =ADSI!$K$12 -> 2021 | E511: =D18 -> 0 | F511: 0 | G511: 0 | H511: 0 | I511: 0 | J511: 0 | K511: 0 | L511: 0 | M511: 0 | N511: 0 | O511: 0 | P511: 0 | Q511: 0 | R511: 0 | S511: 0 | T511: 0 | U511: 0 | V511: 0 | W511: 0 | X511: 0 | Y511: 0 | Z511: 0
A512: =IF(ADSI!$G$12="",ADSI!$H$16,ADSI!$H$12) -> 6 | B512: =IF(ADSI!$G$12="",ADSI!$H$16,ADSI!$H$14) ->  | C512: 12 | D512: =ADSI!$K$12 -> 2021 | E512: =D19 -> 0 | F512: 0 | G512: 0 | H512: 1 | I512: 0 | J512: 0 | K512: 1 | L512: 0 | M512: 0 | N512: 0 | O512: 0 | P512: 0 | Q512: 0 | R512: 0 | S512: 0 | T512: 0 | U512: 0 | V512: 0 | W512: 0 | X512: 0 | Y512: 0 | Z512: 1
A513: =IF(ADSI!$G$12="",ADSI!$H$16,ADSI!$H$12) -> 6 | B513: =IF(ADSI!$G$12="",ADSI!$H$16,ADSI!$H$14) ->  | C513: 13 | D513: =ADSI!$K$12 -> 2021 | E513: =D20 -> 0 | F513: 0 | G513: 0 | H513: 0 | I513: 1 | J513: 0 | K513: 1 | L513: 0 | M513: 0 | N513: 0 | O513: 0 | P513: 0 | Q513: 0 | R513: 0 | S513: 0 | T513: 0 | U513: 0 | V513: 0 | W513: 0 | X513: 0 | Y513: 0 | Z513: 1
A514: =IF(ADSI!$G$12="",ADSI!$H$16,ADSI!$H$12) -> 6 | B514: =IF(ADSI!$G$12="",ADSI!$H$16,ADSI!$H$14) ->  | C514: 14 | D514: =ADSI!$K$12 -> 2021 | E514: =D21 -> 0 | F514: 0 | G514: 0 | H514: 0 | I514: 0 | J514: 0 | K514: 0 | L514: 0 | M514: 0 | N514: 0 | O514: 0 | P514: 0 | Q514: 0 | R514: 0 | S514: 0 | T514: 0 | U514: 0 | V514: 0 | W514: 0 | X514: 0 | Y514: 0 | Z514: 0
A515: =IF(ADSI!$G$12="",ADSI!$H$16,ADSI!$H$12) -> 6 | B515: =IF(ADSI!$G$12="",ADSI!$H$16,ADSI!$H$14) ->  | C515: 15 | D515: =ADSI!$K$12 -> 2021 | E515: =D22 -> 0 | F515: 0 | G515: 0 | H515: 0 | I515: 1 | J515: 0 | K515: 1 | L515: 0 | M515: 0 | N515: 0 | O515: 0 | P515: 0 | Q515: 0 | R515: 0 | S515: 0 | T515: 0 | U515: 0 | V515: 0 | W515: 0 | X515: 0 | Y515: 0 | Z515: 1
A516: =IF(ADSI!$G$12="",ADSI!$H$16,ADSI!$H$12) -> 6 | B516: =IF(ADSI!$G$12="",ADSI!$H$16,ADSI!$H$14) ->  | C516: 30 | D516: =ADSI!$K$12 -> 2021 | E516: =D23 -> 0 | F516: 0 | G516: 0 | H516: 1 | I516: 2 | J516: 0 | K516: 3 | L516: 0 | M516: 0 | N516: 0 | O516: 0 | P516: 0 | Q516: 0 | R516: 0 | S516: 0 | T516: 0 | U516: 0 | V516: 0 | W516: 0 | X516: 0 | Y516: 0 | Z516: 3

Sheet P-II
A1: =ADSI!$B$1 -> Goa, , ADSI-2021
A2: Errors | C2: =COUNTIF(E8:E51,FALSE) -> 0 | E2: Abnormal Variations | F2: =COUNTIF(D52:M54,"ABVAR") -> 0
A3: Proforma–II
A4: Cause-wise distribution of Un-natural Accidents
A5: Code | B5: Sl. No. | C5: Causes | D5: No. of Cases | E5: VALIDATION WITH NUMBER OF CASES | F5: No. of Persons Injured | J5: No. of Persons Died
F6: Male | G6: Female | H6: Transgender | I6: Total [sum of (4) to (6)] | J6: Male | K6: Female | L6: Transgender | M6: Total [sum of (8) to (10)]
B7: (1) | C7: (2) | D7: (3) | F7: (4) | G7: (5) | H7: (6) | I7: (7) | J7: (8) | K7: (9) | L7: (10) | M7: (11)
A8: 50 | B8: 1 | C8: Air Crash | D8: 0 | E8: =IF(AND(OR(I8>0,M8>0),D8=0),FALSE,"") ->  | F8: 0 | G8: 0 | H8: 0 | I8: =SUM(F8:H8) -> 0 | J8: 0 | K8: 0 | L8: 0 | M8: =SUM(J8:L8) -> 0
A9: 51 | B9: 2 | C9: Ship Accidents | D9: 0 | E9: =IF(AND(OR(I9>0,M9>0),D9=0),FALSE,"") ->  | F9: 0 | G9: 0 | H9: 0 | I9: =SUM(F9:H9) -> 0 | J9: 0 | K9: 0 | L9: 0 | M9: =SUM(J9:L9) -> 0
A10: 52 | B10: 3 | C10: Collapse of Structure (Total) (sum of 3.1 to 3.5) | D10: =SUM(D11:D15) -> 5 | F10: =SUM(F11:F15) -> 0 | G10: 0 | H10: 0 | I10: 0 | J10: 5 | K10: =SUM(K11:K15) -> 0 | L10: =SUM(L11:L15) -> 0 | M10: 5
A11: 53 | C11: 3.1 Collapse of Dwelling House/Residential building | D11: 1 | F11: 0 | G11: 0 | H11: 0 | I11: 0 | J11: 1 | K11: 0 | L11: 0 | M11: 1
A12: 54 | C12: 3.2 Collapse of Official/Commercial Building | D12: 0 | F12: 0 | G12: 0 | H12: 0 | I12: 0 | J12: 0 | K12: 0 | L12: 0 | M12: 0
A13: 55 | C13: 3.3 Collapse of Dam | D13: 0 | F13: 0 | G13: 0 | H13: 0 | I13: 0 | J13: 0 | K13: 0 | L13: 0 | M13: 0
A14: 56 | C14: 3.4 Collapse of Bridge | D14: 0 | F14: 0 | G14: 0 | H14: 0 | I14: 0 | J14: 0 | K14: 0 | L14: 0 | M14: 0
A15: 57 | C15: 3.5 Others | D15: 4 | F15: 0 | G15: 0 | H15: 0 | I15: 0 | J15: 4 | K15: 0 | L15: 0 | M15: 4
A16: 58 | B16: 4 | C16: Drowning (Total) (sum of 4.1 to 4.3) | D16: =SUM(D17:D19) -> 114 | F16: =SUM(F17:F19) -> 0 | G16: 0 | H16: 0 | I16: 0 | J16: =SUM(J17:J19) -> 104 | K16: =SUM(K17:K19) -> 11 | L16: =SUM(L17:L19) -> 0 | M16: 115
A17: 59 | C17: 4.1 Boat Capsize | D17: 0 | F17: 0 | G17: 0 | H17: 0 | I17: 0 | J17: 0 | K17: 0 | L17: 0 | M17: 0
A18: 60 | C18: 4.2 Accidental Falls into Waterbody | D18: 97 | F18: 0 | G18: 0 | H18: 0 | I18: 0 | J18: 88 | K18: 10 | L18: 0 | M18: 98
A19: 61 | C19: 4.3 Other Cases | D19: 17 | F19: 0 | G19: 0 | H19: 0 | I19: 0 | J19: 16 | K19: 1 | L19: 0 | M19: 17
A20: 62 | B20: 5 | C20: Electrocution | D20: 25 | F20: 0 | G20: 0 | H20: 0 | I20: 0 | J20: 23 | K20: 2 | L20: 0 | M20: 25
A21: 63 | B21: 6 | C21: Accidental Explosion (Total) (sum of 6.1 to 6.4) | D21: =SUM(D22:D25) -> 1 | F21: =SUM(F22:F25) -> 0 | G21: 0 | H21: 0 | I21: 0 | J21: =SUM(J22:J25) -> 1 | K21: 0 | L21: 0 | M21: 1
A22: 64 | C22: 6.1 Domestic Gas Cylinder | D22: 0 | F22: 0 | G22: 0 | H22: 0 | I22: 0 | J22: 0 | K22: 0 | L22: 0 | M22: 0
A23: 65 | C23: 6.2 Industrial Boiler/Gas cylinder explosion | D23: 1 | F23: 0 | G23: 0 | H23: 0 | I23: 0 | J23: 1 | K23: 0 | L23: 0 | M23: 1
A24: 66 | C24: 6.3 Ammunition explosion in Armed Forces/Police/CPMF | D24: 0 | F24: 0 | G24: 0 | H24: 0 | I24: 0 | J24: 0 | K24: 0 | L24: 0 | M24: 0
A25: 67 | C25: 6.4 Other | D25: 0 | F25: 0 | G25: 0 | H25: 0 | I25: 0 | J25: 0 | K25: 0 | L25: 0 | M25: 0
A26: 68 | B26: 7 | C26: Falls (Total) (sum of 7.1 to 7.6) | D26: =SUM(D27:D32) -> 101 | F26: =SUM(F27:F32) -> 0 | G26: 0 | H26: 0 | I26: 0 | J26: =SUM(J27:J32) -> 93 | K26: 9 | L26: 0 | M26: 102
A27: 69 | C27: 7.1 Fall from Height | D27: 77 | F27: 0 | G27: 0 | H27: 0 | I27: 0 | J27: 72 | K27: 5 | L27: 0 | M27: 77
A28: 70 | C28: 7.2 Fall from Vehicles (Automobile like Bus, Trucks, etc.) | D28: 7 | F28: 0 | G28: 0 | H28: 0 | I28: 0 | J28: 7 | K28: 1 | L28: 0 | M28: 8
A29: 71 | C29: 7.3 Fall into Manhole / Sewer | D29: 1 | F29: 0 | G29: 0 | H29: 0 | I29: 0 | J29: 1 | K29: 0 | L29: 0 | M29: 1
A30: 72 | C30: 7.4 Fall into Pit | D30: 0 | F30: 0 | G30: 0 | H30: 0 | I30: 0 | J30: 0 | K30: 0 | L30: 0 | M30: 0
A31: 73 | C31: 7.5 Fall into Borewell | D31: 0 | F31: 0 | G31: 0 | H31: 0 | I31: 0 | J31: 0 | K31: 0 | L31: 0 | M31: 0
A32: 74 | C32: 7.6 Others | D32: 16 | F32: 0 | G32: 0 | H32: 0 | I32: 0 | J32: 13 | K32: 3 | L32: 0 | M32: 16
A33: 75 | B33: 8 | C33: Factory/Machine accidents | D33: 3 | F33: 0 | G33: 0 | H33: 0 | I33: 0 | J33: 3 | K33: 0 | L33: 0 | M33: 3
A34: 76 | B34: 9 | C34: Accidental Fire (Total) (sum of 9.1 to 9.5) | D34: =SUM(D35:D39) -> 45 | F34: =SUM(F35:F39) -> 1 | G34: 0 | H34: 0 | I34: 1 | J34: =SUM(J35:J39) -> 3 | K34: 6 | L34: 0 | M34: 9
A35: 77 | C35: 9.1 Electrical Short circuit | D35: 16 | F35: 0 | G35: 0 | H35: 0 | I35: 0 | J35: 1 | K35: 0 | L35: 0 | M35: 1
A36: 78 | C36: 9.2 Riot/Agitation | D36: 0 | F36: 0 | G36: 0 | H36: 0 | I36: 0 | J36: 0 | K36: 0 | L36: 0 | M36: 0
A37: 79 | C37: 9.3 Fireworks | D37: 1 | F37: 0 | G37: 0 | H37: 0 | I37: 0 | J37: 0 | K37: 1 | L37: 0 | M37: 1
A38: 80 | C38: 9.4 Cooking Gas cylinder/stove burst | D38: 5 | F38: 0 | G38: 0 | H38: 0 | I38: 0 | J38: 2 | K38: 1 | L38: 0 | M38: 3
A39: 81 | C39: 9.5 Other Causes | D39: 23 | F39: 1 | G39: 0 | H39: 0 | I39: 1 | J39: 0 | K39: 4 | L39: 0 | M39: 4
A40: 82 | B40: 10 | C40: Firearm | D40: 3 | F40: 1 | G40: 1 | H40: 0 | I40: 2 | J40: 1 | K40: 0 | L40: 0 | M40: 1
A41: 83 | B41: 11 | C41: Mines or Quarry disaster | D41: 0 | F41: 0 | G41: 0 | H41: 0 | I41: 0 | J41: 0 | K41: 0 | L41: 0 | M41: 0
A42: 84 | B42: 12 | C42: Traffic Accidents (Total) (sum of 12.1, 12.2 and 12.3) | D42: =SUM(D43,D46:D47) -> 2899 | F42: =SUM(F43,F46:F47) -> 696 | G42: 160 | H42: 0 | I42: 856 | J42: =SUM(J43,J46:J47) -> 238 | K42: 37 | L42: 0 | M42: 275
A43: 85 | C43: 12.1 Road Accidents Total (sum of 12.1.1 and 12.1.2) | D43: =SUM(D44:D45) -> 2850 | F43: =SUM(F44:F45) -> 696 | G43: 160 | H43: 0 | I43: 856 | J43: =SUM(J44:J45) -> 193 | K43: 33 | L43: 0 | M43: 226
A44: 86 | C44: 12.1.1 Which led into Road Rage incidents | D44: 0 | F44: 0 | G44: 0 | H44: 0 | I44: 0 | J44: 0 | K44: 0 | L44: 0 | M44: 0
A45: 87 | C45: 12.1.2 Other Road Accidents | D45: 2850 | F45: 696 | G45: 160 | H45: 0 | I45: 856 | J45: 193 | K45: 33 | L45: 0 | M45: 226
A46: 88 | C46: 12.2 Railway Crossing Accidents | D46: 0 | F46: 0 | G46: 0 | H46: 0 | I46: 0 | J46: 0 | K46: 0 | L46: 0 | M46: 0
A47: 89 | C47: 12.3 Railway Accidents | D47: 49 | F47: 0 | G47: 0 | H47: 0 | I47: 0 | J47: 45 | K47: 4 | L47: 0 | M47: 49
A48: 90 | B48: 13 | C48: Stampede | D48: 0 | F48: 0 | G48: 0 | H48: 0 | I48: 0 | J48: 0 | K48: 0 | L48: 0 | M48: 0
A49: 91 | B49: 14 | C49: Other Unnatural Causes | D49: 10 | F49: 0 | G49: 0 | H49: 0 | I49: 0 | J49: 5 | K49: 5 | L49: 0 | M49: 10
A50: 92 | B50: 15 | C50: Causes not known | D50: 16 | F50: 0 | G50: 0 | H50: 0 | I50: 0 | J50: 13 | K50: 3 | L50: 0 | M50: 16
A51: 120 | B51: 16 | C51: Total (sum of Sl. 1 to 15) | D51: =SUM(D8:D10,D16,D20:D21,D26,D33:D34,D40:D41,D42,D48:D50) -> 3222 | F51: =SUM(F8:F10,F16,F20:F21,F26,F33:F34,F40:F41,F42,F48:F50) -> 698 | G51: 161 | H51: 0 | I51: 859 | J51: 489 | K51: 73 | L51: 0 | M51: 562
A52: SL-12.1.1 ABNORMAL VARIATION IN "ROAD RAGE INCIDENTS" DATA | D52: =IF(D43>0,IF((D44/D43*100)>10,"ABVAR",""),"") ->  | F52: =IF(F43>0,IF((F44/F43*100)>10,"ABVAR",""),"") -> 
A53: SL-14 ABNORMAL VARIATION IN "OTHER UNNATURAL CAUSES" DATA | D53: =IF(D51>0,IF((D49/D51*100)>20,"ABVAR",""),"") ->  | F53: =IF(F51>0,IF((F49/F51*100)>20,"ABVAR",""),"") -> 
A54: SL-15 ABNORMAL VARIATION IN "CAUSES NOT KNOWN" DATA | D54: =IF(D51>0,IF((D50/D51*100)>20,"ABVAR",""),"") ->  | F54: =IF(F51>0,IF((F50/F51*100)>20,"ABVAR",""),"") -> 
BA200: =A1 -> Goa, , ADSI-2021
BA201: =A2 -> Errors | BB201: =C2 -> 0 | BD201: =E2 -> Abnormal Variations | BE201: =F2 -> 0
BA202: =A3 -> Proforma–II
BA203: =A4 -> Cause-wise distribution of Un-natural Accidents
BA204: =B5 -> Sl. No. | BB204: =C5 -> Causes | BC204: =D5 -> No. of Cases | BD204: =E5 -> VALIDATION WITH NUMBER OF CASES | BE204: =F5 -> No. of Persons Injured | BI204: =J5 -> No. of Persons Died
BE205: =F6 -> Male | BF205: =G6 -> Female | BG205: =H6 -> Transgender | BH205: =I6 -> Total [sum of (4) to (6)] | BI205: Male | BJ205: =K6 -> Female | BK205: =L6 -> Transgender | BL205: =M6 -> Total [sum of (8) to (10)]
BA206: =B7 -> (1) | BB206: =C7 -> (2) | BC206: =D7 -> (3) | BE206: (4) | BF206: (5) | BG206: (6) | BH206: (7) | BI206: (8) | BJ206: (9) | BK206: (10) | BL206: (11)
BA207: =B8 -> 1 | BB207: Air Crash | BC207: 0 | BD207: =E8 ->  | BE207: 0 | BF207: 0 | BG207: 0 | BH207: 0 | BI207: 0 | BJ207: 0 | BK207: 0 | BL207: 0
BA208: =B9 -> 2 | BB208: Ship Accidents | BC208: 0 | BD208: =E9 ->  | BE208: 0 | BF208: 0 | BG208: 0 | BH208: 0 | BI208: 0 | BJ208: 0 | BK208: 0 | BL208: 0
BA209: =B10 -> 3 | BB209: Collapse of Structure (Total) (sum of 3.1 to 3.5) | BC209: 5 | BE209: 0 | BF209: 0 | BG209: 0 | BH209: 0 | BI209: 5 | BJ209: 0 | BK209: 0 | BL209: 5
BB210: 3.1 Collapse of Dwelling House/Residential building | BC210: 1 | BE210: 0 | BF210: 0 | BG210: 0 | BH210: 0 | BI210: 1 | BJ210: 0 | BK210: 0 | BL210: 1
BB211: 3.2 Collapse of Official/Commercial Building | BC211: 0 | BE211: 0 | BF211: 0 | BG211: 0 | BH211: 0 | BI211: 0 | BJ211: 0 | BK211: 0 | BL211: 0
BB212: 3.3 Collapse of Dam | BC212: 0 | BE212: 0 | BF212: 0 | BG212: 0 | BH212: 0 | BI212: 0 | BJ212: 0 | BK212: 0 | BL212: 0
BB213: 3.4 Collapse of Bridge | BC213: 0 | BE213: 0 | BF213: 0 | BG213: 0 | BH213: 0 | BI213: 0 | BJ213: 0 | BK213: 0 | BL213: 0
BB214: 3.5 Others | BC214: 4 | BE214: 0 | BF214: 0 | BG214: 0 | BH214: 0 | BI214: 4 | BJ214: 0 | BK214: 0 | BL214: 4
BA215: =B16 -> 4 | BB215: Drowning (Total) (sum of 4.1 to 4.3) | BC215: 114 | BE215: 0 | BF215: 0 | BG215: 0 | BH215: 0 | BI215: 104 | BJ215: 11 | BK215: 0 | BL215: 115
BB216: 4.1 Boat Capsize | BC216: 0 | BE216: 0 | BF216: 0 | BG216: 0 | BH216: 0 | BI216: 0 | BJ216: 0 | BK216: 0 | BL216: 0
BB217: 4.2 Accidental Falls into Waterbody | BC217: 97 | BE217: 0 | BF217: 0 | BG217: 0 | BH217: 0 | BI217: 88 | BJ217: 10 | BK217: 0 | BL217: 98
BB218: 4.3 Other Cases | BC218: 17 | BE218: 0 | BF218: 0 | BG218: 0 | BH218: 0 | BI218: 16 | BJ218: 1 | BK218: 0 | BL218: 17
BA219: =B20 -> 5 | BB219: Electrocution | BC219: 25 | BE219: 0 | BF219: 0 | BG219: 0 | BH219: 0 | BI219: 23 | BJ219: 2 | BK219: 0 | BL219: 25
BA220: =B21 -> 6 | BB220: Accidental Explosion (Total) (sum of 6.1 to 6.4) | BC220: 1 | BE220: 0 | BF220: 0 | BG220: 0 | BH220: 0 | BI220: 1 | BJ220: 0 | BK220: 0 | BL220: 1
BB221: 6.1 Domestic Gas Cylinder | BC221: 0 | BE221: 0 | BF221: 0 | BG221: 0 | BH221: 0 | BI221: 0 | BJ221: 0 | BK221: 0 | BL221: 0
BB222: 6.2 Industrial Boiler/Gas cylinder explosion | BC222: 1 | BE222: 0 | BF222: 0 | BG222: 0 | BH222: 0 | BI222: 1 | BJ222: 0 | BK222: 0 | BL222: 1
BB223: 6.3 Ammunition explosion in Armed Forces/Police/CPMF | BC223: 0 | BE223: 0 | BF223: 0 | BG223: 0 | BH223: 0 | BI223: 0 | BJ223: 0 | BK223: 0 | BL223: 0
BB224: 6.4 Other | BC224: 0 | BE224: 0 | BF224: 0 | BG224: 0 | BH224: 0 | BI224: 0 | BJ224: 0 | BK224: 0 | BL224: 0
BA225: =B26 -> 7 | BB225: Falls (Total) (sum of 7.1 to 7.6) | BC225: 101 | BE225: 0 | BF225: 0 | BG225: 0 | BH225: 0 | BI225: 93 | BJ225: 9 | BK225: 0 | BL225: 102
BB226: 7.1 Fall from Height | BC226: 77 | BE226: 0 | BF226: 0 | BG226: 0 | BH226: 0 | BI226: 72 | BJ226: 5 | BK226: 0 | BL226: 77
BB227: 7.2 Fall from Vehicles (Automobile like Bus, Trucks, etc.) | BC227: 7 | BE227: 0 | BF227: 0 | BG227: 0 | BH227: 0 | BI227: 7 | BJ227: 1 | BK227: 0 | BL227: 8
BB228: 7.3 Fall into Manhole / Sewer | BC228: 1 | BE228: 0 | BF228: 0 | BG228: 0 | BH228: 0 | BI228: 1 | BJ228: 0 | BK228: 0 | BL228: 1
BB229: 7.4 Fall into Pit | BC229: 0 | BE229: 0 | BF229: 0 | BG229: 0 | BH229: 0 | BI229: 0 | BJ229: 0 | BK229: 0 | BL229: 0
BB230: 7.5 Fall into Borewell | BC230: 0 | BE230: =F31 -> 0 | BF230: =G31 -> 0 | BG230: =H31 -> 0 | BH230: =I31 -> 0 | BI230: =J31 -> 0 | BJ230: =K31 -> 0 | BK230: =L31 -> 0 | BL230: =M31 -> 0
BB231: =C32 -> 7.6 Others | BC231: =D32 -> 16 | BE231: =F32 -> 0 | BF231: =G32 -> 0 | BG231: =H32 -> 0 | BH231: =I32 -> 0 | BI231: =J32 -> 13 | BJ231: =K32 -> 3 | BK231: =L32 -> 0 | BL231: =M32 -> 16
BA232: =B33 -> 8 | BB232: Factory/Machine accidents | BC232: 3 | BE232: 0 | BF232: 0 | BG232: 0 | BH232: 0 | BI232: 3 | BJ232: 0 | BK232: 0 | BL232: 3
BA233: =B34 -> 9 | BB233: Accidental Fire (Total) (sum of 9.1 to 9.5) | BC233: 45 | BE233: 1 | BF233: 0 | BG233: 0 | BH233: 1 | BI233: 3 | BJ233: 6 | BK233: 0 | BL233: 9
BB234: 9.1 Electrical Short circuit | BC234: 16 | BE234: 0 | BF234: 0 | BG234: 0 | BH234: 0 | BI234: 1 | BJ234: 0 | BK234: 0 | BL234: 1
BB235: 9.2 Riot/Agitation | BC235: 0 | BE235: 0 | BF235: 0 | BG235: 0 | BH235: 0 | BI235: 0 | BJ235: 0 | BK235: 0 | BL235: 0
BB236: 9.3 Fireworks | BC236: 1 | BE236: 0 | BF236: 0 | BG236: 0 | BH236: 0 | BI236: 0 | BJ236: 1 | BK236: 0 | BL236: 1
BB237: 9.4 Cooking Gas cylinder/stove burst | BC237: 5 | BE237: 0 | BF237: 0 | BG237: 0 | BH237: 0 | BI237: 2 | BJ237: 1 | BK237: 0 | BL237: 3
BB238: 9.5 Other Causes | BC238: 23 | BE238: 1 | BF238: 0 | BG238: 0 | BH238: 1 | BI238: 0 | BJ238: 4 | BK238: 0 | BL238: 4
BA239: =B40 -> 10 | BB239: Firearm | BC239: 3 | BE239: 1 | BF239: 1 | BG239: 0 | BH239: 2 | BI239: 1 | BJ239: 0 | BK239: 0 | BL239: 1
BA240: =B41 -> 11 | BB240: Mines or Quarry disaster | BC240: 0 | BE240: 0 | BF240: 0 | BG240: 0 | BH240: 0 | BI240: 0 | BJ240: 0 | BK240: 0 | BL240: 0
BA241: =B42 -> 12 | BB241: Traffic Accidents (Total) (sum of 12.1, 12.2 and 12.3) | BC241: 2899 | BE241: 696 | BF241: 160 | BG241: 0 | BH241: 856 | BI241: 238 | BJ241: 37 | BK241: 0 | BL241: 275
BB242: 12.1 Road Accidents Total (sum of 12.1.1 and 12.1.2) | BC242: 2850 | BE242: 696 | BF242: 160 | BG242: 0 | BH242: 856 | BI242: 193 | BJ242: 33 | BK242: 0 | BL242: 226
BB243: 12.1.1 Which led into Road Rage incidents | BC243: 0 | BE243: 0 | BF243: 0 | BG243: 0 | BH243: 0 | BI243: 0 | BJ243: 0 | BK243: 0 | BL243: 0
BB244: 12.1.2 Other Road Accidents | BC244: 2850 | BE244: 696 | BF244: 160 | BG244: 0 | BH244: 856 | BI244: 193 | BJ244: 33 | BK244: 0 | BL244: 226
BB245: 12.2 Railway Crossing Accidents | BC245: 0 | BE245: 0 | BF245: 0 | BG245: 0 | BH245: 0 | BI245: 0 | BJ245: 0 | BK245: 0 | BL245: 0
BB246: 12.3 Railway Accidents | BC246: 49 | BE246: 0 | BF246: 0 | BG246: 0 | BH246: 0 | BI246: 45 | BJ246: 4 | BK246: 0 | BL246: 49
BA247: =B48 -> 13 | BB247: Stampede | BC247: 0 | BE247: 0 | BF247: 0 | BG247: 0 | BH247: 0 | BI247: 0 | BJ247: 0 | BK247: 0 | BL247: 0
BA248: =B49 -> 14 | BB248: Other Unnatural Causes | BC248: 10 | BE248: 0 | BF248: 0 | BG248: 0 | BH248: 0 | BI248: 5 | BJ248: 5 | BK248: 0 | BL248: 10
BA249: =B50 -> 15 | BB249: Causes not known | BC249: 16 | BE249: 0 | BF249: 0 | BG249: 0 | BH249: 0 | BI249: 13 | BJ249: 3 | BK249: 0 | BL249: 16
BA250: =B51 -> 16 | BB250: Total (sum of Sl. 1 to 15) | BC250: 3222 | BE250: 698 | BF250: 161 | BG250: 0 | BH250: 859 | BI250: 489 | BJ250: 73 | BK250: 0 | BL250: 562
BA251: =A52 -> SL-12.1.1 ABNORMAL VARIATION IN "ROAD RAGE INCIDENTS" DATA | BC251: =D52 -> 
BA252: =A53 -> SL-14 ABNORMAL VARIATION IN "OTHER UNNATURAL CAUSES" DATA | BC252: =D53 -> 
BA253: SL-15 ABNORMAL VARIATION IN "CAUSES NOT KNOWN" DATA
A500: StateUTCityCode | B500: DistrictCode | C500: CrimeCode | D500: DataYear | E500: Number of Cases | F500: Injured_Male | G500: Injured_Female | H500: Injured_Trans | I500: Injured_Total | J500: Died_Male | K500: Died_Female | L500: Died_Trans | M500: Died_Total
A501: =IF(ADSI!$G$12="",ADSI!$H$16,ADSI!$H$12) -> 6 | B501: =IF(ADSI!$G$12="",ADSI!$H$16,ADSI!$H$14) ->  | C501: =A8 -> 50 | D501: =ADSI!$K$12 -> 2021 | E501: =D8 -> 0 | F501: =F8 -> 0 | G501: =G8 -> 0 | H501: 0 | I501: 0 | J501: =J8 -> 0 | K501: 0 | L501: 0 | M501: 0
A502: =IF(ADSI!$G$12="",ADSI!$H$16,ADSI!$H$12) -> 6 | B502: =IF(ADSI!$G$12="",ADSI!$H$16,ADSI!$H$14) ->  | C502: =A9 -> 51 | D502: =ADSI!$K$12 -> 2021 | E502: =D9 -> 0 | F502: =F9 -> 0 | G502: 0 | H502: 0 | I502: 0 | J502: 0 | K502: 0 | L502: 0 | M502: 0
A503: =IF(ADSI!$G$12="",ADSI!$H$16,ADSI!$H$12) -> 6 | B503: =IF(ADSI!$G$12="",ADSI!$H$16,ADSI!$H$14) ->  | C503: 52 | D503: =ADSI!$K$12 -> 2021 | E503: 5 | F503: =F10 -> 0 | G503: 0 | H503: 0 | I503: 0 | J503: 5 | K503: 0 | L503: 0 | M503: 5
A504: =IF(ADSI!$G$12="",ADSI!$H$16,ADSI!$H$12) -> 6 | B504: =IF(ADSI!$G$12="",ADSI!$H$16,ADSI!$H$14) ->  | C504: 53 | D504: =ADSI!$K$12 -> 2021 | E504: 1 | F504: =F11 -> 0 | G504: 0 | H504: 0 | I504: 0 | J504: 1 | K504: 0 | L504: 0 | M504: 1
A505: =IF(ADSI!$G$12="",ADSI!$H$16,ADSI!$H$12) -> 6 | B505: =IF(ADSI!$G$12="",ADSI!$H$16,ADSI!$H$14) ->  | C505: 54 | D505: =ADSI!$K$12 -> 2021 | E505: 0 | F505: =F12 -> 0 | G505: 0 | H505: 0 | I505: 0 | J505: 0 | K505: 0 | L505: 0 | M505: 0
A506: =IF(ADSI!$G$12="",ADSI!$H$16,ADSI!$H$12) -> 6 | B506: =IF(ADSI!$G$12="",ADSI!$H$16,ADSI!$H$14) ->  | C506: 55 | D506: =ADSI!$K$12 -> 2021 | E506: 0 | F506: =F13 -> 0 | G506: 0 | H506: 0 | I506: 0 | J506: 0 | K506: 0 | L506: 0 | M506: 0
A507: =IF(ADSI!$G$12="",ADSI!$H$16,ADSI!$H$12) -> 6 | B507: =IF(ADSI!$G$12="",ADSI!$H$16,ADSI!$H$14) ->  | C507: 56 | D507: =ADSI!$K$12 -> 2021 | E507: 0 | F507: =F14 -> 0 | G507: 0 | H507: 0 | I507: 0 | J507: 0 | K507: 0 | L507: 0 | M507: 0
A508: =IF(ADSI!$G$12="",ADSI!$H$16,ADSI!$H$12) -> 6 | B508: =IF(ADSI!$G$12="",ADSI!$H$16,ADSI!$H$14) ->  | C508: 57 | D508: =ADSI!$K$12 -> 2021 | E508: 4 | F508: =F15 -> 0 | G508: 0 | H508: 0 | I508: 0 | J508: 4 | K508: 0 | L508: 0 | M508: 4
A509: =IF(ADSI!$G$12="",ADSI!$H$16,ADSI!$H$12) -> 6 | B509: =IF(ADSI!$G$12="",ADSI!$H$16,ADSI!$H$14) ->  | C509: 58 | D509: =ADSI!$K$12 -> 2021 | E509: 114 | F509: =F16 -> 0 | G509: 0 | H509: 0 | I509: 0 | J509: 104 | K509: 11 | L509: 0 | M509: 115
A510: =IF(ADSI!$G$12="",ADSI!$H$16,ADSI!$H$12) -> 6 | B510: =IF(ADSI!$G$12="",ADSI!$H$16,ADSI!$H$14) ->  | C510: 59 | D510: =ADSI!$K$12 -> 2021 | E510: 0 | F510: =F17 -> 0 | G510: 0 | H510: 0 | I510: 0 | J510: 0 | K510: 0 | L510: 0 | M510: 0
A511: =IF(ADSI!$G$12="",ADSI!$H$16,ADSI!$H$12) -> 6 | B511: =IF(ADSI!$G$12="",ADSI!$H$16,ADSI!$H$14) ->  | C511: 60 | D511: =ADSI!$K$12 -> 2021 | E511: 97 | F511: =F18 -> 0 | G511: 0 | H511: 0 | I511: 0 | J511: 88 | K511: 10 | L511: 0 | M511: 98
A512: =IF(ADSI!$G$12="",ADSI!$H$16,ADSI!$H$12) -> 6 | B512: =IF(ADSI!$G$12="",ADSI!$H$16,ADSI!$H$14) ->  | C512: 61 | D512: =ADSI!$K$12 -> 2021 | E512: 17 | F512: =F19 -> 0 | G512: 0 | H512: 0 | I512: 0 | J512: 16 | K512: 1 | L512: 0 | M512: 17
A513: =IF(ADSI!$G$12="",ADSI!$H$16,ADSI!$H$12) -> 6 | B513: =IF(ADSI!$G$12="",ADSI!$H$16,ADSI!$H$14) ->  | C513: 62 | D513: =ADSI!$K$12 -> 2021 | E513: 25 | F513: =F20 -> 0 | G513: 0 | H513: 0 | I513: 0 | J513: 23 | K513: 2 | L513: 0 | M513: 25
A514: =IF(ADSI!$G$12="",ADSI!$H$16,ADSI!$H$12) -> 6 | B514: =IF(ADSI!$G$12="",ADSI!$H$16,ADSI!$H$14) ->  | C514: 63 | D514: =ADSI!$K$12 -> 2021 | E514: 1 | F514: =F21 -> 0 | G514: 0 | H514: 0 | I514: 0 | J514: 1 | K514: 0 | L514: 0 | M514: 1
A515: =IF(ADSI!$G$12="",ADSI!$H$16,ADSI!$H$12) -> 6 | B515: =IF(ADSI!$G$12="",ADSI!$H$16,ADSI!$H$14) ->  | C515: 64 | D515: =ADSI!$K$12 -> 2021 | E515: 0 | F515: =F22 -> 0 | G515: 0 | H515: 0 | I515: 0 | J515: 0 | K515: 0 | L515: 0 | M515: 0
A516: =IF(ADSI!$G$12="",ADSI!$H$16,ADSI!$H$12) -> 6 | B516: =IF(ADSI!$G$12="",ADSI!$H$16,ADSI!$H$14) ->  | C516: 65 | D516: =ADSI!$K$12 -> 2021 | E516: 1 | F516: =F23 -> 0 | G516: 0 | H516: 0 | I516: 0 | J516: 1 | K516: 0 | L516: 0 | M516: 1
A517: =IF(ADSI!$G$12="",ADSI!$H$16,ADSI!$H$12) -> 6 | B517: =IF(ADSI!$G$12="",ADSI!$H$16,ADSI!$H$14) ->  | C517: 66 | D517: =ADSI!$K$12 -> 2021 | E517: 0 | F517: =F24 -> 0 | G517: 0 | H517: 0 | I517: 0 | J517: 0 | K517: 0 | L517: 0 | M517: 0
A518: =IF(ADSI!$G$12="",ADSI!$H$16,ADSI!$H$12) -> 6 | B518: =IF(ADSI!$G$12="",ADSI!$H$16,ADSI!$H$14) ->  | C518: 67 | D518: =ADSI!$K$12 -> 2021 | E518: 0 | F518: =F25 -> 0 | G518: 0 | H518: 0 | I518: 0 | J518: 0 | K518: 0 | L518: 0 | M518: 0
A519: =IF(ADSI!$G$12="",ADSI!$H$16,ADSI!$H$12) -> 6 | B519: =IF(ADSI!$G$12="",ADSI!$H$16,ADSI!$H$14) ->  | C519: 68 | D519: =ADSI!$K$12 -> 2021 | E519: 101 | F519: =F26 -> 0 | G519: 0 | H519: 0 | I519: 0 | J519: 93 | K519: 9 | L519: 0 | M519: 102
A520: =IF(ADSI!$G$12="",ADSI!$H$16,ADSI!$H$12) -> 6 | B520: =IF(ADSI!$G$12="",ADSI!$H$16,ADSI!$H$14) ->  | C520: 69 | D520: =ADSI!$K$12 -> 2021 | E520: 77 | F520: =F27 -> 0 | G520: 0 | H520: 0 | I520: 0 | J520: 72 | K520: 5 | L520: 0 | M520: 77
A521: =IF(ADSI!$G$12="",ADSI!$H$16,ADSI!$H$12) -> 6 | B521: =IF(ADSI!$G$12="",ADSI!$H$16,ADSI!$H$14) ->  | C521: 70 | D521: =ADSI!$K$12 -> 2021 | E521: 7 | F521: =F28 -> 0 | G521: 0 | H521: 0 | I521: 0 | J521: 7 | K521: 1 | L521: 0 | M521: 8
A522: =IF(ADSI!$G$12="",ADSI!$H$16,ADSI!$H$12) -> 6 | B522: =IF(ADSI!$G$12="",ADSI!$H$16,ADSI!$H$14) ->  | C522: 71 | D522: =ADSI!$K$12 -> 2021 | E522: 1 | F522: =F29 -> 0 | G522: 0 | H522: 0 | I522: 0 | J522: 1 | K522: 0 | L522: 0 | M522: 1
A523: =IF(ADSI!$G$12="",ADSI!$H$16,ADSI!$H$12) -> 6 | B523: =IF(ADSI!$G$12="",ADSI!$H$16,ADSI!$H$14) ->  | C523: 72 | D523: =ADSI!$K$12 -> 2021 | E523: 0 | F523: =F30 -> 0 | G523: 0 | H523: 0 | I523: 0 | J523: 0 | K523: 0 | L523: 0 | M523: 0
A524: =IF(ADSI!$G$12="",ADSI!$H$16,ADSI!$H$12) -> 6 | B524: =IF(ADSI!$G$12="",ADSI!$H$16,ADSI!$H$14) ->  | C524: 73 | D524: =ADSI!$K$12 -> 2021 | E524: 0 | F524: =F31 -> 0 | G524: 0 | H524: 0 | I524: 0 | J524: 0 | K524: 0 | L524: 0 | M524: 0
A525: =IF(ADSI!$G$12="",ADSI!$H$16,ADSI!$H$12) -> 6 | B525: =IF(ADSI!$G$12="",ADSI!$H$16,ADSI!$H$14) ->  | C525: 74 | D525: =ADSI!$K$12 -> 2021 | E525: 16 | F525: =F32 -> 0 | G525: 0 | H525: 0 | I525: 0 | J525: 13 | K525: 3 | L525: 0 | M525: 16
A526: =IF(ADSI!$G$12="",ADSI!$H$16,ADSI!$H$12) -> 6 | B526: =IF(ADSI!$G$12="",ADSI!$H$16,ADSI!$H$14) ->  | C526: 75 | D526: =ADSI!$K$12 -> 2021 | E526: 3 | F526: =F33 -> 0 | G526: 0 | H526: 0 | I526: 0 | J526: 3 | K526: 0 | L526: 0 | M526: 3
A527: =IF(ADSI!$G$12="",ADSI!$H$16,ADSI!$H$12) -> 6 | B527: =IF(ADSI!$G$12="",ADSI!$H$16,ADSI!$H$14) ->  | C527: 76 | D527: =ADSI!$K$12 -> 2021 | E527: 45 | F527: =F34 -> 1 | G527: 0 | H527: 0 | I527: 1 | J527: 3 | K527: 6 | L527: 0 | M527: 9
A528: =IF(ADSI!$G$12="",ADSI!$H$16,ADSI!$H$12) -> 6 | B528: =IF(ADSI!$G$12="",ADSI!$H$16,ADSI!$H$14) ->  | C528: 77 | D528: =ADSI!$K$12 -> 2021 | E528: 16 | F528: =F35 -> 0 | G528: 0 | H528: 0 | I528: 0 | J528: 1 | K528: 0 | L528: 0 | M528: 1
A529: =IF(ADSI!$G$12="",ADSI!$H$16,ADSI!$H$12) -> 6 | B529: =IF(ADSI!$G$12="",ADSI!$H$16,ADSI!$H$14) ->  | C529: 78 | D529: =ADSI!$K$12 -> 2021 | E529: 0 | F529: =F36 -> 0 | G529: 0 | H529: 0 | I529: 0 | J529: 0 | K529: 0 | L529: 0 | M529: 0
A530: =IF(ADSI!$G$12="",ADSI!$H$16,ADSI!$H$12) -> 6 | B530: =IF(ADSI!$G$12="",ADSI!$H$16,ADSI!$H$14) ->  | C530: 79 | D530: =ADSI!$K$12 -> 2021 | E530: 1 | F530: =F37 -> 0 | G530: 0 | H530: 0 | I530: 0 | J530: 0 | K530: 1 | L530: 0 | M530: 1
A531: =IF(ADSI!$G$12="",ADSI!$H$16,ADSI!$H$12) -> 6 | B531: =IF(ADSI!$G$12="",ADSI!$H$16,ADSI!$H$14) ->  | C531: 80 | D531: =ADSI!$K$12 -> 2021 | E531: 5 | F531: =F38 -> 0 | G531: 0 | H531: 0 | I531: 0 | J531: 2 | K531: 1 | L531: 0 | M531: 3
A532: =IF(ADSI!$G$12="",ADSI!$H$16,ADSI!$H$12) -> 6 | B532: =IF(ADSI!$G$12="",ADSI!$H$16,ADSI!$H$14) ->  | C532: 81 | D532: =ADSI!$K$12 -> 2021 | E532: 23 | F532: =F39 -> 1 | G532: 0 | H532: 0 | I532: 1 | J532: 0 | K532: 4 | L532: 0 | M532: 4
A533: =IF(ADSI!$G$12="",ADSI!$H$16,ADSI!$H$12) -> 6 | B533: =IF(ADSI!$G$12="",ADSI!$H$16,ADSI!$H$14) ->  | C533: 82 | D533: =ADSI!$K$12 -> 2021 | E533: 3 | F533: =F40 -> 1 | G533: 1 | H533: 0 | I533: 2 | J533: 1 | K533: 0 | L533: 0 | M533: 1
A534: =IF(ADSI!$G$12="",ADSI!$H$16,ADSI!$H$12) -> 6 | B534: =IF(ADSI!$G$12="",ADSI!$H$16,ADSI!$H$14) ->  | C534: 83 | D534: =ADSI!$K$12 -> 2021 | E534: 0 | F534: =F41 -> 0 | G534: 0 | H534: 0 | I534: 0 | J534: 0 | K534: 0 | L534: 0 | M534: 0
A535: =IF(ADSI!$G$12="",ADSI!$H$16,ADSI!$H$12) -> 6 | B535: =IF(ADSI!$G$12="",ADSI!$H$16,ADSI!$H$14) ->  | C535: 84 | D535: =ADSI!$K$12 -> 2021 | E535: 2899 | F535: =F42 -> 696 | G535: 160 | H535: 0 | I535: 856 | J535: 238 | K535: 37 | L535: 0 | M535: 275
A536: =IF(ADSI!$G$12="",ADSI!$H$16,ADSI!$H$12) -> 6 | B536: =IF(ADSI!$G$12="",ADSI!$H$16,ADSI!$H$14) ->  | C536: 85 | D536: =ADSI!$K$12 -> 2021 | E536: 2850 | F536: =F43 -> 696 | G536: 160 | H536: 0 | I536: 856 | J536: 193 | K536: 33 | L536: 0 | M536: 226
A537: =IF(ADSI!$G$12="",ADSI!$H$16,ADSI!$H$12) -> 6 | B537: =IF(ADSI!$G$12="",ADSI!$H$16,ADSI!$H$14) ->  | C537: =A44 -> 86 | D537: =ADSI!$K$12 -> 2021 | E537: 0 | F537: =F44 -> 0 | G537: 0 | H537: 0 | I537: 0 | J537: 0 | K537: 0 | L537: 0 | M537: 0
A538: =IF(ADSI!$G$12="",ADSI!$H$16,ADSI!$H$12) -> 6 | B538: =IF(ADSI!$G$12="",ADSI!$H$16,ADSI!$H$14) ->  | C538: 87 | D538: =ADSI!$K$12 -> 2021 | E538: 2850 | F538: =F45 -> 696 | G538: 160 | H538: 0 | I538: 856 | J538: 193 | K538: 33 | L538: 0 | M538: 226
A539: =IF(ADSI!$G$12="",ADSI!$H$16,ADSI!$H$12) -> 6 | B539: =IF(ADSI!$G$12="",ADSI!$H$16,ADSI!$H$14) ->  | C539: 88 | D539: =ADSI!$K$12 -> 2021 | E539: 0 | F539: =F46 -> 0 | G539: 0 | H539: 0 | I539: 0 | J539: 0 | K539: 0 | L539: 0 | M539: 0
A540: =IF(ADSI!$G$12="",ADSI!$H$16,ADSI!$H$12) -> 6 | B540: =IF(ADSI!$G$12="",ADSI!$H$16,ADSI!$H$14) ->  | C540: 89 | D540: =ADSI!$K$12 -> 2021 | E540: 49 | F540: =F47 -> 0 | G540: 0 | H540: 0 | I540: 0 | J540: 45 | K540: 4 | L540: 0 | M540: 49
A541: =IF(ADSI!$G$12="",ADSI!$H$16,ADSI!$H$12) -> 6 | B541: =IF(ADSI!$G$12="",ADSI!$H$16,ADSI!$H$14) ->  | C541: 90 | D541: =ADSI!$K$12 -> 2021 | E541: 0 | F541: =F48 -> 0 | G541: 0 | H541: 0 | I541: 0 | J541: 0 | K541: 0 | L541: 0 | M541: 0
A542: =IF(ADSI!$G$12="",ADSI!$H$16,ADSI!$H$12) -> 6 | B542: =IF(ADSI!$G$12="",ADSI!$H$16,ADSI!$H$14) ->  | C542: 91 | D542: =ADSI!$K$12 -> 2021 | E542: 10 | F542: =F49 -> 0 | G542: 0 | H542: 0 | I542: 0 | J542: 5 | K542: 5 | L542: 0 | M542: 10
A543: =IF(ADSI!$G$12="",ADSI!$H$16,ADSI!$H$12) -> 6 | B543: =IF(ADSI!$G$12="",ADSI!$H$16,ADSI!$H$14) ->  | C543: =A50 -> 92 | D543: =ADSI!$K$12 -> 2021 | E543: 16 | F543: =F50 -> 0 | G543: 0 | H543: 0 | I543: 0 | J543: 13 | K543: 3 | L543: 0 | M543: 16
A544: =IF(ADSI!$G$12="",ADSI!$H$16,ADSI!$H$12) -> 6 | B544: =IF(ADSI!$G$12="",ADSI!$H$16,ADSI!$H$14) ->  | C544: 120 | D544: =ADSI!$K$12 -> 2021 | E544: 3222 | F544: =F51 -> 698 | G544: 161 | H544: 0 | I544: 859 | J544: 489 | K544: 73 | L544: 0 | M544: 562

Sheet P-II-A
A1: =ADSI!$B$1 -> Goa, , ADSI-2021
A2: Errors | C2: =COUNTIF(E8:E21,FALSE)+COUNTIF(D23:M23,FALSE) -> 0 | E2: Abnormal Variations | F2: =COUNTIF(D24:M24,"ABVAR") -> 3
A3: Proforma–II(A)
A4: Fire Accidents classified according to Place of Occurrence
A5: Code | B5: Sl. No. | C5: Place of occurrence | D5: No. of Cases | E5: VALIDATION WITH NUMBER OF CASES | F5: No. of Persons Injured | J5: No. of Persons Died
F6: Male | G6: Female | H6: Transgender | I6: Total [sum of (4) to (6)] | J6: Male | K6: Female | L6: Transgender | M6: Total [sum of (8) to (10)]
B7: (1) | C7: (2) | D7: (3) | F7: (4) | G7: (5) | H7: (6) | I7: (7) | J7: (8) | K7: (9) | L7: (10) | M7: (11)
A8: 150 | B8: 1 | C8: Fire in School Buildings | D8: 0 | E8: =IF(AND(OR(I8>0,M8>0),D8=0),FALSE,"") ->  | F8: 0 | G8: 0 | H8: 0 | I8: =SUM(F8:H8) -> 0 | J8: 0 | K8: 0 | L8: 0 | M8: =SUM(J8:L8) -> 0
A9: 151 | B9: 2 | C9: Fire in Commercial Buildings | D9: 2 | E9: =IF(AND(OR(I9>0,M9>0),D9=0),FALSE,"") ->  | F9: 0 | G9: 0 | H9: 0 | I9: =SUM(F9:H9) -> 0 | J9: 0 | K9: 1 | L9: 0 | M9: =SUM(J9:L9) -> 1
A10: 152 | B10: 3 | C10: Fire in Residential/Dwelling Building | D10: 12 | F10: 1 | G10: 0 | H10: 0 | I10: 1 | J10: 2 | K10: 3 | L10: 0 | M10: 5
A11: 153 | B11: 4 | C11: Fire in Government Buildings | D11: 0 | F11: 0 | G11: 0 | H11: 0 | I11: 0 | J11: 0 | K11: 0 | L11: 0 | M11: 0
A12: 154 | B12: 5 | C12: Fire in the Mines | D12: 0 | F12: 0 | G12: 0 | H12: 0 | I12: 0 | J12: 0 | K12: 0 | L12: 0 | M12: 0
A13: 155 | B13: 6 | C13: Fire in Factory manufacturing combustible materials including Cracker/Match Box Factories | D13: 0 | F13: 0 | G13: 0 | H13: 0 | I13: 0 | J13: 0 | K13: 0 | L13: 0 | M13: 0
A14: 156 | B14: 7 | C14: Fire in the factories (other than Sl.-6) | D14: 1 | F14: 0 | G14: 0 | H14: 0 | I14: 0 | J14: 0 | K14: 0 | L14: 0 | M14: 0
A15: 157 | B15: 8 | C15: Accidental Fire in Train(s) | D15: 0 | F15: 0 | G15: 0 | H15: 0 | I15: 0 | J15: 0 | K15: 0 | L15: 0 | M15: 0
A16: 158 | B16: 9 | C16: Accidental Fire in Vehicles (Automobiles) (Total) (sum of 9.1 to 9.3) | D16: =SUM(D17:D19) -> 16 | F16: =SUM(F17:F19) -> 0 | G16: 0 | H16: 0 | I16: 0 | J16: =SUM(J17:J19) -> 1 | K16: 0 | L16: 0 | M16: 1
A17: 159 | C17: 9.1 Passenger Vehicle (e.g. Bus/Taxi/ Auto/etc.) | D17: 0 | F17: 0 | G17: 0 | H17: 0 | I17: 0 | J17: 0 | K17: 0 | L17: 0 | M17: 0
A18: 160 | C18: 9.2 Private Vehicle | D18: 15 | F18: 0 | G18: 0 | H18: 0 | I18: 0 | J18: 0 | K18: 0 | L18: 0 | M18: 0
A19: 161 | C19: 9.3 Goods Carriers | D19: 1 | F19: 0 | G19: 0 | H19: 0 | I19: 0 | J19: 1 | K19: 0 | L19: 0 | M19: 1
A20: 162 | B20: 10 | C20: Others | D20: 14 | F20: 0 | G20: 0 | H20: 0 | I20: 0 | J20: 0 | K20: 2 | L20: 0 | M20: 2
A21: 180 | B21: 11 | C21: Total (sum of Sl. 1 to 10) | D21: =SUM(D8:D16, (D20:D20)) -> 45 | F21: =SUM(F8:F16, (F20:F20)) -> 1 | G21: 0 | H21: 0 | I21: 1 | J21: 3 | K21: 6 | L21: 0 | M21: 9
A22: PROFORMA–II VALUES [Sl.– 9 (Accidental Fire (Total))] | D22: ='P-II'!D34 -> 45 | F22: ='P-II'!F34 -> 1 | G22: ='P-II'!G34 -> 0 | H22: ='P-II'!H34 -> 0 | I22: ='P-II'!I34 -> 1 | J22: ='P-II'!J34 -> 3 | K22: ='P-II'!K34 -> 6 | L22: ='P-II'!L34 -> 0 | M22: ='P-II'!M34 -> 9
A23: VALIDATION WITH PROFORMA–II [Sl.– 9 (Accidental Fire (Total))] | D23: =IF(D21='P-II'!D34, "", FALSE) ->  | F23: =IF(F21='P-II'!F34, "", FALSE) ->  | G23: =IF(G21='P-II'!G34, "", FALSE) ->  | H23: =IF(H21='P-II'!H34, "", FALSE) ->  | I23: =IF(I21='P-II'!I34, "", FALSE) ->  | J23: =IF(J21='P-II'!J34, "", FALSE) ->  | K23: =IF(K21='P-II'!K34, "", FALSE) ->  | L23: =IF(L21='P-II'!L34, "", FALSE) ->  | M23: =IF(M21='P-II'!M34, "", FALSE) -> 
A24: SL-10 ABNORMAL VARIATION IN "OTHERS" DATA | D24: =IF(D21>0,IF((D20/D21*100)>20,"ABVAR",""),"") -> ABVAR | F24: =IF(F21>0,IF((F20/F21*100)>20,"ABVAR",""),"") ->  | K24: ABVAR | M24: ABVAR
BA200: =A1 -> Goa, , ADSI-2021
BA201: =A2 -> Errors | BB201: =C2 -> 0 | BD201: =E2 -> Abnormal Variations | BE201: =F2 -> 3
BA202: =A3 -> Proforma–II(A)
BA203: =A4 -> Fire Accidents classified according to Place of Occurrence
BA204: =B5 -> Sl. No. | BB204: =C5 -> Place of occurrence | BC204: =D5 -> No. of Cases | BD204: =E5 -> VALIDATION WITH NUMBER OF CASES | BE204: =F5 -> No. of Persons Injured | BI204: =J5 -> No. of Persons Died
BE205: Male | BF205: =G6 -> Female | BG205: =H6 -> Transgender | BH205: =I6 -> Total [sum of (4) to (6)] | BI205: Male | BJ205: =K6 -> Female | BK205: =L6 -> Transgender | BL205: =M6 -> Total [sum of (8) to (10)]
BA206: =B7 -> (1) | BB206: =C7 -> (2) | BC206: =D7 -> (3) | BE206: (4) | BF206: (5) | BG206: (6) | BH206: (7) | BI206: (8) | BJ206: (9) | BK206: (10) | BL206: (11)
BA207: 1 | BB207: Fire in School Buildings | BC207: 0 | BD207: =E8 ->  | BE207: 0 | BF207: 0 | BG207: 0 | BH207: 0 | BI207: 0 | BJ207: 0 | BK207: 0 | BL207: 0
BA208: 2 | BB208: Fire in Commercial Buildings | BC208: 2 | BD208: =E9 ->  | BE208: 0 | BF208: 0 | BG208: 0 | BH208: 0 | BI208: 0 | BJ208: 1 | BK208: 0 | BL208: 1
BA209: 3 | BB209: Fire in Residential/Dwelling Building | BC209: 12 | BE209: 1 | BF209: 0 | BG209: 0 | BH209: 1 | BI209: 2 | BJ209: 3 | BK209: 0 | BL209: 5
BA210: 4 | BB210: Fire in Government Buildings | BC210: 0 | BE210: 0 | BF210: 0 | BG210: 0 | BH210: 0 | BI210: 0 | BJ210: 0 | BK210: 0 | BL210: 0
BA211: 5 | BB211: Fire in the Mines | BC211: 0 | BE211: 0 | BF211: 0 | BG211: 0 | BH211: 0 | BI211: 0 | BJ211: 0 | BK211: 0 | BL211: 0
BA212: 6 | BB212: Fire in Factory manufacturing combustible materials including Cracker/Match Box Factories | BC212: 0 | BE212: 0 | BF212: 0 | BG212: 0 | BH212: 0 | BI212: 0 | BJ212: 0 | BK212: 0 | BL212: 0
BA213: 7 | BB213: Fire in the factories (other than Sl.-6) | BC213: 1 | BE213: 0 | BF213: 0 | BG213: 0 | BH213: 0 | BI213: 0 | BJ213: 0 | BK213: 0 | BL213: 0
BA214: 8 | BB214: Accidental Fire in Train(s) | BC214: 0 | BE214: 0 | BF214: 0 | BG214: 0 | BH214: 0 | BI214: 0 | BJ214: 0 | BK214: 0 | BL214: 0
BA215: 9 | BB215: Accidental Fire in Vehicles (Automobiles) (Total) (sum of 9.1 to 9.3) | BC215: 16 | BE215: 0 | BF215: 0 | BG215: 0 | BH215: 0 | BI215: 1 | BJ215: 0 | BK215: 0 | BL215: 1
BB216: =C17 -> 9.1 Passenger Vehicle (e.g. Bus/Taxi/ Auto/etc.) | BC216: 0 | BE216: 0 | BF216: 0 | BG216: 0 | BH216: 0 | BI216: 0 | BJ216: 0 | BK216: 0 | BL216: 0
BB217: 9.2 Private Vehicle | BC217: 15 | BE217: 0 | BF217: 0 | BG217: 0 | BH217: 0 | BI217: 0 | BJ217: 0 | BK217: 0 | BL217: 0
BB218: 9.3 Goods Carriers | BC218: 1 | BE218: 0 | BF218: 0 | BG218: 0 | BH218: 0 | BI218: 1 | BJ218: 0 | BK218: 0 | BL218: 1
BA219: =B20 -> 10 | BB219: =C20 -> Others | BC219: =D20 -> 14 | BE219: =F20 -> 0 | BF219: =G20 -> 0 | BG219: =H20 -> 0 | BH219: =I20 -> 0 | BI219: =J20 -> 0 | BJ219: =K20 -> 2 | BK219: =L20 -> 0 | BL219: =M20 -> 2
BA220: =B21 -> 11 | BB220: Total (sum of Sl. 1 to 10) | BC220: 45 | BE220: 1 | BF220: 0 | BG220: 0 | BH220: 1 | BI220: 3 | BJ220: 6 | BK220: 0 | BL220: 9
BA221: =A22 -> PROFORMA–II VALUES [Sl.– 9 (Accidental Fire (Total))] | BC221: =D22 -> 45 | BE221: 1 | BF221: 0 | BG221: 0 | BH221: 1 | BI221: 3 | BJ221: 6 | BK221: 0 | BL221: 9
BA222: =A23 -> VALIDATION WITH PROFORMA–II [Sl.– 9 (Accidental Fire (Total))] | BC222: =D23 -> 
BA223: =A24 -> SL-10 ABNORMAL VARIATION IN "OTHERS" DATA | BC223: =D24 -> ABVAR | BJ223: ABVAR | BL223: ABVAR
A500: StateUTCityCode | B500: DistrictCode | C500: CrimeCode | D500: DataYear | E500: Number of Cases | F500: Injured_Male | G500: Injured_Female | H500: Injured_Trans | I500: Injured_Total | J500: Died_Male | K500: Died_Female | L500: Died_Trans | M500: Died_Total
A501: =IF(ADSI!$G$12="",ADSI!$H$16,ADSI!$H$12) -> 6 | B501: =IF(ADSI!$G$12="",ADSI!$H$16,ADSI!$H$14) ->  | C501: =A8 -> 150 | D501: =ADSI!$K$12 -> 2021 | E501: =D8 -> 0 | F501: =F8 -> 0 | G501: =G8 -> 0 | H501: 0 | I501: 0 | J501: 0 | K501: 0 | L501: 0 | M501: 0
A502: =IF(ADSI!$G$12="",ADSI!$H$16,ADSI!$H$12) -> 6 | B502: =IF(ADSI!$G$12="",ADSI!$H$16,ADSI!$H$14) ->  | C502: =A9 -> 151 | D502: =ADSI!$K$12 -> 2021 | E502: =D9 -> 2 | F502: =F9 -> 0 | G502: 0 | H502: 0 | I502: 0 | J502: 0 | K502: 1 | L502: 0 | M502: 1
A503: =IF(ADSI!$G$12="",ADSI!$H$16,ADSI!$H$12) -> 6 | B503: =IF(ADSI!$G$12="",ADSI!$H$16,ADSI!$H$14) ->  | C503: 152 | D503: =ADSI!$K$12 -> 2021 | E503: 12 | F503: =F10 -> 1 | G503: 0 | H503: 0 | I503: 1 | J503: 2 | K503: 3 | L503: 0 | M503: 5
A504: =IF(ADSI!$G$12="",ADSI!$H$16,ADSI!$H$12) -> 6 | B504: =IF(ADSI!$G$12="",ADSI!$H$16,ADSI!$H$14) ->  | C504: 153 | D504: =ADSI!$K$12 -> 2021 | E504: 0 | F504: =F11 -> 0 | G504: 0 | H504: 0 | I504: 0 | J504: 0 | K504: 0 | L504: 0 | M504: 0
A505: =IF(ADSI!$G$12="",ADSI!$H$16,ADSI!$H$12) -> 6 | B505: =IF(ADSI!$G$12="",ADSI!$H$16,ADSI!$H$14) ->  | C505: 154 | D505: =ADSI!$K$12 -> 2021 | E505: 0 | F505: =F12 -> 0 | G505: 0 | H505: 0 | I505: 0 | J505: 0 | K505: 0 | L505: 0 | M505: 0
A506: =IF(ADSI!$G$12="",ADSI!$H$16,ADSI!$H$12) -> 6 | B506: =IF(ADSI!$G$12="",ADSI!$H$16,ADSI!$H$14) ->  | C506: 155 | D506: =ADSI!$K$12 -> 2021 | E506: 0 | F506: =F13 -> 0 | G506: 0 | H506: 0 | I506: 0 | J506: 0 | K506: 0 | L506: 0 | M506: 0
A507: =IF(ADSI!$G$12="",ADSI!$H$16,ADSI!$H$12) -> 6 | B507: =IF(ADSI!$G$12="",ADSI!$H$16,ADSI!$H$14) ->  | C507: 156 | D507: =ADSI!$K$12 -> 2021 | E507: 1 | F507: =F14 -> 0 | G507: 0 | H507: 0 | I507: 0 | J507: 0 | K507: 0 | L507: 0 | M507: 0
A508: =IF(ADSI!$G$12="",ADSI!$H$16,ADSI!$H$12) -> 6 | B508: =IF(ADSI!$G$12="",ADSI!$H$16,ADSI!$H$14) ->  | C508: 157 | D508: =ADSI!$K$12 -> 2021 | E508: 0 | F508: =F15 -> 0 | G508: 0 | H508: 0 | I508: 0 | J508: 0 | K508: 0 | L508: 0 | M508: 0
A509: =IF(ADSI!$G$12="",ADSI!$H$16,ADSI!$H$12) -> 6 | B509: =IF(ADSI!$G$12="",ADSI!$H$16,ADSI!$H$14) ->  | C509: 158 | D509: =ADSI!$K$12 -> 2021 | E509: 16 | F509: =F16 -> 0 | G509: 0 | H509: 0 | I509: 0 | J509: 1 | K509: 0 | L509: 0 | M509: 1
A510: =IF(ADSI!$G$12="",ADSI!$H$16,ADSI!$H$12) -> 6 | B510: =IF(ADSI!$G$12="",ADSI!$H$16,ADSI!$H$14) ->  | C510: 159 | D510: =ADSI!$K$12 -> 2021 | E510: 0 | F510: =F17 -> 0 | G510: 0 | H510: 0 | I510: 0 | J510: 0 | K510: 0 | L510: 0 | M510: 0
A511: =IF(ADSI!$G$12="",ADSI!$H$16,ADSI!$H$12) -> 6 | B511: =IF(ADSI!$G$12="",ADSI!$H$16,ADSI!$H$14) ->  | C511: 160 | D511: =ADSI!$K$12 -> 2021 | E511: 15 | F511: =F18 -> 0 | G511: 0 | H511: 0 | I511: 0 | J511: 0 | K511: 0 | L511: 0 | M511: 0
A512: =IF(ADSI!$G$12="",ADSI!$H$16,ADSI!$H$12) -> 6 | B512: =IF(ADSI!$G$12="",ADSI!$H$16,ADSI!$H$14) ->  | C512: 161 | D512: =ADSI!$K$12 -> 2021 | E512: 1 | F512: =F19 -> 0 | G512: 0 | H512: 0 | I512: 0 | J512: 1 | K512: 0 | L512: 0 | M512: 1
A513: =IF(ADSI!$G$12="",ADSI!$H$16,ADSI!$H$12) -> 6 | B513: =IF(ADSI!$G$12="",ADSI!$H$16,ADSI!$H$14) ->  | C513: 162 | D513: =ADSI!$K$12 -> 2021 | E513: 14 | F513: =F20 -> 0 | G513: 0 | H513: 0 | I513: 0 | J513: 0 | K513: 2 | L513: 0 | M513: 2
A514: =IF(ADSI!$G$12="",ADSI!$H$16,ADSI!$H$12) -> 6 | B514: =IF(ADSI!$G$12="",ADSI!$H$16,ADSI!$H$14) ->  | C514: 180 | D514: =ADSI!$K$12 -> 2021 | E514: 45 | F514: =F21 -> 1 | G514: 0 | H514: 0 | I514: 1 | J514: 3 | K514: 6 | L514: 0 | M514: 9

Sheet P-III
A1: =ADSI!$B$1 -> Goa, , ADSI-2021
A2: Errors | C2: =COUNTIF(L9:L52,FALSE)+COUNTIF(U9:U52,FALSE)+COUNTIF(AD9:AD52,FALSE)+COUNTIF(AG9:AG52,FALSE) -> 0 | E2: Abnormal Variations | F2: =COUNTIF(D53:AG55,"ABVAR") -> 0
A3: Proforma–III
A4: Age wise Distribution of Accidental Deaths by Un-Natural Causes
A5: Code | B5: Sl. No. | C5: Causes | D5: N u m b e r o f A c c i d e n t a l D e a t h s | AE5: Grand Total [sum of (9) + (16) + (23)] | AF5: PROFORMA–II VALUES [Col.–(11) (Total Died)] | AG5: VALIDATION WITH PROFORMA-II [Col.–(11) (Total Died)]
D6: M a l e | M6: F e m a l e | V6: Transgender
D7: below 14 years | E7: 14 and above – below 18 yrs | F7: 18 and above – below 30 years | G7: 30 and above – below 45 years | H7: 45 and above – below 60 years | I7: 60 years & above | J7: Total [sum of (3) to (8)] | K7: PROFORMA–II VALUES [Col.–(8) (Male Died)] | L7: VALIDATION WITH PROFORMA-II [Col.–(8) (Male Died)] | M7: below 14 years | N7: 14 and above – below 18 yrs | O7: 18 and above – below 30 years | P7: 30 and above – below 45 years | Q7: 45 and above – below 60 years | R7: 60 years & above | S7: Total [sum of (10) to (15)] | T7: PROFORMA–II VALUES [Col.–(9) (Female Died)] | U7: VALIDATION WITH PROFORMA-II [Col.–(9) (Female Died)] | V7: below 14 years | W7: 14 and above – below 18 yrs | X7: 18 and above – below 30 years | Y7: 30 and above – below 45 years | Z7: 45 and above – below 60 years | AA7: 60 years & above | AB7: Total [sum of (17) to (22)] | AC7: PROFORMA–II VALUES [Col.–(10) (Transgender Died)] | AD7: VALIDATION WITH PROFORMA-II [Col.–(10) (Transgender Died)]
B8: (1) | C8: (2) | D8: (3) | E8: (4) | F8: (5) | G8: (6) | H8: (7) | I8: (8) | J8: (9) | M8: (10) | N8: (11) | O8: (12) | P8: (13) | Q8: (14) | R8: (15) | S8: (16) | V8: (17) | W8: (18) | X8: (19) | Y8: (20) | Z8: (21) | AA8: (22) | AB8: (23) | AE8: (24)
A9: 200 | B9: 1 | C9: Air Crash | D9: 0 | E9: 0 | F9: 0 | G9: 0 | H9: 0 | I9: 0 | J9: =SUM(D9:I9) -> 0 | K9: ='P-II'!J8 -> 0 | L9: =IF(J9='P-II'!J8,"",FALSE) ->  | M9: 0 | N9: 0 | O9: 0 | P9: 0 | Q9: 0 | R9: 0 | S9: =SUM(M9:R9) -> 0 | T9: ='P-II'!K8 -> 0 | U9: =IF(S9='P-II'!K8,"",FALSE) ->  | V9: 0 | W9: 0 | X9: 0 | Y9: 0 | Z9: 0 | AA9: 0 | AB9: =SUM(V9:AA9) -> 0 | AC9: ='P-II'!L8 -> 0 | AD9: =IF(AB9='P-II'!L8,"",FALSE) ->  | AE9: =SUM(J9+S9+AB9) -> 0 | AF9: ='P-II'!M8 -> 0 | AG9: =IF(AE9='P-II'!M8,"",FALSE) -> 
A10: 201 | B10: 2 | C10: Ship Accidents | D10: 0 | E10: 0 | F10: 0 | G10: 0 | H10: 0 | I10: 0 | J10: 0 | K10: ='P-II'!J9 -> 0 | L10: =IF(J10='P-II'!J9,"",FALSE) ->  | M10: 0 | N10: 0 | O10: 0 | P10: 0 | Q10: 0 | R10: 0 | S10: =SUM(M10:R10) -> 0 | T10: ='P-II'!K9 -> 0 | U10: =IF(S10='P-II'!K9,"",FALSE) ->  | V10: 0 | W10: 0 | X10: 0 | Y10: 0 | Z10: 0 | AA10: 0 | AB10: =SUM(V10:AA10) -> 0 | AC10: ='P-II'!L9 -> 0 | AD10: =IF(AB10='P-II'!L9,"",FALSE) ->  | AE10: =SUM(J10+S10+AB10) -> 0 | AF10: ='P-II'!M9 -> 0 | AG10: =IF(AE10='P-II'!M9,"",FALSE) -> 
A11: 202 | B11: 3 | C11: Collapse of Structure (Total) (sum of 3.1 to 3.5) | D11: =SUM(D12:D16) -> 0 | E11: =SUM(E12:E16) -> 0 | F11: 1 | G11: 2 | H11: =SUM(H12:H16) -> 2 | I11: =SUM(I12:I16) -> 0 | J11: 5 | K11: ='P-II'!J10 -> 5 | L11: =IF(J11='P-II'!J10,"",FALSE) ->  | M11: 0 | N11: =SUM(N12:N16) -> 0 | O11: =SUM(O12:O16) -> 0 | P11: =SUM(P12:P16) -> 0 | Q11: =SUM(Q12:Q16) -> 0 | R11: =SUM(R12:R16) -> 0 | S11: 0 | T11: ='P-II'!K10 -> 0 | U11: =IF(S11='P-II'!K10,"",FALSE) ->  | V11: 0 | W11: 0 | X11: 0 | Y11: 0 | Z11: 0 | AA11: 0 | AB11: 0 | AC11: ='P-II'!L10 -> 0 | AD11: =IF(AB11='P-II'!L10,"",FALSE) ->  | AE11: 5 | AF11: ='P-II'!M10 -> 5 | AG11: =IF(AE11='P-II'!M10,"",FALSE) -> 
A12: 203 | C12: 3.1 Collapse of Dwelling House/Residential building | D12: 0 | E12: 0 | F12: 1 | G12: 0 | H12: 0 | I12: 0 | J12: 1 | K12: ='P-II'!J11 -> 1 | L12: =IF(J12='P-II'!J11,"",FALSE) ->  | M12: 0 | N12: 0 | O12: 0 | P12: 0 | Q12: 0 | R12: 0 | S12: 0 | T12: ='P-II'!K11 -> 0 | U12: =IF(S12='P-II'!K11,"",FALSE) ->  | V12: 0 | W12: 0 | X12: 0 | Y12: 0 | Z12: 0 | AA12: 0 | AB12: 0 | AC12: ='P-II'!L11 -> 0 | AD12: =IF(AB12='P-II'!L11,"",FALSE) ->  | AE12: 1 | AF12: ='P-II'!M11 -> 1 | AG12: =IF(AE12='P-II'!M11,"",FALSE) -> 
A13: 204 | C13: 3.2 Collapse of Official/Commercial Building | D13: 0 | E13: 0 | F13: 0 | G13: 0 | H13: 0 | I13: 0 | J13: 0 | K13: ='P-II'!J12 -> 0 | L13: =IF(J13='P-II'!J12,"",FALSE) ->  | M13: 0 | N13: 0 | O13: 0 | P13: 0 | Q13: 0 | R13: 0 | S13: 0 | T13: ='P-II'!K12 -> 0 | U13: =IF(S13='P-II'!K12,"",FALSE) ->  | V13: 0 | W13: 0 | X13: 0 | Y13: 0 | Z13: 0 | AA13: 0 | AB13: 0 | AC13: ='P-II'!L12 -> 0 | AD13: =IF(AB13='P-II'!L12,"",FALSE) ->  | AE13: 0 | AF13: ='P-II'!M12 -> 0 | AG13: =IF(AE13='P-II'!M12,"",FALSE) -> 
A14: 205 | C14: 3.3 Collapse of Dam | D14: 0 | E14: 0 | F14: 0 | G14: 0 | H14: 0 | I14: 0 | J14: 0 | K14: ='P-II'!J13 -> 0 | L14: =IF(J14='P-II'!J13,"",FALSE) ->  | M14: 0 | N14: 0 | O14: 0 | P14: 0 | Q14: 0 | R14: 0 | S14: 0 | T14: ='P-II'!K13 -> 0 | U14: =IF(S14='P-II'!K13,"",FALSE) ->  | V14: 0 | W14: 0 | X14: 0 | Y14: 0 | Z14: 0 | AA14: 0 | AB14: 0 | AC14: ='P-II'!L13 -> 0 | AD14: =IF(AB14='P-II'!L13,"",FALSE) ->  | AE14: 0 | AF14: ='P-II'!M13 -> 0 | AG14: =IF(AE14='P-II'!M13,"",FALSE) -> 
A15: 206 | C15: 3.4 Collapse of Bridge | D15: 0 | E15: 0 | F15: 0 | G15: 0 | H15: 0 | I15: 0 | J15: 0 | K15: ='P-II'!J14 -> 0 | L15: =IF(J15='P-II'!J14,"",FALSE) ->  | M15: 0 | N15: 0 | O15: 0 | P15: 0 | Q15: 0 | R15: 0 | S15: 0 | T15: ='P-II'!K14 -> 0 | U15: =IF(S15='P-II'!K14,"",FALSE) ->  | V15: 0 | W15: 0 | X15: 0 | Y15: 0 | Z15: 0 | AA15: 0 | AB15: 0 | AC15: ='P-II'!L14 -> 0 | AD15: =IF(AB15='P-II'!L14,"",FALSE) ->  | AE15: 0 | AF15: ='P-II'!M14 -> 0 | AG15: =IF(AE15='P-II'!M14,"",FALSE) -> 
A16: 207 | C16: 3.5 Others | D16: 0 | E16: 0 | F16: 0 | G16: 2 | H16: 2 | I16: 0 | J16: 4 | K16: ='P-II'!J15 -> 4 | L16: =IF(J16='P-II'!J15,"",FALSE) ->  | M16: 0 | N16: 0 | O16: 0 | P16: 0 | Q16: 0 | R16: 0 | S16: 0 | T16: ='P-II'!K15 -> 0 | U16: =IF(S16='P-II'!K15,"",FALSE) ->  | V16: 0 | W16: 0 | X16: 0 | Y16: 0 | Z16: 0 | AA16: 0 | AB16: 0 | AC16: ='P-II'!L15 -> 0 | AD16: =IF(AB16='P-II'!L15,"",FALSE) ->  | AE16: 4 | AF16: ='P-II'!M15 -> 4 | AG16: =IF(AE16='P-II'!M15,"",FALSE) -> 
A17: 208 | B17: 4 | C17: Drowning (Total) (sum of 4.1 to 4.3) | D17: =SUM(D18:D20) -> 1 | E17: =SUM(E18:E20) -> 4 | F17: 34 | G17: 33 | H17: 21 | I17: 11 | J17: 104 | K17: ='P-II'!J16 -> 104 | L17: =IF(J17='P-II'!J16,"",FALSE) ->  | M17: 1 | N17: =SUM(N18:N20) -> 2 | O17: =SUM(O18:O20) -> 2 | P17: =SUM(P18:P20) -> 1 | Q17: =SUM(Q18:Q20) -> 3 | R17: =SUM(R18:R20) -> 2 | S17: 11 | T17: ='P-II'!K16 -> 11 | U17: =IF(S17='P-II'!K16,"",FALSE) ->  | V17: =SUM(V18:V20) -> 0 | W17: =SUM(W18:W20) -> 0 | X17: 0 | Y17: 0 | Z17: 0 | AA17: 0 | AB17: 0 | AC17: ='P-II'!L16 -> 0 | AD17: =IF(AB17='P-II'!L16,"",FALSE) ->  | AE17: 115 | AF17: ='P-II'!M16 -> 115 | AG17: =IF(AE17='P-II'!M16,"",FALSE) -> 
A18: 209 | C18: 4.1 Boat Capsize | D18: 0 | E18: 0 | F18: 0 | G18: 0 | H18: 0 | I18: 0 | J18: 0 | K18: ='P-II'!J17 -> 0 | L18: =IF(J18='P-II'!J17,"",FALSE) ->  | M18: 0 | N18: 0 | O18: 0 | P18: 0 | Q18: 0 | R18: 0 | S18: 0 | T18: ='P-II'!K17 -> 0 | U18: =IF(S18='P-II'!K17,"",FALSE) ->  | V18: 0 | W18: 0 | X18: 0 | Y18: 0 | Z18: 0 | AA18: 0 | AB18: 0 | AC18: ='P-II'!L17 -> 0 | AD18: =IF(AB18='P-II'!L17,"",FALSE) ->  | AE18: 0 | AF18: ='P-II'!M17 -> 0 | AG18: =IF(AE18='P-II'!M17,"",FALSE) -> 
A19: 210 | C19: 4.2 Accidental Falls into Waterbody | D19: 1 | E19: 4 | F19: 26 | G19: 26 | H19: 20 | I19: 11 | J19: 88 | K19: ='P-II'!J18 -> 88 | L19: =IF(J19='P-II'!J18,"",FALSE) ->  | M19: 1 | N19: 2 | O19: 1 | P19: 1 | Q19: 3 | R19: 2 | S19: 10 | T19: ='P-II'!K18 -> 10 | U19: =IF(S19='P-II'!K18,"",FALSE) ->  | V19: 0 | W19: 0 | X19: 0 | Y19: 0 | Z19: 0 | AA19: 0 | AB19: 0 | AC19: ='P-II'!L18 -> 0 | AD19: =IF(AB19='P-II'!L18,"",FALSE) ->  | AE19: 98 | AF19: ='P-II'!M18 -> 98 | AG19: =IF(AE19='P-II'!M18,"",FALSE) -> 
A20: 211 | C20: 4.3 Other Cases | D20: 0 | E20: 0 | F20: 8 | G20: 7 | H20: 1 | I20: 0 | J20: 16 | K20: ='P-II'!J19 -> 16 | L20: =IF(J20='P-II'!J19,"",FALSE) ->  | M20: 0 | N20: 0 | O20: 1 | P20: 0 | Q20: 0 | R20: 0 | S20: 1 | T20: ='P-II'!K19 -> 1 | U20: =IF(S20='P-II'!K19,"",FALSE) ->  | V20: 0 | W20: 0 | X20: 0 | Y20: 0 | Z20: 0 | AA20: 0 | AB20: 0 | AC20: ='P-II'!L19 -> 0 | AD20: =IF(AB20='P-II'!L19,"",FALSE) ->  | AE20: 17 | AF20: ='P-II'!M19 -> 17 | AG20: =IF(AE20='P-II'!M19,"",FALSE) -> 
A21: 212 | B21: 5 | C21: Electrocution | D21: 0 | E21: 0 | F21: 5 | G21: 10 | H21: 6 | I21: 2 | J21: 23 | K21: ='P-II'!J20 -> 23 | L21: =IF(J21='P-II'!J20,"",FALSE) ->  | M21: 0 | N21: 0 | O21: 2 | P21: 0 | Q21: 0 | R21: 0 | S21: 2 | T21: ='P-II'!K20 -> 2 | U21: =IF(S21='P-II'!K20,"",FALSE) ->  | V21: 0 | W21: 0 | X21: 0 | Y21: 0 | Z21: 0 | AA21: 0 | AB21: 0 | AC21: ='P-II'!L20 -> 0 | AD21: =IF(AB21='P-II'!L20,"",FALSE) ->  | AE21: 25 | AF21: ='P-II'!M20 -> 25 | AG21: =IF(AE21='P-II'!M20,"",FALSE) -> 
A22: 213 | B22: 6 | C22: Accidental Explosion (Total) (sum of 6.1 to 6.4) | D22: =SUM(D23:D26) -> 0 | E22: =SUM(E23:E26) -> 0 | F22: 1 | G22: 0 | H22: 0 | I22: 0 | J22: 1 | K22: ='P-II'!J21 -> 1 | L22: =IF(J22='P-II'!J21,"",FALSE) ->  | M22: =SUM(M23:M26) -> 0 | N22: =SUM(N23:N26) -> 0 | O22: =SUM(O23:O26) -> 0 | P22: =SUM(P23:P26) -> 0 | Q22: =SUM(Q23:Q26) -> 0 | R22: =SUM(R23:R26) -> 0 | S22: 0 | T22: ='P-II'!K21 -> 0 | U22: =IF(S22='P-II'!K21,"",FALSE) ->  | V22: =SUM(V23:V26) -> 0 | W22: =SUM(W23:W26) -> 0 | X22: 0 | Y22: 0 | Z22: 0 | AA22: 0 | AB22: 0 | AC22: ='P-II'!L21 -> 0 | AD22: =IF(AB22='P-II'!L21,"",FALSE) ->  | AE22: 1 | AF22: ='P-II'!M21 -> 1 | AG22: =IF(AE22='P-II'!M21,"",FALSE) -> 
A23: 214 | C23: 6.1 Domestic Gas Cylinder | D23: 0 | E23: 0 | F23: 0 | G23: 0 | H23: 0 | I23: 0 | J23: 0 | K23: ='P-II'!J22 -> 0 | L23: =IF(J23='P-II'!J22,"",FALSE) ->  | M23: 0 | N23: 0 | O23: 0 | P23: 0 | Q23: 0 | R23: 0 | S23: 0 | T23: ='P-II'!K22 -> 0 | U23: =IF(S23='P-II'!K22,"",FALSE) ->  | V23: 0 | W23: 0 | X23: 0 | Y23: 0 | Z23: 0 | AA23: 0 | AB23: 0 | AC23: ='P-II'!L22 -> 0 | AD23: =IF(AB23='P-II'!L22,"",FALSE) ->  | AE23: 0 | AF23: ='P-II'!M22 -> 0 | AG23: =IF(AE23='P-II'!M22,"",FALSE) -> 
A24: 215 | C24: 6.2 Industrial Boiler/Gas cylinder explosion | D24: 0 | E24: 0 | F24: 1 | G24: 0 | H24: 0 | I24: 0 | J24: 1 | K24: ='P-II'!J23 -> 1 | L24: =IF(J24='P-II'!J23,"",FALSE) ->  | M24: 0 | N24: 0 | O24: 0 | P24: 0 | Q24: 0 | R24: 0 | S24: 0 | T24: ='P-II'!K23 -> 0 | U24: =IF(S24='P-II'!K23,"",FALSE) ->  | V24: 0 | W24: 0 | X24: 0 | Y24: 0 | Z24: 0 | AA24: 0 | AB24: 0 | AC24: ='P-II'!L23 -> 0 | AD24: =IF(AB24='P-II'!L23,"",FALSE) ->  | AE24: 1 | AF24: ='P-II'!M23 -> 1 | AG24: =IF(AE24='P-II'!M23,"",FALSE) -> 
A25: 216 | C25: 6.3 Ammunition explosion in Armed Forces/Police/CPMF | D25: 0 | E25: 0 | F25: 0 | G25: 0 | H25: 0 | I25: 0 | J25: 0 | K25: ='P-II'!J24 -> 0 | L25: =IF(J25='P-II'!J24,"",FALSE) ->  | M25: 0 | N25: 0 | O25: 0 | P25: 0 | Q25: 0 | R25: 0 | S25: 0 | T25: ='P-II'!K24 -> 0 | U25: =IF(S25='P-II'!K24,"",FALSE) ->  | V25: 0 | W25: 0 | X25: 0 | Y25: 0 | Z25: 0 | AA25: 0 | AB25: 0 | AC25: ='P-II'!L24 -> 0 | AD25: =IF(AB25='P-II'!L24,"",FALSE) ->  | AE25: 0 | AF25: ='P-II'!M24 -> 0 | AG25: =IF(AE25='P-II'!M24,"",FALSE) -> 
A26: 217 | C26: 6.4 Other | D26: 0 | E26: 0 | F26: 0 | G26: 0 | H26: 0 | I26: 0 | J26: 0 | K26: ='P-II'!J25 -> 0 | L26: =IF(J26='P-II'!J25,"",FALSE) ->  | M26: 0 | N26: 0 | O26: 0 | P26: 0 | Q26: 0 | R26: 0 | S26: 0 | T26: ='P-II'!K25 -> 0 | U26: =IF(S26='P-II'!K25,"",FALSE) ->  | V26: 0 | W26: 0 | X26: 0 | Y26: 0 | Z26: 0 | AA26: 0 | AB26: 0 | AC26: ='P-II'!L25 -> 0 | AD26: =IF(AB26='P-II'!L25,"",FALSE) ->  | AE26: =SUM(J26+S26+AB26) -> 0 | AF26: ='P-II'!M25 -> 0 | AG26: =IF(AE26='P-II'!M25,"",FALSE) -> 
A27: 218 | B27: 7 | C27: Falls (Total) (sum of 7.1 to 7.6) | D27: =SUM(D28:D33) -> 0 | E27: =SUM(E28:E33) -> 2 | F27: 19 | G27: 28 | H27: 20 | I27: 24 | J27: 93 | K27: ='P-II'!J26 -> 93 | L27: =IF(J27='P-II'!J26,"",FALSE) ->  | M27: =SUM(M28:M33) -> 1 | N27: =SUM(N28:N33) -> 0 | O27: =SUM(O28:O33) -> 0 | P27: =SUM(P28:P33) -> 1 | Q27: =SUM(Q28:Q33) -> 1 | R27: =SUM(R28:R33) -> 6 | S27: 9 | T27: ='P-II'!K26 -> 9 | U27: =IF(S27='P-II'!K26,"",FALSE) ->  | V27: =SUM(V28:V33) -> 0 | W27: =SUM(W28:W33) -> 0 | X27: 0 | Y27: 0 | Z27: 0 | AA27: 0 | AB27: 0 | AC27: ='P-II'!L26 -> 0 | AD27: =IF(AB27='P-II'!L26,"",FALSE) ->  | AE27: 102 | AF27: ='P-II'!M26 -> 102 | AG27: =IF(AE27='P-II'!M26,"",FALSE) -> 
A28: 219 | C28: 7.1 Fall from Height | D28: 0 | E28: 1 | F28: 15 | G28: 19 | H28: 18 | I28: 19 | J28: 72 | K28: ='P-II'!J27 -> 72 | L28: =IF(J28='P-II'!J27,"",FALSE) ->  | M28: 1 | N28: 0 | O28: 0 | P28: 1 | Q28: 1 | R28: 2 | S28: 5 | T28: ='P-II'!K27 -> 5 | U28: =IF(S28='P-II'!K27,"",FALSE) ->  | V28: 0 | W28: 0 | X28: 0 | Y28: 0 | Z28: 0 | AA28: 0 | AB28: 0 | AC28: ='P-II'!L27 -> 0 | AD28: =IF(AB28='P-II'!L27,"",FALSE) ->  | AE28: 77 | AF28: ='P-II'!M27 -> 77 | AG28: =IF(AE28='P-II'!M27,"",FALSE) -> 
A29: 220 | C29: 7.2 Fall from Vehicles (Automobile like Bus, Trucks, etc.) | D29: 0 | E29: 0 | F29: 3 | G29: 1 | H29: 1 | I29: 2 | J29: 7 | K29: ='P-II'!J28 -> 7 | L29: =IF(J29='P-II'!J28,"",FALSE) ->  | M29: 0 | N29: 0 | O29: 0 | P29: 0 | Q29: 0 | R29: 1 | S29: 1 | T29: ='P-II'!K28 -> 1 | U29: =IF(S29='P-II'!K28,"",FALSE) ->  | V29: 0 | W29: 0 | X29: 0 | Y29: 0 | Z29: 0 | AA29: 0 | AB29: 0 | AC29: ='P-II'!L28 -> 0 | AD29: =IF(AB29='P-II'!L28,"",FALSE) ->  | AE29: 8 | AF29: ='P-II'!M28 -> 8 | AG29: =IF(AE29='P-II'!M28,"",FALSE) -> 
A30: 221 | C30: 7.3 Fall into Manhole / Sewer | D30: 0 | E30: 1 | F30: 0 | G30: 0 | H30: 0 | I30: 0 | J30: 1 | K30: ='P-II'!J29 -> 1 | L30: =IF(J30='P-II'!J29,"",FALSE) ->  | M30: 0 | N30: 0 | O30: 0 | P30: 0 | Q30: 0 | R30: 0 | S30: 0 | T30: ='P-II'!K29 -> 0 | U30: =IF(S30='P-II'!K29,"",FALSE) ->  | V30: 0 | W30: 0 | X30: 0 | Y30: 0 | Z30: 0 | AA30: 0 | AB30: 0 | AC30: ='P-II'!L29 -> 0 | AD30: =IF(AB30='P-II'!L29,"",FALSE) ->  | AE30: 1 | AF30: ='P-II'!M29 -> 1 | AG30: =IF(AE30='P-II'!M29,"",FALSE) -> 
A31: 222 | C31: 7.4 Fall into Pit | D31: 0 | E31: 0 | F31: 0 | G31: 0 | H31: 0 | I31: 0 | J31: 0 | K31: ='P-II'!J30 -> 0 | L31: =IF(J31='P-II'!J30,"",FALSE) ->  | M31: 0 | N31: 0 | O31: 0 | P31: 0 | Q31: 0 | R31: 0 | S31: 0 | T31: ='P-II'!K30 -> 0 | U31: =IF(S31='P-II'!K30,"",FALSE) ->  | V31: 0 | W31: 0 | X31: 0 | Y31: 0 | Z31: 0 | AA31: 0 | AB31: 0 | AC31: ='P-II'!L30 -> 0 | AD31: =IF(AB31='P-II'!L30,"",FALSE) ->  | AE31: =SUM(J31+S31+AB31) -> 0 | AF31: ='P-II'!M30 -> 0 | AG31: =IF(AE31='P-II'!M30,"",FALSE) -> 
A32: 223 | C32: 7.5 Fall into Borewell | D32: 0 | E32: 0 | F32: 0 | G32: 0 | H32: 0 | I32: 0 | J32: 0 | K32: ='P-II'!J31 -> 0 | L32: =IF(J32='P-II'!J31,"",FALSE) ->  | M32: 0 | N32: 0 | O32: 0 | P32: 0 | Q32: 0 | R32: 0 | S32: 0 | T32: ='P-II'!K31 -> 0 | U32: =IF(S32='P-II'!K31,"",FALSE) ->  | V32: 0 | W32: 0 | X32: 0 | Y32: 0 | Z32: 0 | AA32: 0 | AB32: 0 | AC32: ='P-II'!L31 -> 0 | AD32: =IF(AB32='P-II'!L31,"",FALSE) ->  | AE32: =SUM(J32+S32+AB32) -> 0 | AF32: ='P-II'!M31 -> 0 | AG32: =IF(AE32='P-II'!M31,"",FALSE) -> 
A33: 224 | C33: 7.6 Others | D33: 0 | E33: 0 | F33: 1 | G33: 8 | H33: 1 | I33: 3 | J33: 13 | K33: ='P-II'!J32 -> 13 | L33: =IF(J33='P-II'!J32,"",FALSE) ->  | M33: 0 | N33: 0 | O33: 0 | P33: 0 | Q33: 0 | R33: 3 | S33: 3 | T33: ='P-II'!K32 -> 3 | U33: =IF(S33='P-II'!K32,"",FALSE) ->  | V33: 0 | W33: 0 | X33: 0 | Y33: 0 | Z33: 0 | AA33: 0 | AB33: 0 | AC33: ='P-II'!L32 -> 0 | AD33: =IF(AB33='P-II'!L32,"",FALSE) ->  | AE33: 16 | AF33: ='P-II'!M32 -> 16 | AG33: =IF(AE33='P-II'!M32,"",FALSE) -> 
A34: 225 | B34: 8 | C34: Factory/Machine accidents | D34: 0 | E34: 0 | F34: 3 | G34: 0 | H34: 0 | I34: 0 | J34: 3 | K34: ='P-II'!J33 -> 3 | L34: =IF(J34='P-II'!J33,"",FALSE) ->  | M34: 0 | N34: 0 | O34: 0 | P34: 0 | Q34: 0 | R34: 0 | S34: 0 | T34: ='P-II'!K33 -> 0 | U34: =IF(S34='P-II'!K33,"",FALSE) ->  | V34: 0 | W34: 0 | X34: 0 | Y34: 0 | Z34: 0 | AA34: 0 | AB34: 0 | AC34: ='P-II'!L33 -> 0 | AD34: =IF(AB34='P-II'!L33,"",FALSE) ->  | AE34: 3 | AF34: ='P-II'!M33 -> 3 | AG34: =IF(AE34='P-II'!M33,"",FALSE) -> 
A35: 226 | B35: 9 | C35: Accidental Fire (Total) (sum of 9.1 to 9.5) | D35: =SUM(D36:D40) -> 0 | E35: =SUM(E36:E40) -> 0 | F35: 0 | G35: 0 | H35: 0 | I35: =SUM(I36:I40) -> 3 | J35: 3 | K35: ='P-II'!J34 -> 3 | L35: =IF(J35='P-II'!J34,"",FALSE) ->  | M35: =SUM(M36:M40) -> 0 | N35: =SUM(N36:N40) -> 0 | O35: =SUM(O36:O40) -> 1 | P35: =SUM(P36:P40) -> 1 | Q35: =SUM(Q36:Q40) -> 1 | R35: =SUM(R36:R40) -> 3 | S35: 6 | T35: ='P-II'!K34 -> 6 | U35: =IF(S35='P-II'!K34,"",FALSE) ->  | V35: =SUM(V36:V40) -> 0 | W35: 0 | X35: 0 | Y35: 0 | Z35: 0 | AA35: 0 | AB35: 0 | AC35: ='P-II'!L34 -> 0 | AD35: =IF(AB35='P-II'!L34,"",FALSE) ->  | AE35: 9 | AF35: ='P-II'!M34 -> 9 | AG35: =IF(AE35='P-II'!M34,"",FALSE) -> 
A36: 227 | C36: 9.1 Electrical Short circuit | D36: 0 | E36: 0 | F36: 0 | G36: 0 | H36: 0 | I36: 1 | J36: 1 | K36: ='P-II'!J35 -> 1 | L36: =IF(J36='P-II'!J35,"",FALSE) ->  | M36: 0 | N36: 0 | O36: 0 | P36: 0 | Q36: 0 | R36: 0 | S36: 0 | T36: ='P-II'!K35 -> 0 | U36: =IF(S36='P-II'!K35,"",FALSE) ->  | V36: 0 | W36: 0 | X36: 0 | Y36: 0 | Z36: 0 | AA36: 0 | AB36: 0 | AC36: ='P-II'!L35 -> 0 | AD36: =IF(AB36='P-II'!L35,"",FALSE) ->  | AE36: 1 | AF36: ='P-II'!M35 -> 1 | AG36: =IF(AE36='P-II'!M35,"",FALSE) -> 
A37: 228 | C37: 9.2 Riot/Agitation | D37: 0 | E37: 0 | F37: 0 | G37: 0 | H37: 0 | I37: 0 | J37: 0 | K37: ='P-II'!J36 -> 0 | L37: =IF(J37='P-II'!J36,"",FALSE) ->  | M37: 0 | N37: 0 | O37: 0 | P37: 0 | Q37: 0 | R37: 0 | S37: 0 | T37: ='P-II'!K36 -> 0 | U37: =IF(S37='P-II'!K36,"",FALSE) ->  | V37: 0 | W37: 0 | X37: 0 | Y37: 0 | Z37: 0 | AA37: 0 | AB37: 0 | AC37: ='P-II'!L36 -> 0 | AD37: =IF(AB37='P-II'!L36,"",FALSE) ->  | AE37: 0 | AF37: ='P-II'!M36 -> 0 | AG37: =IF(AE37='P-II'!M36,"",FALSE) -> 
A38: 229 | C38: 9.3 Fireworks | D38: 0 | E38: 0 | F38: 0 | G38: 0 | H38: 0 | I38: 0 | J38: 0 | K38: ='P-II'!J37 -> 0 | L38: =IF(J38='P-II'!J37,"",FALSE) ->  | M38: 0 | N38: 0 | O38: 0 | P38: 1 | Q38: 0 | R38: 0 | S38: 1 | T38: ='P-II'!K37 -> 1 | U38: =IF(S38='P-II'!K37,"",FALSE) ->  | V38: 0 | W38: 0 | X38: 0 | Y38: 0 | Z38: 0 | AA38: 0 | AB38: 0 | AC38: ='P-II'!L37 -> 0 | AD38: =IF(AB38='P-II'!L37,"",FALSE) ->  | AE38: 1 | AF38: ='P-II'!M37 -> 1 | AG38: =IF(AE38='P-II'!M37,"",FALSE) -> 
A39: 230 | C39: 9.4 Cooking Gas cylinder/stove burst | D39: 0 | E39: 0 | F39: 0 | G39: 0 | H39: 0 | I39: 2 | J39: 2 | K39: ='P-II'!J38 -> 2 | L39: =IF(J39='P-II'!J38,"",FALSE) ->  | M39: 0 | N39: 0 | O39: 1 | P39: 0 | Q39: 0 | R39: 0 | S39: 1 | T39: ='P-II'!K38 -> 1 | U39: =IF(S39='P-II'!K38,"",FALSE) ->  | V39: 0 | W39: 0 | X39: 0 | Y39: 0 | Z39: 0 | AA39: 0 | AB39: 0 | AC39: ='P-II'!L38 -> 0 | AD39: =IF(AB39='P-II'!L38,"",FALSE) ->  | AE39: 3 | AF39: ='P-II'!M38 -> 3 | AG39: =IF(AE39='P-II'!M38,"",FALSE) -> 
A40: 231 | C40: 9.5 Other Causes | D40: 0 | E40: 0 | F40: 0 | G40: 0 | H40: 0 | I40: 0 | J40: 0 | K40: ='P-II'!J39 -> 0 | L40: =IF(J40='P-II'!J39,"",FALSE) ->  | M40: 0 | N40: 0 | O40: 0 | P40: 0 | Q40: 1 | R40: 3 | S40: 4 | T40: ='P-II'!K39 -> 4 | U40: =IF(S40='P-II'!K39,"",FALSE) ->  | V40: 0 | W40: 0 | X40: 0 | Y40: 0 | Z40: 0 | AA40: 0 | AB40: 0 | AC40: ='P-II'!L39 -> 0 | AD40: =IF(AB40='P-II'!L39,"",FALSE) ->  | AE40: 4 | AF40: ='P-II'!M39 -> 4 | AG40: =IF(AE40='P-II'!M39,"",FALSE) -> 
A41: 232 | B41: 10 | C41: Firearm | D41: 1 | E41: 0 | F41: 0 | G41: 0 | H41: 0 | I41: 0 | J41: 1 | K41: ='P-II'!J40 -> 1 | L41: =IF(J41='P-II'!J40,"",FALSE) ->  | M41: 0 | N41: 0 | O41: 0 | P41: 0 | Q41: 0 | R41: 0 | S41: 0 | T41: ='P-II'!K40 -> 0 | U41: =IF(S41='P-II'!K40,"",FALSE) ->  | V41: 0 | W41: 0 | X41: 0 | Y41: 0 | Z41: 0 | AA41: 0 | AB41: 0 | AC41: ='P-II'!L40 -> 0 | AD41: =IF(AB41='P-II'!L40,"",FALSE) ->  | AE41: 1 | AF41: ='P-II'!M40 -> 1 | AG41: =IF(AE41='P-II'!M40,"",FALSE) -> 
A42: 233 | B42: 11 | C42: Mines or Quarry disaster | D42: 0 | E42: 0 | F42: 0 | G42: 0 | H42: 0 | I42: 0 | J42: 0 | K42: ='P-II'!J41 -> 0 | L42: =IF(J42='P-II'!J41,"",FALSE) ->  | M42: 0 | N42: 0 | O42: 0 | P42: 0 | Q42: 0 | R42: 0 | S42: 0 | T42: ='P-II'!K41 -> 0 | U42: =IF(S42='P-II'!K41,"",FALSE) ->  | V42: 0 | W42: 0 | X42: 0 | Y42: 0 | Z42: 0 | AA42: 0 | AB42: 0 | AC42: ='P-II'!L41 -> 0 | AD42: =IF(AB42='P-II'!L41,"",FALSE) ->  | AE42: 0 | AF42: ='P-II'!M41 -> 0 | AG42: =IF(AE42='P-II'!M41,"",FALSE) -> 
A43: 234 | B43: 12 | C43: Traffic Accidents (Total) (sum of 12.1, 12.2 and 12.3) | D43: =SUM(D44,D47,D48) -> 1 | E43: =SUM(E44,E47,E48) -> 0 | F43: 87 | G43: 74 | H43: 47 | I43: 29 | J43: 238 | K43: ='P-II'!J42 -> 238 | L43: =IF(J43='P-II'!J42,"",FALSE) ->  | M43: =SUM(M44,M47,M48) -> 0 | N43: =SUM(N44,N47,N48) -> 0 | O43: =SUM(O44,O47,O48) -> 7 | P43: =SUM(P44,P47,P48) -> 10 | Q43: =SUM(Q44,Q47,Q48) -> 9 | R43: =SUM(R44,R47,R48) -> 11 | S43: 37 | T43: ='P-II'!K42 -> 37 | U43: =IF(S43='P-II'!K42,"",FALSE) ->  | V43: 0 | W43: 0 | X43: 0 | Y43: 0 | Z43: 0 | AA43: 0 | AB43: 0 | AC43: ='P-II'!L42 -> 0 | AD43: =IF(AB43='P-II'!L42,"",FALSE) ->  | AE43: 275 | AF43: ='P-II'!M42 -> 275 | AG43: =IF(AE43='P-II'!M42,"",FALSE) -> 
A44: 235 | C44: 12.1 Road Accidents Total (sum of 12.1.1 and 12.1.2) | D44: =SUM(D45:D46) -> 1 | E44: =SUM(E45:E46) -> 0 | F44: 72 | G44: 55 | H44: 38 | I44: 27 | J44: 193 | K44: ='P-II'!J43 -> 193 | L44: =IF(J44='P-II'!J43,"",FALSE) ->  | M44: =SUM(M45:M46) -> 0 | N44: =SUM(N45:N46) -> 0 | O44: =SUM(O45:O46) -> 6 | P44: =SUM(P45:P46) -> 9 | Q44: =SUM(Q45:Q46) -> 8 | R44: =SUM(R45:R46) -> 10 | S44: 33 | T44: ='P-II'!K43 -> 33 | U44: =IF(S44='P-II'!K43,"",FALSE) ->  | V44: 0 | W44: 0 | X44: 0 | Y44: 0 | Z44: 0 | AA44: 0 | AB44: 0 | AC44: ='P-II'!L43 -> 0 | AD44: =IF(AB44='P-II'!L43,"",FALSE) ->  | AE44: 226 | AF44: ='P-II'!M43 -> 226 | AG44: =IF(AE44='P-II'!M43,"",FALSE) -> 
A45: 236 | C45: 12.1.1 Which led into Road Rage incidents | D45: 0 | E45: 0 | F45: 0 | G45: 0 | H45: 0 | I45: 0 | J45: 0 | K45: ='P-II'!J44 -> 0 | L45: =IF(J45='P-II'!J44,"",FALSE) ->  | M45: 0 | N45: 0 | O45: 0 | P45: 0 | Q45: 0 | R45: 0 | S45: 0 | T45: ='P-II'!K44 -> 0 | U45: =IF(S45='P-II'!K44,"",FALSE) ->  | V45: 0 | W45: 0 | X45: 0 | Y45: 0 | Z45: 0 | AA45: 0 | AB45: 0 | AC45: ='P-II'!L44 -> 0 | AD45: =IF(AB45='P-II'!L44,"",FALSE) ->  | AE45: 0 | AF45: ='P-II'!M44 -> 0 | AG45: =IF(AE45='P-II'!M44,"",FALSE) -> 
A46: 237 | C46: 12.1.2 Other Road Accidents | D46: 1 | E46: 0 | F46: 72 | G46: 55 | H46: 38 | I46: 27 | J46: 193 | K46: ='P-II'!J45 -> 193 | L46: =IF(J46='P-II'!J45,"",FALSE) ->  | M46: 0 | N46: 0 | O46: 6 | P46: 9 | Q46: 8 | R46: 10 | S46: 33 | T46: ='P-II'!K45 -> 33 | U46: =IF(S46='P-II'!K45,"",FALSE) ->  | V46: 0 | W46: 0 | X46: 0 | Y46: 0 | Z46: 0 | AA46: 0 | AB46: 0 | AC46: ='P-II'!L45 -> 0 | AD46: =IF(AB46='P-II'!L45,"",FALSE) ->  | AE46: 226 | AF46: ='P-II'!M45 -> 226 | AG46: =IF(AE46='P-II'!M45,"",FALSE) -> 
A47: 238 | C47: 12.2 Railway Crossing Accidents | D47: 0 | E47: 0 | F47: 0 | G47: 0 | H47: 0 | I47: 0 | J47: 0 | K47: ='P-II'!J46 -> 0 | L47: =IF(J47='P-II'!J46,"",FALSE) ->  | M47: 0 | N47: 0 | O47: 0 | P47: 0 | Q47: 0 | R47: 0 | S47: 0 | T47: ='P-II'!K46 -> 0 | U47: =IF(S47='P-II'!K46,"",FALSE) ->  | V47: 0 | W47: 0 | X47: 0 | Y47: 0 | Z47: 0 | AA47: 0 | AB47: 0 | AC47: ='P-II'!L46 -> 0 | AD47: =IF(AB47='P-II'!L46,"",FALSE) ->  | AE47: =SUM(J47+S47+AB47) -> 0 | AF47: ='P-II'!M46 -> 0 | AG47: =IF(AE47='P-II'!M46,"",FALSE) -> 
A48: 239 | C48: 12.3 Railway Accidents | D48: 0 | E48: 0 | F48: 15 | G48: 19 | H48: 9 | I48: 2 | J48: 45 | K48: ='P-II'!J47 -> 45 | L48: =IF(J48='P-II'!J47,"",FALSE) ->  | M48: 0 | N48: 0 | O48: 1 | P48: 1 | Q48: 1 | R48: 1 | S48: 4 | T48: ='P-II'!K47 -> 4 | U48: =IF(S48='P-II'!K47,"",FALSE) ->  | V48: 0 | W48: 0 | X48: 0 | Y48: 0 | Z48: 0 | AA48: 0 | AB48: 0 | AC48: ='P-II'!L47 -> 0 | AD48: =IF(AB48='P-II'!L47,"",FALSE) ->  | AE48: 49 | AF48: ='P-II'!M47 -> 49 | AG48: =IF(AE48='P-II'!M47,"",FALSE) -> 
A49: 240 | B49: 13 | C49: Stampede | D49: 0 | E49: 0 | F49: 0 | G49: 0 | H49: 0 | I49: 0 | J49: 0 | K49: ='P-II'!J48 -> 0 | L49: =IF(J49='P-II'!J48,"",FALSE) ->  | M49: 0 | N49: 0 | O49: 0 | P49: 0 | Q49: 0 | R49: 0 | S49: 0 | T49: ='P-II'!K48 -> 0 | U49: =IF(S49='P-II'!K48,"",FALSE) ->  | V49: 0 | W49: 0 | X49: 0 | Y49: 0 | Z49: 0 | AA49: 0 | AB49: 0 | AC49: ='P-II'!L48 -> 0 | AD49: =IF(AB49='P-II'!L48,"",FALSE) ->  | AE49: 0 | AF49: ='P-II'!M48 -> 0 | AG49: =IF(AE49='P-II'!M48,"",FALSE) -> 
A50: 241 | B50: 14 | C50: Other Unnatural Causes | D50: 0 | E50: 0 | F50: 1 | G50: 0 | H50: 4 | I50: 0 | J50: 5 | K50: ='P-II'!J49 -> 5 | L50: =IF(J50='P-II'!J49,"",FALSE) ->  | M50: 0 | N50: 0 | O50: 1 | P50: 3 | Q50: 1 | R50: 0 | S50: 5 | T50: ='P-II'!K49 -> 5 | U50: =IF(S50='P-II'!K49,"",FALSE) ->  | V50: 0 | W50: 0 | X50: 0 | Y50: 0 | Z50: 0 | AA50: 0 | AB50: 0 | AC50: ='P-II'!L49 -> 0 | AD50: =IF(AB50='P-II'!L49,"",FALSE) ->  | AE50: 10 | AF50: ='P-II'!M49 -> 10 | AG50: =IF(AE50='P-II'!M49,"",FALSE) -> 
A51: 242 | B51: 15 | C51: Causes not known | D51: 0 | E51: 0 | F51: 1 | G51: 8 | H51: 3 | I51: 1 | J51: 13 | K51: ='P-II'!J50 -> 13 | L51: =IF(J51='P-II'!J50,"",FALSE) ->  | M51: 0 | N51: 0 | O51: 1 | P51: 2 | Q51: 0 | R51: 0 | S51: 3 | T51: ='P-II'!K50 -> 3 | U51: =IF(S51='P-II'!K50,"",FALSE) ->  | V51: 0 | W51: 0 | X51: 0 | Y51: 0 | Z51: 0 | AA51: 0 | AB51: =SUM(V51:AA51) -> 0 | AC51: ='P-II'!L50 -> 0 | AD51: =IF(AB51='P-II'!L50,"",FALSE) ->  | AE51: 16 | AF51: ='P-II'!M50 -> 16 | AG51: =IF(AE51='P-II'!M50,"",FALSE) -> 
A52: 270 | B52: 16 | C52: Total (sum of Sl. 1 to 15) | D52: =SUM(D9,D10,D11,D17,D21:D22,D27,D34:D35,D41:D43,D49:D51) -> 3 | E52: =SUM(E9,E10,E11,E17,E21:E22,E27,E34:E35,E41:E43,E49:E51) -> 6 | F52: 152 | G52: 155 | H52: 103 | I52: 70 | J52: 489 | K52: ='P-II'!J51 -> 489 | L52: =IF(J52='P-II'!J51,"",FALSE) ->  | M52: 2 | N52: =SUM(N9,N10,N11,N17,N21:N22,N27,N34:N35,N41:N43,N49:N51) -> 2 | O52: =SUM(O9,O10,O11,O17,O21:O22,O27,O34:O35,O41:O43,O49:O51) -> 14 | P52: =SUM(P9,P10,P11,P17,P21:P22,P27,P34:P35,P41:P43,P49:P51) -> 18 | Q52: =SUM(Q9,Q10,Q11,Q17,Q21:Q22,Q27,Q34:Q35,Q41:Q43,Q49:Q51) -> 15 | R52: =SUM(R9,R10,R11,R17,R21:R22,R27,R34:R35,R41:R43,R49:R51) -> 22 | S52: =SUM(S9,S10,S11,S17,S21:S22,S27,S34:S35,S41:S43,S49:S51) -> 73 | T52: ='P-II'!K51 -> 73 | U52: =IF(S52='P-II'!K51,"",FALSE) ->  | V52: 0 | W52: 0 | X52: 0 | Y52: 0 | Z52: 0 | AA52: 0 | AB52: 0 | AC52: ='P-II'!L51 -> 0 | AD52: =IF(AB52='P-II'!L51,"",FALSE) ->  | AE52: 562 | AF52: ='P-II'!M51 -> 562 | AG52: =IF(AE52='P-II'!M51,"",FALSE) -> 
A53: SL-12.1.1 ABNORMAL VARIATION IN "ROAD RAGE INCIDENTS" DATA | D53: =IF(D44>0,IF((D45/D44*100)>10,"ABVAR",""),"") ->  | E53: =IF(E44>0,IF((E45/E44*100)>10,"ABVAR",""),"") -> 
A54: SL-14 ABNORMAL VARIATION IN "OTHER UNNATURAL CAUSES" DATA | D54: =IF(D52>0,IF((D50/D52*100)>20,"ABVAR",""),"") ->  | E54: =IF(E52>0,IF((E50/E52*100)>20,"ABVAR",""),"") -> 
A55: SL-15 ABNORMAL VARIATION IN "CAUSES NOT KNOWN" DATA | D55: =IF(D52>0,IF((D51/D52*100)>20,"ABVAR",""),"") ->  | E55: =IF(E52>0,IF((E51/E52*100)>20,"ABVAR",""),"") -> 
BA200: =A1 -> Goa, , ADSI-2021
BA201: =A2 -> Errors | BB201: =C2 -> 0 | BD201: =E2 -> Abnormal Variations | BE201: =F2 -> 0
BA202: =A3 -> Proforma–III
BA203: =A4 -> Age wise Distribution of Accidental Deaths by Un-Natural Causes
BA204: =B5 -> Sl. No. | BB204: =C5 -> Causes | BC204: =D5 -> N u m b e r o f A c c i d e n t a l D e a t h s | CD204: =AE5 -> Grand Total [sum of (9) + (16) + (23)] | CE204: =AF5 -> PROFORMA–II VALUES [Col.–(11) (Total Died)] | CF204: =AG5 -> VALIDATION WITH PROFORMA-II [Col.–(11) (Total Died)]
BC205: =D6 -> M a l e | BL205: =M6 -> F e m a l e | BU205: =V6 -> Transgender
BC206: below 14 years | BD206: =E7 -> 14 and above – below 18 yrs | BE206: 18 and above – below 30 years | BF206: 30 and above – below 45 years | BG206: 45 and above – below 60 years | BH206: 60 years & above | BI206: Total [sum of (3) to (8)] | BJ206: PROFORMA–II VALUES [Col.–(8) (Male Died)] | BK206: VALIDATION WITH PROFORMA-II [Col.–(8) (Male Died)] | BL206: below 14 years | BM206: =N7 -> 14 and above – below 18 yrs | BN206: 18 and above – below 30 years | BO206: 30 and above – below 45 years | BP206: 45 and above – below 60 years | BQ206: 60 years & above | BR206: Total [sum of (10) to (15)] | BS206: PROFORMA–II VALUES [Col.–(9) (Female Died)] | BT206: VALIDATION WITH PROFORMA-II [Col.–(9) (Female Died)] | BU206: below 14 years | BV206: =W7 -> 14 and above – below 18 yrs | BW206: 18 and above – below 30 years | BX206: 30 and above – below 45 years | BY206: 45 and above – below 60 years | BZ206: 60 years & above | CA206: Total [sum of (17) to (22)] | CB206: PROFORMA–II VALUES [Col.–(10) (Transgender Died)] | CC206: VALIDATION WITH PROFORMA-II [Col.–(10) (Transgender Died)]
BA207: =B8 -> (1) | BB207: =C8 -> (2) | BC207: (3) | BD207: =E8 -> (4) | BE207: =F8 -> (5) | BF207: =G8 -> (6) | BG207: =H8 -> (7) | BH207: =I8 -> (8) | BI207: =J8 -> (9) | BL207: (10) | BM207: =N8 -> (11) | BN207: =O8 -> (12) | BO207: =P8 -> (13) | BP207: =Q8 -> (14) | BQ207: =R8 -> (15) | BR207: =S8 -> (16) | BU207: (17) | BV207: =W8 -> (18) | BW207: =X8 -> (19) | BX207: =Y8 -> (20) | BY207: =Z8 -> (21) | BZ207: =AA8 -> (22) | CA207: =AB8 -> (23) | CD207: =AE8 -> (24)
BA208: 1 | BB208: Air Crash | BC208: 0 | BD208: 0 | BE208: 0 | BF208: 0 | BG208: 0 | BH208: 0 | BI208: 0 | BJ208: =K9 -> 0 | BK208: =L9 ->  | BL208: 0 | BM208: 0 | BN208: 0 | BO208: 0 | BP208: 0 | BQ208: 0 | BR208: 0 | BS208: =T9 -> 0 | BT208: =U9 ->  | BU208: 0 | BV208: 0 | BW208: 0 | BX208: 0 | BY208: 0 | BZ208: 0 | CA208: 0 | CB208: =AC9 -> 0 | CC208: =AD9 ->  | CD208: 0 | CE208: =AF9 -> 0 | CF208: =AG9 -> 
BA209: 2 | BB209: Ship Accidents | BC209: 0 | BD209: 0 | BE209: 0 | BF209: 0 | BG209: 0 | BH209: 0 | BI209: 0 | BJ209: 0 | BL209: 0 | BM209: 0 | BN209: 0 | BO209: 0 | BP209: 0 | BQ209: 0 | BR209: 0 | BS209: 0 | BU209: 0 | BV209: 0 | BW209: 0 | BX209: 0 | BY209: 0 | BZ209: 0 | CA209: 0 | CB209: 0 | CD209: 0 | CE209: 0
BA210: 3 | BB210: Collapse of Structure (Total) (sum of 3.1 to 3.5) | BC210: 0 | BD210: 0 | BE210: 1 | BF210: 2 | BG210: 2 | BH210: 0 | BI210: 5 | BJ210: 5 | BL210: 0 | BM210: 0 | BN210: 0 | BO210: 0 | BP210: 0 | BQ210: 0 | BR210: 0 | BS210: 0 | BU210: 0 | BV210: 0 | BW210: 0 | BX210: 0 | BY210: 0 | BZ210: 0 | CA210: 0 | CB210: 0 | CD210: 5 | CE210: 5
BB211: 3.1 Collapse of Dwelling House/Residential building | BC211: 0 | BD211: 0 | BE211: 1 | BF211: 0 | BG211: 0 | BH211: 0 | BI211: 1 | BJ211: 1 | BL211: 0 | BM211: 0 | BN211: 0 | BO211: 0 | BP211: 0 | BQ211: 0 | BR211: 0 | BS211: 0 | BU211: 0 | BV211: 0 | BW211: 0 | BX211: 0 | BY211: 0 | BZ211: 0 | CA211: 0 | CB211: 0 | CD211: 1 | CE211: 1
BB212: 3.2 Collapse of Official/Commercial Building | BC212: 0 | BD212: 0 | BE212: 0 | BF212: 0 | BG212: 0 | BH212: 0 | BI212: 0 | BJ212: 0 | BL212: 0 | BM212: 0 | BN212: 0 | BO212: 0 | BP212: 0 | BQ212: 0 | BR212: 0 | BS212: 0 | BU212: 0 | BV212: 0 | BW212: 0 | BX212: 0 | BY212: 0 | BZ212: 0 | CA212: 0 | CB212: 0 | CD212: 0 | CE212: 0
BB213: 3.3 Collapse of Dam | BC213: 0 | BD213: 0 | BE213: 0 | BF213: 0 | BG213: 0 | BH213: 0 | BI213: 0 | BJ213: 0 | BL213: 0 | BM213: 0 | BN213: 0 | BO213: 0 | BP213: 0 | BQ213: 0 | BR213: 0 | BS213: 0 | BU213: 0 | BV213: 0 | BW213: 0 | BX213: 0 | BY213: 0 | BZ213: 0 | CA213: 0 | CB213: 0 | CD213: 0 | CE213: 0
BB214: 3.4 Collapse of Bridge | BC214: 0 | BD214: 0 | BE214: 0 | BF214: 0 | BG214: 0 | BH214: 0 | BI214: 0 | BJ214: 0 | BL214: 0 | BM214: 0 | BN214: 0 | BO214: 0 | BP214: 0 | BQ214: 0 | BR214: 0 | BS214: 0 | BU214: 0 | BV214: 0 | BW214: 0 | BX214: 0 | BY214: 0 | BZ214: 0 | CA214: 0 | CB214: 0 | CD214: 0 | CE214: 0
BB215: 3.5 Others | BC215: 0 | BD215: 0 | BE215: 0 | BF215: 2 | BG215: 2 | BH215: 0 | BI215: 4 | BJ215: 4 | BL215: 0 | BM215: 0 | BN215: 0 | BO215: 0 | BP215: 0 | BQ215: 0 | BR215: 0 | BS215: 0 | BU215: 0 | BV215: 0 | BW215: 0 | BX215: 0 | BY215: 0 | BZ215: 0 | CA215: 0 | CB215: 0 | CD215: 4 | CE215: 4
BA216: 4 | BB216: Drowning (Total) (sum of 4.1 to 4.3) | BC216: 1 | BD216: 4 | BE216: 34 | BF216: 33 | BG216: 21 | BH216: 11 | BI216: 104 | BJ216: 104 | BL216: 1 | BM216: 2 | BN216: 2 | BO216: 1 | BP216: 3 | BQ216: 2 | BR216: 11 | BS216: 11 | BU216: 0 | BV216: 0 | BW216: 0 | BX216: 0 | BY216: 0 | BZ216: 0 | CA216: 0 | CB216: 0 | CD216: 115 | CE216: 115
BB217: 4.1 Boat Capsize | BC217: 0 | BD217: 0 | BE217: 0 | BF217: 0 | BG217: 0 | BH217: 0 | BI217: 0 | BJ217: 0 | BL217: 0 | BM217: 0 | BN217: 0 | BO217: 0 | BP217: 0 | BQ217: 0 | BR217: 0 | BS217: 0 | BU217: 0 | BV217: 0 | BW217: 0 | BX217: 0 | BY217: 0 | BZ217: 0 | CA217: 0 | CB217: 0 | CD217: 0 | CE217: 0
BB218: 4.2 Accidental Falls into Waterbody | BC218: 1 | BD218: 4 | BE218: 26 | BF218: 26 | BG218: 20 | BH218: 11 | BI218: 88 | BJ218: 88 | BL218: 1 | BM218: 2 | BN218: 1 | BO218: 1 | BP218: 3 | BQ218: 2 | BR218: 10 | BS218: 10 | BU218: 0 | BV218: 0 | BW218: 0 | BX218: 0 | BY218: 0 | BZ218: 0 | CA218: 0 | CB218: 0 | CD218: 98 | CE218: 98
BB219: 4.3 Other Cases | BC219: 0 | BD219: 0 | BE219: 8 | BF219: 7 | BG219: 1 | BH219: 0 | BI219: 16 | BJ219: 16 | BL219: 0 | BM219: 0 | BN219: 1 | BO219: 0 | BP219: 0 | BQ219: 0 | BR219: 1 | BS219: 1 | BU219: 0 | BV219: 0 | BW219: 0 | BX219: 0 | BY219: 0 | BZ219: 0 | CA219: 0 | CB219: 0 | CD219: 17 | CE219: 17
BA220: 5 | BB220: Electrocution | BC220: 0 | BD220: 0 | BE220: 5 | BF220: 10 | BG220: 6 | BH220: 2 | BI220: 23 | BJ220: 23 | BL220: 0 | BM220: 0 | BN220: 2 | BO220: 0 | BP220: 0 | BQ220: 0 | BR220: 2 | BS220: 2 | BU220: 0 | BV220: 0 | BW220: 0 | BX220: 0 | BY220: 0 | BZ220: 0 | CA220: 0 | CB220: 0 | CD220: 25 | CE220: 25
BA221: 6 | BB221: Accidental Explosion (Total) (sum of 6.1 to 6.4) | BC221: 0 | BD221: 0 | BE221: 1 | BF221: 0 | BG221: 0 | BH221: 0 | BI221: 1 | BJ221: 1 | BL221: 0 | BM221: 0 | BN221: 0 | BO221: 0 | BP221: 0 | BQ221: 0 | BR221: 0 | BS221: 0 | BU221: 0 | BV221: 0 | BW221: 0 | BX221: 0 | BY221: 0 | BZ221: 0 | CA221: 0 | CB221: 0 | CD221: 1 | CE221: 1
BB222: 6.1 Domestic Gas Cylinder | BC222: 0 | BD222: 0 | BE222: 0 | BF222: 0 | BG222: 0 | BH222: 0 | BI222: 0 | BJ222: 0 | BL222: 0 | BM222: 0 | BN222: 0 | BO222: 0 | BP222: 0 | BQ222: 0 | BR222: 0 | BS222: 0 | BU222: 0 | BV222: 0 | BW222: 0 | BX222: 0 | BY222: 0 | BZ222: 0 | CA222: 0 | CB222: 0 | CD222: 0 | CE222: 0
BB223: 6.2 Industrial Boiler/Gas cylinder explosion | BC223: 0 | BD223: 0 | BE223: 1 | BF223: 0 | BG223: 0 | BH223: 0 | BI223: 1 | BJ223: 1 | BL223: 0 | BM223: 0 | BN223: 0 | BO223: 0 | BP223: 0 | BQ223: 0 | BR223: 0 | BS223: 0 | BU223: 0 | BV223: 0 | BW223: 0 | BX223: 0 | BY223: 0 | BZ223: 0 | CA223: 0 | CB223: 0 | CD223: 1 | CE223: 1
BB224: 6.3 Ammunition explosion in Armed Forces/Police/CPMF | BC224: 0 | BD224: 0 | BE224: 0 | BF224: 0 | BG224: 0 | BH224: 0 | BI224: 0 | BJ224: 0 | BL224: 0 | BM224: 0 | BN224: 0 | BO224: 0 | BP224: 0 | BQ224: 0 | BR224: 0 | BS224: 0 | BU224: 0 | BV224: 0 | BW224: 0 | BX224: 0 | BY224: 0 | BZ224: 0 | CA224: 0 | CB224: 0 | CD224: 0 | CE224: 0
BB225: 6.4 Other | BC225: 0 | BD225: 0 | BE225: 0 | BF225: 0 | BG225: 0 | BH225: 0 | BI225: 0 | BJ225: 0 | BL225: 0 | BM225: 0 | BN225: 0 | BO225: 0 | BP225: 0 | BQ225: 0 | BR225: 0 | BS225: 0 | BU225: 0 | BV225: 0 | BW225: 0 | BX225: 0 | BY225: 0 | BZ225: 0 | CA225: 0 | CB225: 0 | CD225: 0 | CE225: 0
BA226: 7 | BB226: Falls (Total) (sum of 7.1 to 7.6) | BC226: 0 | BD226: 2 | BE226: 19 | BF226: 28 | BG226: 20 | BH226: 24 | BI226: 93 | BJ226: 93 | BL226: 1 | BM226: 0 | BN226: 0 | BO226: 1 | BP226: 1 | BQ226: 6 | BR226: 9 | BS226: 9 | BU226: 0 | BV226: 0 | BW226: 0 | BX226: 0 | BY226: 0 | BZ226: 0 | CA226: 0 | CB226: 0 | CD226: 102 | CE226: 102
BB227: 7.1 Fall from Height | BC227: 0 | BD227: 1 | BE227: 15 | BF227: 19 | BG227: 18 | BH227: 19 | BI227: 72 | BJ227: 72 | BL227: 1 | BM227: 0 | BN227: 0 | BO227: 1 | BP227: 1 | BQ227: 2 | BR227: 5 | BS227: 5 | BU227: 0 | BV227: 0 | BW227: 0 | BX227: 0 | BY227: 0 | BZ227: 0 | CA227: 0 | CB227: 0 | CD227: 77 | CE227: 77
BB228: 7.2 Fall from Vehicles (Automobile like Bus, Trucks, etc.) | BC228: 0 | BD228: 0 | BE228: 3 | BF228: 1 | BG228: 1 | BH228: 2 | BI228: 7 | BJ228: 7 | BL228: 0 | BM228: 0 | BN228: 0 | BO228: 0 | BP228: 0 | BQ228: 1 | BR228: 1 | BS228: 1 | BU228: 0 | BV228: 0 | BW228: 0 | BX228: 0 | BY228: 0 | BZ228: 0 | CA228: 0 | CB228: 0 | CD228: 8 | CE228: 8
BB229: 7.3 Fall into Manhole / Sewer | BC229: 0 | BD229: 1 | BE229: 0 | BF229: 0 | BG229: 0 | BH229: 0 | BI229: 1 | BJ229: 1 | BL229: 0 | BM229: 0 | BN229: 0 | BO229: 0 | BP229: 0 | BQ229: 0 | BR229: 0 | BS229: 0 | BU229: 0 | BV229: 0 | BW229: 0 | BX229: 0 | BY229: 0 | BZ229: 0 | CA229: 0 | CB229: 0 | CD229: 1 | CE229: 1
BB230: =C31 -> 7.4 Fall into Pit | BC230: 0 | BD230: 0 | BE230: 0 | BF230: 0 | BG230: 0 | BH230: 0 | BI230: 0 | BJ230: 0 | BL230: 0 | BM230: 0 | BN230: 0 | BO230: 0 | BP230: 0 | BQ230: 0 | BR230: 0 | BS230: 0 | BU230: 0 | BV230: 0 | BW230: 0 | BX230: 0 | BY230: 0 | BZ230: 0 | CA230: 0 | CB230: 0 | CD230: 0 | CE230: 0
BB231: =C32 -> 7.5 Fall into Borewell | BC231: 0 | BD231: 0 | BE231: 0 | BF231: 0 | BG231: 0 | BH231: 0 | BI231: 0 | BJ231: 0 | BL231: =M32 -> 0 | BM231: 0 | BN231: 0 | BO231: 0 | BP231: 0 | BQ231: 0 | BR231: 0 | BS231: 0 | BU231: =V32 -> 0 | BV231: 0 | BW231: 0 | BX231: 0 | BY231: 0 | BZ231: 0 | CA231: 0 | CB231: 0 | CD231: =AE32 -> 0 | CE231: =AF32 -> 0
BB232: =C33 -> 7.6 Others | BC232: =D33 -> 0 | BD232: =E33 -> 0 | BE232: =F33 -> 1 | BF232: =G33 -> 8 | BG232: =H33 -> 1 | BH232: =I33 -> 3 | BI232: =J33 -> 13 | BJ232: =K33 -> 13 | BK232: =L33 ->  | BL232: =M33 -> 0 | BM232: =N33 -> 0 | BN232: =O33 -> 0 | BO232: =P33 -> 0 | BP232: =Q33 -> 0 | BQ232: =R33 -> 3 | BR232: =S33 -> 3 | BS232: =T33 -> 3 | BT232: =U33 ->  | BU232: =V33 -> 0 | BV232: =W33 -> 0 | BW232: =X33 -> 0 | BX232: =Y33 -> 0 | BY232: =Z33 -> 0 | BZ232: =AA33 -> 0 | CA232: =AB33 -> 0 | CB232: =AC33 -> 0 | CC232: =AD33 ->  | CD232: =AE33 -> 16 | CE232: =AF33 -> 16 | CF232: =AG33 -> 
BA233: 8 | BB233: Factory/Machine accidents | BC233: 0 | BD233: 0 | BE233: 3 | BF233: 0 | BG233: 0 | BH233: 0 | BI233: 3 | BJ233: 3 | BL233: 0 | BM233: 0 | BN233: 0 | BO233: 0 | BP233: 0 | BQ233: 0 | BR233: 0 | BS233: 0 | BU233: 0 | BV233: 0 | BW233: 0 | BX233: 0 | BY233: 0 | BZ233: 0 | CA233: 0 | CB233: 0 | CD233: 3 | CE233: 3
BA234: 9 | BB234: Accidental Fire (Total) (sum of 9.1 to 9.5) | BC234: 0 | BD234: 0 | BE234: 0 | BF234: 0 | BG234: 0 | BH234: 3 | BI234: 3 | BJ234: 3 | BL234: 0 | BM234: 0 | BN234: 1 | BO234: 1 | BP234: 1 | BQ234: 3 | BR234: 6 | BS234: 6 | BU234: 0 | BV234: 0 | BW234: 0 | BX234: 0 | BY234: 0 | BZ234: 0 | CA234: 0 | CB234: 0 | CD234: 9 | CE234: 9
BB235: 9.1 Electrical Short circuit | BC235: 0 | BD235: 0 | BE235: 0 | BF235: 0 | BG235: 0 | BH235: 1 | BI235: 1 | BJ235: 1 | BL235: 0 | BM235: 0 | BN235: 0 | BO235: 0 | BP235: 0 | BQ235: 0 | BR235: 0 | BS235: 0 | BU235: 0 | BV235: 0 | BW235: 0 | BX235: 0 | BY235: 0 | BZ235: 0 | CA235: 0 | CB235: 0 | CD235: 1 | CE235: 1
BB236: 9.2 Riot/Agitation | BC236: 0 | BD236: 0 | BE236: 0 | BF236: 0 | BG236: 0 | BH236: 0 | BI236: 0 | BJ236: 0 | BL236: 0 | BM236: 0 | BN236: 0 | BO236: 0 | BP236: 0 | BQ236: 0 | BR236: 0 | BS236: 0 | BU236: 0 | BV236: 0 | BW236: 0 | BX236: 0 | BY236: 0 | BZ236: 0 | CA236: 0 | CB236: 0 | CD236: 0 | CE236: 0
BB237: 9.3 Fireworks | BC237: 0 | BD237: 0 | BE237: 0 | BF237: 0 | BG237: 0 | BH237: 0 | BI237: 0 | BJ237: 0 | BL237: 0 | BM237: 0 | BN237: 0 | BO237: 1 | BP237: 0 | BQ237: 0 | BR237: 1 | BS237: 1 | BU237: 0 | BV237: 0 | BW237: 0 | BX237: 0 | BY237: 0 | BZ237: 0 | CA237: 0 | CB237: 0 | CD237: 1 | CE237: 1
BB238: 9.4 Cooking Gas cylinder/stove burst | BC238: 0 | BD238: 0 | BE238: 0 | BF238: 0 | BG238: 0 | BH238: 2 | BI238: 2 | BJ238: 2 | BL238: 0 | BM238: 0 | BN238: 1 | BO238: 0 | BP238: 0 | BQ238: 0 | BR238: 1 | BS238: 1 | BU238: 0 | BV238: 0 | BW238: 0 | BX238: 0 | BY238: 0 | BZ238: 0 | CA238: 0 | CB238: 0 | CD238: 3 | CE238: 3
BB239: 9.5 Other Causes | BC239: 0 | BD239: 0 | BE239: 0 | BF239: 0 | BG239: 0 | BH239: 0 | BI239: 0 | BJ239: 0 | BL239: 0 | BM239: 0 | BN239: 0 | BO239: 0 | BP239: 1 | BQ239: 3 | BR239: 4 | BS239: 4 | BU239: 0 | BV239: 0 | BW239: 0 | BX239: 0 | BY239: 0 | BZ239: 0 | CA239: 0 | CB239: 0 | CD239: 4 | CE239: 4
BA240: 10 | BB240: Firearm | BC240: 1 | BD240: 0 | BE240: 0 | BF240: 0 | BG240: 0 | BH240: 0 | BI240: 1 | BJ240: 1 | BL240: 0 | BM240: 0 | BN240: 0 | BO240: 0 | BP240: 0 | BQ240: 0 | BR240: 0 | BS240: 0 | BU240: 0 | BV240: 0 | BW240: 0 | BX240: 0 | BY240: 0 | BZ240: 0 | CA240: 0 | CB240: 0 | CD240: 1 | CE240: 1
BA241: 11 | BB241: Mines or Quarry disaster | BC241: 0 | BD241: 0 | BE241: 0 | BF241: 0 | BG241: 0 | BH241: 0 | BI241: 0 | BJ241: 0 | BL241: 0 | BM241: 0 | BN241: 0 | BO241: 0 | BP241: 0 | BQ241: 0 | BR241: 0 | BS241: 0 | BU241: 0 | BV241: 0 | BW241: 0 | BX241: 0 | BY241: 0 | BZ241: 0 | CA241: 0 | CB241: 0 | CD241: 0 | CE241: 0
BA242: 12 | BB242: Traffic Accidents (Total) (sum of 12.1, 12.2 and 12.3) | BC242: 1 | BD242: 0 | BE242: 87 | BF242: 74 | BG242: 47 | BH242: 29 | BI242: 238 | BJ242: 238 | BL242: 0 | BM242: 0 | BN242: 7 | BO242: 10 | BP242: 9 | BQ242: 11 | BR242: 37 | BS242: 37 | BU242: 0 | BV242: 0 | BW242: 0 | BX242: 0 | BY242: 0 | BZ242: 0 | CA242: 0 | CB242: 0 | CD242: 275 | CE242: 275
BB243: 12.1 Road Accidents Total (sum of 12.1.1 and 12.1.2) | BC243: 1 | BD243: 0 | BE243: 72 | BF243: 55 | BG243: 38 | BH243: 27 | BI243: 193 | BJ243: 193 | BL243: 0 | BM243: 0 | BN243: 6 | BO243: 9 | BP243: 8 | BQ243: 10 | BR243: 33 | BS243: 33 | BU243: 0 | BV243: 0 | BW243: 0 | BX243: 0 | BY243: 0 | BZ243: 0 | CA243: 0 | CB243: 0 | CD243: 226 | CE243: 226
BB244: 12.1.1 Which led into Road Rage incidents | BC244: 0 | BD244: 0 | BE244: 0 | BF244: 0 | BG244: 0 | BH244: 0 | BI244: 0 | BJ244: 0 | BL244: 0 | BM244: 0 | BN244: 0 | BO244: 0 | BP244: 0 | BQ244: 0 | BR244: 0 | BS244: 0 | BU244: 0 | BV244: 0 | BW244: 0 | BX244: 0 | BY244: 0 | BZ244: 0 | CA244: 0 | CB244: 0 | CD244: 0 | CE244: 0
BB245: 12.1.2 Other Road Accidents | BC245: 1 | BD245: 0 | BE245: 72 | BF245: 55 | BG245: 38 | BH245: 27 | BI245: 193 | BJ245: 193 | BL245: 0 | BM245: 0 | BN245: 6 | BO245: 9 | BP245: 8 | BQ245: 10 | BR245: 33 | BS245: 33 | BU245: 0 | BV245: 0 | BW245: 0 | BX245: 0 | BY245: 0 | BZ245: 0 | CA245: 0 | CB245: 0 | CD245: 226 | CE245: 226
BB246: 12.2 Railway Crossing Accidents | BC246: 0 | BD246: 0 | BE246: 0 | BF246: 0 | BG246: 0 | BH246: 0 | BI246: 0 | BJ246: 0 | BL246: 0 | BM246: 0 | BN246: 0 | BO246: 0 | BP246: 0 | BQ246: 0 | BR246: 0 | BS246: 0 | BU246: 0 | BV246: 0 | BW246: 0 | BX246: 0 | BY246: 0 | BZ246: 0 | CA246: 0 | CB246: 0 | CD246: 0 | CE246: 0
BB247: 12.3 Railway Accidents | BC247: 0 | BD247: 0 | BE247: 15 | BF247: 19 | BG247: 9 | BH247: 2 | BI247: 45 | BJ247: 45 | BL247: 0 | BM247: 0 | BN247: 1 | BO247: 1 | BP247: 1 | BQ247: 1 | BR247: 4 | BS247: 4 | BU247: 0 | BV247: 0 | BW247: 0 | BX247: 0 | BY247: 0 | BZ247: 0 | CA247: 0 | CB247: 0 | CD247: 49 | CE247: 49
BA248: 13 | BB248: Stampede | BC248: 0 | BD248: 0 | BE248: 0 | BF248: 0 | BG248: 0 | BH248: 0 | BI248: 0 | BJ248: 0 | BL248: 0 | BM248: 0 | BN248: 0 | BO248: 0 | BP248: 0 | BQ248: 0 | BR248: 0 | BS248: 0 | BU248: 0 | BV248: 0 | BW248: 0 | BX248: 0 | BY248: 0 | BZ248: 0 | CA248: 0 | CB248: 0 | CD248: 0 | CE248: 0
BA249: 14 | BB249: Other Unnatural Causes | BC249: 0 | BD249: 0 | BE249: 1 | BF249: 0 | BG249: 4 | BH249: 0 | BI249: 5 | BJ249: 5 | BL249: 0 | BM249: 0 | BN249: 1 | BO249: 3 | BP249: 1 | BQ249: 0 | BR249: 5 | BS249: 5 | BU249: 0 | BV249: 0 | BW249: 0 | BX249: 0 | BY249: 0 | BZ249: 0 | CA249: 0 | CB249: 0 | CD249: 10 | CE249: 10
BA250: 15 | BB250: Causes not known | BC250: 0 | BD250: 0 | BE250: 1 | BF250: 8 | BG250: 3 | BH250: 1 | BI250: 13 | BJ250: 13 | BL250: 0 | BM250: 0 | BN250: 1 | BO250: 2 | BP250: 0 | BQ250: 0 | BR250: 3 | BS250: 3 | BU250: 0 | BV250: 0 | BW250: 0 | BX250: 0 | BY250: 0 | BZ250: 0 | CA250: 0 | CB250: 0 | CD250: 16 | CE250: 16
BA251: 16 | BB251: Total (sum of Sl. 1 to 15) | BC251: 3 | BD251: 6 | BE251: 152 | BF251: 155 | BG251: 103 | BH251: 70 | BI251: 489 | BJ251: 489 | BL251: 2 | BM251: 2 | BN251: 14 | BO251: 18 | BP251: 15 | BQ251: 22 | BR251: 73 | BS251: 73 | BU251: 0 | BV251: 0 | BW251: 0 | BX251: 0 | BY251: 0 | BZ251: 0 | CA251: 0 | CB251: 0 | CD251: 562 | CE251: 562
BA252: =A53 -> SL-12.1.1 ABNORMAL VARIATION IN "ROAD RAGE INCIDENTS" DATA | BC252: =D53 -> 
BA253: =A54 -> SL-14 ABNORMAL VARIATION IN "OTHER UNNATURAL CAUSES" DATA | BC253: =D54 ->  | CD253: =AE54 -> 
BA254: SL-15 ABNORMAL VARIATION IN "CAUSES NOT KNOWN" DATA
A500: StateUTCityCode | B500: DistrictCode | C500: CrimeCode | D500: DataYear | E500: Male_below 14 years | F500: Male_14 and above – below 18 years | G500: Male_18 and above – below 30 years | H500: Male_30 and above – below 45 years | I500: Male_45 and above – below 60 years | J500: Male_60 years & above | K500: Male_Total | L500: Female_below 14 years | M500: Female_14 and above – below 18 years | N500: Female_18 and above – below 30 years | O500: Female_30 and above – below 45 years | P500: Female_45 and above – below 60 years | Q500: Female_60 years & above | R500: Female_Total | S500: Trans_below 14 years | T500: Trans_14 and above – below 18 years | U500: Trans_18 and above – below 30 years | V500: Trans_30 and above – below 45 years | W500: Trans_45 and above – below 60 years | X500: Trans_60 years & above | Y500: Trans_Total | Z500: Grand Total
A501: =IF(ADSI!$G$12="",ADSI!$H$16,ADSI!$H$12) -> 6 | B501: =IF(ADSI!$G$12="",ADSI!$H$16,ADSI!$H$14) ->  | C501: =A9 -> 200 | D501: =ADSI!$K$12 -> 2021 | E501: =D9 -> 0 | F501: =E9 -> 0 | G501: 0 | H501: 0 | I501: 0 | J501: 0 | K501: 0 | L501: =M9 -> 0 | M501: =N9 -> 0 | N501: 0 | O501: 0 | P501: 0 | Q501: 0 | R501: 0 | S501: =V9 -> 0 | T501: =W9 -> 0 | U501: 0 | V501: 0 | W501: 0 | X501: 0 | Y501: 0 | Z501: =AE9 -> 0
A502: =IF(ADSI!$G$12="",ADSI!$H$16,ADSI!$H$12) -> 6 | B502: =IF(ADSI!$G$12="",ADSI!$H$16,ADSI!$H$14) ->  | C502: =A10 -> 201 | D502: =ADSI!$K$12 -> 2021 | E502: =D10 -> 0 | F502: 0 | G502: 0 | H502: 0 | I502: 0 | J502: 0 | K502: 0 | L502: =M10 -> 0 | M502: 0 | N502: 0 | O502: 0 | P502: 0 | Q502: 0 | R502: 0 | S502: =V10 -> 0 | T502: =W10 -> 0 | U502: =X10 -> 0 | V502: =Y10 -> 0 | W502: =Z10 -> 0 | X502: =AA10 -> 0 | Y502: =AB10 -> 0 | Z502: =AE10 -> 0
A503: =IF(ADSI!$G$12="",ADSI!$H$16,ADSI!$H$12) -> 6 | B503: =IF(ADSI!$G$12="",ADSI!$H$16,ADSI!$H$14) ->  | C503: 202 | D503: =ADSI!$K$12 -> 2021 | E503: =D11 -> 0 | F503: 0 | G503: 1 | H503: 2 | I503: 2 | J503: 0 | K503: 5 | L503: =M11 -> 0 | M503: 0 | N503: 0 | O503: 0 | P503: 0 | Q503: 0 | R503: 0 | S503: 0 | T503: 0 | U503: 0 | V503: 0 | W503: 0 | X503: 0 | Y503: 0 | Z503: 5
A504: =IF(ADSI!$G$12="",ADSI!$H$16,ADSI!$H$12) -> 6 | B504: =IF(ADSI!$G$12="",ADSI!$H$16,ADSI!$H$14) ->  | C504: 203 | D504: =ADSI!$K$12 -> 2021 | E504: =D12 -> 0 | F504: 0 | G504: 1 | H504: 0 | I504: 0 | J504: 0 | K504: 1 | L504: =M12 -> 0 | M504: 0 | N504: 0 | O504: 0 | P504: 0 | Q504: 0 | R504: 0 | S504: 0 | T504: 0 | U504: 0 | V504: 0 | W504: 0 | X504: 0 | Y504: 0 | Z504: 1
A505: =IF(ADSI!$G$12="",ADSI!$H$16,ADSI!$H$12) -> 6 | B505: =IF(ADSI!$G$12="",ADSI!$H$16,ADSI!$H$14) ->  | C505: 204 | D505: =ADSI!$K$12 -> 2021 | E505: =D13 -> 0 | F505: 0 | G505: 0 | H505: 0 | I505: 0 | J505: 0 | K505: 0 | L505: =M13 -> 0 | M505: 0 | N505: 0 | O505: 0 | P505: 0 | Q505: 0 | R505: 0 | S505: 0 | T505: 0 | U505: 0 | V505: 0 | W505: 0 | X505: 0 | Y505: 0 | Z505: 0
A506: =IF(ADSI!$G$12="",ADSI!$H$16,ADSI!$H$12) -> 6 | B506: =IF(ADSI!$G$12="",ADSI!$H$16,ADSI!$H$14) ->  | C506: 205 | D506: =ADSI!$K$12 -> 2021 | E506: =D14 -> 0 | F506: 0 | G506: 0 | H506: 0 | I506: 0 | J506: 0 | K506: 0 | L506: =M14 -> 0 | M506: 0 | N506: 0 | O506: 0 | P506: 0 | Q506: 0 | R506: 0 | S506: 0 | T506: 0 | U506: 0 | V506: 0 | W506: 0 | X506: 0 | Y506: 0 | Z506: 0
A507: =IF(ADSI!$G$12="",ADSI!$H$16,ADSI!$H$12) -> 6 | B507: =IF(ADSI!$G$12="",ADSI!$H$16,ADSI!$H$14) ->  | C507: 206 | D507: =ADSI!$K$12 -> 2021 | E507: =D15 -> 0 | F507: 0 | G507: 0 | H507: 0 | I507: 0 | J507: 0 | K507: 0 | L507: =M15 -> 0 | M507: 0 | N507: 0 | O507: 0 | P507: 0 | Q507: 0 | R507: 0 | S507: 0 | T507: 0 | U507: 0 | V507: 0 | W507: 0 | X507: 0 | Y507: 0 | Z507: 0
A508: =IF(ADSI!$G$12="",ADSI!$H$16,ADSI!$H$12) -> 6 | B508: =IF(ADSI!$G$12="",ADSI!$H$16,ADSI!$H$14) ->  | C508: 207 | D508: =ADSI!$K$12 -> 2021 | E508: =D16 -> 0 | F508: 0 | G508: 0 | H508: 2 | I508: 2 | J508: 0 | K508: 4 | L508: =M16 -> 0 | M508: 0 | N508: 0 | O508: 0 | P508: 0 | Q508: 0 | R508: 0 | S508: 0 | T508: 0 | U508: 0 | V508: 0 | W508: 0 | X508: 0 | Y508: 0 | Z508: 4
A509: =IF(ADSI!$G$12="",ADSI!$H$16,ADSI!$H$12) -> 6 | B509: =IF(ADSI!$G$12="",ADSI!$H$16,ADSI!$H$14) ->  | C509: 208 | D509: =ADSI!$K$12 -> 2021 | E509: =D17 -> 1 | F509: 4 | G509: 34 | H509: 33 | I509: 21 | J509: 11 | K509: 104 | L509: =M17 -> 1 | M509: 2 | N509: 2 | O509: 1 | P509: 3 | Q509: 2 | R509: 11 | S509: 0 | T509: 0 | U509: 0 | V509: 0 | W509: 0 | X509: 0 | Y509: 0 | Z509: 115
A510: =IF(ADSI!$G$12="",ADSI!$H$16,ADSI!$H$12) -> 6 | B510: =IF(ADSI!$G$12="",ADSI!$H$16,ADSI!$H$14) ->  | C510: 209 | D510: =ADSI!$K$12 -> 2021 | E510: =D18 -> 0 | F510: 0 | G510: 0 | H510: 0 | I510: 0 | J510: 0 | K510: 0 | L510: =M18 -> 0 | M510: 0 | N510: 0 | O510: 0 | P510: 0 | Q510: 0 | R510: 0 | S510: 0 | T510: 0 | U510: 0 | V510: 0 | W510: 0 | X510: 0 | Y510: 0 | Z510: 0
A511: =IF(ADSI!$G$12="",ADSI!$H$16,ADSI!$H$12) -> 6 | B511: =IF(ADSI!$G$12="",ADSI!$H$16,ADSI!$H$14) ->  | C511: 210 | D511: =ADSI!$K$12 -> 2021 | E511: =D19 -> 1 | F511: 4 | G511: 26 | H511: 26 | I511: 20 | J511: 11 | K511: 88 | L511: =M19 -> 1 | M511: 2 | N511: 1 | O511: 1 | P511: 3 | Q511: 2 | R511: 10 | S511: 0 | T511: 0 | U511: 0 | V511: 0 | W511: 0 | X511: 0 | Y511: 0 | Z511: 98
A512: =IF(ADSI!$G$12="",ADSI!$H$16,ADSI!$H$12) -> 6 | B512: =IF(ADSI!$G$12="",ADSI!$H$16,ADSI!$H$14) ->  | C512: 211 | D512: =ADSI!$K$12 -> 2021 | E512: =D20 -> 0 | F512: 0 | G512: 8 | H512: 7 | I512: 1 | J512: 0 | K512: 16 | L512: =M20 -> 0 | M512: 0 | N512: 1 | O512: 0 | P512: 0 | Q512: 0 | R512: 1 | S512: 0 | T512: 0 | U512: 0 | V512: 0 | W512: 0 | X512: 0 | Y512: 0 | Z512: 17
A513: =IF(ADSI!$G$12="",ADSI!$H$16,ADSI!$H$12) -> 6 | B513: =IF(ADSI!$G$12="",ADSI!$H$16,ADSI!$H$14) ->  | C513: 212 | D513: =ADSI!$K$12 -> 2021 | E513: =D21 -> 0 | F513: 0 | G513: 5 | H513: 10 | I513: 6 | J513: 2 | K513: 23 | L513: =M21 -> 0 | M513: 0 | N513: 2 | O513: 0 | P513: 0 | Q513: 0 | R513: 2 | S513: 0 | T513: 0 | U513: 0 | V513: 0 | W513: 0 | X513: 0 | Y513: 0 | Z513: 25
A514: =IF(ADSI!$G$12="",ADSI!$H$16,ADSI!$H$12) -> 6 | B514: =IF(ADSI!$G$12="",ADSI!$H$16,ADSI!$H$14) ->  | C514: 213 | D514: =ADSI!$K$12 -> 2021 | E514: =D22 -> 0 | F514: 0 | G514: 1 | H514: 0 | I514: 0 | J514: 0 | K514: 1 | L514: =M22 -> 0 | M514: 0 | N514: 0 | O514: 0 | P514: 0 | Q514: 0 | R514: 0 | S514: 0 | T514: 0 | U514: 0 | V514: 0 | W514: 0 | X514: 0 | Y514: 0 | Z514: 1
A515: =IF(ADSI!$G$12="",ADSI!$H$16,ADSI!$H$12) -> 6 | B515: =IF(ADSI!$G$12="",ADSI!$H$16,ADSI!$H$14) ->  | C515: 214 | D515: =ADSI!$K$12 -> 2021 | E515: =D23 -> 0 | F515: 0 | G515: 0 | H515: 0 | I515: 0 | J515: 0 | K515: 0 | L515: =M23 -> 0 | M515: 0 | N515: 0 | O515: 0 | P515: 0 | Q515: 0 | R515: 0 | S515: 0 | T515: 0 | U515: 0 | V515: 0 | W515: 0 | X515: 0 | Y515: 0 | Z515: 0
A516: =IF(ADSI!$G$12="",ADSI!$H$16,ADSI!$H$12) -> 6 | B516: =IF(ADSI!$G$12="",ADSI!$H$16,ADSI!$H$14) ->  | C516: 215 | D516: =ADSI!$K$12 -> 2021 | E516: =D24 -> 0 | F516: 0 | G516: 1 | H516: 0 | I516: 0 | J516: 0 | K516: 1 | L516: =M24 -> 0 | M516: 0 | N516: 0 | O516: 0 | P516: 0 | Q516: 0 | R516: 0 | S516: 0 | T516: 0 | U516: 0 | V516: 0 | W516: 0 | X516: 0 | Y516: 0 | Z516: 1
A517: =IF(ADSI!$G$12="",ADSI!$H$16,ADSI!$H$12) -> 6 | B517: =IF(ADSI!$G$12="",ADSI!$H$16,ADSI!$H$14) ->  | C517: 216 | D517: =ADSI!$K$12 -> 2021 | E517: =D25 -> 0 | F517: 0 | G517: 0 | H517: 0 | I517: 0 | J517: 0 | K517: 0 | L517: =M25 -> 0 | M517: 0 | N517: 0 | O517: 0 | P517: 0 | Q517: 0 | R517: 0 | S517: 0 | T517: 0 | U517: 0 | V517: 0 | W517: 0 | X517: 0 | Y517: 0 | Z517: 0
A518: =IF(ADSI!$G$12="",ADSI!$H$16,ADSI!$H$12) -> 6 | B518: =IF(ADSI!$G$12="",ADSI!$H$16,ADSI!$H$14) ->  | C518: 217 | D518: =ADSI!$K$12 -> 2021 | E518: =D26 -> 0 | F518: 0 | G518: 0 | H518: 0 | I518: 0 | J518: 0 | K518: 0 | L518: =M26 -> 0 | M518: 0 | N518: 0 | O518: 0 | P518: 0 | Q518: 0 | R518: 0 | S518: 0 | T518: 0 | U518: 0 | V518: 0 | W518: 0 | X518: 0 | Y518: 0 | Z518: 0
A519: =IF(ADSI!$G$12="",ADSI!$H$16,ADSI!$H$12) -> 6 | B519: =IF(ADSI!$G$12="",ADSI!$H$16,ADSI!$H$14) ->  | C519: 218 | D519: =ADSI!$K$12 -> 2021 | E519: =D27 -> 0 | F519: 2 | G519: 19 | H519: 28 | I519: 20 | J519: 24 | K519: 93 | L519: =M27 -> 1 | M519: 0 | N519: 0 | O519: 1 | P519: 1 | Q519: 6 | R519: 9 | S519: 0 | T519: 0 | U519: 0 | V519: 0 | W519: 0 | X519: 0 | Y519: 0 | Z519: 102
A520: =IF(ADSI!$G$12="",ADSI!$H$16,ADSI!$H$12) -> 6 | B520: =IF(ADSI!$G$12="",ADSI!$H$16,ADSI!$H$14) ->  | C520: 219 | D520: =ADSI!$K$12 -> 2021 | E520: =D28 -> 0 | F520: 1 | G520: 15 | H520: 19 | I520: 18 | J520: 19 | K520: 72 | L520: =M28 -> 1 | M520: 0 | N520: 0 | O520: 1 | P520: 1 | Q520: 2 | R520: 5 | S520: 0 | T520: 0 | U520: 0 | V520: 0 | W520: 0 | X520: 0 | Y520: 0 | Z520: 77
A521: =IF(ADSI!$G$12="",ADSI!$H$16,ADSI!$H$12) -> 6 | B521: =IF(ADSI!$G$12="",ADSI!$H$16,ADSI!$H$14) ->  | C521: 220 | D521: =ADSI!$K$12 -> 2021 | E521: =D29 -> 0 | F521: 0 | G521: 3 | H521: 1 | I521: 1 | J521: 2 | K521: 7 | L521: =M29 -> 0 | M521: 0 | N521: 0 | O521: 0 | P521: 0 | Q521: 1 | R521: 1 | S521: 0 | T521: 0 | U521: 0 | V521: 0 | W521: 0 | X521: 0 | Y521: 0 | Z521: 8
A522: =IF(ADSI!$G$12="",ADSI!$H$16,ADSI!$H$12) -> 6 | B522: =IF(ADSI!$G$12="",ADSI!$H$16,ADSI!$H$14) ->  | C522: 221 | D522: =ADSI!$K$12 -> 2021 | E522: =D30 -> 0 | F522: 1 | G522: 0 | H522: 0 | I522: 0 | J522: 0 | K522: 1 | L522: =M30 -> 0 | M522: 0 | N522: 0 | O522: 0 | P522: 0 | Q522: 0 | R522: 0 | S522: 0 | T522: 0 | U522: 0 | V522: 0 | W522: 0 | X522: 0 | Y522: 0 | Z522: 1
A523: =IF(ADSI!$G$12="",ADSI!$H$16,ADSI!$H$12) -> 6 | B523: =IF(ADSI!$G$12="",ADSI!$H$16,ADSI!$H$14) ->  | C523: =A31 -> 222 | D523: =ADSI!$K$12 -> 2021 | E523: =D31 -> 0 | F523: 0 | G523: 0 | H523: 0 | I523: 0 | J523: 0 | K523: 0 | L523: =M31 -> 0 | M523: 0 | N523: 0 | O523: 0 | P523: 0 | Q523: 0 | R523: 0 | S523: 0 | T523: 0 | U523: 0 | V523: 0 | W523: 0 | X523: 0 | Y523: 0 | Z523: 0
A524: =IF(ADSI!$G$12="",ADSI!$H$16,ADSI!$H$12) -> 6 | B524: =IF(ADSI!$G$12="",ADSI!$H$16,ADSI!$H$14) ->  | C524: 223 | D524: =ADSI!$K$12 -> 2021 | E524: =D32 -> 0 | F524: 0 | G524: 0 | H524: 0 | I524: 0 | J524: 0 | K524: 0 | L524: =M32 -> 0 | M524: 0 | N524: 0 | O524: 0 | P524: 0 | Q524: 0 | R524: 0 | S524: 0 | T524: 0 | U524: 0 | V524: 0 | W524: 0 | X524: 0 | Y524: 0 | Z524: 0
A525: =IF(ADSI!$G$12="",ADSI!$H$16,ADSI!$H$12) -> 6 | B525: =IF(ADSI!$G$12="",ADSI!$H$16,ADSI!$H$14) ->  | C525: 224 | D525: =ADSI!$K$12 -> 2021 | E525: =D33 -> 0 | F525: 0 | G525: 1 | H525: 8 | I525: 1 | J525: 3 | K525: 13 | L525: =M33 -> 0 | M525: 0 | N525: 0 | O525: 0 | P525: 0 | Q525: 3 | R525: 3 | S525: 0 | T525: 0 | U525: 0 | V525: 0 | W525: 0 | X525: 0 | Y525: 0 | Z525: 16
A526: =IF(ADSI!$G$12="",ADSI!$H$16,ADSI!$H$12) -> 6 | B526: =IF(ADSI!$G$12="",ADSI!$H$16,ADSI!$H$14) ->  | C526: =A34 -> 225 | D526: =ADSI!$K$12 -> 2021 | E526: =D34 -> 0 | F526: 0 | G526: 3 | H526: 0 | I526: 0 | J526: 0 | K526: 3 | L526: =M34 -> 0 | M526: 0 | N526: 0 | O526: 0 | P526: 0 | Q526: 0 | R526: 0 | S526: 0 | T526: 0 | U526: 0 | V526: 0 | W526: 0 | X526: 0 | Y526: 0 | Z526: 3
A527: =IF(ADSI!$G$12="",ADSI!$H$16,ADSI!$H$12) -> 6 | B527: =IF(ADSI!$G$12="",ADSI!$H$16,ADSI!$H$14) ->  | C527: 226 | D527: =ADSI!$K$12 -> 2021 | E527: =D35 -> 0 | F527: 0 | G527: 0 | H527: 0 | I527: 0 | J527: 3 | K527: 3 | L527: =M35 -> 0 | M527: 0 | N527: 1 | O527: 1 | P527: 1 | Q527: 3 | R527: 6 | S527: 0 | T527: 0 | U527: 0 | V527: 0 | W527: 0 | X527: 0 | Y527: 0 | Z527: 9
A528: =IF(ADSI!$G$12="",ADSI!$H$16,ADSI!$H$12) -> 6 | B528: =IF(ADSI!$G$12="",ADSI!$H$16,ADSI!$H$14) ->  | C528: =A36 -> 227 | D528: =ADSI!$K$12 -> 2021 | E528: =D36 -> 0 | F528: 0 | G528: 0 | H528: 0 | I528: 0 | J528: 1 | K528: 1 | L528: =M36 -> 0 | M528: 0 | N528: 0 | O528: 0 | P528: 0 | Q528: 0 | R528: 0 | S528: 0 | T528: 0 | U528: 0 | V528: 0 | W528: 0 | X528: 0 | Y528: 0 | Z528: 1
A529: =IF(ADSI!$G$12="",ADSI!$H$16,ADSI!$H$12) -> 6 | B529: =IF(ADSI!$G$12="",ADSI!$H$16,ADSI!$H$14) ->  | C529: 228 | D529: =ADSI!$K$12 -> 2021 | E529: =D37 -> 0 | F529: 0 | G529: 0 | H529: 0 | I529: 0 | J529: 0 | K529: 0 | L529: =M37 -> 0 | M529: 0 | N529: 0 | O529: 0 | P529: 0 | Q529: 0 | R529: 0 | S529: 0 | T529: 0 | U529: 0 | V529: 0 | W529: 0 | X529: 0 | Y529: 0 | Z529: 0
A530: =IF(ADSI!$G$12="",ADSI!$H$16,ADSI!$H$12) -> 6 | B530: =IF(ADSI!$G$12="",ADSI!$H$16,ADSI!$H$14) ->  | C530: 229 | D530: =ADSI!$K$12 -> 2021 | E530: =D38 -> 0 | F530: 0 | G530: 0 | H530: 0 | I530: 0 | J530: 0 | K530: 0 | L530: =M38 -> 0 | M530: 0 | N530: 0 | O530: 1 | P530: 0 | Q530: 0 | R530: 1 | S530: 0 | T530: 0 | U530: 0 | V530: 0 | W530: 0 | X530: 0 | Y530: 0 | Z530: 1
A531: =IF(ADSI!$G$12="",ADSI!$H$16,ADSI!$H$12) -> 6 | B531: =IF(ADSI!$G$12="",ADSI!$H$16,ADSI!$H$14) ->  | C531: =A39 -> 230 | D531: =ADSI!$K$12 -> 2021 | E531: =D39 -> 0 | F531: 0 | G531: 0 | H531: 0 | I531: 0 | J531: 2 | K531: 2 | L531: =M39 -> 0 | M531: 0 | N531: 1 | O531: 0 | P531: 0 | Q531: 0 | R531: 1 | S531: 0 | T531: 0 | U531: 0 | V531: 0 | W531: 0 | X531: 0 | Y531: 0 | Z531: 3
A532: =IF(ADSI!$G$12="",ADSI!$H$16,ADSI!$H$12) -> 6 | B532: =IF(ADSI!$G$12="",ADSI!$H$16,ADSI!$H$14) ->  | C532: 231 | D532: =ADSI!$K$12 -> 2021 | E532: =D40 -> 0 | F532: 0 | G532: 0 | H532: 0 | I532: 0 | J532: 0 | K532: 0 | L532: =M40 -> 0 | M532: 0 | N532: 0 | O532: 0 | P532: 1 | Q532: 3 | R532: 4 | S532: 0 | T532: 0 | U532: 0 | V532: 0 | W532: 0 | X532: 0 | Y532: 0 | Z532: 4
A533: =IF(ADSI!$G$12="",ADSI!$H$16,ADSI!$H$12) -> 6 | B533: =IF(ADSI!$G$12="",ADSI!$H$16,ADSI!$H$14) ->  | C533: 232 | D533: =ADSI!$K$12 -> 2021 | E533: =D41 -> 1 | F533: 0 | G533: 0 | H533: 0 | I533: 0 | J533: 0 | K533: 1 | L533: =M41 -> 0 | M533: 0 | N533: 0 | O533: 0 | P533: 0 | Q533: 0 | R533: 0 | S533: 0 | T533: 0 | U533: 0 | V533: 0 | W533: 0 | X533: 0 | Y533: 0 | Z533: 1
A534: =IF(ADSI!$G$12="",ADSI!$H$16,ADSI!$H$12) -> 6 | B534: =IF(ADSI!$G$12="",ADSI!$H$16,ADSI!$H$14) ->  | C534: =A42 -> 233 | D534: =ADSI!$K$12 -> 2021 | E534: =D42 -> 0 | F534: 0 | G534: 0 | H534: 0 | I534: 0 | J534: 0 | K534: 0 | L534: =M42 -> 0 | M534: 0 | N534: 0 | O534: 0 | P534: 0 | Q534: 0 | R534: 0 | S534: 0 | T534: 0 | U534: 0 | V534: 0 | W534: 0 | X534: 0 | Y534: 0 | Z534: 0
A535: =IF(ADSI!$G$12="",ADSI!$H$16,ADSI!$H$12) -> 6 | B535: =IF(ADSI!$G$12="",ADSI!$H$16,ADSI!$H$14) ->  | C535: 234 | D535: =ADSI!$K$12 -> 2021 | E535: =D43 -> 1 | F535: 0 | G535: 87 | H535: 74 | I535: 47 | J535: 29 | K535: 238 | L535: =M43 -> 0 | M535: 0 | N535: 7 | O535: 10 | P535: 9 | Q535: 11 | R535: 37 | S535: 0 | T535: 0 | U535: 0 | V535: 0 | W535: 0 | X535: 0 | Y535: 0 | Z535: 275
A536: =IF(ADSI!$G$12="",ADSI!$H$16,ADSI!$H$12) -> 6 | B536: =IF(ADSI!$G$12="",ADSI!$H$16,ADSI!$H$14) ->  | C536: 235 | D536: =ADSI!$K$12 -> 2021 | E536: =D44 -> 1 | F536: 0 | G536: 72 | H536: 55 | I536: 38 | J536: 27 | K536: 193 | L536: =M44 -> 0 | M536: 0 | N536: 6 | O536: 9 | P536: 8 | Q536: 10 | R536: 33 | S536: 0 | T536: 0 | U536: 0 | V536: 0 | W536: 0 | X536: 0 | Y536: 0 | Z536: 226
A537: =IF(ADSI!$G$12="",ADSI!$H$16,ADSI!$H$12) -> 6 | B537: =IF(ADSI!$G$12="",ADSI!$H$16,ADSI!$H$14) ->  | C537: 236 | D537: =ADSI!$K$12 -> 2021 | E537: =D45 -> 0 | F537: 0 | G537: 0 | H537: 0 | I537: 0 | J537: 0 | K537: 0 | L537: =M45 -> 0 | M537: 0 | N537: 0 | O537: 0 | P537: 0 | Q537: 0 | R537: 0 | S537: 0 | T537: 0 | U537: 0 | V537: 0 | W537: 0 | X537: 0 | Y537: 0 | Z537: 0
A538: =IF(ADSI!$G$12="",ADSI!$H$16,ADSI!$H$12) -> 6 | B538: =IF(ADSI!$G$12="",ADSI!$H$16,ADSI!$H$14) ->  | C538: 237 | D538: =ADSI!$K$12 -> 2021 | E538: =D46 -> 1 | F538: 0 | G538: 72 | H538: 55 | I538: 38 | J538: 27 | K538: 193 | L538: =M46 -> 0 | M538: 0 | N538: 6 | O538: 9 | P538: 8 | Q538: 10 | R538: 33 | S538: 0 | T538: 0 | U538: 0 | V538: 0 | W538: 0 | X538: 0 | Y538: 0 | Z538: 226
A539: =IF(ADSI!$G$12="",ADSI!$H$16,ADSI!$H$12) -> 6 | B539: =IF(ADSI!$G$12="",ADSI!$H$16,ADSI!$H$14) ->  | C539: 238 | D539: =ADSI!$K$12 -> 2021 | E539: =D47 -> 0 | F539: 0 | G539: 0 | H539: 0 | I539: 0 | J539: 0 | K539: 0 | L539: =M47 -> 0 | M539: 0 | N539: 0 | O539: 0 | P539: 0 | Q539: 0 | R539: 0 | S539: 0 | T539: 0 | U539: 0 | V539: 0 | W539: 0 | X539: 0 | Y539: 0 | Z539: 0
A540: =IF(ADSI!$G$12="",ADSI!$H$16,ADSI!$H$12) -> 6 | B540: =IF(ADSI!$G$12="",ADSI!$H$16,ADSI!$H$14) ->  | C540: 239 | D540: =ADSI!$K$12 -> 2021 | E540: =D48 -> 0 | F540: 0 | G540: 15 | H540: 19 | I540: 9 | J540: 2 | K540: 45 | L540: =M48 -> 0 | M540: 0 | N540: 1 | O540: 1 | P540: 1 | Q540: 1 | R540: 4 | S540: 0 | T540: 0 | U540: 0 | V540: 0 | W540: 0 | X540: 0 | Y540: 0 | Z540: 49
A541: =IF(ADSI!$G$12="",ADSI!$H$16,ADSI!$H$12) -> 6 | B541: =IF(ADSI!$G$12="",ADSI!$H$16,ADSI!$H$14) ->  | C541: 240 | D541: =ADSI!$K$12 -> 2021 | E541: =D49 -> 0 | F541: 0 | G541: 0 | H541: 0 | I541: 0 | J541: 0 | K541: 0 | L541: =M49 -> 0 | M541: 0 | N541: 0 | O541: 0 | P541: 0 | Q541: 0 | R541: 0 | S541: 0 | T541: 0 | U541: 0 | V541: 0 | W541: 0 | X541: 0 | Y541: 0 | Z541: 0
A542: =IF(ADSI!$G$12="",ADSI!$H$16,ADSI!$H$12) -> 6 | B542: =IF(ADSI!$G$12="",ADSI!$H$16,ADSI!$H$14) ->  | C542: 241 | D542: =ADSI!$K$12 -> 2021 | E542: =D50 -> 0 | F542: 0 | G542: 1 | H542: 0 | I542: 4 | J542: 0 | K542: 5 | L542: =M50 -> 0 | M542: 0 | N542: 1 | O542: 3 | P542: 1 | Q542: 0 | R542: 5 | S542: 0 | T542: 0 | U542: 0 | V542: 0 | W542: 0 | X542: 0 | Y542: 0 | Z542: 10
A543: =IF(ADSI!$G$12="",ADSI!$H$16,ADSI!$H$12) -> 6 | B543: =IF(ADSI!$G$12="",ADSI!$H$16,ADSI!$H$14) ->  | C543: 242 | D543: =ADSI!$K$12 -> 2021 | E543: =D51 -> 0 | F543: 0 | G543: 1 | H543: 8 | I543: 3 | J543: 1 | K543: 13 | L543: =M51 -> 0 | M543: 0 | N543: 1 | O543: 2 | P543: 0 | Q543: 0 | R543: 3 | S543: 0 | T543: 0 | U543: 0 | V543: 0 | W543: 0 | X543: 0 | Y543: 0 | Z543: 16
A544: =IF(ADSI!$G$12="",ADSI!$H$16,ADSI!$H$12) -> 6 | B544: =IF(ADSI!$G$12="",ADSI!$H$16,ADSI!$H$14) ->  | C544: 270 | D544: =ADSI!$K$12 -> 2021 | E544: =D52 -> 3 | F544: 6 | G544: 152 | H544: 155 | I544: 103 | J544: 70 | K544: 489 | L544: =M52 -> 2 | M544: 2 | N544: 14 | O544: 18 | P544: 15 | Q544: 22 | R544: 73 | S544: 0 | T544: 0 | U544: 0 | V544: 0 | W544: 0 | X544: 0 | Y544: 0 | Z544: 562

Sheet P-IV
A1: =ADSI!$B$1 -> Goa, , ADSI-2021
A2: Errors | C2: =COUNTIF(E8:E28,FALSE) -> 0
A3: Proforma–IV
A4: Profile of Accidents due to Other than Un-natural Causes
A5: Code | B5: Sl. No. | C5: Causes | D5: No. of Cases | E5: VALIDATION WITH NUMBER OF CASES | F5: No. of Persons Injured | J5: No. of Persons Died
F6: Male | G6: Female | H6: Transgender | I6: Total (sum of (4) to (6)) | J6: Male | K6: Female | L6: Transgender | M6: Total (sum of (8) to (10))
B7: (1) | C7: (2) | D7: (3) | F7: (4) | G7: (5) | H7: (6) | I7: (7) | J7: (8) | K7: (9) | L7: (10) | M7: (11)
A8: 300 | B8: 1 | C8: Sudden Deaths (Total) (sum of 1.1 to 1.3) | D8: =SUM(D9:D11) -> 19 | E8: =IF(AND(OR(I8>0,M8>0),D8=0),FALSE,"") ->  | F8: =SUM(F9:F11) -> 0 | G8: 0 | H8: 0 | I8: =SUM(F8:H8) -> 0 | J8: 17 | K8: 2 | L8: 0 | M8: =SUM(J8:L8) -> 19
A9: 301 | C9: 1.1 Industrial Accidents | D9: 0 | E9: =IF(AND(OR(I9>0,M9>0),D9=0),FALSE,"") ->  | F9: 0 | G9: 0 | H9: 0 | I9: =SUM(F9:H9) -> 0 | J9: 0 | K9: 0 | L9: 0 | M9: =SUM(J9:L9) -> 0
A10: 302 | C10: 1.2 Heart Attack | D10: 10 | F10: 0 | G10: 0 | H10: 0 | I10: 0 | J10: 9 | K10: 1 | L10: 0 | M10: 10
A11: 303 | C11: 1.3 Others | D11: 9 | F11: 0 | G11: 0 | H11: 0 | I11: 0 | J11: 8 | K11: 1 | L11: 0 | M11: 9
A12: 304 | B12: 2 | C12: Deaths of Women during Pregnancy (Total) (sum of 2.1 and 2.2) | D12: =SUM(D13:D14) -> 0 | F12: =SUM(F13:F14) -> 0 | G12: 0 | H12: 0 | I12: 0 | J12: 0 | K12: 0 | L12: 0 | M12: 0
A13: 305 | C13: 2.1 Due to Abortions | D13: 0 | F13: 0 | G13: 0 | H13: 0 | I13: 0 | J13: 0 | K13: 0 | L13: 0 | M13: 0
A14: 306 | C14: 2.2 Due to Other accidents during Pregnancy | D14: 0 | F14: 0 | G14: 0 | H14: 0 | I14: 0 | J14: 0 | K14: 0 | L14: 0 | M14: 0
A15: 307 | B15: 3 | C15: Deaths Due to consumption of Illicit/Spurious Liquor | D15: 0 | F15: 0 | G15: 0 | H15: 0 | I15: 0 | J15: 0 | K15: 0 | L15: 0 | M15: 0
A16: 308 | B16: 4 | C16: Killed by animals | D16: 2 | F16: 0 | G16: 0 | H16: 0 | I16: 0 | J16: 1 | K16: 1 | L16: 0 | M16: 2
A17: 309 | B17: 5 | C17: Poisoning (Total) (sum of 5.1 to 5.3 & 5.4 to 5.6) | D17: =SUM(D18:D20,D23:D25) -> 6 | F17: =SUM(F18:F20,F23:F25) -> 0 | G17: 0 | H17: 0 | I17: 0 | J17: 4 | K17: 2 | L17: 0 | M17: 6
A18: 310 | C18: 5.1 Food Poisoning | D18: 1 | F18: 0 | G18: 0 | H18: 0 | I18: 0 | J18: 1 | K18: 0 | L18: 0 | M18: 1
A19: 311 | C19: 5.2 Accidental intake of Insecticides/Pesticides | D19: 3 | F19: 0 | G19: 0 | H19: 0 | I19: 0 | J19: 2 | K19: 1 | L19: 0 | M19: 3
A20: 312 | C20: 5.3 Poisonous Gases (Total) (sum of 5.3.1 & 5.3.2) | D20: =SUM(D21:D22) -> 0 | F20: =SUM(F21:F22) -> 0 | G20: 0 | H20: 0 | I20: 0 | J20: 0 | K20: 0 | L20: 0 | M20: 0
A21: 313 | C21: 5.3.1 Carbon Monoxide (CO) Gas | D21: 0 | F21: 0 | G21: 0 | H21: 0 | I21: 0 | J21: 0 | K21: 0 | L21: 0 | M21: 0
A22: 314 | C22: 5.3.2 Other poisonous Gases | D22: 0 | F22: 0 | G22: 0 | H22: 0 | I22: 0 | J22: 0 | K22: 0 | L22: 0 | M22: 0
A23: 315 | C23: 5.4 Snake bite | D23: 2 | F23: 0 | G23: 0 | H23: 0 | I23: 0 | J23: 1 | K23: 1 | L23: 0 | M23: 2
A24: 316 | C24: 5.5 Animal/Reptiles/Insects bite | D24: 0 | F24: 0 | G24: 0 | H24: 0 | I24: 0 | J24: 0 | K24: 0 | L24: 0 | M24: 0
A25: 317 | C25: 5.6 Other | D25: 0 | F25: 0 | G25: 0 | H25: 0 | I25: 0 | J25: 0 | K25: 0 | L25: 0 | M25: 0
A26: 318 | B26: 6 | C26: Suffocation | D26: 2 | F26: 0 | G26: 0 | H26: 0 | I26: 0 | J26: 1 | K26: 1 | L26: 0 | M26: 2
A27: 319 | B27: 7 | C27: Drug Overdose | D27: 2 | F27: 0 | G27: 0 | H27: 0 | I27: 0 | J27: 1 | K27: 1 | L27: 0 | M27: 2
A28: 335 | B28: 8 | C28: Total (sum of Sl. 1 to 7) | D28: =SUM(D8,D12,D15:D17,D26:D27) -> 31 | F28: =SUM(F8,F12,F15:F17,F26:F27) -> 0 | G28: =SUM(G8,G12,G15:G17,G26:G27) -> 0 | H28: =SUM(H8,H12,H15:H17,H26:H27) -> 0 | I28: 0 | J28: =SUM(J8,J12,J15:J17,J26:J27) -> 24 | K28: =SUM(K8,K12,K15:K17,K26:K27) -> 7 | L28: =SUM(L8,L12,L15:L17,L26:L27) -> 0 | M28: 31
BA200: =A1 -> Goa, , ADSI-2021
BA201: =A2 -> Errors | BB201: =C2 -> 0
BA202: =A3 -> Proforma–IV
BA203: =A4 -> Profile of Accidents due to Other than Un-natural Causes
BA204: =B5 -> Sl. No. | BB204: =C5 -> Causes | BC204: =D5 -> No. of Cases | BD204: =E5 -> VALIDATION WITH NUMBER OF CASES | BE204: =F5 -> No. of Persons Injured | BI204: =J5 -> No. of Persons Died
BE205: =F6 -> Male | BF205: =G6 -> Female | BG205: =H6 -> Transgender | BH205: =I6 -> Total (sum of (4) to (6)) | BI205: Male | BJ205: =K6 -> Female | BK205: =L6 -> Transgender | BL205: =M6 -> Total (sum of (8) to (10))
BA206: =B7 -> (1) | BB206: (2) | BC206: (3) | BE206: (4) | BF206: (5) | BG206: (6) | BH206: (7) | BI206: (8) | BJ206: (9) | BK206: (10) | BL206: (11)
BA207: 1 | BB207: Sudden Deaths (Total) (sum of 1.1 to 1.3) | BC207: 19 | BD207: =E8 ->  | BE207: 0 | BF207: 0 | BG207: 0 | BH207: 0 | BI207: 17 | BJ207: 2 | BK207: 0 | BL207: 19
BB208: =C9 -> 1.1 Industrial Accidents | BC208: =D9 -> 0 | BE208: 0 | BF208: 0 | BG208: 0 | BH208: 0 | BI208: 0 | BJ208: 0 | BK208: 0 | BL208: 0
BB209: 1.2 Heart Attack | BC209: 10 | BE209: 0 | BF209: 0 | BG209: 0 | BH209: 0 | BI209: 9 | BJ209: 1 | BK209: 0 | BL209: 10
BB210: 1.3 Others | BC210: 9 | BE210: 0 | BF210: 0 | BG210: 0 | BH210: 0 | BI210: 8 | BJ210: 1 | BK210: 0 | BL210: 9
BA211: =B12 -> 2 | BB211: Deaths of Women during Pregnancy (Total) (sum of 2.1 and 2.2) | BC211: 0 | BE211: 0 | BF211: 0 | BG211: 0 | BH211: 0 | BI211: 0 | BJ211: 0 | BK211: 0 | BL211: 0
BB212: 2.1 Due to Abortions | BC212: 0 | BE212: 0 | BF212: 0 | BG212: 0 | BH212: 0 | BI212: 0 | BJ212: 0 | BK212: 0 | BL212: 0
BB213: 2.2 Due to Other accidents during Pregnancy | BC213: 0 | BE213: 0 | BF213: 0 | BG213: 0 | BH213: 0 | BI213: 0 | BJ213: 0 | BK213: 0 | BL213: 0
BA214: =B15 -> 3 | BB214: Deaths Due to consumption of Illicit/Spurious Liquor | BC214: 0 | BE214: 0 | BF214: 0 | BG214: 0 | BH214: 0 | BI214: 0 | BJ214: 0 | BK214: 0 | BL214: 0
BA215: =B16 -> 4 | BB215: Killed by animals | BC215: 2 | BE215: 0 | BF215: 0 | BG215: 0 | BH215: 0 | BI215: 1 | BJ215: 1 | BK215: 0 | BL215: 2
BA216: =B17 -> 5 | BB216: Poisoning (Total) (sum of 5.1 to 5.3 & 5.4 to 5.6) | BC216: 6 | BE216: 0 | BF216: 0 | BG216: 0 | BH216: 0 | BI216: 4 | BJ216: 2 | BK216: 0 | BL216: 6
BB217: 5.1 Food Poisoning | BC217: 1 | BE217: 0 | BF217: 0 | BG217: 0 | BH217: 0 | BI217: 1 | BJ217: 0 | BK217: 0 | BL217: 1
BB218: 5.2 Accidental intake of Insecticides/Pesticides | BC218: 3 | BE218: 0 | BF218: 0 | BG218: 0 | BH218: 0 | BI218: 2 | BJ218: 1 | BK218: 0 | BL218: 3
BB219: 5.3 Poisonous Gases (Total) (sum of 5.3.1 & 5.3.2) | BC219: 0 | BE219: 0 | BF219: 0 | BG219: 0 | BH219: 0 | BI219: 0 | BJ219: 0 | BK219: 0 | BL219: 0
BB220: 5.3.1 Carbon Monoxide (CO) Gas | BC220: 0 | BE220: 0 | BF220: 0 | BG220: 0 | BH220: 0 | BI220: 0 | BJ220: 0 | BK220: 0 | BL220: 0
BB221: 5.3.2 Other poisonous Gases | BC221: 0 | BE221: 0 | BF221: 0 | BG221: 0 | BH221: 0 | BI221: 0 | BJ221: 0 | BK221: 0 | BL221: 0
BB222: 5.4 Snake bite | BC222: 2 | BE222: 0 | BF222: 0 | BG222: 0 | BH222: 0 | BI222: 1 | BJ222: 1 | BK222: 0 | BL222: 2
BB223: 5.5 Animal/Reptiles/Insects bite | BC223: 0 | BE223: 0 | BF223: 0 | BG223: 0 | BH223: 0 | BI223: 0 | BJ223: 0 | BK223: 0 | BL223: 0
BB224: 5.6 Other | BC224: 0 | BE224: 0 | BF224: 0 | BG224: 0 | BH224: 0 | BI224: 0 | BJ224: 0 | BK224: 0 | BL224: 0
BA225: =B26 -> 6 | BB225: Suffocation | BC225: 2 | BE225: 0 | BF225: 0 | BG225: 0 | BH225: 0 | BI225: 1 | BJ225: 1 | BK225: 0 | BL225: 2
BA226: =B27 -> 7 | BB226: Drug Overdose | BC226: 2 | BE226: 0 | BF226: 0 | BG226: 0 | BH226: 0 | BI226: 1 | BJ226: 1 | BK226: 0 | BL226: 2
BA227: =B28 -> 8 | BB227: =C28 -> Total (sum of Sl. 1 to 7) | BC227: =D28 -> 31 | BD227: =E28 ->  | BE227: =F28 -> 0 | BF227: =G28 -> 0 | BG227: =H28 -> 0 | BH227: =I28 -> 0 | BI227: =J28 -> 24 | BJ227: =K28 -> 7 | BK227: =L28 -> 0 | BL227: =M28 -> 31
A500: StateUTCityCode | B500: DistrictCode | C500: CrimeCode | D500: DataYear | E500: Number of Cases | F500: Injured_Male | G500: Injured_Female | H500: Injured_Trans | I500: Injured_Total | J500: Died_Male | K500: Died_Female | L500: Died_Trans | M500: Died_Total
A501: =IF(ADSI!$G$12="",ADSI!$H$16,ADSI!$H$12) -> 6 | B501: =IF(ADSI!$G$12="",ADSI!$H$16,ADSI!$H$14) ->  | C501: =A8 -> 300 | D501: =ADSI!$K$12 -> 2021 | E501: =D8 -> 19 | F501: =F8 -> 0 | G501: 0 | H501: 0 | I501: 0 | J501: 17 | K501: 2 | L501: 0 | M501: 19
A502: =IF(ADSI!$G$12="",ADSI!$H$16,ADSI!$H$12) -> 6 | B502: =IF(ADSI!$G$12="",ADSI!$H$16,ADSI!$H$14) ->  | C502: 301 | D502: =ADSI!$K$12 -> 2021 | E502: 0 | F502: =F9 -> 0 | G502: 0 | H502: 0 | I502: 0 | J502: 0 | K502: 0 | L502: 0 | M502: 0
A503: =IF(ADSI!$G$12="",ADSI!$H$16,ADSI!$H$12) -> 6 | B503: =IF(ADSI!$G$12="",ADSI!$H$16,ADSI!$H$14) ->  | C503: 302 | D503: =ADSI!$K$12 -> 2021 | E503: 10 | F503: =F10 -> 0 | G503: 0 | H503: 0 | I503: 0 | J503: 9 | K503: 1 | L503: 0 | M503: 10
A504: =IF(ADSI!$G$12="",ADSI!$H$16,ADSI!$H$12) -> 6 | B504: =IF(ADSI!$G$12="",ADSI!$H$16,ADSI!$H$14) ->  | C504: 303 | D504: =ADSI!$K$12 -> 2021 | E504: 9 | F504: =F11 -> 0 | G504: 0 | H504: 0 | I504: 0 | J504: 8 | K504: 1 | L504: 0 | M504: 9
A505: =IF(ADSI!$G$12="",ADSI!$H$16,ADSI!$H$12) -> 6 | B505: =IF(ADSI!$G$12="",ADSI!$H$16,ADSI!$H$14) ->  | C505: 304 | D505: =ADSI!$K$12 -> 2021 | E505: 0 | F505: =F12 -> 0 | G505: 0 | H505: 0 | I505: 0 | J505: 0 | K505: 0 | L505: 0 | M505: 0
A506: =IF(ADSI!$G$12="",ADSI!$H$16,ADSI!$H$12) -> 6 | B506: =IF(ADSI!$G$12="",ADSI!$H$16,ADSI!$H$14) ->  | C506: 305 | D506: =ADSI!$K$12 -> 2021 | E506: 0 | F506: =F13 -> 0 | G506: 0 | H506: 0 | I506: 0 | J506: 0 | K506: 0 | L506: 0 | M506: 0
A507: =IF(ADSI!$G$12="",ADSI!$H$16,ADSI!$H$12) -> 6 | B507: =IF(ADSI!$G$12="",ADSI!$H$16,ADSI!$H$14) ->  | C507: 306 | D507: =ADSI!$K$12 -> 2021 | E507: 0 | F507: =F14 -> 0 | G507: 0 | H507: 0 | I507: 0 | J507: 0 | K507: 0 | L507: 0 | M507: 0
A508: =IF(ADSI!$G$12="",ADSI!$H$16,ADSI!$H$12) -> 6 | B508: =IF(ADSI!$G$12="",ADSI!$H$16,ADSI!$H$14) ->  | C508: 307 | D508: =ADSI!$K$12 -> 2021 | E508: 0 | F508: =F15 -> 0 | G508: 0 | H508: 0 | I508: 0 | J508: 0 | K508: 0 | L508: 0 | M508: 0
A509: =IF(ADSI!$G$12="",ADSI!$H$16,ADSI!$H$12) -> 6 | B509: =IF(ADSI!$G$12="",ADSI!$H$16,ADSI!$H$14) ->  | C509: 308 | D509: =ADSI!$K$12 -> 2021 | E509: 2 | F509: =F16 -> 0 | G509: 0 | H509: 0 | I509: 0 | J509: 1 | K509: 1 | L509: 0 | M509: 2
A510: =IF(ADSI!$G$12="",ADSI!$H$16,ADSI!$H$12) -> 6 | B510: =IF(ADSI!$G$12="",ADSI!$H$16,ADSI!$H$14) ->  | C510: 309 | D510: =ADSI!$K$12 -> 2021 | E510: 6 | F510: =F17 -> 0 | G510: 0 | H510: 0 | I510: 0 | J510: 4 | K510: 2 | L510: 0 | M510: 6
A511: =IF(ADSI!$G$12="",ADSI!$H$16,ADSI!$H$12) -> 6 | B511: =IF(ADSI!$G$12="",ADSI!$H$16,ADSI!$H$14) ->  | C511: 310 | D511: =ADSI!$K$12 -> 2021 | E511: 1 | F511: =F18 -> 0 | G511: 0 | H511: 0 | I511: 0 | J511: 1 | K511: 0 | L511: 0 | M511: 1
A512: =IF(ADSI!$G$12="",ADSI!$H$16,ADSI!$H$12) -> 6 | B512: =IF(ADSI!$G$12="",ADSI!$H$16,ADSI!$H$14) ->  | C512: 311 | D512: =ADSI!$K$12 -> 2021 | E512: 3 | F512: =F19 -> 0 | G512: 0 | H512: 0 | I512: 0 | J512: 2 | K512: 1 | L512: 0 | M512: 3
A513: =IF(ADSI!$G$12="",ADSI!$H$16,ADSI!$H$12) -> 6 | B513: =IF(ADSI!$G$12="",ADSI!$H$16,ADSI!$H$14) ->  | C513: 312 | D513: =ADSI!$K$12 -> 2021 | E513: 0 | F513: =F20 -> 0 | G513: 0 | H513: 0 | I513: 0 | J513: 0 | K513: 0 | L513: 0 | M513: 0
A514: =IF(ADSI!$G$12="",ADSI!$H$16,ADSI!$H$12) -> 6 | B514: =IF(ADSI!$G$12="",ADSI!$H$16,ADSI!$H$14) ->  | C514: 313 | D514: =ADSI!$K$12 -> 2021 | E514: 0 | F514: =F21 -> 0 | G514: 0 | H514: 0 | I514: 0 | J514: 0 | K514: 0 | L514: 0 | M514: 0
A515: =IF(ADSI!$G$12="",ADSI!$H$16,ADSI!$H$12) -> 6 | B515: =IF(ADSI!$G$12="",ADSI!$H$16,ADSI!$H$14) ->  | C515: 314 | D515: =ADSI!$K$12 -> 2021 | E515: 0 | F515: =F22 -> 0 | G515: 0 | H515: 0 | I515: 0 | J515: 0 | K515: 0 | L515: 0 | M515: 0
A516: =IF(ADSI!$G$12="",ADSI!$H$16,ADSI!$H$12) -> 6 | B516: =IF(ADSI!$G$12="",ADSI!$H$16,ADSI!$H$14) ->  | C516: 315 | D516: =ADSI!$K$12 -> 2021 | E516: 2 | F516: =F23 -> 0 | G516: 0 | H516: 0 | I516: 0 | J516: 1 | K516: 1 | L516: 0 | M516: 2
A517: =IF(ADSI!$G$12="",ADSI!$H$16,ADSI!$H$12) -> 6 | B517: =IF(ADSI!$G$12="",ADSI!$H$16,ADSI!$H$14) ->  | C517: 316 | D517: =ADSI!$K$12 -> 2021 | E517: 0 | F517: =F24 -> 0 | G517: 0 | H517: 0 | I517: 0 | J517: 0 | K517: 0 | L517: 0 | M517: 0
A518: =IF(ADSI!$G$12="",ADSI!$H$16,ADSI!$H$12) -> 6 | B518: =IF(ADSI!$G$12="",ADSI!$H$16,ADSI!$H$14) ->  | C518: 317 | D518: =ADSI!$K$12 -> 2021 | E518: 0 | F518: =F25 -> 0 | G518: 0 | H518: 0 | I518: 0 | J518: 0 | K518: 0 | L518: 0 | M518: 0
A519: =IF(ADSI!$G$12="",ADSI!$H$16,ADSI!$H$12) -> 6 | B519: =IF(ADSI!$G$12="",ADSI!$H$16,ADSI!$H$14) ->  | C519: 318 | D519: =ADSI!$K$12 -> 2021 | E519: 2 | F519: =F26 -> 0 | G519: 0 | H519: 0 | I519: 0 | J519: 1 | K519: 1 | L519: 0 | M519: 2
A520: =IF(ADSI!$G$12="",ADSI!$H$16,ADSI!$H$12) -> 6 | B520: =IF(ADSI!$G$12="",ADSI!$H$16,ADSI!$H$14) ->  | C520: 319 | D520: =ADSI!$K$12 -> 2021 | E520: 2 | F520: =F27 -> 0 | G520: 0 | H520: 0 | I520: 0 | J520: 1 | K520: 1 | L520: 0 | M520: 2
A521: =IF(ADSI!$G$12="",ADSI!$H$16,ADSI!$H$12) -> 6 | B521: =IF(ADSI!$G$12="",ADSI!$H$16,ADSI!$H$14) ->  | C521: 335 | D521: =ADSI!$K$12 -> 2021 | E521: 31 | F521: =F28 -> 0 | G521: 0 | H521: 0 | I521: 0 | J521: 24 | K521: 7 | L521: 0 | M521: 31

Sheet P-V
A1: =ADSI!$B$1 -> Goa, , ADSI-2021
A2: Errors | C2: =COUNTIF(L9:L29,FALSE)+COUNTIF(U9:U29,FALSE)+COUNTIF(AD9:AD29,FALSE)+COUNTIF(AG9:AG29,FALSE) -> 0
A3: Proforma–V
A4: Age Wise Distribution of Accidental Deaths by Other than Un-natural Causes
A5: Code | B5: Sl. No. | C5: Causes | D5: N u m b e r o f A c c i d e n t a l D e a t h s | AE5: Grand Total [Col. (9)+(16)+(23)] | AF5: PROFORMA–IV VALUES [Col.–(11) (Total Died)] | AG5: VALIDATION WITH PROFORMA–IV [Col.–(11) (Total Died)]
D6: M a l e | M6: F e m a l e | V6: Transgender
D7: below 14 years | E7: 14 and above – below 18 yrs | F7: 18 and above-below 30 years | G7: 30 and above – below 45 years | H7: 45 and above – below 60 years | I7: 60 years & above | J7: Total [sum of (3) to (8)] | K7: PROFORMA–IV VALUES [Col.–(8) (Male Died)] | L7: VALIDATION WITH PROFORMA–IV [Col.–(8) (Male Died)] | M7: below 14 years | N7: 14 and above – below 18 yrs | O7: 18 and above-below 30 years | P7: 30 and above – below 45 years | Q7: 45 and above – below 60 years | R7: 60 years & above | S7: Total [sum of (10) to (15)] | T7: PROFORMA–IV VALUES [Col.–(9) (Female Died)] | U7: VALIDATION WITH PROFORMA–IV [Col.–(9) (Female Died)] | V7: below 14 years | W7: 14 and above – below 18 yrs | X7: 18 and above-below 30 years | Y7: 30 and above – below 45 years | Z7: 45 and above – below 60 years | AA7: 60 years & above | AB7: Total [sum of (17) to (22)] | AC7: PROFORMA–IV VALUES [Col.–(10) Transgender Died)] | AD7: VALIDATION WITH PROFORMA–IV [Col.–(10) Transgender Died)]
B8: (1) | C8: (2) | D8: (3) | E8: (4) | F8: (5) | G8: (6) | H8: (7) | I8: (8) | J8: (9) | M8: (10) | N8: (11) | O8: (12) | P8: (13) | Q8: (14) | R8: (15) | S8: (16) | V8: (17) | W8: (18) | X8: (19) | Y8: (20) | Z8: (21) | AA8: (22) | AB8: (23) | AE8: (24)
A9: 350 | B9: 1 | C9: Sudden Deaths (Total) (sum of 1.1 to 1.3) | D9: =SUM(D10:D12) -> 1 | E9: =SUM(E10:E12) -> 0 | F9: 1 | G9: 5 | H9: 5 | I9: 5 | J9: =SUM(D9:I9) -> 17 | K9: ='P-IV'!J8 -> 17 | L9: =IF(J9='P-IV'!J8,"",FALSE) ->  | M9: =SUM(M10:M12) -> 0 | N9: =SUM(N10:N12) -> 0 | O9: =SUM(O10:O12) -> 1 | P9: =SUM(P10:P12) -> 0 | Q9: =SUM(Q10:Q12) -> 0 | R9: =SUM(R10:R12) -> 1 | S9: =SUM(M9:R9) -> 2 | T9: ='P-IV'!K8 -> 2 | U9: =IF(S9='P-IV'!K8,"",FALSE) ->  | V9: 0 | W9: 0 | X9: 0 | Y9: 0 | Z9: 0 | AA9: 0 | AB9: =SUM(V9:AA9) -> 0 | AC9: ='P-IV'!L8 -> 0 | AD9: =IF(AB9='P-IV'!L8,"",FALSE) ->  | AE9: =SUM(J9+S9+AB9) -> 19 | AF9: ='P-IV'!M8 -> 19 | AG9: =IF(AE9='P-IV'!M8,"",FALSE) -> 
A10: 351 | C10: 1.1 Industrial Accidents | D10: 0 | E10: 0 | F10: 0 | G10: 0 | H10: 0 | I10: 0 | J10: =SUM(D10:I10) -> 0 | K10: ='P-IV'!J9 -> 0 | L10: =IF(J10='P-IV'!J9,"",FALSE) ->  | M10: 0 | N10: 0 | O10: 0 | P10: 0 | Q10: 0 | R10: 0 | S10: =SUM(M10:R10) -> 0 | T10: ='P-IV'!K9 -> 0 | U10: =IF(S10='P-IV'!K9,"",FALSE) ->  | V10: 0 | W10: 0 | X10: 0 | Y10: 0 | Z10: 0 | AA10: 0 | AB10: =SUM(V10:AA10) -> 0 | AC10: ='P-IV'!L9 -> 0 | AD10: =IF(AB10='P-IV'!L9,"",FALSE) ->  | AE10: =SUM(J10+S10+AB10) -> 0 | AF10: ='P-IV'!M9 -> 0 | AG10: =IF(AE10='P-IV'!M9,"",FALSE) -> 
A11: 352 | C11: 1.2 Heart Attack | D11: 0 | E11: 0 | F11: 1 | G11: 4 | H11: 2 | I11: 2 | J11: 9 | K11: ='P-IV'!J10 -> 9 | L11: =IF(J11='P-IV'!J10,"",FALSE) ->  | M11: 0 | N11: 0 | O11: 0 | P11: 0 | Q11: 0 | R11: 1 | S11: 1 | T11: ='P-IV'!K10 -> 1 | U11: =IF(S11='P-IV'!K10,"",FALSE) ->  | V11: 0 | W11: 0 | X11: 0 | Y11: 0 | Z11: 0 | AA11: 0 | AB11: 0 | AC11: ='P-IV'!L10 -> 0 | AD11: =IF(AB11='P-IV'!L10,"",FALSE) ->  | AE11: 10 | AF11: ='P-IV'!M10 -> 10 | AG11: =IF(AE11='P-IV'!M10,"",FALSE) -> 
A12: 353 | C12: 1.3 Others | D12: 1 | E12: 0 | F12: 0 | G12: 1 | H12: 3 | I12: 3 | J12: 8 | K12: ='P-IV'!J11 -> 8 | L12: =IF(J12='P-IV'!J11,"",FALSE) ->  | M12: 0 | N12: 0 | O12: 1 | P12: 0 | Q12: 0 | R12: 0 | S12: 1 | T12: ='P-IV'!K11 -> 1 | U12: =IF(S12='P-IV'!K11,"",FALSE) ->  | V12: 0 | W12: 0 | X12: 0 | Y12: 0 | Z12: 0 | AA12: 0 | AB12: 0 | AC12: ='P-IV'!L11 -> 0 | AD12: =IF(AB12='P-IV'!L11,"",FALSE) ->  | AE12: 9 | AF12: ='P-IV'!M11 -> 9 | AG12: =IF(AE12='P-IV'!M11,"",FALSE) -> 
A13: 354 | B13: 2 | C13: Deaths of Women during Pregnancy (Total) (sum of 2.1 and 2.2) | D13: =SUM(D14:D15) -> 0 | E13: =SUM(E14:E15) -> 0 | F13: 0 | G13: 0 | H13: 0 | I13: 0 | J13: 0 | K13: ='P-IV'!J12 -> 0 | L13: =IF(J13='P-IV'!J12,"",FALSE) ->  | M13: 0 | N13: 0 | O13: 0 | P13: 0 | Q13: 0 | R13: 0 | S13: 0 | T13: ='P-IV'!K12 -> 0 | U13: =IF(S13='P-IV'!K12,"",FALSE) ->  | V13: 0 | W13: 0 | X13: 0 | Y13: =SUM(Y14:Y15) -> 0 | Z13: =SUM(Z14:Z15) -> 0 | AA13: =SUM(AA14:AA15) -> 0 | AB13: 0 | AC13: ='P-IV'!L12 -> 0 | AD13: =IF(AB13='P-IV'!L12,"",FALSE) ->  | AE13: 0 | AF13: ='P-IV'!M12 -> 0 | AG13: =IF(AE13='P-IV'!M12,"",FALSE) -> 
A14: 355 | C14: 2.1 Due to Abortions | D14: 0 | E14: 0 | F14: 0 | G14: 0 | H14: 0 | I14: 0 | J14: 0 | K14: ='P-IV'!J13 -> 0 | L14: =IF(J14='P-IV'!J13,"",FALSE) ->  | M14: 0 | N14: 0 | O14: 0 | P14: 0 | Q14: 0 | R14: 0 | S14: 0 | T14: ='P-IV'!K13 -> 0 | U14: =IF(S14='P-IV'!K13,"",FALSE) ->  | V14: 0 | W14: 0 | X14: 0 | Y14: 0 | Z14: 0 | AA14: 0 | AB14: 0 | AC14: ='P-IV'!L13 -> 0 | AD14: =IF(AB14='P-IV'!L13,"",FALSE) ->  | AE14: 0 | AF14: ='P-IV'!M13 -> 0 | AG14: =IF(AE14='P-IV'!M13,"",FALSE) -> 
A15: 356 | C15: 2.2 Due to Other accidents during Pregnancy | D15: 0 | E15: 0 | F15: 0 | G15: 0 | H15: 0 | I15: 0 | J15: 0 | K15: ='P-IV'!J14 -> 0 | L15: =IF(J15='P-IV'!J14,"",FALSE) ->  | M15: 0 | N15: 0 | O15: 0 | P15: 0 | Q15: 0 | R15: 0 | S15: 0 | T15: ='P-IV'!K14 -> 0 | U15: =IF(S15='P-IV'!K14,"",FALSE) ->  | V15: 0 | W15: 0 | X15: 0 | Y15: 0 | Z15: 0 | AA15: 0 | AB15: 0 | AC15: ='P-IV'!L14 -> 0 | AD15: =IF(AB15='P-IV'!L14,"",FALSE) ->  | AE15: 0 | AF15: ='P-IV'!M14 -> 0 | AG15: =IF(AE15='P-IV'!M14,"",FALSE) -> 
A16: 357 | B16: 3 | C16: Deaths Due to consumption of Illicit/Spurious Liquor | D16: 0 | E16: 0 | F16: 0 | G16: 0 | H16: 0 | I16: 0 | J16: 0 | K16: ='P-IV'!J15 -> 0 | L16: =IF(J16='P-IV'!J15,"",FALSE) ->  | M16: 0 | N16: 0 | O16: 0 | P16: 0 | Q16: 0 | R16: 0 | S16: 0 | T16: ='P-IV'!K15 -> 0 | U16: =IF(S16='P-IV'!K15,"",FALSE) ->  | V16: 0 | W16: 0 | X16: 0 | Y16: 0 | Z16: 0 | AA16: 0 | AB16: 0 | AC16: ='P-IV'!L15 -> 0 | AD16: =IF(AB16='P-IV'!L15,"",FALSE) ->  | AE16: 0 | AF16: ='P-IV'!M15 -> 0 | AG16: =IF(AE16='P-IV'!M15,"",FALSE) -> 
A17: 358 | B17: 4 | C17: Killed by animals | D17: 0 | E17: 0 | F17: 0 | G17: 0 | H17: 1 | I17: 0 | J17: 1 | K17: ='P-IV'!J16 -> 1 | L17: =IF(J17='P-IV'!J16,"",FALSE) ->  | M17: 0 | N17: 0 | O17: 0 | P17: 0 | Q17: 0 | R17: 1 | S17: 1 | T17: ='P-IV'!K16 -> 1 | U17: =IF(S17='P-IV'!K16,"",FALSE) ->  | V17: 0 | W17: 0 | X17: 0 | Y17: 0 | Z17: 0 | AA17: 0 | AB17: 0 | AC17: ='P-IV'!L16 -> 0 | AD17: =IF(AB17='P-IV'!L16,"",FALSE) ->  | AE17: 2 | AF17: ='P-IV'!M16 -> 2 | AG17: =IF(AE17='P-IV'!M16,"",FALSE) -> 
A18: 359 | B18: 5 | C18: Poisoning (Total) (sum of 5.1 to 5.3 & 5.4 to 5.6) | D18: =SUM(D19:D21,D24:D26) -> 0 | E18: =SUM(E19:E21,E24:E26) -> 0 | F18: 0 | G18: 0 | H18: 3 | I18: 1 | J18: 4 | K18: ='P-IV'!J17 -> 4 | L18: =IF(J18='P-IV'!J17,"",FALSE) ->  | M18: =SUM(M19:M21,M24:M26) -> 0 | N18: 0 | O18: 0 | P18: 0 | Q18: 0 | R18: 2 | S18: 2 | T18: ='P-IV'!K17 -> 2 | U18: =IF(S18='P-IV'!K17,"",FALSE) ->  | V18: =SUM(V19:V21,V24:V26) -> 0 | W18: 0 | X18: 0 | Y18: 0 | Z18: 0 | AA18: 0 | AB18: 0 | AC18: ='P-IV'!L17 -> 0 | AD18: =IF(AB18='P-IV'!L17,"",FALSE) ->  | AE18: 6 | AF18: ='P-IV'!M17 -> 6 | AG18: =IF(AE18='P-IV'!M17,"",FALSE) -> 
A19: 360 | C19: 5.1 Food Poisoning | D19: 0 | E19: 0 | F19: 0 | G19: 0 | H19: 1 | I19: 0 | J19: 1 | K19: ='P-IV'!J18 -> 1 | L19: =IF(J19='P-IV'!J18,"",FALSE) ->  | M19: 0 | N19: 0 | O19: 0 | P19: 0 | Q19: 0 | R19: 0 | S19: 0 | T19: ='P-IV'!K18 -> 0 | U19: =IF(S19='P-IV'!K18,"",FALSE) ->  | V19: 0 | W19: 0 | X19: 0 | Y19: 0 | Z19: 0 | AA19: 0 | AB19: 0 | AC19: ='P-IV'!L18 -> 0 | AD19: =IF(AB19='P-IV'!L18,"",FALSE) ->  | AE19: 1 | AF19: ='P-IV'!M18 -> 1 | AG19: =IF(AE19='P-IV'!M18,"",FALSE) -> 
A20: 361 | C20: 5.2 Accidental intake of Insecticides/Pesticides | D20: 0 | E20: 0 | F20: 0 | G20: 0 | H20: 1 | I20: 1 | J20: 2 | K20: ='P-IV'!J19 -> 2 | L20: =IF(J20='P-IV'!J19,"",FALSE) ->  | M20: 0 | N20: 0 | O20: 0 | P20: 0 | Q20: 0 | R20: 1 | S20: 1 | T20: ='P-IV'!K19 -> 1 | U20: =IF(S20='P-IV'!K19,"",FALSE) ->  | V20: 0 | W20: 0 | X20: 0 | Y20: 0 | Z20: 0 | AA20: 0 | AB20: 0 | AC20: ='P-IV'!L19 -> 0 | AD20: =IF(AB20='P-IV'!L19,"",FALSE) ->  | AE20: 3 | AF20: ='P-IV'!M19 -> 3 | AG20: =IF(AE20='P-IV'!M19,"",FALSE) -> 
A21: 362 | C21: 5.3 Poisonous Gases (Total) (sum of 5.3.1 & 5.3.2) | D21: =SUM(D22:D23) -> 0 | E21: =SUM(E22:E23) -> 0 | F21: 0 | G21: 0 | H21: 0 | I21: 0 | J21: 0 | K21: ='P-IV'!J20 -> 0 | L21: =IF(J21='P-IV'!J20,"",FALSE) ->  | M21: =SUM(M22:M23) -> 0 | N21: =SUM(N22:N23) -> 0 | O21: =SUM(O22:O23) -> 0 | P21: =SUM(P22:P23) -> 0 | Q21: =SUM(Q22:Q23) -> 0 | R21: =SUM(R22:R23) -> 0 | S21: 0 | T21: ='P-IV'!K20 -> 0 | U21: =IF(S21='P-IV'!K20,"",FALSE) ->  | V21: 0 | W21: 0 | X21: 0 | Y21: 0 | Z21: 0 | AA21: 0 | AB21: 0 | AC21: ='P-IV'!L20 -> 0 | AD21: =IF(AB21='P-IV'!L20,"",FALSE) ->  | AE21: 0 | AF21: ='P-IV'!M20 -> 0 | AG21: =IF(AE21='P-IV'!M20,"",FALSE) -> 
A22: 363 | C22: 5.3.1 Carbon Monoxide (CO) Gas | D22: 0 | E22: 0 | F22: 0 | G22: 0 | H22: 0 | I22: 0 | J22: 0 | K22: ='P-IV'!J21 -> 0 | L22: =IF(J22='P-IV'!J21,"",FALSE) ->  | M22: 0 | N22: 0 | O22: 0 | P22: 0 | Q22: 0 | R22: 0 | S22: 0 | T22: ='P-IV'!K21 -> 0 | U22: =IF(S22='P-IV'!K21,"",FALSE) ->  | V22: 0 | W22: 0 | X22: 0 | Y22: 0 | Z22: 0 | AA22: 0 | AB22: 0 | AC22: ='P-IV'!L21 -> 0 | AD22: =IF(AB22='P-IV'!L21,"",FALSE) ->  | AE22: 0 | AF22: ='P-IV'!M21 -> 0 | AG22: =IF(AE22='P-IV'!M21,"",FALSE) -> 
A23: 364 | C23: 5.3.2 Other poisonous Gases | D23: 0 | E23: 0 | F23: 0 | G23: 0 | H23: 0 | I23: 0 | J23: 0 | K23: ='P-IV'!J22 -> 0 | L23: =IF(J23='P-IV'!J22,"",FALSE) ->  | M23: 0 | N23: 0 | O23: 0 | P23: 0 | Q23: 0 | R23: 0 | S23: 0 | T23: ='P-IV'!K22 -> 0 | U23: =IF(S23='P-IV'!K22,"",FALSE) ->  | V23: 0 | W23: 0 | X23: 0 | Y23: 0 | Z23: 0 | AA23: 0 | AB23: 0 | AC23: ='P-IV'!L22 -> 0 | AD23: =IF(AB23='P-IV'!L22,"",FALSE) ->  | AE23: 0 | AF23: ='P-IV'!M22 -> 0 | AG23: =IF(AE23='P-IV'!M22,"",FALSE) -> 
A24: 365 | C24: 5.4 Snake bite | D24: 0 | E24: 0 | F24: 0 | G24: 0 | H24: 1 | I24: 0 | J24: 1 | K24: ='P-IV'!J23 -> 1 | L24: =IF(J24='P-IV'!J23,"",FALSE) ->  | M24: 0 | N24: 0 | O24: 0 | P24: 0 | Q24: 0 | R24: 1 | S24: 1 | T24: ='P-IV'!K23 -> 1 | U24: =IF(S24='P-IV'!K23,"",FALSE) ->  | V24: 0 | W24: 0 | X24: 0 | Y24: 0 | Z24: 0 | AA24: 0 | AB24: 0 | AC24: ='P-IV'!L23 -> 0 | AD24: =IF(AB24='P-IV'!L23,"",FALSE) ->  | AE24: 2 | AF24: ='P-IV'!M23 -> 2 | AG24: =IF(AE24='P-IV'!M23,"",FALSE) -> 
A25: 366 | C25: 5.5 Animal/Reptiles/Insects bite | D25: 0 | E25: 0 | F25: 0 | G25: 0 | H25: 0 | I25: 0 | J25: 0 | K25: ='P-IV'!J24 -> 0 | L25: =IF(J25='P-IV'!J24,"",FALSE) ->  | M25: 0 | N25: 0 | O25: 0 | P25: 0 | Q25: 0 | R25: 0 | S25: 0 | T25: ='P-IV'!K24 -> 0 | U25: =IF(S25='P-IV'!K24,"",FALSE) ->  | V25: 0 | W25: 0 | X25: 0 | Y25: 0 | Z25: 0 | AA25: 0 | AB25: 0 | AC25: ='P-IV'!L24 -> 0 | AD25: =IF(AB25='P-IV'!L24,"",FALSE) ->  | AE25: 0 | AF25: ='P-IV'!M24 -> 0 | AG25: =IF(AE25='P-IV'!M24,"",FALSE) -> 
A26: 367 | C26: 5.6 Other | D26: 0 | E26: 0 | F26: 0 | G26: 0 | H26: 0 | I26: 0 | J26: 0 | K26: ='P-IV'!J25 -> 0 | L26: =IF(J26='P-IV'!J25,"",FALSE) ->  | M26: 0 | N26: 0 | O26: 0 | P26: 0 | Q26: 0 | R26: 0 | S26: 0 | T26: ='P-IV'!K25 -> 0 | U26: =IF(S26='P-IV'!K25,"",FALSE) ->  | V26: 0 | W26: 0 | X26: 0 | Y26: 0 | Z26: 0 | AA26: 0 | AB26: 0 | AC26: ='P-IV'!L25 -> 0 | AD26: =IF(AB26='P-IV'!L25,"",FALSE) ->  | AE26: 0 | AF26: ='P-IV'!M25 -> 0 | AG26: =IF(AE26='P-IV'!M25,"",FALSE) -> 
A27: 368 | B27: 6 | C27: Suffocation | D27: 1 | E27: 0 | F27: 0 | G27: 0 | H27: 0 | I27: 0 | J27: 1 | K27: ='P-IV'!J26 -> 1 | L27: =IF(J27='P-IV'!J26,"",FALSE) ->  | M27: 1 | N27: 0 | O27: 0 | P27: 0 | Q27: 0 | R27: 0 | S27: 1 | T27: ='P-IV'!K26 -> 1 | U27: =IF(S27='P-IV'!K26,"",FALSE) ->  | V27: 0 | W27: 0 | X27: 0 | Y27: 0 | Z27: 0 | AA27: 0 | AB27: 0 | AC27: ='P-IV'!L26 -> 0 | AD27: =IF(AB27='P-IV'!L26,"",FALSE) ->  | AE27: 2 | AF27: ='P-IV'!M26 -> 2 | AG27: =IF(AE27='P-IV'!M26,"",FALSE) -> 
A28: 369 | B28: 7 | C28: Drug Overdose | D28: 0 | E28: 0 | F28: 0 | G28: 0 | H28: 1 | I28: 0 | J28: 1 | K28: ='P-IV'!J27 -> 1 | L28: =IF(J28='P-IV'!J27,"",FALSE) ->  | M28: 0 | N28: 0 | O28: 0 | P28: 1 | Q28: 0 | R28: 0 | S28: 1 | T28: ='P-IV'!K27 -> 1 | U28: =IF(S28='P-IV'!K27,"",FALSE) ->  | V28: 0 | W28: 0 | X28: 0 | Y28: 0 | Z28: 0 | AA28: 0 | AB28: 0 | AC28: ='P-IV'!L27 -> 0 | AD28: =IF(AB28='P-IV'!L27,"",FALSE) ->  | AE28: 2 | AF28: ='P-IV'!M27 -> 2 | AG28: =IF(AE28='P-IV'!M27,"",FALSE) -> 
A29: 390 | B29: 8 | C29: Total (sum of Sl. 1 to 7) | D29: =SUM(D9,D13,D16:D18,D27:D28) -> 2 | E29: 0 | F29: 1 | G29: 5 | H29: 10 | I29: 6 | J29: 24 | K29: ='P-IV'!J28 -> 24 | L29: =IF(J29='P-IV'!J28,"",FALSE) ->  | M29: =SUM(M9,M13,M16:M18,M27:M28) -> 1 | N29: 0 | O29: 1 | P29: 1 | Q29: 0 | R29: 4 | S29: 7 | T29: ='P-IV'!K28 -> 7 | U29: =IF(S29='P-IV'!K28,"",FALSE) ->  | V29: =SUM(V9,V13,V16:V18,V27:V28) -> 0 | W29: 0 | X29: 0 | Y29: 0 | Z29: 0 | AA29: 0 | AB29: 0 | AC29: ='P-IV'!L28 -> 0 | AD29: =IF(AB29='P-IV'!L28,"",FALSE) ->  | AE29: =SUM(AE9,AE13,AE16:AE18,AE27:AE28) -> 31 | AF29: ='P-IV'!M28 -> 31 | AG29: =IF(AE29='P-IV'!M28,"",FALSE) -> 
BA200: =A1 -> Goa, , ADSI-2021
BA201: =A2 -> Errors | BB201: =C2 -> 0
BA202: =A3 -> Proforma–V
BA203: =A4 -> Age Wise Distribution of Accidental Deaths by Other than Un-natural Causes
BA204: =B5 -> Sl. No. | BB204: =C5 -> Causes | BC204: =D5 -> N u m b e r o f A c c i d e n t a l D e a t h s | CD204: =AE5 -> Grand Total [Col. (9)+(16)+(23)] | CE204: =AF5 -> PROFORMA–IV VALUES [Col.–(11) (Total Died)] | CF204: =AG5 -> VALIDATION WITH PROFORMA–IV [Col.–(11) (Total Died)]
BC205: =D6 -> M a l e | BL205: =M6 -> F e m a l e | BU205: =V6 -> Transgender
BC206: below 14 years | BD206: =E7 -> 14 and above – below 18 yrs | BE206: 18 and above-below 30 years | BF206: 30 and above – below 45 years | BG206: 45 and above – below 60 years | BH206: 60 years & above | BI206: Total [sum of (3) to (8)] | BJ206: PROFORMA–IV VALUES [Col.–(8) (Male Died)] | BK206: VALIDATION WITH PROFORMA–IV [Col.–(8) (Male Died)] | BL206: below 14 years | BM206: =N7 -> 14 and above – below 18 yrs | BN206: 18 and above-below 30 years | BO206: 30 and above – below 45 years | BP206: 45 and above – below 60 years | BQ206: 60 years & above | BR206: Total [sum of (10) to (15)] | BS206: PROFORMA–IV VALUES [Col.–(9) (Female Died)] | BT206: VALIDATION WITH PROFORMA–IV [Col.–(9) (Female Died)] | BU206: below 14 years | BV206: =W7 -> 14 and above – below 18 yrs | BW206: 18 and above-below 30 years | BX206: 30 and above – below 45 years | BY206: 45 and above – below 60 years | BZ206: 60 years & above | CA206: Total [sum of (17) to (22)] | CB206: PROFORMA–IV VALUES [Col.–(10) Transgender Died)] | CC206: VALIDATION WITH PROFORMA–IV [Col.–(10) Transgender Died)]
BA207: =B8 -> (1) | BB207: =C8 -> (2) | BC207: (3) | BD207: =E8 -> (4) | BE207: =F8 -> (5) | BF207: =G8 -> (6) | BG207: =H8 -> (7) | BH207: =I8 -> (8) | BI207: =J8 -> (9) | BL207: (10) | BM207: =N8 -> (11) | BN207: =O8 -> (12) | BO207: =P8 -> (13) | BP207: =Q8 -> (14) | BQ207: =R8 -> (15) | BR207: =S8 -> (16) | BU207: (17) | BV207: =W8 -> (18) | BW207: =X8 -> (19) | BX207: =Y8 -> (20) | BY207: =Z8 -> (21) | BZ207: =AA8 -> (22) | CA207: =AB8 -> (23) | CD207: =AE8 -> (24)
BA208: =B9 -> 1 | BB208: =C9 -> Sudden Deaths (Total) (sum of 1.1 to 1.3) | BC208: 1 | BD208: 0 | BE208: 1 | BF208: 5 | BG208: 5 | BH208: 5 | BI208: 17 | BJ208: =K9 -> 17 | BK208: =L9 ->  | BL208: 0 | BM208: 0 | BN208: 1 | BO208: 0 | BP208: 0 | BQ208: 1 | BR208: 2 | BS208: =T9 -> 2 | BT208: =U9 ->  | BU208: 0 | BV208: 0 | BW208: 0 | BX208: 0 | BY208: 0 | BZ208: 0 | CA208: 0 | CB208: =AC9 -> 0 | CC208: =AD9 ->  | CD208: 19 | CE208: =AF9 -> 19 | CF208: =AG9 -> 
BB209: =C10 -> 1.1 Industrial Accidents | BC209: 0 | BD209: 0 | BE209: 0 | BF209: 0 | BG209: 0 | BH209: 0 | BI209: 0 | BJ209: 0 | BL209: 0 | BM209: 0 | BN209: 0 | BO209: 0 | BP209: 0 | BQ209: 0 | BR209: 0 | BS209: 0 | BU209: 0 | BV209: 0 | BW209: 0 | BX209: 0 | BY209: 0 | BZ209: 0 | CA209: 0 | CB209: 0 | CD209: 0 | CE209: 0
BB210: 1.2 Heart Attack | BC210: 0 | BD210: 0 | BE210: 1 | BF210: 4 | BG210: 2 | BH210: 2 | BI210: 9 | BJ210: 9 | BL210: 0 | BM210: 0 | BN210: 0 | BO210: 0 | BP210: 0 | BQ210: 1 | BR210: 1 | BS210: 1 | BU210: 0 | BV210: 0 | BW210: 0 | BX210: 0 | BY210: 0 | BZ210: 0 | CA210: 0 | CB210: 0 | CD210: 10 | CE210: 10
BB211: 1.3 Others | BC211: 1 | BD211: 0 | BE211: 0 | BF211: 1 | BG211: 3 | BH211: 3 | BI211: 8 | BJ211: 8 | BL211: 0 | BM211: 0 | BN211: 1 | BO211: 0 | BP211: 0 | BQ211: 0 | BR211: 1 | BS211: 1 | BU211: 0 | BV211: 0 | BW211: 0 | BX211: 0 | BY211: 0 | BZ211: 0 | CA211: 0 | CB211: 0 | CD211: 9 | CE211: 9
BA212: =B13 -> 2 | BB212: Deaths of Women during Pregnancy (Total) (sum of 2.1 and 2.2) | BC212: 0 | BD212: 0 | BE212: 0 | BF212: 0 | BG212: 0 | BH212: 0 | BI212: 0 | BJ212: 0 | BL212: 0 | BM212: 0 | BN212: 0 | BO212: 0 | BP212: 0 | BQ212: 0 | BR212: 0 | BS212: 0 | BU212: 0 | BV212: 0 | BW212: 0 | BX212: 0 | BY212: 0 | BZ212: 0 | CA212: 0 | CB212: 0 | CD212: 0 | CE212: 0
BB213: 2.1 Due to Abortions | BC213: 0 | BD213: 0 | BE213: 0 | BF213: 0 | BG213: 0 | BH213: 0 | BI213: 0 | BJ213: 0 | BL213: 0 | BM213: 0 | BN213: 0 | BO213: 0 | BP213: 0 | BQ213: 0 | BR213: 0 | BS213: 0 | BU213: 0 | BV213: 0 | BW213: 0 | BX213: 0 | BY213: 0 | BZ213: 0 | CA213: 0 | CB213: 0 | CD213: 0 | CE213: 0
BB214: 2.2 Due to Other accidents during Pregnancy | BC214: 0 | BD214: 0 | BE214: 0 | BF214: 0 | BG214: 0 | BH214: 0 | BI214: 0 | BJ214: 0 | BL214: 0 | BM214: 0 | BN214: 0 | BO214: 0 | BP214: 0 | BQ214: 0 | BR214: 0 | BS214: 0 | BU214: 0 | BV214: 0 | BW214: 0 | BX214: 0 | BY214: 0 | BZ214: 0 | CA214: 0 | CB214: 0 | CD214: 0 | CE214: 0
BA215: =B16 -> 3 | BB215: Deaths Due to consumption of Illicit/Spurious Liquor | BC215: 0 | BD215: 0 | BE215: 0 | BF215: 0 | BG215: 0 | BH215: 0 | BI215: 0 | BJ215: 0 | BL215: 0 | BM215: 0 | BN215: 0 | BO215: 0 | BP215: 0 | BQ215: 0 | BR215: 0 | BS215: 0 | BU215: 0 | BV215: 0 | BW215: 0 | BX215: 0 | BY215: 0 | BZ215: 0 | CA215: 0 | CB215: 0 | CD215: 0 | CE215: 0
BA216: =B17 -> 4 | BB216: Killed by animals | BC216: 0 | BD216: 0 | BE216: 0 | BF216: 0 | BG216: 1 | BH216: 0 | BI216: 1 | BJ216: 1 | BL216: 0 | BM216: 0 | BN216: 0 | BO216: 0 | BP216: 0 | BQ216: 1 | BR216: 1 | BS216: 1 | BU216: 0 | BV216: 0 | BW216: 0 | BX216: 0 | BY216: 0 | BZ216: 0 | CA216: 0 | CB216: 0 | CD216: 2 | CE216: 2
BA217: =B18 -> 5 | BB217: Poisoning (Total) (sum of 5.1 to 5.3 & 5.4 to 5.6) | BC217: 0 | BD217: 0 | BE217: 0 | BF217: 0 | BG217: 3 | BH217: 1 | BI217: 4 | BJ217: 4 | BL217: 0 | BM217: 0 | BN217: 0 | BO217: 0 | BP217: 0 | BQ217: 2 | BR217: 2 | BS217: 2 | BU217: 0 | BV217: 0 | BW217: 0 | BX217: 0 | BY217: 0 | BZ217: 0 | CA217: 0 | CB217: 0 | CD217: 6 | CE217: 6
BB218: 5.1 Food Poisoning | BC218: 0 | BD218: 0 | BE218: 0 | BF218: 0 | BG218: 1 | BH218: 0 | BI218: 1 | BJ218: 1 | BL218: 0 | BM218: 0 | BN218: 0 | BO218: 0 | BP218: 0 | BQ218: 0 | BR218: 0 | BS218: 0 | BU218: 0 | BV218: 0 | BW218: 0 | BX218: 0 | BY218: 0 | BZ218: 0 | CA218: 0 | CB218: 0 | CD218: 1 | CE218: 1
BB219: 5.2 Accidental intake of Insecticides/Pesticides | BC219: 0 | BD219: 0 | BE219: 0 | BF219: 0 | BG219: 1 | BH219: 1 | BI219: 2 | BJ219: 2 | BL219: 0 | BM219: 0 | BN219: 0 | BO219: 0 | BP219: 0 | BQ219: 1 | BR219: 1 | BS219: 1 | BU219: 0 | BV219: 0 | BW219: 0 | BX219: 0 | BY219: 0 | BZ219: 0 | CA219: 0 | CB219: 0 | CD219: 3 | CE219: 3
BB220: 5.3 Poisonous Gases (Total) (sum of 5.3.1 & 5.3.2) | BC220: 0 | BD220: 0 | BE220: 0 | BF220: 0 | BG220: 0 | BH220: 0 | BI220: 0 | BJ220: 0 | BL220: 0 | BM220: 0 | BN220: 0 | BO220: 0 | BP220: 0 | BQ220: 0 | BR220: 0 | BS220: 0 | BU220: 0 | BV220: 0 | BW220: 0 | BX220: 0 | BY220: 0 | BZ220: 0 | CA220: 0 | CB220: 0 | CD220: 0 | CE220: 0
BB221: 5.3.1 Carbon Monoxide (CO) Gas | BC221: 0 | BD221: 0 | BE221: 0 | BF221: 0 | BG221: 0 | BH221: 0 | BI221: 0 | BJ221: 0 | BL221: 0 | BM221: 0 | BN221: 0 | BO221: 0 | BP221: 0 | BQ221: 0 | BR221: 0 | BS221: 0 | BU221: 0 | BV221: 0 | BW221: 0 | BX221: 0 | BY221: 0 | BZ221: 0 | CA221: 0 | CB221: 0 | CD221: 0 | CE221: 0
BB222: 5.3.2 Other poisonous Gases | BC222: 0 | BD222: 0 | BE222: 0 | BF222: 0 | BG222: 0 | BH222: 0 | BI222: 0 | BJ222: 0 | BL222: 0 | BM222: 0 | BN222: 0 | BO222: 0 | BP222: 0 | BQ222: 0 | BR222: 0 | BS222: 0 | BU222: 0 | BV222: 0 | BW222: 0 | BX222: 0 | BY222: 0 | BZ222: 0 | CA222: 0 | CB222: 0 | CD222: 0 | CE222: 0
BB223: 5.4 Snake bite | BC223: 0 | BD223: 0 | BE223: 0 | BF223: 0 | BG223: 1 | BH223: 0 | BI223: 1 | BJ223: 1 | BL223: 0 | BM223: 0 | BN223: 0 | BO223: 0 | BP223: 0 | BQ223: 1 | BR223: 1 | BS223: 1 | BU223: 0 | BV223: 0 | BW223: 0 | BX223: 0 | BY223: 0 | BZ223: 0 | CA223: 0 | CB223: 0 | CD223: 2 | CE223: 2
BB224: 5.5 Animal/Reptiles/Insects bite | BC224: 0 | BD224: 0 | BE224: 0 | BF224: 0 | BG224: 0 | BH224: 0 | BI224: 0 | BJ224: 0 | BL224: 0 | BM224: 0 | BN224: 0 | BO224: 0 | BP224: 0 | BQ224: 0 | BR224: 0 | BS224: 0 | BU224: 0 | BV224: 0 | BW224: 0 | BX224: 0 | BY224: 0 | BZ224: 0 | CA224: 0 | CB224: 0 | CD224: 0 | CE224: 0
BB225: 5.6 Other | BC225: 0 | BD225: 0 | BE225: 0 | BF225: 0 | BG225: 0 | BH225: 0 | BI225: 0 | BJ225: 0 | BL225: 0 | BM225: 0 | BN225: 0 | BO225: 0 | BP225: 0 | BQ225: 0 | BR225: 0 | BS225: 0 | BU225: 0 | BV225: 0 | BW225: 0 | BX225: 0 | BY225: 0 | BZ225: 0 | CA225: 0 | CB225: 0 | CD225: 0 | CE225: 0
BA226: =B27 -> 6 | BB226: Suffocation | BC226: 1 | BD226: 0 | BE226: 0 | BF226: 0 | BG226: 0 | BH226: 0 | BI226: 1 | BJ226: 1 | BL226: 1 | BM226: 0 | BN226: 0 | BO226: 0 | BP226: 0 | BQ226: 0 | BR226: 1 | BS226: 1 | BU226: 0 | BV226: 0 | BW226: 0 | BX226: 0 | BY226: 0 | BZ226: 0 | CA226: 0 | CB226: 0 | CD226: 2 | CE226: 2
BA227: =B28 -> 7 | BB227: Drug Overdose | BC227: 0 | BD227: 0 | BE227: 0 | BF227: 0 | BG227: 1 | BH227: 0 | BI227: 1 | BJ227: 1 | BL227: 0 | BM227: 0 | BN227: 0 | BO227: 1 | BP227: 0 | BQ227: 0 | BR227: 1 | BS227: 1 | BU227: 0 | BV227: 0 | BW227: 0 | BX227: 0 | BY227: 0 | BZ227: 0 | CA227: 0 | CB227: 0 | CD227: 2 | CE227: 2
BA228: =B29 -> 8 | BB228: =C29 -> Total (sum of Sl. 1 to 7) | BC228: =D29 -> 2 | BD228: =E29 -> 0 | BE228: =F29 -> 1 | BF228: =G29 -> 5 | BG228: =H29 -> 10 | BH228: =I29 -> 6 | BI228: =J29 -> 24 | BJ228: =K29 -> 24 | BK228: =L29 ->  | BL228: =M29 -> 1 | BM228: =N29 -> 0 | BN228: =O29 -> 1 | BO228: =P29 -> 1 | BP228: =Q29 -> 0 | BQ228: =R29 -> 4 | BR228: =S29 -> 7 | BS228: =T29 -> 7 | BT228: =U29 ->  | BU228: =V29 -> 0 | BV228: =W29 -> 0 | BW228: =X29 -> 0 | BX228: =Y29 -> 0 | BY228: =Z29 -> 0 | BZ228: =AA29 -> 0 | CA228: =AB29 -> 0 | CB228: =AC29 -> 0 | CC228: =AD29 ->  | CD228: =AE29 -> 31 | CE228: =AF29 -> 31 | CF228: =AG29 -> 
A500: StateUTCityCode | B500: DistrictCode | C500: CrimeCode | D500: DataYear | E500: Male_below 14 years | F500: Male_14 and above – below 18 years | G500: Male_18 and above – below 30 years | H500: Male_30 and above – below 45 years | I500: Male_45 and above – below 60 years | J500: Male_60 years & above | K500: Male_Total | L500: Female_below 14 years | M500: Female_14 and above – below 18 years | N500: Female_18 and above – below 30 years | O500: Female_30 and above – below 45 years | P500: Female_45 and above – below 60 years | Q500: Female_60 years & above | R500: Female_Total | S500: Trans_below 14 years | T500: Trans_14 and above – below 18 years | U500: Trans_18 and above – below 30 years | V500: Trans_30 and above – below 45 years | W500: Trans_45 and above – below 60 years | X500: Trans_60 years & above | Y500: Trans_Total | Z500: Grand Total
A501: =IF(ADSI!$G$12="",ADSI!$H$16,ADSI!$H$12) -> 6 | B501: =IF(ADSI!$G$12="",ADSI!$H$16,ADSI!$H$14) ->  | C501: =A9 -> 350 | D501: =ADSI!$K$12 -> 2021 | E501: =D9 -> 1 | F501: 0 | G501: 1 | H501: 5 | I501: 5 | J501: 5 | K501: 17 | L501: =M9 -> 0 | M501: 0 | N501: 1 | O501: 0 | P501: 0 | Q501: 1 | R501: 2 | S501: =V9 -> 0 | T501: =W9 -> 0 | U501: =X9 -> 0 | V501: =Y9 -> 0 | W501: =Z9 -> 0 | X501: =AA9 -> 0 | Y501: =AB9 -> 0 | Z501: =AE9 -> 19
A502: =IF(ADSI!$G$12="",ADSI!$H$16,ADSI!$H$12) -> 6 | B502: =IF(ADSI!$G$12="",ADSI!$H$16,ADSI!$H$14) ->  | C502: 351 | D502: =ADSI!$K$12 -> 2021 | E502: 0 | F502: 0 | G502: 0 | H502: 0 | I502: 0 | J502: 0 | K502: 0 | L502: 0 | M502: 0 | N502: 0 | O502: 0 | P502: 0 | Q502: 0 | R502: 0 | S502: 0 | T502: 0 | U502: 0 | V502: 0 | W502: 0 | X502: 0 | Y502: 0 | Z502: 0
A503: =IF(ADSI!$G$12="",ADSI!$H$16,ADSI!$H$12) -> 6 | B503: =IF(ADSI!$G$12="",ADSI!$H$16,ADSI!$H$14) ->  | C503: 352 | D503: =ADSI!$K$12 -> 2021 | E503: 0 | F503: 0 | G503: 1 | H503: 4 | I503: 2 | J503: 2 | K503: 9 | L503: 0 | M503: 0 | N503: 0 | O503: 0 | P503: 0 | Q503: 1 | R503: 1 | S503: 0 | T503: 0 | U503: 0 | V503: 0 | W503: 0 | X503: 0 | Y503: 0 | Z503: 10
A504: =IF(ADSI!$G$12="",ADSI!$H$16,ADSI!$H$12) -> 6 | B504: =IF(ADSI!$G$12="",ADSI!$H$16,ADSI!$H$14) ->  | C504: 353 | D504: =ADSI!$K$12 -> 2021 | E504: 1 | F504: 0 | G504: 0 | H504: 1 | I504: 3 | J504: 3 | K504: 8 | L504: 0 | M504: 0 | N504: 1 | O504: 0 | P504: 0 | Q504: 0 | R504: 1 | S504: 0 | T504: 0 | U504: 0 | V504: 0 | W504: 0 | X504: 0 | Y504: 0 | Z504: 9
A505: =IF(ADSI!$G$12="",ADSI!$H$16,ADSI!$H$12) -> 6 | B505: =IF(ADSI!$G$12="",ADSI!$H$16,ADSI!$H$14) ->  | C505: 354 | D505: =ADSI!$K$12 -> 2021 | E505: 0 | F505: 0 | G505: 0 | H505: 0 | I505: 0 | J505: 0 | K505: 0 | L505: 0 | M505: 0 | N505: 0 | O505: 0 | P505: 0 | Q505: 0 | R505: 0 | S505: 0 | T505: 0 | U505: 0 | V505: 0 | W505: 0 | X505: 0 | Y505: 0 | Z505: 0
A506: =IF(ADSI!$G$12="",ADSI!$H$16,ADSI!$H$12) -> 6 | B506: =IF(ADSI!$G$12="",ADSI!$H$16,ADSI!$H$14) ->  | C506: 355 | D506: =ADSI!$K$12 -> 2021 | E506: 0 | F506: 0 | G506: 0 | H506: 0 | I506: 0 | J506: 0 | K506: 0 | L506: 0 | M506: 0 | N506: 0 | O506: 0 | P506: 0 | Q506: 0 | R506: 0 | S506: 0 | T506: 0 | U506: 0 | V506: 0 | W506: 0 | X506: 0 | Y506: 0 | Z506: 0
A507: =IF(ADSI!$G$12="",ADSI!$H$16,ADSI!$H$12) -> 6 | B507: =IF(ADSI!$G$12="",ADSI!$H$16,ADSI!$H$14) ->  | C507: 356 | D507: =ADSI!$K$12 -> 2021 | E507: 0 | F507: 0 | G507: 0 | H507: 0 | I507: 0 | J507: 0 | K507: 0 | L507: 0 | M507: 0 | N507: 0 | O507: 0 | P507: 0 | Q507: 0 | R507: 0 | S507: 0 | T507: 0 | U507: 0 | V507: 0 | W507: 0 | X507: 0 | Y507: 0 | Z507: 0
A508: =IF(ADSI!$G$12="",ADSI!$H$16,ADSI!$H$12) -> 6 | B508: =IF(ADSI!$G$12="",ADSI!$H$16,ADSI!$H$14) ->  | C508: 357 | D508: =ADSI!$K$12 -> 2021 | E508: 0 | F508: 0 | G508: 0 | H508: 0 | I508: 0 | J508: 0 | K508: 0 | L508: 0 | M508: 0 | N508: 0 | O508: 0 | P508: 0 | Q508: 0 | R508: 0 | S508: 0 | T508: 0 | U508: 0 | V508: 0 | W508: 0 | X508: 0 | Y508: 0 | Z508: 0
A509: =IF(ADSI!$G$12="",ADSI!$H$16,ADSI!$H$12) -> 6 | B509: =IF(ADSI!$G$12="",ADSI!$H$16,ADSI!$H$14) ->  | C509: 358 | D509: =ADSI!$K$12 -> 2021 | E509: 0 | F509: 0 | G509: 0 | H509: 0 | I509: 1 | J509: 0 | K509: 1 | L509: 0 | M509: 0 | N509: 0 | O509: 0 | P509: 0 | Q509: 1 | R509: 1 | S509: 0 | T509: 0 | U509: 0 | V509: 0 | W509: 0 | X509: 0 | Y509: 0 | Z509: 2
A510: =IF(ADSI!$G$12="",ADSI!$H$16,ADSI!$H$12) -> 6 | B510: =IF(ADSI!$G$12="",ADSI!$H$16,ADSI!$H$14) ->  | C510: 359 | D510: =ADSI!$K$12 -> 2021 | E510: 0 | F510: 0 | G510: 0 | H510: 0 | I510: 3 | J510: 1 | K510: 4 | L510: 0 | M510: 0 | N510: 0 | O510: 0 | P510: 0 | Q510: 2 | R510: 2 | S510: 0 | T510: 0 | U510: 0 | V510: 0 | W510: 0 | X510: 0 | Y510: 0 | Z510: 6
A511: =IF(ADSI!$G$12="",ADSI!$H$16,ADSI!$H$12) -> 6 | B511: =IF(ADSI!$G$12="",ADSI!$H$16,ADSI!$H$14) ->  | C511: 360 | D511: =ADSI!$K$12 -> 2021 | E511: =D19 -> 0 | F511: 0 | G511: 0 | H511: 0 | I511: 1 | J511: 0 | K511: 1 | L511: =M19 -> 0 | M511: 0 | N511: 0 | O511: 0 | P511: 0 | Q511: 0 | R511: 0 | S511: 0 | T511: 0 | U511: 0 | V511: 0 | W511: 0 | X511: 0 | Y511: 0 | Z511: 1
A512: =IF(ADSI!$G$12="",ADSI!$H$16,ADSI!$H$12) -> 6 | B512: =IF(ADSI!$G$12="",ADSI!$H$16,ADSI!$H$14) ->  | C512: 361 | D512: =ADSI!$K$12 -> 2021 | E512: 0 | F512: 0 | G512: 0 | H512: 0 | I512: 1 | J512: 1 | K512: 2 | L512: 0 | M512: 0 | N512: 0 | O512: 0 | P512: 0 | Q512: 1 | R512: 1 | S512: 0 | T512: 0 | U512: 0 | V512: 0 | W512: 0 | X512: 0 | Y512: 0 | Z512: 3
A513: =IF(ADSI!$G$12="",ADSI!$H$16,ADSI!$H$12) -> 6 | B513: =IF(ADSI!$G$12="",ADSI!$H$16,ADSI!$H$14) ->  | C513: 362 | D513: =ADSI!$K$12 -> 2021 | E513: 0 | F513: 0 | G513: 0 | H513: 0 | I513: 0 | J513: 0 | K513: 0 | L513: 0 | M513: 0 | N513: 0 | O513: 0 | P513: 0 | Q513: 0 | R513: 0 | S513: 0 | T513: 0 | U513: 0 | V513: 0 | W513: 0 | X513: 0 | Y513: 0 | Z513: 0
A514: =IF(ADSI!$G$12="",ADSI!$H$16,ADSI!$H$12) -> 6 | B514: =IF(ADSI!$G$12="",ADSI!$H$16,ADSI!$H$14) ->  | C514: 363 | D514: =ADSI!$K$12 -> 2021 | E514: 0 | F514: 0 | G514: 0 | H514: 0 | I514: 0 | J514: 0 | K514: 0 | L514: 0 | M514: 0 | N514: 0 | O514: 0 | P514: 0 | Q514: 0 | R514: 0 | S514: 0 | T514: 0 | U514: 0 | V514: 0 | W514: 0 | X514: 0 | Y514: 0 | Z514: 0
A515: =IF(ADSI!$G$12="",ADSI!$H$16,ADSI!$H$12) -> 6 | B515: =IF(ADSI!$G$12="",ADSI!$H$16,ADSI!$H$14) ->  | C515: 364 | D515: =ADSI!$K$12 -> 2021 | E515: 0 | F515: 0 | G515: 0 | H515: 0 | I515: 0 | J515: 0 | K515: 0 | L515: 0 | M515: 0 | N515: 0 | O515: 0 | P515: 0 | Q515: 0 | R515: 0 | S515: 0 | T515: 0 | U515: 0 | V515: 0 | W515: 0 | X515: 0 | Y515: 0 | Z515: 0
A516: =IF(ADSI!$G$12="",ADSI!$H$16,ADSI!$H$12) -> 6 | B516: =IF(ADSI!$G$12="",ADSI!$H$16,ADSI!$H$14) ->  | C516: 365 | D516: =ADSI!$K$12 -> 2021 | E516: 0 | F516: 0 | G516: 0 | H516: 0 | I516: 1 | J516: 0 | K516: 1 | L516: 0 | M516: 0 | N516: 0 | O516: 0 | P516: 0 | Q516: 1 | R516: 1 | S516: 0 | T516: 0 | U516: 0 | V516: 0 | W516: 0 | X516: 0 | Y516: 0 | Z516: 2
A517: =IF(ADSI!$G$12="",ADSI!$H$16,ADSI!$H$12) -> 6 | B517: =IF(ADSI!$G$12="",ADSI!$H$16,ADSI!$H$14) ->  | C517: 366 | D517: =ADSI!$K$12 -> 2021 | E517: 0 | F517: 0 | G517: 0 | H517: 0 | I517: 0 | J517: 0 | K517: 0 | L517: 0 | M517: 0 | N517: 0 | O517: 0 | P517: 0 | Q517: 0 | R517: 0 | S517: 0 | T517: 0 | U517: 0 | V517: 0 | W517: 0 | X517: 0 | Y517: 0 | Z517: 0
A518: =IF(ADSI!$G$12="",ADSI!$H$16,ADSI!$H$12) -> 6 | B518: =IF(ADSI!$G$12="",ADSI!$H$16,ADSI!$H$14) ->  | C518: 367 | D518: =ADSI!$K$12 -> 2021 | E518: 0 | F518: 0 | G518: 0 | H518: 0 | I518: 0 | J518: 0 | K518: 0 | L518: 0 | M518: 0 | N518: 0 | O518: 0 | P518: 0 | Q518: 0 | R518: 0 | S518: 0 | T518: 0 | U518: 0 | V518: 0 | W518: 0 | X518: 0 | Y518: 0 | Z518: 0
A519: =IF(ADSI!$G$12="",ADSI!$H$16,ADSI!$H$12) -> 6 | B519: =IF(ADSI!$G$12="",ADSI!$H$16,ADSI!$H$14) ->  | C519: 368 | D519: =ADSI!$K$12 -> 2021 | E519: 1 | F519: 0 | G519: 0 | H519: 0 | I519: 0 | J519: 0 | K519: 1 | L519: 1 | M519: 0 | N519: 0 | O519: 0 | P519: 0 | Q519: 0 | R519: 1 | S519: 0 | T519: 0 | U519: 0 | V519: 0 | W519: 0 | X519: 0 | Y519: 0 | Z519: 2
A520: =IF(ADSI!$G$12="",ADSI!$H$16,ADSI!$H$12) -> 6 | B520: =IF(ADSI!$G$12="",ADSI!$H$16,ADSI!$H$14) ->  | C520: 369 | D520: =ADSI!$K$12 -> 2021 | E520: 0 | F520: 0 | G520: 0 | H520: 0 | I520: 1 | J520: 0 | K520: 1 | L520: 0 | M520: 0 | N520: 0 | O520: 1 | P520: 0 | Q520: 0 | R520: 1 | S520: 0 | T520: 0 | U520: 0 | V520: 0 | W520: 0 | X520: 0 | Y520: 0 | Z520: 2
A521: =IF(ADSI!$G$12="",ADSI!$H$16,ADSI!$H$12) -> 6 | B521: =IF(ADSI!$G$12="",ADSI!$H$16,ADSI!$H$14) ->  | C521: 390 | D521: =ADSI!$K$12 -> 2021 | E521: =D29 -> 2 | F521: 0 | G521: 1 | H521: 5 | I521: 10 | J521: 6 | K521: 24 | L521: =M29 -> 1 | M521: 0 | N521: 1 | O521: 1 | P521: 0 | Q521: 4 | R521: 7 | S521: 0 | T521: 0 | U521: 0 | V521: 0 | W521: 0 | X521: 0 | Y521: 0 | Z521: 31

Sheet P-VI
A1: =ADSI!$B$1 -> Goa, , ADSI-2021
A2: Errors | C2: =COUNTIF(E31:L33,FALSE) -> 0
A3: Proforma–VI
A4: Details of Road Accident According to Type of Vehicle and Mode of Transport involved (Culpability vis-à-vis Fatality)
A5: Code | B5: Sl. No. | C5: Mode of Transport | E5: Number of Persons Travelling in the Involved mode of Transport
E7: Injured | I7: Died
E8: Male | F8: Female | G8: Transgender | H8: Total [sum of (11) to (13)] | I8: Male | J8: Female | K8: Transgender | L8: Total [sum of (15) to (17)]
B9: (1) | C9: (2) | E9: (11) | F9: (12) | G9: (13) | H9: (14) | I9: (15) | J9: (16) | K9: (17) | L9: (18)
A10: 400 | B10: 1 | C10: Truck/Lorry/Mini Truck | E10: 16 | F10: 3 | G10: 0 | H10: =SUM(E10:G10) -> 19 | I10: 5 | J10: 1 | K10: 0 | L10: =SUM(I10:K10) -> 6
A11: 405 | B11: 2 | C11: Bus | E11: 20 | F11: 10 | G11: 0 | H11: =SUM(E11:G11) -> 30 | I11: 0 | J11: 0 | K11: 0 | L11: =SUM(I11:K11) -> 0
A12: 409 | B12: 3 | C12: SUV / Car / Jeep / etc. | E12: 129 | F12: 35 | G12: 0 | H12: 164 | I12: 26 | J12: 3 | K12: 0 | L12: 29
A13: 420 | B13: 4 | C13: Tractor | E13: 0 | F13: 0 | G13: 0 | H13: 0 | I13: 0 | J13: 0 | K13: 0 | L13: 0
A14: 421 | B14: 5 | C14: Three Wheeler/Auto rickshaw | D14: Total (sum of 7.1 & 7.2) | E14: =SUM(E15:E16) -> 2 | F14: 1 | G14: 0 | H14: 3 | I14: 0 | J14: 0 | K14: 0 | L14: 0
A15: 422 | D15: 5.1 Passenger Carriers | E15: 0 | F15: 1 | G15: 0 | H15: 1 | I15: 0 | J15: 0 | K15: 0 | L15: 0
A16: 423 | D16: 5.2 Goods Carriers | E16: 2 | F16: 0 | G16: 0 | H16: 2 | I16: 0 | J16: 0 | K16: 0 | L16: 0
A17: 424 | B17: 6 | C17: Two Wheeler | E17: 486 | F17: 90 | G17: 0 | H17: 576 | I17: 132 | J17: 19 | K17: 0 | L17: 151
A18: 428 | B18: 7 | C18: Other Motor Vehicles | E18: 0 | F18: 0 | G18: 0 | H18: 0 | I18: 0 | J18: 0 | K18: 0 | L18: 0
A19: 429 | B19: 8 | C19: Sub-Total (sum of Sl. 1 to 7) | E19: =SUM(E10:E14,E17:E18) -> 653 | F19: =SUM(F10:F14,F17:F18) -> 139 | G19: 0 | H19: 792 | I19: =SUM(I10:I14,I17:I18) -> 163 | J19: 23 | K19: 0 | L19: 186
A20: 430 | B20: 9 | C20: Bicycle | E20: 11 | F20: 0 | G20: 0 | H20: 11 | I20: 6 | J20: 0 | K20: 0 | L20: 6
A21: 431 | B21: 10 | C21: Hand Drawn Vehicle/Cycle rickshaw | E21: 0 | F21: 0 | G21: 0 | H21: 0 | I21: 0 | J21: 0 | K21: 0 | L21: 0
A22: 432 | B22: 11 | C22: Animal Drawn Vehicle | E22: 0 | F22: 0 | G22: 0 | H22: 0 | I22: 0 | J22: 0 | K22: 0 | L22: 0
A23: 433 | B23: 12 | C23: Pedestrian | E23: 32 | F23: 21 | G23: 0 | H23: 53 | I23: 24 | J23: 10 | K23: 0 | L23: 34
A24: 434 | B24: 13 | C24: Others | E24: 0 | F24: 0 | G24: 0 | H24: 0 | I24: 0 | J24: 0 | K24: 0 | L24: 0
A25: 435 | B25: 14 | C25: Sub-Total (sum of Sl. 9 to 13) | E25: =SUM(E20:E24) -> 43 | F25: 21 | G25: 0 | H25: 64 | I25: 30 | J25: 10 | K25: 0 | L25: 40
A26: 450 | C26: Total (sum of Sl. 8 & 14) | E26: =SUM(E19+E25) -> 696 | F26: 160 | G26: 0 | H26: 856 | I26: 193 | J26: 33 | K26: 0 | L26: 226
A27: VALIDATION WITH PROFORMA–II [Sl.–12.1 (Road Accidents Total)] | E27: No. of Persons Injured | I27: No. of Persons Died
E28: Male | F28: Female | G28: Transgender | H28: Total | I28: Male | J28: Female | K28: Transgender | L28: Total
A29: PROFORMA–II VALUES [Sl.– 12.1 (Road Accidents Total)] | E29: ='P-II'!F43 -> 696 | F29: ='P-II'!G43 -> 160 | G29: ='P-II'!H43 -> 0 | H29: ='P-II'!I43 -> 856 | I29: ='P-II'!J43 -> 193 | J29: ='P-II'!K43 -> 33 | K29: ='P-II'!L43 -> 0 | L29: ='P-II'!M43 -> 226
A30: VALIDATION FOR INJURED and DIED [sum of Offending Driver/Pedestrian and Victims] | E30: =IF(E26=E29,"",FALSE) ->  | F30: =IF(F26=F29,"",FALSE) -> 
A31: SL-7 ABNORMAL VARIATION IN "OTHER MOTOR VEHICLES" DATA | E31: =IF(E19>0,IF((E18/E19*100)>10,"ABVAR",""),"") -> 
A32: SL-12 ABNORMAL VARIATION IN "PEDESTRIAN" DATA | E32: =IF(E25>0,IF((E23/E26*100)>15,"RE-CHECK",""),"") ->  | J32: RE-CHECK | L32: RE-CHECK
A33: SL-12 ABNORMAL VARIATION IN "OTHERS" DATA | E33: =IF(E25>0,IF((E24/E25*100)>10,"ABVAR",""),"") -> 
AK180: =A1 -> Goa, , ADSI-2021
AK181: =A2 -> Errors | AL181: =C2 -> 0
AK182: =A3 -> Proforma–VI
AK183: =A4 -> Details of Road Accident According to Type of Vehicle and Mode of Transport involved (Culpability vis-à-vis Fatality)
AK184: =B5 -> Sl. No. | AL184: =C5 -> Mode of Transport
AN185: =E5 -> Number of Persons Travelling in the Involved mode of Transport | AR185: Victims
AN186: =E7 -> Injured | AR186: =I7 -> Died
AN187: Male | AO187: =F8 -> Female | AP187: =G8 -> Transgender | AQ187: =H8 -> Total [sum of (11) to (13)] | AR187: Male | AS187: =J8 -> Female | AT187: =K8 -> Transgender | AU187: =L8 -> Total [sum of (15) to (17)]
AK188: =B9 -> (1) | AL188: (2) | AN188: (11) | AO188: (12) | AP188: (13) | AQ188: (14) | AR188: (15) | AS188: (16) | AT188: (17) | AU188: (18)
AK189: 1 | AL189: Truck/Lorry/Mini Truck | AM189: =D10 -> 0 | AN189: 16 | AO189: 3 | AP189: 0 | AQ189: 19 | AR189: 5 | AS189: 1 | AT189: 0 | AU189: 6
AK190: 2 | AL190: Bus | AM190: 0 | AN190: 20 | AO190: 10 | AP190: 0 | AQ190: 30 | AR190: 0 | AS190: 0 | AT190: 0 | AU190: 0
AK191: 3 | AL191: SUV / Car / Jeep / etc. | AM191: 0 | AN191: 129 | AO191: 35 | AP191: 0 | AQ191: 164 | AR191: 26 | AS191: 3 | AT191: 0 | AU191: 29
AK192: 4 | AL192: Tractor | AM192: 0 | AN192: 0 | AO192: 0 | AP192: 0 | AQ192: 0 | AR192: 0 | AS192: 0 | AT192: 0 | AU192: 0
AK193: 5 | AL193: Three Wheeler/Auto rickshaw | AM193: Total (sum of 7.1 & 7.2) | AN193: 2 | AO193: 1 | AP193: 0 | AQ193: 3 | AR193: 0 | AS193: 0 | AT193: 0 | AU193: 0
AM194: 5.1 Passenger Carriers | AN194: 0 | AO194: 1 | AP194: 0 | AQ194: 1 | AR194: 0 | AS194: 0 | AT194: 0 | AU194: 0
AM195: 5.2 Goods Carriers | AN195: 2 | AO195: 0 | AP195: 0 | AQ195: 2 | AR195: 0 | AS195: 0 | AT195: 0 | AU195: 0
AK196: =B17 -> 6 | AL196: =C17 -> Two Wheeler | AM196: 0 | AN196: 486 | AO196: 90 | AP196: 0 | AQ196: 576 | AR196: 132 | AS196: 19 | AT196: 0 | AU196: 151
AK197: 7 | AL197: Other Motor Vehicles | AN197: 0 | AO197: 0 | AP197: 0 | AQ197: 0 | AR197: 0 | AS197: 0 | AT197: 0 | AU197: 0
AK198: 8 | AL198: Sub-Total (sum of Sl. 1 to 7) | AN198: 653 | AO198: 139 | AP198: 0 | AQ198: 792 | AR198: 163 | AS198: 23 | AT198: 0 | AU198: 186
AK199: 9 | AL199: Bicycle | AN199: 11 | AO199: 0 | AP199: 0 | AQ199: 11 | AR199: 6 | AS199: 0 | AT199: 0 | AU199: 6
AK200: 10 | AL200: Hand Drawn Vehicle/Cycle rickshaw | AN200: 0 | AO200: 0 | AP200: 0 | AQ200: 0 | AR200: 0 | AS200: 0 | AT200: 0 | AU200: 0
AK201: 11 | AL201: Animal Drawn Vehicle | AN201: 0 | AO201: 0 | AP201: 0 | AQ201: 0 | AR201: 0 | AS201: 0 | AT201: 0 | AU201: 0
AK202: 12 | AL202: Pedestrian | AN202: 32 | AO202: 21 | AP202: 0 | AQ202: 53 | AR202: 24 | AS202: 10 | AT202: 0 | AU202: 34
AK203: 13 | AL203: Others | AN203: 0 | AO203: 0 | AP203: 0 | AQ203: 0 | AR203: 0 | AS203: 0 | AT203: 0 | AU203: 0
AK204: 14 | AL204: Sub-Total (sum of Sl. 9 to 13) | AN204: 43 | AO204: 21 | AP204: 0 | AQ204: 64 | AR204: 30 | AS204: 10 | AT204: 0 | AU204: 40
AK205: 0 | AL205: Total (sum of Sl. 8 & 14) | AN205: 696 | AO205: 160 | AP205: 0 | AQ205: 856 | AR205: 193 | AS205: 33 | AT205: 0 | AU205: 226
AK206: =A27 -> VALIDATION WITH PROFORMA–II [Sl.–12.1 (Road Accidents Total)]
AK208: =A29 -> PROFORMA–II VALUES [Sl.– 12.1 (Road Accidents Total)]
AK209: =A30 -> VALIDATION FOR INJURED and DIED [sum of Offending Driver/Pedestrian and Victims]
AK210: =A31 -> SL-7 ABNORMAL VARIATION IN "OTHER MOTOR VEHICLES" DATA | AN210: =E31 -> 
AK211: =A32 -> SL-12 ABNORMAL VARIATION IN "PEDESTRIAN" DATA | AN211: =E32 ->  | AO211: =F32 ->  | AP211: =G32 ->  | AQ211: =H32 ->  | AR211: =I32 ->  | AS211: =J32 -> RE-CHECK | AT211: =K32 ->  | AU211: =L32 -> RE-CHECK
AK212: =A33 -> SL-12 ABNORMAL VARIATION IN "OTHERS" DATA | AN212: =E33 -> 
A480: StateUTCityCode | B480: DistrictCode | C480: CrimeCode | D480: DataYear | E480: Victims Died_Male | F480: Victims Died_Female | G480: Victims Died_Trans | H480: Victims Died_Total | I480: Victims Injured_Male | J480: Victims Injured_Female | K480: Victims Injured_Trans | L480: Victims Injured_Total
A481: =IF(ADSI!$G$12="",ADSI!$H$16,ADSI!$H$12) -> 6 | B481: =IF(ADSI!$G$12="",ADSI!$H$16,ADSI!$H$14) ->  | C481: =A10 -> 400 | D481: =ADSI!$K$12 -> 2021 | E481: =E10 -> 16 | F481: 3 | G481: 0 | H481: 19 | I481: 5 | J481: 1 | K481: 0 | L481: 6
A482: =IF(ADSI!$G$12="",ADSI!$H$16,ADSI!$H$12) -> 6 | B482: =IF(ADSI!$G$12="",ADSI!$H$16,ADSI!$H$14) ->  | C482: 405 | D482: =ADSI!$K$12 -> 2021 | E482: 20 | F482: 10 | G482: 0 | H482: 30 | I482: 0 | J482: 0 | K482: 0 | L482: 0
A483: =IF(ADSI!$G$12="",ADSI!$H$16,ADSI!$H$12) -> 6 | B483: =IF(ADSI!$G$12="",ADSI!$H$16,ADSI!$H$14) ->  | C483: 409 | D483: =ADSI!$K$12 -> 2021 | E483: 129 | F483: 35 | G483: 0 | H483: 164 | I483: 26 | J483: 3 | K483: 0 | L483: 29
A484: =IF(ADSI!$G$12="",ADSI!$H$16,ADSI!$H$12) -> 6 | B484: =IF(ADSI!$G$12="",ADSI!$H$16,ADSI!$H$14) ->  | C484: 420 | D484: =ADSI!$K$12 -> 2021 | E484: 0 | F484: 0 | G484: 0 | H484: 0 | I484: 0 | J484: 0 | K484: 0 | L484: 0
A485: =IF(ADSI!$G$12="",ADSI!$H$16,ADSI!$H$12) -> 6 | B485: =IF(ADSI!$G$12="",ADSI!$H$16,ADSI!$H$14) ->  | C485: 421 | D485: =ADSI!$K$12 -> 2021 | E485: 2 | F485: 1 | G485: 0 | H485: 3 | I485: 0 | J485: 0 | K485: 0 | L485: 0
A486: =IF(ADSI!$G$12="",ADSI!$H$16,ADSI!$H$12) -> 6 | B486: =IF(ADSI!$G$12="",ADSI!$H$16,ADSI!$H$14) ->  | C486: 422 | D486: =ADSI!$K$12 -> 2021 | E486: 0 | F486: 1 | G486: 0 | H486: 1 | I486: 0 | J486: 0 | K486: 0 | L486: 0
A487: =IF(ADSI!$G$12="",ADSI!$H$16,ADSI!$H$12) -> 6 | B487: =IF(ADSI!$G$12="",ADSI!$H$16,ADSI!$H$14) ->  | C487: 423 | D487: =ADSI!$K$12 -> 2021 | E487: 2 | F487: 0 | G487: 0 | H487: 2 | I487: 0 | J487: 0 | K487: 0 | L487: 0
A488: =IF(ADSI!$G$12="",ADSI!$H$16,ADSI!$H$12) -> 6 | B488: =IF(ADSI!$G$12="",ADSI!$H$16,ADSI!$H$14) ->  | C488: 424 | D488: =ADSI!$K$12 -> 2021 | E488: 486 | F488: 90 | G488: 0 | H488: 576 | I488: 132 | J488: 19 | K488: 0 | L488: 151
A489: =IF(ADSI!$G$12="",ADSI!$H$16,ADSI!$H$12) -> 6 | B489: =IF(ADSI!$G$12="",ADSI!$H$16,ADSI!$H$14) ->  | C489: =A18 -> 428 | D489: =ADSI!$K$12 -> 2021 | E489: =E18 -> 0 | F489: 0 | G489: 0 | H489: 0 | I489: 0 | J489: 0 | K489: 0 | L489: 0
A490: =IF(ADSI!$G$12="",ADSI!$H$16,ADSI!$H$12) -> 6 | B490: =IF(ADSI!$G$12="",ADSI!$H$16,ADSI!$H$14) ->  | C490: 429 | D490: =ADSI!$K$12 -> 2021 | E490: =E19 -> 653 | F490: 139 | G490: 0 | H490: 792 | I490: 163 | J490: 23 | K490: 0 | L490: 186
A491: =IF(ADSI!$G$12="",ADSI!$H$16,ADSI!$H$12) -> 6 | B491: =IF(ADSI!$G$12="",ADSI!$H$16,ADSI!$H$14) ->  | C491: 430 | D491: =ADSI!$K$12 -> 2021 | E491: =E20 -> 11 | F491: 0 | G491: 0 | H491: 11 | I491: 6 | J491: 0 | K491: 0 | L491: 6
A492: =IF(ADSI!$G$12="",ADSI!$H$16,ADSI!$H$12) -> 6 | B492: =IF(ADSI!$G$12="",ADSI!$H$16,ADSI!$H$14) ->  | C492: 431 | D492: =ADSI!$K$12 -> 2021 | E492: =E21 -> 0 | F492: 0 | G492: 0 | H492: 0 | I492: 0 | J492: 0 | K492: 0 | L492: 0
A493: =IF(ADSI!$G$12="",ADSI!$H$16,ADSI!$H$12) -> 6 | B493: =IF(ADSI!$G$12="",ADSI!$H$16,ADSI!$H$14) ->  | C493: 432 | D493: =ADSI!$K$12 -> 2021 | E493: =E22 -> 0 | F493: 0 | G493: 0 | H493: 0 | I493: 0 | J493: 0 | K493: 0 | L493: 0
A494: =IF(ADSI!$G$12="",ADSI!$H$16,ADSI!$H$12) -> 6 | B494: =IF(ADSI!$G$12="",ADSI!$H$16,ADSI!$H$14) ->  | C494: =A23 -> 433 | D494: =ADSI!$K$12 -> 2021 | E494: =E23 -> 32 | F494: 21 | G494: 0 | H494: 53 | I494: 24 | J494: 10 | K494: 0 | L494: 34
A495: =IF(ADSI!$G$12="",ADSI!$H$16,ADSI!$H$12) -> 6 | B495: =IF(ADSI!$G$12="",ADSI!$H$16,ADSI!$H$14) ->  | C495: 434 | D495: =ADSI!$K$12 -> 2021 | E495: =E24 -> 0 | F495: 0 | G495: 0 | H495: 0 | I495: 0 | J495: 0 | K495: 0 | L495: 0
A496: =IF(ADSI!$G$12="",ADSI!$H$16,ADSI!$H$12) -> 6 | B496: =IF(ADSI!$G$12="",ADSI!$H$16,ADSI!$H$14) ->  | C496: 435 | D496: =ADSI!$K$12 -> 2021 | E496: =E25 -> 43 | F496: 21 | G496: 0 | H496: 64 | I496: 30 | J496: 10 | K496: 0 | L496: 40
A497: =IF(ADSI!$G$12="",ADSI!$H$16,ADSI!$H$12) -> 6 | B497: =IF(ADSI!$G$12="",ADSI!$H$16,ADSI!$H$14) ->  | C497: 450 | D497: =ADSI!$K$12 -> 2021 | E497: =E26 -> 696 | F497: 160 | G497: 0 | H497: 856 | I497: 193 | J497: 33 | K497: 0 | L497: 226
A500: StateUTCityCode | B500: DistrictCode | C500: CrimeCode | D500: DataYear | E500: Victims Injured_Male | F500: Victims Injured_Female | G500: Victims Injured_Trans | H500: Victims Injured_Total | I500: Victims Died_Male | J500: Victims Died_Female | K500: Victims Died_Trans | L500: Victims Died_Total
A501: =IF(ADSI!$G$12="",ADSI!$H$16,ADSI!$H$12) -> 6 | B501: =IF(ADSI!$G$12="",ADSI!$H$16,ADSI!$H$14) ->  | C501: =A10 -> 400 | D501: =ADSI!$K$12 -> 2021 | E501: =E10 -> 16 | F501: =F10 -> 3 | G501: 0 | H501: 19 | I501: 5 | J501: 1 | K501: 0 | L501: 6
A502: =IF(ADSI!$G$12="",ADSI!$H$16,ADSI!$H$12) -> 6 | B502: =IF(ADSI!$G$12="",ADSI!$H$16,ADSI!$H$14) ->  | C502: =A11 -> 405 | D502: =ADSI!$K$12 -> 2021 | E502: =E11 -> 20 | F502: 10 | G502: 0 | H502: 30 | I502: 0 | J502: 0 | K502: 0 | L502: 0
A503: =IF(ADSI!$G$12="",ADSI!$H$16,ADSI!$H$12) -> 6 | B503: =IF(ADSI!$G$12="",ADSI!$H$16,ADSI!$H$14) ->  | C503: 409 | D503: =ADSI!$K$12 -> 2021 | E503: 129 | F503: 35 | G503: 0 | H503: 164 | I503: 26 | J503: 3 | K503: 0 | L503: 29
A504: =IF(ADSI!$G$12="",ADSI!$H$16,ADSI!$H$12) -> 6 | B504: =IF(ADSI!$G$12="",ADSI!$H$16,ADSI!$H$14) ->  | C504: 420 | D504: =ADSI!$K$12 -> 2021 | E504: 0 | F504: 0 | G504: 0 | H504: 0 | I504: 0 | J504: 0 | K504: 0 | L504: 0
A505: =IF(ADSI!$G$12="",ADSI!$H$16,ADSI!$H$12) -> 6 | B505: =IF(ADSI!$G$12="",ADSI!$H$16,ADSI!$H$14) ->  | C505: 421 | D505: =ADSI!$K$12 -> 2021 | E505: 2 | F505: 1 | G505: 0 | H505: 3 | I505: 0 | J505: 0 | K505: 0 | L505: 0
A506: =IF(ADSI!$G$12="",ADSI!$H$16,ADSI!$H$12) -> 6 | B506: =IF(ADSI!$G$12="",ADSI!$H$16,ADSI!$H$14) ->  | C506: 422 | D506: =ADSI!$K$12 -> 2021 | E506: 0 | F506: 1 | G506: 0 | H506: 1 | I506: 0 | J506: 0 | K506: 0 | L506: 0
A507: =IF(ADSI!$G$12="",ADSI!$H$16,ADSI!$H$12) -> 6 | B507: =IF(ADSI!$G$12="",ADSI!$H$16,ADSI!$H$14) ->  | C507: 423 | D507: =ADSI!$K$12 -> 2021 | E507: 2 | F507: 0 | G507: 0 | H507: 2 | I507: 0 | J507: 0 | K507: 0 | L507: 0
A508: =IF(ADSI!$G$12="",ADSI!$H$16,ADSI!$H$12) -> 6 | B508: =IF(ADSI!$G$12="",ADSI!$H$16,ADSI!$H$14) ->  | C508: 424 | D508: =ADSI!$K$12 -> 2021 | E508: 486 | F508: 90 | G508: 0 | H508: 576 | I508: 132 | J508: 19 | K508: 0 | L508: 151
A509: =IF(ADSI!$G$12="",ADSI!$H$16,ADSI!$H$12) -> 6 | B509: =IF(ADSI!$G$12="",ADSI!$H$16,ADSI!$H$14) ->  | C509: 428 | D509: =ADSI!$K$12 -> 2021 | E509: 0 | F509: 0 | G509: 0 | H509: 0 | I509: 0 | J509: 0 | K509: 0 | L509: 0
A510: =IF(ADSI!$G$12="",ADSI!$H$16,ADSI!$H$12) -> 6 | B510: =IF(ADSI!$G$12="",ADSI!$H$16,ADSI!$H$14) ->  | C510: 429 | D510: =ADSI!$K$12 -> 2021 | E510: 653 | F510: 139 | G510: 0 | H510: 792 | I510: 163 | J510: 23 | K510: 0 | L510: 186
A511: =IF(ADSI!$G$12="",ADSI!$H$16,ADSI!$H$12) -> 6 | B511: =IF(ADSI!$G$12="",ADSI!$H$16,ADSI!$H$14) ->  | C511: 430 | D511: =ADSI!$K$12 -> 2021 | E511: 11 | F511: 0 | G511: 0 | H511: 11 | I511: 6 | J511: 0 | K511: 0 | L511: 6
A512: =IF(ADSI!$G$12="",ADSI!$H$16,ADSI!$H$12) -> 6 | B512: =IF(ADSI!$G$12="",ADSI!$H$16,ADSI!$H$14) ->  | C512: 431 | D512: =ADSI!$K$12 -> 2021 | E512: 0 | F512: 0 | G512: 0 | H512: 0 | I512: 0 | J512: 0 | K512: 0 | L512: 0
A513: =IF(ADSI!$G$12="",ADSI!$H$16,ADSI!$H$12) -> 6 | B513: =IF(ADSI!$G$12="",ADSI!$H$16,ADSI!$H$14) ->  | C513: 432 | D513: =ADSI!$K$12 -> 2021 | E513: 0 | F513: 0 | G513: 0 | H513: 0 | I513: 0 | J513: 0 | K513: 0 | L513: 0
A514: =IF(ADSI!$G$12="",ADSI!$H$16,ADSI!$H$12) -> 6 | B514: =IF(ADSI!$G$12="",ADSI!$H$16,ADSI!$H$14) ->  | C514: 433 | D514: =ADSI!$K$12 -> 2021 | E514: 32 | F514: 21 | G514: 0 | H514: 53 | I514: 24 | J514: 10 | K514: 0 | L514: 34
A515: =IF(ADSI!$G$12="",ADSI!$H$16,ADSI!$H$12) -> 6 | B515: =IF(ADSI!$G$12="",ADSI!$H$16,ADSI!$H$14) ->  | C515: 434 | D515: =ADSI!$K$12 -> 2021 | E515: 0 | F515: 0 | G515: 0 | H515: 0 | I515: 0 | J515: 0 | K515: 0 | L515: 0
A516: =IF(ADSI!$G$12="",ADSI!$H$16,ADSI!$H$12) -> 6 | B516: =IF(ADSI!$G$12="",ADSI!$H$16,ADSI!$H$14) ->  | C516: 435 | D516: =ADSI!$K$12 -> 2021 | E516: 43 | F516: 21 | G516: 0 | H516: 64 | I516: 30 | J516: 10 | K516: 0 | L516: 40
A517: =IF(ADSI!$G$12="",ADSI!$H$16,ADSI!$H$12) -> 6 | B517: =IF(ADSI!$G$12="",ADSI!$H$16,ADSI!$H$14) ->  | C517: 450 | D517: =ADSI!$K$12 -> 2021 | E517: 696 | F517: 160 | G517: 0 | H517: 856 | I517: 193 | J517: 33 | K517: 0 | L517: 226

Sheet P-VII
A1: =ADSI!$B$1 -> Goa, , ADSI-2021
A2: Errors | C2: =COUNTIF(D14:M14,FALSE)+COUNTIF(E8:E12,FALSE) -> 0
A3: Proforma–VII
A4: Road Accidents Classified According to classification of Road
A5: Code | B5: Sl. No. | C5: Classification of Roads | D5: No. of Cases | E5: VALIDATION WITH NUMBER OF CASES | F5: No. of Persons Injured | J5: No. of Persons Died
F6: Male | G6: Female | H6: Transgender | I6: Total [sum of (4) to (6)] | J6: Male | K6: Female | L6: Transgender | M6: Total [sum of (8) to (10)]
B7: (1) | C7: (2) | D7: (3) | F7: (4) | G7: (5) | H7: (6) | I7: (7) | J7: (8) | K7: (9) | L7: (10) | M7: (11)
A8: 476 | B8: 1 | C8: National Highways | D8: 1069 | E8: =IF(AND(OR(I8>0,M8>0),D8=0),FALSE,"") ->  | F8: 228 | G8: 44 | H8: 0 | I8: =SUM(F8:H8) -> 272 | J8: 82 | K8: 11 | L8: 0 | M8: =SUM(J8:L8) -> 93
A9: 477 | B9: 2 | C9: State Highways | D9: 366 | E9: =IF(AND(OR(I9>0,M9>0),D9=0),FALSE,"") ->  | F9: 82 | G9: 28 | H9: 0 | I9: =SUM(F9:H9) -> 110 | J9: 27 | K9: 5 | L9: 0 | M9: =SUM(J9:L9) -> 32
A10: 478 | B10: 3 | C10: Expressways | D10: 0 | F10: 0 | G10: 0 | H10: 0 | I10: 0 | J10: 0 | K10: 0 | L10: 0 | M10: 0
A11: 479 | B11: 4 | C11: Other Roads | D11: 1415 | E11: =IF(AND(OR(I11>0,M11>0),D11=0),FALSE,"") ->  | F11: 386 | G11: 88 | H11: 0 | I11: 474 | J11: 84 | K11: 17 | L11: 0 | M11: 101
A12: 490 | B12: 5 | C12: Total (sum of Sl. 1 to 4) | D12: =SUM(D8:D11) -> 2850 | E12: =IF(AND(OR(I12>0,M12>0),D12=0),FALSE,"") ->  | F12: =SUM(F8:F11) -> 696 | G12: 160 | H12: 0 | I12: 856 | J12: 193 | K12: 33 | L12: 0 | M12: 226
A13: PROFORMA–II VALUES [Sl.– 12.1 (Road Accidents Total)] | D13: ='P-II'!D43 -> 2850 | F13: ='P-II'!F43 -> 696 | G13: ='P-II'!G43 -> 160 | H13: ='P-II'!H43 -> 0 | I13: ='P-II'!I43 -> 856 | J13: ='P-II'!J43 -> 193 | K13: ='P-II'!K43 -> 33 | L13: ='P-II'!L43 -> 0 | M13: ='P-II'!M43 -> 226
A14: VALIDATION WITH PROFORMA–II [Sl.– 12.1 (Road Accidents Total)] | D14: =IF(D12='P-II'!D43,"",FALSE) ->  | F14: =IF(F12='P-II'!F43,"",FALSE) ->  | G14: =IF(G12='P-II'!G43,"",FALSE) ->  | H14: =IF(H12='P-II'!H43,"",FALSE) ->  | I14: =IF(I12='P-II'!I43,"",FALSE) ->  | J14: =IF(J12='P-II'!J43,"",FALSE) ->  | K14: =IF(K12='P-II'!K43,"",FALSE) ->  | L14: =IF(L12='P-II'!L43,"",FALSE) ->  | M14: =IF(M12='P-II'!M43,"",FALSE) -> 
BA200: =A1 -> Goa, , ADSI-2021
BA201: =A2 -> Errors | BB201: =C2 -> 0
BA202: =A3 -> Proforma–VII
BA203: =A4 -> Road Accidents Classified According to classification of Road
BA204: =B5 -> Sl. No. | BB204: =C5 -> Classification of Roads | BC204: =D5 -> No. of Cases | BD204: =E5 -> VALIDATION WITH NUMBER OF CASES | BE204: =F5 -> No. of Persons Injured | BI204: =J5 -> No. of Persons Died
BE205: Male | BF205: =G6 -> Female | BG205: =H6 -> Transgender | BH205: =I6 -> Total [sum of (4) to (6)] | BI205: Male | BJ205: =K6 -> Female | BK205: =L6 -> Transgender | BL205: =M6 -> Total [sum of (8) to (10)]
BA206: =B7 -> (1) | BB206: (2) | BC206: (3) | BE206: (4) | BF206: (5) | BG206: (6) | BH206: (7) | BI206: (8) | BJ206: (9) | BK206: (10) | BL206: (11)
BA207: 1 | BB207: National Highways | BC207: 1069 | BD207: =E8 ->  | BE207: 228 | BF207: 44 | BG207: 0 | BH207: 272 | BI207: 82 | BJ207: 11 | BK207: 0 | BL207: 93
BA208: 2 | BB208: State Highways | BC208: 366 | BD208: =E9 ->  | BE208: 82 | BF208: 28 | BG208: 0 | BH208: 110 | BI208: 27 | BJ208: 5 | BK208: 0 | BL208: 32
BA209: 3 | BB209: Expressways | BC209: 0 | BE209: 0 | BF209: 0 | BG209: 0 | BH209: 0 | BI209: 0 | BJ209: 0 | BK209: 0 | BL209: 0
BA210: 4 | BB210: Other Roads | BC210: 1415 | BE210: 386 | BF210: 88 | BG210: 0 | BH210: 474 | BI210: 84 | BJ210: 17 | BK210: 0 | BL210: 101
BA211: 5 | BB211: Total (sum of Sl. 1 to 4) | BC211: 2850 | BE211: 696 | BF211: 160 | BG211: 0 | BH211: 856 | BI211: 193 | BJ211: 33 | BK211: 0 | BL211: 226
BA212: =A13 -> PROFORMA–II VALUES [Sl.– 12.1 (Road Accidents Total)] | BC212: 2850 | BE212: 696 | BF212: 160 | BG212: 0 | BH212: 856 | BI212: 193 | BJ212: 33 | BK212: 0 | BL212: 226
BA213: =A14 -> VALIDATION WITH PROFORMA–II [Sl.– 12.1 (Road Accidents Total)]
A500: StateUTCityCode | B500: DistrictCode | C500: CrimeCode | D500: DataYear | E500: Number of Cases | F500: Injured_Male | G500: Injured_Female | H500: Injured_Trans | I500: Injured_Total | J500: Died_Male | K500: Died_Female | L500: Died_Trans | M500: Died_Total
A501: =IF(ADSI!$G$12="",ADSI!$H$16,ADSI!$H$12) -> 6 | B501: =IF(ADSI!$G$12="",ADSI!$H$16,ADSI!$H$14) ->  | C501: =A8 -> 476 | D501: =ADSI!$K$12 -> 2021 | E501: =D8 -> 1069 | F501: =F8 -> 228 | G501: =G8 -> 44 | H501: 0 | I501: 272 | J501: 82 | K501: 11 | L501: 0 | M501: 93
A502: =IF(ADSI!$G$12="",ADSI!$H$16,ADSI!$H$12) -> 6 | B502: =IF(ADSI!$G$12="",ADSI!$H$16,ADSI!$H$14) ->  | C502: =A9 -> 477 | D502: =ADSI!$K$12 -> 2021 | E502: =D9 -> 366 | F502: =F9 -> 82 | G502: 28 | H502: 0 | I502: 110 | J502: 27 | K502: 5 | L502: 0 | M502: 32
A503: =IF(ADSI!$G$12="",ADSI!$H$16,ADSI!$H$12) -> 6 | B503: =IF(ADSI!$G$12="",ADSI!$H$16,ADSI!$H$14) ->  | C503: 478 | D503: =ADSI!$K$12 -> 2021 | E503: 0 | F503: =F10 -> 0 | G503: 0 | H503: 0 | I503: 0 | J503: 0 | K503: 0 | L503: 0 | M503: 0
A504: =IF(ADSI!$G$12="",ADSI!$H$16,ADSI!$H$12) -> 6 | B504: =IF(ADSI!$G$12="",ADSI!$H$16,ADSI!$H$14) ->  | C504: 479 | D504: =ADSI!$K$12 -> 2021 | E504: 1415 | F504: =F11 -> 386 | G504: 88 | H504: 0 | I504: 474 | J504: 84 | K504: 17 | L504: 0 | M504: 101
A505: =IF(ADSI!$G$12="",ADSI!$H$16,ADSI!$H$12) -> 6 | B505: =IF(ADSI!$G$12="",ADSI!$H$16,ADSI!$H$14) ->  | C505: 490 | D505: =ADSI!$K$12 -> 2021 | E505: 2850 | F505: =F12 -> 696 | G505: 160 | H505: 0 | I505: 856 | J505: 193 | K505: 33 | L505: 0 | M505: 226

Sheet P-VIII
A1: =ADSI!$B$1 -> Goa, , ADSI-2021
A2: Errors | C2: =COUNTIF(D27:M27,FALSE)+COUNTIF(E9:E15,FALSE)+COUNTIF(E17:E25,FALSE) -> 0 | E2: Abnormal Variations/Re-check | F2: =COUNTIF(D28:M30,"ABVAR")+COUNTIF(D28:M30,"RE-CHECK") -> 9 | G2: Place of occurrence refers to the nearest point from the spot of accident occurred.
A3: Proforma–VIII
A4: Road Accidents Classified According to Place of Occurence
A5: Code | B5: Sl. No. | C5: Place of Occurence | D5: No. of Cases | E5: VALIDATION WITH NUMBER OF CASES | F5: No. of Persons Injured | J5: No. of Persons Died
F6: Male | G6: Female | H6: Transgender | I6: Total [sum of (4) to (6)] | J6: Male | K6: Female | L6: Transgender | M6: Total [sum of (8) to (10)]
B7: (1) | C7: (2) | D7: (3) | F7: (4) | G7: (5) | H7: (6) | I7: (7) | J7: (8) | K7: (9) | L7: (10) | M7: (11)
A8: Rural Area
A9: 500 | B9: 1 | C9: Near School/College/Educational institution | D9: 73 | E9: =IF(AND(OR(I9>0,M9>0),D9=0),FALSE,"") ->  | F9: 30 | G9: 4 | H9: 0 | I9: =SUM(F9:H9) -> 34 | J9: 8 | K9: 3 | L9: 0 | M9: =SUM(J9:L9) -> 11
A10: 501 | B10: 2 | C10: Near Residential area | D10: 1251 | E10: =IF(AND(OR(I10>0,M10>0),D10=0),FALSE,"") ->  | F10: 278 | G10: 64 | H10: 0 | I10: =SUM(F10:H10) -> 342 | J10: 89 | K10: 14 | L10: 0 | M10: =SUM(J10:L10) -> 103
A11: 502 | B11: 3 | C11: Near religious place | D11: 143 | F11: 38 | G11: 7 | H11: 0 | I11: 45 | J11: 8 | K11: 2 | L11: 0 | M11: 10
A12: 503 | B12: 4 | C12: Near recreation place/cinema hall | D12: 45 | F12: 13 | G12: 2 | H12: 0 | I12: 15 | J12: 4 | K12: 0 | L12: 0 | M12: 4
A13: 504 | B13: 5 | C13: Near Factory | D13: 77 | F13: 9 | G13: 1 | H13: 0 | I13: 10 | J13: 10 | K13: 0 | L13: 0 | M13: 10
A14: 505 | B14: 6 | C14: Other Rural Area | D14: 462 | F14: 78 | G14: 20 | H14: 0 | I14: 98 | J14: 38 | K14: 4 | L14: 0 | M14: 42
A15: 515 | B15: 7 | C15: Sub-Total (Rural) (sum of Sl. 1 to 6) | D15: =SUM(D9:D14) -> 2051 | F15: =SUM(F9:F14) -> 446 | G15: 98 | H15: 0 | I15: 544 | J15: 157 | K15: 23 | L15: 0 | M15: 180
A16: Urban Area
A17: 525 | B17: 8 | C17: Near School/College/Educational institution | D17: 39 | F17: 15 | G17: 6 | H17: 0 | I17: =SUM(F17:H17) -> 21 | J17: 0 | K17: 1 | L17: 0 | M17: =SUM(J17:L17) -> 1
A18: 526 | B18: 9 | C18: Near Residential area | D18: 527 | F18: 150 | G18: 32 | H18: 0 | I18: =SUM(F18:H18) -> 182 | J18: 19 | K18: 6 | L18: 0 | M18: =SUM(J18:L18) -> 25
A19: 527 | B19: 10 | C19: Near religious place | D19: 52 | F19: 14 | G19: 4 | H19: 0 | I19: 18 | J19: 5 | K19: 1 | L19: 0 | M19: 6
A20: 528 | B20: 11 | C20: Near recreation place/cinema hall | D20: 69 | F20: 37 | G20: 7 | H20: 0 | I20: 44 | J20: 2 | K20: 0 | L20: 0 | M20: 2
A21: 529 | B21: 12 | C21: Near Factory/Industrial area | D21: 41 | F21: 20 | G21: 9 | H21: 0 | I21: =SUM(F21:H21) -> 29 | J21: 6 | K21: 1 | L21: 0 | M21: 7
A22: 530 | B22: 13 | C22: At Pedestrian crossing | D22: 5 | F22: 0 | G22: 0 | H22: 0 | I22: 0 | J22: 0 | K22: 0 | L22: 0 | M22: 0
A23: 531 | B23: 14 | C23: Other Urban Area | D23: 66 | F23: 14 | G23: 4 | H23: 0 | I23: 18 | J23: 4 | K23: 1 | L23: 0 | M23: 5
A24: 532 | B24: 15 | C24: Sub-Total (Urban) (sum of Sl. 8 to 14) | D24: =SUM(D17:D23) -> 799 | F24: =SUM(F17:F23) -> 250 | G24: 62 | H24: 0 | I24: 312 | J24: 36 | K24: 10 | L24: 0 | M24: 46
A25: 545 | B25: 16 | C25: Grand Total (sum of Sl. 7 & 15) | D25: =D24+D15 -> 2850 | F25: =F24+F15 -> 696 | G25: 160 | H25: 0 | I25: 856 | J25: 193 | K25: 33 | L25: 0 | M25: =SUM(J25:L25) -> 226
A26: PROFORMA–II VALUES [Sl.– 12.1 (Road Accidents Total)] | D26: ='P-II'!D43 -> 2850 | F26: ='P-II'!F43 -> 696 | G26: ='P-II'!G43 -> 160 | H26: ='P-II'!H43 -> 0 | I26: ='P-II'!I43 -> 856 | J26: ='P-II'!J43 -> 193 | K26: ='P-II'!K43 -> 33 | L26: ='P-II'!L43 -> 0 | M26: ='P-II'!M43 -> 226
A27: VALIDATION WITH PROFORMA–II [Sl.– 12.1 (Road Accidents Total)] | D27: =IF(D25='P-II'!D43,"",FALSE) ->  | F27: =IF(F25='P-II'!F43,"",FALSE) ->  | G27: =IF(G25='P-II'!G43,"",FALSE) ->  | H27: =IF(H25='P-II'!H43,"",FALSE) ->  | I27: =IF(I25='P-II'!I43,"",FALSE) ->  | J27: =IF(J25='P-II'!J43,"",FALSE) ->  | K27: =IF(K25='P-II'!K43,"",FALSE) ->  | L27: =IF(L25='P-II'!L43,"",FALSE) ->  | M27: =IF(M25='P-II'!M43,"",FALSE) -> 
A28: SL-6 ABNORMAL VARIATION IN "OTHER RURAL AREA" DATA | D28: =IF(D15>0,IF((D14/D15*100)>10,"ABVAR",""),"") -> ABVAR | F28: =IF(F15>0,IF((F14/F15*100)>10,"ABVAR",""),"") -> ABVAR | G28: =IF(G15>0,IF((G14/G15*100)>10,"ABVAR",""),"") -> ABVAR | I28: ABVAR | J28: ABVAR | K28: ABVAR | M28: ABVAR
A29: SL-13 ABNORMAL VARIATION IN "PEDESTRIAN CROSSING" DATA WITH PROFORMA-VI "PEDESTRIAN" DATA | I29: =IF(I22<='P-VI'!#REF!,"","RE-CHECK") ->  | M29: =IF(M22<='P-VI'!#REF!,"","RE-CHECK") -> 
A30: SL-14 ABNORMAL VARIATION IN "OTHER URBAN AREA" DATA | D30: =IF(D24>0,IF((D23/D24*100)>10,"ABVAR",""),"") ->  | F30: =IF(F24>0,IF((F23/F24*100)>10,"ABVAR",""),"") ->  | G30: =IF(G24>0,IF((G23/G24*100)>10,"ABVAR",""),"") ->  | I30: =IF(I24>0,IF((I23/I24*100)>10,"ABVAR",""),"") ->  | J30: ABVAR | M30: ABVAR
BA200: =A1 -> Goa, , ADSI-2021
BA201: =A2 -> Errors | BB201: =C2 -> 0 | BD201: =E2 -> Abnormal Variations/Re-check | BE201: =F2 -> 9
BA202: =A3 -> Proforma–VIII
BA203: =A4 -> Road Accidents Classified According to Place of Occurence
BA204: =B5 -> Sl. No. | BB204: =C5 -> Place of Occurence | BC204: =D5 -> No. of Cases | BD204: =E5 -> VALIDATION WITH NUMBER OF CASES | BE204: =F5 -> No. of Persons Injured | BI204: =J5 -> No. of Persons Died
BE205: =F6 -> Male | BF205: Female | BG205: Transgender | BH205: Total [sum of (4) to (6)] | BI205: =J6 -> Male | BJ205: =K6 -> Female | BK205: Transgender | BL205: Total [sum of (8) to (10)]
BA206: =B7 -> (1) | BB206: =C7 -> (2) | BC206: =D7 -> (3) | BE206: (4) | BF206: (5) | BG206: (6) | BH206: (7) | BI206: =J7 -> (8) | BJ206: (9) | BK206: (10) | BL206: (11)
BA207: =A8 -> Rural Area
BA208: =B9 -> 1 | BB208: Near School/College/Educational institution | BC208: 73 | BE208: 30 | BF208: 4 | BG208: 0 | BH208: 34 | BI208: 8 | BJ208: 3 | BK208: 0 | BL208: 11
BA209: 2 | BB209: Near Residential area | BC209: 1251 | BE209: 278 | BF209: 64 | BG209: 0 | BH209: 342 | BI209: 89 | BJ209: 14 | BK209: 0 | BL209: 103
BA210: 3 | BB210: Near religious place | BC210: 143 | BE210: 38 | BF210: 7 | BG210: 0 | BH210: 45 | BI210: 8 | BJ210: 2 | BK210: 0 | BL210: 10
BA211: 4 | BB211: Near recreation place/cinema hall | BC211: 45 | BE211: 13 | BF211: 2 | BG211: 0 | BH211: 15 | BI211: 4 | BJ211: 0 | BK211: 0 | BL211: 4
BA212: 5 | BB212: Near Factory | BC212: 77 | BE212: 9 | BF212: 1 | BG212: 0 | BH212: 10 | BI212: 10 | BJ212: 0 | BK212: 0 | BL212: 10
BA213: 6 | BB213: Other Rural Area | BC213: 462 | BE213: 78 | BF213: 20 | BG213: 0 | BH213: 98 | BI213: 38 | BJ213: 4 | BK213: 0 | BL213: 42
BA214: 7 | BB214: Sub-Total (Rural) (sum of Sl. 1 to 6) | BC214: 2051 | BE214: 446 | BF214: 98 | BG214: 0 | BH214: 544 | BI214: 157 | BJ214: 23 | BK214: 0 | BL214: 180
BA215: =A16 -> Urban Area
BA216: =B17 -> 8 | BB216: =C17 -> Near School/College/Educational institution | BC216: =D17 -> 39 | BD216: =E17 ->  | BE216: =F17 -> 15 | BF216: =G17 -> 6 | BG216: =H17 -> 0 | BH216: =I17 -> 21 | BI216: =J17 -> 0 | BJ216: =K17 -> 1 | BK216: =L17 -> 0 | BL216: =M17 -> 1
BA217: 9 | BB217: Near Residential area | BC217: 527 | BE217: 150 | BF217: 32 | BG217: 0 | BH217: 182 | BI217: 19 | BJ217: 6 | BK217: 0 | BL217: 25
BA218: 10 | BB218: Near religious place | BC218: 52 | BE218: 14 | BF218: 4 | BG218: 0 | BH218: 18 | BI218: 5 | BJ218: 1 | BK218: 0 | BL218: 6
BA219: 11 | BB219: Near recreation place/cinema hall | BC219: 69 | BE219: 37 | BF219: 7 | BG219: 0 | BH219: 44 | BI219: 2 | BJ219: 0 | BK219: 0 | BL219: 2
BA220: 12 | BB220: Near Factory/Industrial area | BC220: 41 | BE220: 20 | BF220: 9 | BG220: 0 | BH220: 29 | BI220: 6 | BJ220: 1 | BK220: 0 | BL220: 7
BA221: 13 | BB221: At Pedestrian crossing | BC221: 5 | BE221: 0 | BF221: 0 | BG221: 0 | BH221: 0 | BI221: 0 | BJ221: 0 | BK221: 0 | BL221: 0
BA222: 14 | BB222: Other Urban Area | BC222: 66 | BE222: 14 | BF222: 4 | BG222: 0 | BH222: 18 | BI222: 4 | BJ222: 1 | BK222: 0 | BL222: 5
BA223: 15 | BB223: Sub-Total (Urban) (sum of Sl. 8 to 14) | BC223: 799 | BE223: 250 | BF223: 62 | BG223: 0 | BH223: 312 | BI223: 36 | BJ223: 10 | BK223: 0 | BL223: 46
BA224: 16 | BB224: Grand Total (sum of Sl. 7 & 15) | BC224: 2850 | BE224: 696 | BF224: 160 | BG224: 0 | BH224: 856 | BI224: 193 | BJ224: 33 | BK224: 0 | BL224: 226
BA225: =A26 -> PROFORMA–II VALUES [Sl.– 12.1 (Road Accidents Total)] | BC225: =D26 -> 2850 | BE225: =F26 -> 696 | BF225: 160 | BG225: 0 | BH225: 856 | BI225: 193 | BJ225: 33 | BK225: 0 | BL225: 226
BA226: =A27 -> VALIDATION WITH PROFORMA–II [Sl.– 12.1 (Road Accidents Total)] | BC226: =D27 -> 
BA227: =A28 -> SL-6 ABNORMAL VARIATION IN "OTHER RURAL AREA" DATA | BC227: =D28 -> ABVAR | BE227: ABVAR | BF227: ABVAR | BH227: ABVAR | BI227: ABVAR | BJ227: ABVAR | BL227: ABVAR
BA228: =A29 -> SL-13 ABNORMAL VARIATION IN "PEDESTRIAN CROSSING" DATA WITH PROFORMA-VI "PEDESTRIAN" DATA | BH228: =I29 ->  | BL228: =M29 -> 
BA229: =A30 -> SL-14 ABNORMAL VARIATION IN "OTHER URBAN AREA" DATA | BC229: =D30 ->  | BE229: =F30 ->  | BI229: ABVAR | BL229: ABVAR
A500: StateUTCityCode | B500: DistrictCode | C500: CrimeCode | D500: DataYear | E500: Number of Cases | F500: Injured_Male | G500: Injured_Female | H500: Injured_Trans | I500: Injured_Total | J500: Died_Male | K500: Died_Female | L500: Died_Trans | M500: Died_Total
A501: =IF(ADSI!$G$12="",ADSI!$H$16,ADSI!$H$12) -> 6 | B501: =IF(ADSI!$G$12="",ADSI!$H$16,ADSI!$H$14) ->  | C501: =A9 -> 500 | D501: =ADSI!$K$12 -> 2021 | E501: =D9 -> 73 | F501: =F9 -> 30 | G501: =G9 -> 4 | H501: 0 | I501: 34 | J501: 8 | K501: 3 | L501: 0 | M501: 11
A502: =IF(ADSI!$G$12="",ADSI!$H$16,ADSI!$H$12) -> 6 | B502: =IF(ADSI!$G$12="",ADSI!$H$16,ADSI!$H$14) ->  | C502: =A10 -> 501 | D502: =ADSI!$K$12 -> 2021 | E502: =D10 -> 1251 | F502: =F10 -> 278 | G502: 64 | H502: 0 | I502: 342 | J502: 89 | K502: 14 | L502: 0 | M502: 103
A503: =IF(ADSI!$G$12="",ADSI!$H$16,ADSI!$H$12) -> 6 | B503: =IF(ADSI!$G$12="",ADSI!$H$16,ADSI!$H$14) ->  | C503: 502 | D503: =ADSI!$K$12 -> 2021 | E503: 143 | F503: =F11 -> 38 | G503: 7 | H503: 0 | I503: 45 | J503: 8 | K503: 2 | L503: 0 | M503: 10
A504: =IF(ADSI!$G$12="",ADSI!$H$16,ADSI!$H$12) -> 6 | B504: =IF(ADSI!$G$12="",ADSI!$H$16,ADSI!$H$14) ->  | C504: 503 | D504: =ADSI!$K$12 -> 2021 | E504: 45 | F504: =F12 -> 13 | G504: 2 | H504: 0 | I504: 15 | J504: 4 | K504: 0 | L504: 0 | M504: 4
A505: =IF(ADSI!$G$12="",ADSI!$H$16,ADSI!$H$12) -> 6 | B505: =IF(ADSI!$G$12="",ADSI!$H$16,ADSI!$H$14) ->  | C505: 504 | D505: =ADSI!$K$12 -> 2021 | E505: 77 | F505: =F13 -> 9 | G505: 1 | H505: 0 | I505: 10 | J505: 10 | K505: 0 | L505: 0 | M505: 10
A506: =IF(ADSI!$G$12="",ADSI!$H$16,ADSI!$H$12) -> 6 | B506: =IF(ADSI!$G$12="",ADSI!$H$16,ADSI!$H$14) ->  | C506: 505 | D506: =ADSI!$K$12 -> 2021 | E506: 462 | F506: =F14 -> 78 | G506: 20 | H506: 0 | I506: 98 | J506: 38 | K506: 4 | L506: 0 | M506: 42
A507: =IF(ADSI!$G$12="",ADSI!$H$16,ADSI!$H$12) -> 6 | B507: =IF(ADSI!$G$12="",ADSI!$H$16,ADSI!$H$14) ->  | C507: 515 | D507: =ADSI!$K$12 -> 2021 | E507: 2051 | F507: =F15 -> 446 | G507: 98 | H507: 0 | I507: 544 | J507: 157 | K507: 23 | L507: 0 | M507: 180
A508: =IF(ADSI!$G$12="",ADSI!$H$16,ADSI!$H$12) -> 6 | B508: =IF(ADSI!$G$12="",ADSI!$H$16,ADSI!$H$14) ->  | C508: =A17 -> 525 | D508: =ADSI!$K$12 -> 2021 | E508: =D17 -> 39 | F508: =F17 -> 15 | G508: =G17 -> 6 | H508: 0 | I508: 21 | J508: 0 | K508: 1 | L508: 0 | M508: 1
A509: =IF(ADSI!$G$12="",ADSI!$H$16,ADSI!$H$12) -> 6 | B509: =IF(ADSI!$G$12="",ADSI!$H$16,ADSI!$H$14) ->  | C509: =A18 -> 526 | D509: =ADSI!$K$12 -> 2021 | E509: =D18 -> 527 | F509: =F18 -> 150 | G509: 32 | H509: 0 | I509: 182 | J509: 19 | K509: 6 | L509: 0 | M509: 25
A510: =IF(ADSI!$G$12="",ADSI!$H$16,ADSI!$H$12) -> 6 | B510: =IF(ADSI!$G$12="",ADSI!$H$16,ADSI!$H$14) ->  | C510: 527 | D510: =ADSI!$K$12 -> 2021 | E510: 52 | F510: =F19 -> 14 | G510: 4 | H510: 0 | I510: 18 | J510: 5 | K510: 1 | L510: 0 | M510: 6
A511: =IF(ADSI!$G$12="",ADSI!$H$16,ADSI!$H$12) -> 6 | B511: =IF(ADSI!$G$12="",ADSI!$H$16,ADSI!$H$14) ->  | C511: 528 | D511: =ADSI!$K$12 -> 2021 | E511: 69 | F511: =F20 -> 37 | G511: 7 | H511: 0 | I511: 44 | J511: 2 | K511: 0 | L511: 0 | M511: 2
A512: =IF(ADSI!$G$12="",ADSI!$H$16,ADSI!$H$12) -> 6 | B512: =IF(ADSI!$G$12="",ADSI!$H$16,ADSI!$H$14) ->  | C512: 529 | D512: =ADSI!$K$12 -> 2021 | E512: 41 | F512: =F21 -> 20 | G512: 9 | H512: 0 | I512: 29 | J512: 6 | K512: 1 | L512: 0 | M512: 7
A513: =IF(ADSI!$G$12="",ADSI!$H$16,ADSI!$H$12) -> 6 | B513: =IF(ADSI!$G$12="",ADSI!$H$16,ADSI!$H$14) ->  | C513: 530 | D513: =ADSI!$K$12 -> 2021 | E513: 5 | F513: =F22 -> 0 | G513: 0 | H513: 0 | I513: 0 | J513: 0 | K513: 0 | L513: 0 | M513: 0
A514: =IF(ADSI!$G$12="",ADSI!$H$16,ADSI!$H$12) -> 6 | B514: =IF(ADSI!$G$12="",ADSI!$H$16,ADSI!$H$14) ->  | C514: 531 | D514: =ADSI!$K$12 -> 2021 | E514: 66 | F514: =F23 -> 14 | G514: 4 | H514: 0 | I514: 18 | J514: 4 | K514: 1 | L514: 0 | M514: 5
A515: =IF(ADSI!$G$12="",ADSI!$H$16,ADSI!$H$12) -> 6 | B515: =IF(ADSI!$G$12="",ADSI!$H$16,ADSI!$H$14) ->  | C515: 532 | D515: =ADSI!$K$12 -> 2021 | E515: 799 | F515: =F24 -> 250 | G515: 62 | H515: 0 | I515: 312 | J515: 36 | K515: 10 | L515: 0 | M515: 46
A516: =IF(ADSI!$G$12="",ADSI!$H$16,ADSI!$H$12) -> 6 | B516: =IF(ADSI!$G$12="",ADSI!$H$16,ADSI!$H$14) ->  | C516: 545 | D516: =ADSI!$K$12 -> 2021 | E516: 2850 | F516: =F25 -> 696 | G516: 160 | H516: 0 | I516: 856 | J516: 193 | K516: 33 | L516: 0 | M516: 226

Sheet P-IX
A1: =ADSI!$B$1 -> Goa, , ADSI-2021
A2: Errors | C2: =COUNTIF(D25:M26,FALSE)+COUNTIF(E8:E22,FALSE) -> 0 | E2: Abnormal Variations | F2: =COUNTIF(D27:M28,"ABVAR") -> 0
A3: Proforma–IX
A4: Road Accidents Classified According to Causes and Unmanned Railway Crossing Accidents
A5: Code | B5: Sl. No. | C5: Causes | D5: No. of Cases | E5: VALIDATION WITH NUMBER OF CASES | F5: No. of Persons Injured | J5: No. of Persons Died
F6: Male | G6: Female | H6: Transgender | I6: Total [sum of (4) to (6)] | J6: Male | K6: Female | L6: Transgender | M6: Total [sum of (8) to (10)]
B7: (1) | C7: (2) | D7: (3) | F7: (4) | G7: (5) | H7: (6) | I7: (7) | J7: (8) | K7: (9) | L7: (10) | M7: (11)
A8: 550 | B8: 1 | C8: Dangerous/Over-taking/Careless/etc. | D8: 1752 | E8: =IF(AND(OR(I8>0,M8>0),D8=0),FALSE,"") ->  | F8: 417 | G8: 103 | H8: 0 | I8: =SUM(F8:H8) -> 520 | J8: 117 | K8: 17 | L8: 0 | M8: =SUM(J8:L8) -> 134
A9: 551 | B9: 2 | C9: Over speeding | D9: 957 | E9: =IF(AND(OR(I9>0,M9>0),D9=0),FALSE,"") ->  | F9: 258 | G9: 55 | H9: 0 | I9: =SUM(F9:H9) -> 313 | J9: 62 | K9: 12 | L9: 0 | M9: =SUM(J9:L9) -> 74
A10: 552 | B10: 3 | C10: Driving under influence of drug/alcohol | D10: 122 | F10: 19 | G10: 2 | H10: 0 | I10: 21 | J10: 8 | K10: 2 | L10: 0 | M10: 10
A11: 553 | B11: 4 | C11: Physical fatigue of Drivers | D11: 1 | F11: 0 | G11: 0 | H11: 0 | I11: 0 | J11: 1 | K11: 0 | L11: 0 | M11: 1
A12: 554 | B12: 5 | C12: Defect in Mechanical condition of Motor Vehicle | D12: 5 | F12: 0 | G12: 0 | H12: 0 | I12: 0 | J12: 2 | K12: 0 | L12: 0 | M12: 2
A13: 555 | B13: 6 | C13: Animal Crossing | D13: 6 | F13: 1 | G13: 0 | H13: 0 | I13: 1 | J13: 2 | K13: 0 | L13: 0 | M13: 2
A14: 556 | B14: 7 | C14: Weather condition (sum of 7.1 & 7.2) | D14: =SUM(D15:D16) -> 0 | F14: =SUM(F15:F16) -> 0 | G14: 0 | H14: 0 | I14: 0 | J14: =SUM(J15:J16) -> 0 | K14: =SUM(K15:K16) -> 0 | L14: 0 | M14: 0
A15: 557 | C15: 7.1 Poor visibility | D15: 0 | F15: 0 | G15: 0 | H15: 0 | I15: 0 | J15: 0 | K15: 0 | L15: 0 | M15: 0
A16: 558 | C16: 7.2 Others causes of weather condition | D16: 0 | F16: 0 | G16: 0 | H16: 0 | I16: 0 | J16: 0 | K16: 0 | L16: 0 | M16: 0
A17: 559 | B17: 8 | C17: Lack of road infrastructure | D17: 0 | F17: 0 | G17: 0 | H17: 0 | I17: 0 | J17: 0 | K17: 0 | L17: 0 | M17: 0
A18: 560 | B18: 9 | C18: Vehicles Parking at road shoulders | D18: 2 | F18: 1 | G18: 0 | H18: 0 | I18: 1 | J18: 0 | K18: 0 | L18: 0 | M18: 0
A19: 561 | B19: 10 | C19: Unmanned Railway Crossing | D19: 0 | F19: 0 | G19: 0 | H19: 0 | I19: 0 | J19: 0 | K19: 0 | L19: 0 | M19: 0
A20: 562 | B20: 11 | C20: Causes not known | D20: 0 | F20: 0 | G20: 0 | H20: 0 | I20: 0 | J20: 0 | K20: 0 | L20: 0 | M20: 0
A21: 563 | B21: 12 | C21: Other Causes | D21: 5 | F21: 0 | G21: 0 | H21: 0 | I21: 0 | J21: 1 | K21: 2 | L21: 0 | M21: 3
A22: 580 | B22: 13 | C22: Total (sum of Sl. 1 to 12) | D22: =SUM(D8:D14)+D17+D18+D19+D20+D21 -> 2850 | F22: =SUM(F8:F14)+F17+F18+F19+F20+F21 -> 696 | G22: 160 | H22: 0 | I22: 856 | J22: 193 | K22: 33 | L22: 0 | M22: 226
B23: 14 | C23: ROAD ACCIDENTS TOTAL (EXCLUDING Unmanned Railway Crossing Accidents; Sl.–10) | D23: =D22-D19 -> 2850 | F23: =F22-F19 -> 696 | G23: 160 | H23: 0 | I23: 856 | J23: 193 | K23: 33 | L23: 0 | M23: 226
A24: PROFORMA–II VALUES [Sl.– 12.1 (Road Accidents Total)] | D24: ='P-II'!D43 -> 2850 | F24: ='P-II'!F43 -> 696 | G24: ='P-II'!G43 -> 160 | H24: ='P-II'!H43 -> 0 | I24: ='P-II'!I43 -> 856 | J24: ='P-II'!J43 -> 193 | K24: ='P-II'!K43 -> 33 | L24: ='P-II'!L43 -> 0 | M24: ='P-II'!M43 -> 226
A25: VALIDATION WITH PROFORMA–II [Sl.– 12.1 (Road Accidents Total)] | D25: =IF(D24=D23,"",FALSE) ->  | F25: =IF(F24=F23,"",FALSE) -> 
A26: VALIDATION WITH PROFORMA–II [Sl.– 12.2 (Railway Crossing) with "Unmanned Railway Crossing"] | D26: =IF(D19<='P-II'!D46,"",FALSE) ->  | F26: =IF(F19<='P-II'!F46,"",FALSE) ->  | G26: =IF(G19<='P-II'!G46,"",FALSE) ->  | H26: =IF(H19<='P-II'!H46,"",FALSE) ->  | I26: =IF(I19<='P-II'!I46,"",FALSE) ->  | J26: =IF(J19<='P-II'!J46,"",FALSE) ->  | K26: =IF(K19<='P-II'!K46,"",FALSE) ->  | L26: =IF(L19<='P-II'!L46,"",FALSE) ->  | M26: =IF(M19<='P-II'!M46,"",FALSE) -> 
A27: SL-11 ABNORMAL VARIATION IN "CAUSES NOT KNOWN" DATA | D27: =IF(D22>0,IF((D20/D22*100)>20,"ABVAR",""),"") ->  | F27: =IF(F22>0,IF((F20/F22*100)>20,"ABVAR",""),"") -> 
A28: SL-12 ABNORMAL VARIATION IN "OTHER CAUSES" DATA | D28: =IF(D22>0,IF((D21/D22*100)>20,"ABVAR",""),"") ->  | F28: =IF(F22>0,IF((F21/F22*100)>20,"ABVAR",""),"") -> 
BA200: =A1 -> Goa, , ADSI-2021 | BD200: =E2 -> Abnormal Variations | BE200: =F2 -> 0
BA201: =A2 -> Errors | BB201: =C2 -> 0
BA202: =A3 -> Proforma–IX
BA203: =A4 -> Road Accidents Classified According to Causes and Unmanned Railway Crossing Accidents
BA204: =B5 -> Sl. No. | BB204: =C5 -> Causes | BC204: =D5 -> No. of Cases | BD204: =E5 -> VALIDATION WITH NUMBER OF CASES | BE204: =F5 -> No. of Persons Injured | BI204: =J5 -> No. of Persons Died
BE205: =F6 -> Male | BF205: =G6 -> Female | BG205: =H6 -> Transgender | BH205: =I6 -> Total [sum of (4) to (6)] | BI205: Male | BJ205: =K6 -> Female | BK205: =L6 -> Transgender | BL205: =M6 -> Total [sum of (8) to (10)]
BA206: =B7 -> (1) | BB206: (2) | BC206: (3) | BE206: (4) | BF206: (5) | BG206: (6) | BH206: (7) | BI206: (8) | BJ206: (9) | BK206: (10) | BL206: (11)
BA207: 1 | BB207: Dangerous/Over-taking/Careless/etc. | BC207: 1752 | BD207: =E8 ->  | BE207: 417 | BF207: 103 | BG207: 0 | BH207: 520 | BI207: 117 | BJ207: 17 | BK207: 0 | BL207: 134
BA208: 2 | BB208: Over speeding | BC208: 957 | BE208: 258 | BF208: 55 | BG208: 0 | BH208: 313 | BI208: 62 | BJ208: 12 | BK208: 0 | BL208: 74
BA209: 3 | BB209: Driving under influence of drug/alcohol | BC209: 122 | BE209: 19 | BF209: 2 | BG209: 0 | BH209: 21 | BI209: 8 | BJ209: 2 | BK209: 0 | BL209: 10
BA210: 4 | BB210: Physical fatigue of Drivers | BC210: 1 | BE210: 0 | BF210: 0 | BG210: 0 | BH210: 0 | BI210: 1 | BJ210: 0 | BK210: 0 | BL210: 1
BA211: 5 | BB211: Defect in Mechanical condition of Motor Vehicle | BC211: 5 | BE211: 0 | BF211: 0 | BG211: 0 | BH211: 0 | BI211: 2 | BJ211: 0 | BK211: 0 | BL211: 2
BA212: 6 | BB212: Animal Crossing | BC212: 6 | BE212: 1 | BF212: 0 | BG212: 0 | BH212: 1 | BI212: 2 | BJ212: 0 | BK212: 0 | BL212: 2
BA213: 7 | BB213: Weather condition (sum of 7.1 & 7.2) | BC213: 0 | BE213: 0 | BF213: 0 | BG213: 0 | BH213: 0 | BI213: 0 | BJ213: 0 | BK213: 0 | BL213: 0
BB214: =C15 -> 7.1 Poor visibility | BC214: 0 | BE214: 0 | BF214: 0 | BG214: 0 | BH214: 0 | BI214: 0 | BJ214: 0 | BK214: 0 | BL214: 0
BB215: 7.2 Others causes of weather condition | BC215: 0 | BE215: 0 | BF215: 0 | BG215: 0 | BH215: 0 | BI215: 0 | BJ215: 0 | BK215: 0 | BL215: 0
BA216: =B17 -> 8 | BB216: Lack of road infrastructure | BC216: 0 | BE216: 0 | BF216: 0 | BG216: 0 | BH216: 0 | BI216: 0 | BJ216: 0 | BK216: 0 | BL216: 0
BA217: 9 | BB217: Vehicles Parking at road shoulders | BC217: 2 | BE217: 1 | BF217: 0 | BG217: 0 | BH217: 1 | BI217: 0 | BJ217: 0 | BK217: 0 | BL217: 0
BA218: 10 | BB218: Unmanned Railway Crossing | BC218: 0 | BE218: 0 | BF218: 0 | BG218: 0 | BH218: 0 | BI218: 0 | BJ218: 0 | BK218: 0 | BL218: 0
BA219: 11 | BB219: Causes not known | BC219: 0 | BE219: 0 | BF219: 0 | BG219: 0 | BH219: 0 | BI219: 0 | BJ219: 0 | BK219: 0 | BL219: 0
BA220: 12 | BB220: Other Causes | BC220: 5 | BE220: 0 | BF220: 0 | BG220: 0 | BH220: 0 | BI220: 1 | BJ220: 2 | BK220: 0 | BL220: 3
BA221: 13 | BB221: Total (sum of Sl. 1 to 12) | BC221: 2850 | BE221: 696 | BF221: 160 | BG221: 0 | BH221: 856 | BI221: 193 | BJ221: 33 | BK221: 0 | BL221: 226
BA222: =C23 -> ROAD ACCIDENTS TOTAL (EXCLUDING Unmanned Railway Crossing Accidents; Sl.–10) | BC222: =D23 -> 2850 | BE222: =F23 -> 696 | BF222: 160 | BG222: 0 | BH222: 856 | BI222: 193 | BJ222: 33 | BK222: 0 | BL222: 226
BA223: =A24 -> PROFORMA–II VALUES [Sl.– 12.1 (Road Accidents Total)] | BC223: 2850 | BE223: =F24 -> 696 | BF223: 160 | BG223: 0 | BH223: 856 | BI223: 193 | BJ223: 33 | BK223: 0 | BL223: 226
BA224: =A25 -> VALIDATION WITH PROFORMA–II [Sl.– 12.1 (Road Accidents Total)]
BA225: =A26 -> VALIDATION WITH PROFORMA–II [Sl.– 12.2 (Railway Crossing) with "Unmanned Railway Crossing"]
BA226: =A27 -> SL-11 ABNORMAL VARIATION IN "CAUSES NOT KNOWN" DATA | BE226: =F27 ->  | BF226: =G27 ->  | BG226: =H27 ->  | BH226: =I27 ->  | BI226: =J27 ->  | BJ226: =K27 ->  | BK226: =L27 ->  | BL226: =M27 -> 
BA227: =A28 -> SL-12 ABNORMAL VARIATION IN "OTHER CAUSES" DATA
A500: StateUTCityCode | B500: DistrictCode | C500: CrimeCode | D500: DataYear | E500: Number of Cases | F500: Injured_Male | G500: Injured_Female | H500: Injured_Trans | I500: Injured_Total | J500: Died_Male | K500: Died_Female | L500: Died_Trans | M500: Died_Total
A501: =IF(ADSI!$G$12="",ADSI!$H$16,ADSI!$H$12) -> 6 | B501: =IF(ADSI!$G$12="",ADSI!$H$16,ADSI!$H$14) ->  | C501: =A8 -> 550 | D501: =ADSI!$K$12 -> 2021 | E501: =D8 -> 1752 | F501: =F8 -> 417 | G501: =G8 -> 103 | H501: 0 | I501: 520 | J501: 117 | K501: 17 | L501: 0 | M501: 134
A502: =IF(ADSI!$G$12="",ADSI!$H$16,ADSI!$H$12) -> 6 | B502: =IF(ADSI!$G$12="",ADSI!$H$16,ADSI!$H$14) ->  | C502: =A9 -> 551 | D502: =ADSI!$K$12 -> 2021 | E502: =D9 -> 957 | F502: =F9 -> 258 | G502: 55 | H502: 0 | I502: 313 | J502: 62 | K502: 12 | L502: 0 | M502: 74
A503: =IF(ADSI!$G$12="",ADSI!$H$16,ADSI!$H$12) -> 6 | B503: =IF(ADSI!$G$12="",ADSI!$H$16,ADSI!$H$14) ->  | C503: 552 | D503: =ADSI!$K$12 -> 2021 | E503: 122 | F503: =F10 -> 19 | G503: 2 | H503: 0 | I503: 21 | J503: 8 | K503: 2 | L503: 0 | M503: 10
A504: =IF(ADSI!$G$12="",ADSI!$H$16,ADSI!$H$12) -> 6 | B504: =IF(ADSI!$G$12="",ADSI!$H$16,ADSI!$H$14) ->  | C504: 553 | D504: =ADSI!$K$12 -> 2021 | E504: 1 | F504: =F11 -> 0 | G504: 0 | H504: 0 | I504: 0 | J504: 1 | K504: 0 | L504: 0 | M504: 1
A505: =IF(ADSI!$G$12="",ADSI!$H$16,ADSI!$H$12) -> 6 | B505: =IF(ADSI!$G$12="",ADSI!$H$16,ADSI!$H$14) ->  | C505: 554 | D505: =ADSI!$K$12 -> 2021 | E505: 5 | F505: =F12 -> 0 | G505: 0 | H505: 0 | I505: 0 | J505: 2 | K505: 0 | L505: 0 | M505: 2
A506: =IF(ADSI!$G$12="",ADSI!$H$16,ADSI!$H$12) -> 6 | B506: =IF(ADSI!$G$12="",ADSI!$H$16,ADSI!$H$14) ->  | C506: 555 | D506: =ADSI!$K$12 -> 2021 | E506: 6 | F506: =F13 -> 1 | G506: 0 | H506: 0 | I506: 1 | J506: 2 | K506: 0 | L506: 0 | M506: 2
A507: =IF(ADSI!$G$12="",ADSI!$H$16,ADSI!$H$12) -> 6 | B507: =IF(ADSI!$G$12="",ADSI!$H$16,ADSI!$H$14) ->  | C507: 556 | D507: =ADSI!$K$12 -> 2021 | E507: 0 | F507: =F14 -> 0 | G507: 0 | H507: 0 | I507: 0 | J507: 0 | K507: 0 | L507: 0 | M507: 0
A508: =IF(ADSI!$G$12="",ADSI!$H$16,ADSI!$H$12) -> 6 | B508: =IF(ADSI!$G$12="",ADSI!$H$16,ADSI!$H$14) ->  | C508: 557 | D508: =ADSI!$K$12 -> 2021 | E508: 0 | F508: =F15 -> 0 | G508: 0 | H508: 0 | I508: 0 | J508: 0 | K508: 0 | L508: 0 | M508: 0
A509: =IF(ADSI!$G$12="",ADSI!$H$16,ADSI!$H$12) -> 6 | B509: =IF(ADSI!$G$12="",ADSI!$H$16,ADSI!$H$14) ->  | C509: 558 | D509: =ADSI!$K$12 -> 2021 | E509: 0 | F509: =F16 -> 0 | G509: 0 | H509: 0 | I509: 0 | J509: 0 | K509: 0 | L509: 0 | M509: 0
A510: =IF(ADSI!$G$12="",ADSI!$H$16,ADSI!$H$12) -> 6 | B510: =IF(ADSI!$G$12="",ADSI!$H$16,ADSI!$H$14) ->  | C510: 559 | D510: =ADSI!$K$12 -> 2021 | E510: 0 | F510: =F17 -> 0 | G510: 0 | H510: 0 | I510: 0 | J510: 0 | K510: 0 | L510: 0 | M510: 0
A511: =IF(ADSI!$G$12="",ADSI!$H$16,ADSI!$H$12) -> 6 | B511: =IF(ADSI!$G$12="",ADSI!$H$16,ADSI!$H$14) ->  | C511: 560 | D511: =ADSI!$K$12 -> 2021 | E511: 2 | F511: =F18 -> 1 | G511: 0 | H511: 0 | I511: 1 | J511: 0 | K511: 0 | L511: 0 | M511: 0
A512: =IF(ADSI!$G$12="",ADSI!$H$16,ADSI!$H$12) -> 6 | B512: =IF(ADSI!$G$12="",ADSI!$H$16,ADSI!$H$14) ->  | C512: 561 | D512: =ADSI!$K$12 -> 2021 | E512: 0 | F512: =F19 -> 0 | G512: 0 | H512: 0 | I512: 0 | J512: 0 | K512: 0 | L512: 0 | M512: 0
A513: =IF(ADSI!$G$12="",ADSI!$H$16,ADSI!$H$12) -> 6 | B513: =IF(ADSI!$G$12="",ADSI!$H$16,ADSI!$H$14) ->  | C513: 562 | D513: =ADSI!$K$12 -> 2021 | E513: 0 | F513: =F20 -> 0 | G513: 0 | H513: 0 | I513: 0 | J513: 0 | K513: 0 | L513: 0 | M513: 0
A514: =IF(ADSI!$G$12="",ADSI!$H$16,ADSI!$H$12) -> 6 | B514: =IF(ADSI!$G$12="",ADSI!$H$16,ADSI!$H$14) ->  | C514: 563 | D514: =ADSI!$K$12 -> 2021 | E514: 5 | F514: =F21 -> 0 | G514: 0 | H514: 0 | I514: 0 | J514: 1 | K514: 2 | L514: 0 | M514: 3
A515: =IF(ADSI!$G$12="",ADSI!$H$16,ADSI!$H$12) -> 6 | B515: =IF(ADSI!$G$12="",ADSI!$H$16,ADSI!$H$14) ->  | C515: 580 | D515: =ADSI!$K$12 -> 2021 | E515: 2850 | F515: =F22 -> 696 | G515: 160 | H515: 0 | I515: 856 | J515: 193 | K515: 33 | L515: 0 | M515: 226

Sheet P-X
A1: =ADSI!$B$1 -> Goa, , ADSI-2021
A2: Errors | C2: =COUNTIF(D22:R22,FALSE)+COUNTIF(E8:E20,FALSE)+COUNTIF(I8:I20,FALSE)+COUNTIF(M8:M20,FALSE) -> 0
A3: Proforma–X
A4: Month wise occurence of Traffic Accidents
A5: Code | B5: Sl. No. | C5: Month | D5: Road Accidents | H5: Railways Crossing Accidents | L5: Railway Accidents | P5: Total
D6: No. of Cases | E6: VALIDATION WITH NUMBER OF CASES | F6: No. of Persons Injured | G6: No. of Persons Died | H6: No. of Cases | I6: VALIDATION WITH NUMBER OF CASES | J6: No. of Persons Injured | K6: No. of Persons Died | L6: No. of Cases | M6: VALIDATION WITH NUMBER OF CASES | N6: No. of Persons Injured | O6: No. of Persons Died | P6: No. of Cases [Col. (3)+(6)+(9)] | Q6: No. of Persons Injured [Col. (4)+(7)+(10)] | R6: No. of Persons Died [Col. (5)+(8)+(11)]
B7: (1) | C7: (2) | D7: (3) | F7: (4) | G7: (5) | H7: (6) | J7: (7) | K7: (8) | L7: (9) | N7: (10) | O7: (11) | P7: (12) | Q7: (13) | R7: (14)
A8: 600 | B8: 1 | C8: January | D8: 301 | E8: =IF(AND(OR(F8>0,G8>0),D8=0),FALSE,"") ->  | F8: 105 | G8: 25 | H8: 0 | I8: =IF(AND(OR(J8>0,K8>0),H8=0),FALSE,"") ->  | J8: 0 | K8: 0 | L8: 5 | M8: =IF(AND(OR(N8>0,O8>0),L8=0),FALSE,"") ->  | N8: 0 | O8: 5 | P8: =SUM(D8+H8+L8) -> 306 | Q8: =SUM(F8+J8+N8) -> 105 | R8: =SUM(G8+K8+O8) -> 30
A9: 601 | B9: 2 | C9: February | D9: 235 | E9: =IF(AND(OR(F9>0,G9>0),D9=0),FALSE,"") ->  | F9: 75 | G9: 12 | H9: 0 | I9: =IF(AND(OR(J9>0,K9>0),H9=0),FALSE,"") ->  | J9: 0 | K9: 0 | L9: 1 | M9: =IF(AND(OR(N9>0,O9>0),L9=0),FALSE,"") ->  | N9: 0 | O9: 1 | P9: =SUM(D9+H9+L9) -> 236 | Q9: 75 | R9: 13
A10: 602 | B10: 3 | C10: March | D10: 285 | F10: 84 | G10: 20 | H10: 0 | J10: 0 | K10: 0 | L10: 5 | N10: 0 | O10: 5 | P10: 290 | Q10: 84 | R10: 25
A11: 603 | B11: 4 | C11: April | D11: 210 | F11: 61 | G11: 22 | H11: 0 | J11: 0 | K11: 0 | L11: 6 | N11: 0 | O11: 6 | P11: 216 | Q11: 61 | R11: 28
A12: 604 | B12: 5 | C12: May | D12: 131 | F12: 35 | G12: 10 | H12: 0 | J12: 0 | K12: 0 | L12: 2 | N12: 0 | O12: 2 | P12: 133 | Q12: 35 | R12: 12
A13: 605 | B13: 6 | C13: June | D13: 169 | F13: 53 | G13: 16 | H13: 0 | J13: 0 | K13: 0 | L13: 6 | N13: 0 | O13: 6 | P13: 175 | Q13: 53 | R13: 22
A14: 606 | B14: 7 | C14: July | D14: 199 | F14: 56 | G14: 16 | H14: 0 | J14: 0 | K14: 0 | L14: 7 | N14: 0 | O14: 7 | P14: 206 | Q14: 56 | R14: 23
A15: 607 | B15: 8 | C15: August | D15: 212 | F15: 59 | G15: 18 | H15: 0 | J15: 0 | K15: 0 | L15: 0 | N15: 0 | O15: 0 | P15: 212 | Q15: 59 | R15: 18
A16: 608 | B16: 9 | C16: September | D16: 227 | F16: 52 | G16: 20 | H16: 0 | J16: 0 | K16: 0 | L16: 6 | N16: 0 | O16: 6 | P16: 233 | Q16: 52 | R16: 26
A17: 609 | B17: 10 | C17: October | D17: 252 | F17: 76 | G17: 12 | H17: 0 | J17: 0 | K17: 0 | L17: 3 | N17: 0 | O17: 3 | P17: 255 | Q17: 76 | R17: 15
A18: 610 | B18: 11 | C18: November | D18: 287 | F18: 100 | G18: 24 | H18: 0 | J18: 0 | K18: 0 | L18: 4 | N18: 0 | O18: 4 | P18: 291 | Q18: 100 | R18: 28
A19: 611 | B19: 12 | C19: December | D19: 342 | F19: 100 | G19: 31 | H19: 0 | J19: 0 | K19: 0 | L19: 4 | N19: 0 | O19: 4 | P19: 346 | Q19: 100 | R19: 35
A20: 612 | B20: 13 | C20: Total (sum of Sl. 1 to 12) | D20: =SUM(D8:D19) -> 2850 | F20: =SUM(F8:F19) -> 856 | G20: 226 | H20: 0 | J20: 0 | K20: 0 | L20: 49 | N20: 0 | O20: 49 | P20: 2899 | Q20: =SUM(Q8:Q19) -> 856 | R20: =SUM(R8:R19) -> 275
A21: PROFORMA–II VALUES [Sl.– 12.1 (Road), Sl.– 12.2 (Railway Crossing) and Sl.– 12.3 (Railway) Accidents] | D21: ='P-II'!D43 -> 2850 | F21: ='P-II'!I43 -> 856 | G21: ='P-II'!M43 -> 226 | H21: ='P-II'!D46 -> 0 | J21: ='P-II'!I46 -> 0 | K21: ='P-II'!M46 -> 0 | L21: ='P-II'!D47 -> 49 | N21: ='P-II'!I47 -> 0 | O21: ='P-II'!M47 -> 49 | P21: ='P-II'!D42 -> 2899 | Q21: ='P-II'!I42 -> 856 | R21: ='P-II'!M42 -> 275
A22: VALIDATION WITH PROFORMA–II [Sl.– 12.1 (Road), Sl.– 12.2 (Railway Crossing) and Sl.– 12.3 (Railway) Accidents] | D22: =IF(D20='P-II'!D43,"",FALSE) ->  | F22: =IF(F20='P-II'!I43,"",FALSE) ->  | G22: =IF(G20='P-II'!M43,"",FALSE) ->  | H22: =IF(H20='P-II'!D46,"",FALSE) ->  | J22: =IF(J20='P-II'!I46,"",FALSE) ->  | K22: =IF(K20='P-II'!M46,"",FALSE) ->  | L22: =IF(L20='P-II'!D47,"",FALSE) ->  | N22: =IF(N20='P-II'!I47,"",FALSE) ->  | O22: =IF(O20='P-II'!M47,"",FALSE) ->  | P22: =IF(P20='P-II'!D42,"",FALSE) ->  | Q22: =IF(Q20='P-II'!I42,"",FALSE) ->  | R22: =IF(R20='P-II'!M42,"",FALSE) -> 
BA200: =A1 -> Goa, , ADSI-2021
BA201: =A2 -> Errors | BB201: =C2 -> 0
BA202: =A3 -> Proforma–X
BA203: =A4 -> Month wise occurence of Traffic Accidents
BA204: =B5 -> Sl. No. | BB204: =C5 -> Month | BC204: =D5 -> Road Accidents | BG204: =H5 -> Railways Crossing Accidents | BK204: =L5 -> Railway Accidents | BO204: =P5 -> Total
BC205: =D6 -> No. of Cases | BD205: =E6 -> VALIDATION WITH NUMBER OF CASES | BE205: =F6 -> No. of Persons Injured | BF205: =G6 -> No. of Persons Died | BG205: No. of Cases | BH205: =I6 -> VALIDATION WITH NUMBER OF CASES | BI205: =J6 -> No. of Persons Injured | BJ205: =K6 -> No. of Persons Died | BK205: No. of Cases | BL205: =M6 -> VALIDATION WITH NUMBER OF CASES | BM205: =N6 -> No. of Persons Injured | BN205: =O6 -> No. of Persons Died | BO205: No. of Cases [Col. (3)+(6)+(9)] | BP205: =Q6 -> No. of Persons Injured [Col. (4)+(7)+(10)] | BQ205: =R6 -> No. of Persons Died [Col. (5)+(8)+(11)]
BA206: =B7 -> (1) | BB206: =C7 -> (2) | BC206: =D7 -> (3) | BE206: =F7 -> (4) | BF206: =G7 -> (5) | BG206: (6) | BI206: =J7 -> (7) | BJ206: =K7 -> (8) | BK206: (9) | BM206: =N7 -> (10) | BN206: =O7 -> (11) | BO206: (12) | BP206: (13) | BQ206: (14)
BA207: 1 | BB207: January | BC207: 301 | BD207: =E8 ->  | BE207: 105 | BF207: 25 | BG207: 0 | BH207: =I8 ->  | BI207: 0 | BJ207: 0 | BK207: 5 | BL207: =M8 ->  | BM207: 0 | BN207: 5 | BO207: 306 | BP207: 105 | BQ207: 30
BA208: 2 | BB208: February | BC208: 235 | BD208: =E9 ->  | BE208: 75 | BF208: 12 | BG208: 0 | BH208: =I9 ->  | BI208: 0 | BJ208: 0 | BK208: 1 | BL208: =M9 ->  | BM208: 0 | BN208: 1 | BO208: 236 | BP208: 75 | BQ208: 13
BA209: 3 | BB209: March | BC209: 285 | BE209: 84 | BF209: 20 | BG209: 0 | BI209: 0 | BJ209: 0 | BK209: 5 | BM209: 0 | BN209: 5 | BO209: 290 | BP209: 84 | BQ209: 25
BA210: 4 | BB210: April | BC210: 210 | BE210: 61 | BF210: 22 | BG210: 0 | BI210: 0 | BJ210: 0 | BK210: 6 | BM210: 0 | BN210: 6 | BO210: 216 | BP210: 61 | BQ210: 28
BA211: 5 | BB211: May | BC211: 131 | BE211: 35 | BF211: 10 | BG211: 0 | BI211: 0 | BJ211: 0 | BK211: 2 | BM211: 0 | BN211: 2 | BO211: 133 | BP211: 35 | BQ211: 12
BA212: 6 | BB212: June | BC212: 169 | BE212: 53 | BF212: 16 | BG212: 0 | BI212: 0 | BJ212: 0 | BK212: 6 | BM212: 0 | BN212: 6 | BO212: 175 | BP212: 53 | BQ212: 22
BA213: 7 | BB213: July | BC213: 199 | BE213: 56 | BF213: 16 | BG213: 0 | BI213: 0 | BJ213: 0 | BK213: 7 | BM213: 0 | BN213: 7 | BO213: 206 | BP213: 56 | BQ213: 23
BA214: 8 | BB214: August | BC214: 212 | BE214: 59 | BF214: 18 | BG214: 0 | BI214: 0 | BJ214: 0 | BK214: 0 | BM214: 0 | BN214: 0 | BO214: 212 | BP214: 59 | BQ214: 18
BA215: 9 | BB215: September | BC215: 227 | BE215: 52 | BF215: 20 | BG215: 0 | BI215: 0 | BJ215: 0 | BK215: 6 | BM215: 0 | BN215: 6 | BO215: 233 | BP215: 52 | BQ215: 26
BA216: 10 | BB216: October | BC216: 252 | BE216: 76 | BF216: 12 | BG216: 0 | BI216: 0 | BJ216: 0 | BK216: 3 | BM216: 0 | BN216: 3 | BO216: 255 | BP216: 76 | BQ216: 15
BA217: 11 | BB217: November | BC217: 287 | BE217: 100 | BF217: 24 | BG217: 0 | BI217: 0 | BJ217: 0 | BK217: 4 | BM217: 0 | BN217: 4 | BO217: 291 | BP217: 100 | BQ217: 28
BA218: 12 | BB218: December | BC218: 342 | BE218: 100 | BF218: 31 | BG218: 0 | BI218: 0 | BJ218: 0 | BK218: 4 | BM218: 0 | BN218: 4 | BO218: 346 | BP218: 100 | BQ218: 35
BA219: 13 | BB219: Total (sum of Sl. 1 to 12) | BC219: 2850 | BE219: 856 | BF219: 226 | BG219: 0 | BI219: 0 | BJ219: 0 | BK219: 49 | BM219: 0 | BN219: 49 | BO219: 2899 | BP219: 856 | BQ219: 275
BA220: =A21 -> PROFORMA–II VALUES [Sl.– 12.1 (Road), Sl.– 12.2 (Railway Crossing) and Sl.– 12.3 (Railway) Accidents] | BC220: =D21 -> 2850 | BE220: 856 | BF220: 226 | BG220: 0 | BI220: 0 | BJ220: 0 | BK220: 49 | BM220: 0 | BN220: 49 | BO220: 2899 | BP220: 856 | BQ220: 275
BA221: =A22 -> VALIDATION WITH PROFORMA–II [Sl.– 12.1 (Road), Sl.– 12.2 (Railway Crossing) and Sl.– 12.3 (Railway) Accidents] | BC221: =D22 -> 
A500: StateUTCityCode | B500: DistrictCode | C500: CrimeCode | D500: DataYear | E500: Road Accident_Cases | F500: Road Accident_Injured | G500: Road Accident_Died | H500: Railway Crossing_Cases | I500: Railway Crossing_Injured | J500: Railway Crossing_Died | K500: Railway Accident_Cases | L500: Railway Accident_Injured | M500: Railway Accident_Died | N500: Total Traffic_Cases | O500: Total Traffic_Injured | P500: Total Traffic_Died
A501: =IF(ADSI!$G$12="",ADSI!$H$16,ADSI!$H$12) -> 6 | B501: =IF(ADSI!$G$12="",ADSI!$H$16,ADSI!$H$14) ->  | C501: =A8 -> 600 | D501: =ADSI!$K$12 -> 2021 | E501: =D8 -> 301 | F501: =F8 -> 105 | G501: =G8 -> 25 | H501: =H8 -> 0 | I501: =J8 -> 0 | J501: =K8 -> 0 | K501: =L8 -> 5 | L501: =N8 -> 0 | M501: =O8 -> 5 | N501: =P8 -> 306 | O501: =Q8 -> 105 | P501: 30
A502: =IF(ADSI!$G$12="",ADSI!$H$16,ADSI!$H$12) -> 6 | B502: =IF(ADSI!$G$12="",ADSI!$H$16,ADSI!$H$14) ->  | C502: =A9 -> 601 | D502: =ADSI!$K$12 -> 2021 | E502: =D9 -> 235 | F502: =F9 -> 75 | G502: 12 | H502: 0 | I502: =J9 -> 0 | J502: 0 | K502: 1 | L502: =N9 -> 0 | M502: 1 | N502: 236 | O502: =Q9 -> 75 | P502: =R9 -> 13
A503: =IF(ADSI!$G$12="",ADSI!$H$16,ADSI!$H$12) -> 6 | B503: =IF(ADSI!$G$12="",ADSI!$H$16,ADSI!$H$14) ->  | C503: 602 | D503: =ADSI!$K$12 -> 2021 | E503: 285 | F503: =F10 -> 84 | G503: 20 | H503: 0 | I503: =J10 -> 0 | J503: 0 | K503: 5 | L503: =N10 -> 0 | M503: 5 | N503: 290 | O503: 84 | P503: 25
A504: =IF(ADSI!$G$12="",ADSI!$H$16,ADSI!$H$12) -> 6 | B504: =IF(ADSI!$G$12="",ADSI!$H$16,ADSI!$H$14) ->  | C504: 603 | D504: =ADSI!$K$12 -> 2021 | E504: 210 | F504: =F11 -> 61 | G504: 22 | H504: 0 | I504: =J11 -> 0 | J504: 0 | K504: 6 | L504: =N11 -> 0 | M504: 6 | N504: 216 | O504: 61 | P504: 28
A505: =IF(ADSI!$G$12="",ADSI!$H$16,ADSI!$H$12) -> 6 | B505: =IF(ADSI!$G$12="",ADSI!$H$16,ADSI!$H$14) ->  | C505: 604 | D505: =ADSI!$K$12 -> 2021 | E505: 131 | F505: =F12 -> 35 | G505: 10 | H505: 0 | I505: =J12 -> 0 | J505: 0 | K505: 2 | L505: =N12 -> 0 | M505: 2 | N505: 133 | O505: 35 | P505: 12
A506: =IF(ADSI!$G$12="",ADSI!$H$16,ADSI!$H$12) -> 6 | B506: =IF(ADSI!$G$12="",ADSI!$H$16,ADSI!$H$14) ->  | C506: 605 | D506: =ADSI!$K$12 -> 2021 | E506: 169 | F506: =F13 -> 53 | G506: 16 | H506: 0 | I506: =J13 -> 0 | J506: 0 | K506: 6 | L506: =N13 -> 0 | M506: 6 | N506: 175 | O506: 53 | P506: 22
A507: =IF(ADSI!$G$12="",ADSI!$H$16,ADSI!$H$12) -> 6 | B507: =IF(ADSI!$G$12="",ADSI!$H$16,ADSI!$H$14) ->  | C507: 606 | D507: =ADSI!$K$12 -> 2021 | E507: 199 | F507: =F14 -> 56 | G507: 16 | H507: 0 | I507: =J14 -> 0 | J507: 0 | K507: 7 | L507: =N14 -> 0 | M507: 7 | N507: 206 | O507: 56 | P507: 23
A508: =IF(ADSI!$G$12="",ADSI!$H$16,ADSI!$H$12) -> 6 | B508: =IF(ADSI!$G$12="",ADSI!$H$16,ADSI!$H$14) ->  | C508: 607 | D508: =ADSI!$K$12 -> 2021 | E508: 212 | F508: =F15 -> 59 | G508: 18 | H508: 0 | I508: =J15 -> 0 | J508: 0 | K508: 0 | L508: =N15 -> 0 | M508: 0 | N508: 212 | O508: 59 | P508: 18
A509: =IF(ADSI!$G$12="",ADSI!$H$16,ADSI!$H$12) -> 6 | B509: =IF(ADSI!$G$12="",ADSI!$H$16,ADSI!$H$14) ->  | C509: 608 | D509: =ADSI!$K$12 -> 2021 | E509: 227 | F509: =F16 -> 52 | G509: 20 | H509: 0 | I509: =J16 -> 0 | J509: 0 | K509: 6 | L509: =N16 -> 0 | M509: 6 | N509: 233 | O509: 52 | P509: 26
A510: =IF(ADSI!$G$12="",ADSI!$H$16,ADSI!$H$12) -> 6 | B510: =IF(ADSI!$G$12="",ADSI!$H$16,ADSI!$H$14) ->  | C510: 609 | D510: =ADSI!$K$12 -> 2021 | E510: 252 | F510: =F17 -> 76 | G510: 12 | H510: 0 | I510: =J17 -> 0 | J510: 0 | K510: 3 | L510: =N17 -> 0 | M510: 3 | N510: 255 | O510: 76 | P510: 15
A511: =IF(ADSI!$G$12="",ADSI!$H$16,ADSI!$H$12) -> 6 | B511: =IF(ADSI!$G$12="",ADSI!$H$16,ADSI!$H$14) ->  | C511: 610 | D511: =ADSI!$K$12 -> 2021 | E511: 287 | F511: =F18 -> 100 | G511: 24 | H511: 0 | I511: =J18 -> 0 | J511: 0 | K511: 4 | L511: =N18 -> 0 | M511: 4 | N511: 291 | O511: 100 | P511: 28
A512: =IF(ADSI!$G$12="",ADSI!$H$16,ADSI!$H$12) -> 6 | B512: =IF(ADSI!$G$12="",ADSI!$H$16,ADSI!$H$14) ->  | C512: 611 | D512: =ADSI!$K$12 -> 2021 | E512: 342 | F512: =F19 -> 100 | G512: 31 | H512: 0 | I512: =J19 -> 0 | J512: 0 | K512: 4 | L512: =N19 -> 0 | M512: 4 | N512: 346 | O512: 100 | P512: 35
A513: =IF(ADSI!$G$12="",ADSI!$H$16,ADSI!$H$12) -> 6 | B513: =IF(ADSI!$G$12="",ADSI!$H$16,ADSI!$H$14) ->  | C513: 612 | D513: =ADSI!$K$12 -> 2021 | E513: 2850 | F513: =F20 -> 856 | G513: 226 | H513: 0 | I513: =J20 -> 0 | J513: 0 | K513: 49 | L513: =N20 -> 0 | M513: 49 | N513: 2899 | O513: 856 | P513: 275

Sheet P-XI
A1: =ADSI!$B$1 -> Goa, , ADSI-2021
A2: Errors | C2: =COUNTIF(D18:R18,FALSE)+COUNTIF(E8:E16,FALSE)+COUNTIF(I8:I16,FALSE)+COUNTIF(M8:M16,FALSE) -> 0
A3: Proforma–XI
A4: Time wise occurence of Traffic Accidents
A5: Code | B5: Sl. No. | C5: Time | D5: Road Accidents | H5: Railways Crossing Accidents | L5: Railway Accidents | P5: Total
D6: No. of Cases | E6: VALIDATION WITH NUMBER OF CASES | F6: No. of Persons Injured | G6: No. of Persons Died | H6: No. of Cases | I6: VALIDATION WITH NUMBER OF CASES | J6: No. of Persons Injured | K6: No. of Persons Died | L6: No. of Cases | M6: VALIDATION WITH NUMBER OF CASES | N6: No. of Persons Injured | O6: No. of Persons Died | P6: No. of Cases [col. (3)+(6)+(9)] | Q6: No. of Persons Injured [co. (4)+(7)+(10)] | R6: No. of Persons Died [col. (5)+(8)+(11)]
B7: (1) | C7: (2) | D7: (3) | F7: (4) | G7: (5) | H7: (6) | J7: (7) | K7: (8) | L7: (9) | N7: (10) | O7: (11) | P7: (12) | Q7: (13) | R7: (14)
A8: 625 | B8: 1 | C8: 00:00 hrs. to 03:00 hrs. (Night) | D8: 237 | E8: =IF(AND(OR(F8>0,G8>0),D8=0),FALSE,"") ->  | F8: 49 | G8: 14 | H8: 0 | I8: =IF(AND(OR(J8>0,K8>0),H8=0),FALSE,"") ->  | J8: 0 | K8: 0 | L8: 9 | M8: =IF(AND(OR(N8>0,O8>0),L8=0),FALSE,"") ->  | N8: 0 | O8: 9 | P8: =SUM(D8+H8+L8) -> 246 | Q8: =SUM(F8+J8+N8) -> 49 | R8: 23
A9: 626 | B9: 2 | C9: 03:00 hrs. to 06:00 hrs. (Night) | D9: 164 | F9: 35 | G9: 14 | H9: 0 | I9: =IF(AND(OR(J9>0,K9>0),H9=0),FALSE,"") ->  | J9: 0 | K9: 0 | L9: 5 | M9: =IF(AND(OR(N9>0,O9>0),L9=0),FALSE,"") ->  | N9: 0 | O9: 5 | P9: =SUM(D9+H9+L9) -> 169 | Q9: 35 | R9: 19
A10: 627 | B10: 3 | C10: 06:00 hrs. to 09:00 hrs. (Day) | D10: 263 | F10: 88 | G10: 14 | H10: 0 | J10: 0 | K10: 0 | L10: 5 | N10: 0 | O10: 5 | P10: 268 | Q10: 88 | R10: 19
A11: 628 | B11: 4 | C11: 09:00 hrs. to 12:00 hrs. (Day) | D11: 402 | F11: 119 | G11: 35 | H11: 0 | J11: 0 | K11: 0 | L11: 4 | N11: 0 | O11: 4 | P11: 406 | Q11: 119 | R11: 39
A12: 629 | B12: 5 | C12: 12:00 hrs. to 15:00 hrs. (Day) | D12: 453 | F12: 149 | G12: 34 | H12: 0 | J12: 0 | K12: 0 | L12: 3 | N12: 0 | O12: 3 | P12: 456 | Q12: 149 | R12: 37
A13: 630 | B13: 6 | C13: 15:00 hrs. to 18:00 hrs. (Day) | D13: 463 | F13: 165 | G13: 35 | H13: 0 | J13: 0 | K13: 0 | L13: 4 | N13: 0 | O13: 4 | P13: 467 | Q13: 165 | R13: 39
A14: 631 | B14: 7 | C14: 18:00 hrs. to 21;00 hrs. (Night) | D14: 521 | F14: 152 | G14: 50 | H14: 0 | J14: 0 | K14: 0 | L14: 10 | N14: 0 | O14: 10 | P14: 531 | Q14: 152 | R14: 60
A15: 632 | B15: 8 | C15: 21:00 hrs. to 24:00 hrs. (Night) | D15: 347 | F15: 99 | G15: 30 | H15: 0 | J15: 0 | K15: 0 | L15: 9 | N15: 0 | O15: 9 | P15: 356 | Q15: 99 | R15: 39
A16: 633 | B16: 9 | C16: Total (sum of (Sl. 1 to 8)) | D16: =SUM(D8:D15) -> 2850 | E16: =IF(AND(OR(F16>0,G16>0),D16=0),FALSE,"") ->  | F16: =SUM(F8:F15) -> 856 | G16: =SUM(G8:G15) -> 226 | H16: =SUM(H8:H15) -> 0 | J16: 0 | K16: 0 | L16: 49 | N16: 0 | O16: 49 | P16: 2899 | Q16: 856 | R16: 275
A17: PROFORMA–II VALUES [Sl.– 12.1 (Road), Sl.– 12.2 (Railway Crossing) and Sl.– 12.3 (Railway) Accidents] | D17: ='P-II'!D43 -> 2850 | F17: ='P-II'!I43 -> 856 | G17: ='P-II'!M43 -> 226 | H17: ='P-II'!D46 -> 0 | J17: ='P-II'!I46 -> 0 | K17: ='P-II'!M46 -> 0 | L17: ='P-II'!D47 -> 49 | N17: ='P-II'!I47 -> 0 | O17: ='P-II'!M47 -> 49 | P17: ='P-II'!D42 -> 2899 | Q17: ='P-II'!I42 -> 856 | R17: ='P-II'!M42 -> 275
A18: VALIDATION WITH PROFORMA–II [Sl.– 12.1 (Road), Sl.– 12.2 (Railway Crossing) and Sl.– 12.3 (Railway) Accidents] | D18: =IF(D16='P-II'!D43,"",FALSE) ->  | F18: =IF(F16='P-II'!I43,"",FALSE) ->  | G18: =IF(G16='P-II'!M43,"",FALSE) ->  | H18: =IF(H16='P-II'!D46,"",FALSE) ->  | J18: =IF(J16='P-II'!I46,"",FALSE) ->  | K18: =IF(K16='P-II'!M46,"",FALSE) ->  | L18: =IF(L16='P-II'!D47,"",FALSE) ->  | N18: =IF(N16='P-II'!I47,"",FALSE) ->  | O18: =IF(O16='P-II'!M47,"",FALSE) ->  | P18: =IF(P16='P-II'!D42,"",FALSE) ->  | Q18: =IF(Q16='P-II'!I42,"",FALSE) ->  | R18: =IF(R16='P-II'!M42,"",FALSE) -> 
BA200: =A1 -> Goa, , ADSI-2021
BA201: =A2 -> Errors | BB201: =C2 -> 0
BA202: =A3 -> Proforma–XI
BA203: =A4 -> Time wise occurence of Traffic Accidents
BA204: =B5 -> Sl. No. | BB204: =C5 -> Time | BC204: =D5 -> Road Accidents | BG204: =H5 -> Railways Crossing Accidents | BK204: =L5 -> Railway Accidents | BO204: =P5 -> Total
BC205: No. of Cases | BD205: =E6 -> VALIDATION WITH NUMBER OF CASES | BE205: =F6 -> No. of Persons Injured | BF205: =G6 -> No. of Persons Died | BG205: No. of Cases | BH205: =I6 -> VALIDATION WITH NUMBER OF CASES | BI205: =J6 -> No. of Persons Injured | BJ205: =K6 -> No. of Persons Died | BK205: No. of Cases | BL205: =M6 -> VALIDATION WITH NUMBER OF CASES | BM205: =N6 -> No. of Persons Injured | BN205: =O6 -> No. of Persons Died | BO205: No. of Cases [col. (3)+(6)+(9)] | BP205: =Q6 -> No. of Persons Injured [co. (4)+(7)+(10)] | BQ205: =R6 -> No. of Persons Died [col. (5)+(8)+(11)]
BA206: =B7 -> (1) | BB206: (2) | BC206: (3) | BE206: (4) | BF206: (5) | BG206: (6) | BI206: (7) | BJ206: (8) | BK206: (9) | BM206: (10) | BN206: (11) | BO206: (12) | BP206: (13) | BQ206: (14)
BA207: 1 | BB207: 00:00 hrs. to 03:00 hrs. (Night) | BC207: 237 | BD207: =E8 ->  | BE207: =F8 -> 49 | BF207: =G8 -> 14 | BG207: 0 | BH207: =I8 ->  | BI207: 0 | BJ207: 0 | BK207: 9 | BL207: =M8 ->  | BM207: 0 | BN207: 9 | BO207: 246 | BP207: 49 | BQ207: 23
BA208: 2 | BB208: 03:00 hrs. to 06:00 hrs. (Night) | BC208: 164 | BD208: =E9 ->  | BE208: 35 | BF208: 14 | BG208: 0 | BH208: =I9 ->  | BI208: 0 | BJ208: 0 | BK208: 5 | BL208: =M9 ->  | BM208: 0 | BN208: 5 | BO208: 169 | BP208: 35 | BQ208: 19
BA209: 3 | BB209: 06:00 hrs. to 09:00 hrs. (Day) | BC209: 263 | BE209: 88 | BF209: 14 | BG209: 0 | BI209: 0 | BJ209: 0 | BK209: 5 | BM209: 0 | BN209: 5 | BO209: 268 | BP209: 88 | BQ209: 19
BA210: 4 | BB210: 09:00 hrs. to 12:00 hrs. (Day) | BC210: 402 | BE210: 119 | BF210: 35 | BG210: 0 | BI210: 0 | BJ210: 0 | BK210: 4 | BM210: 0 | BN210: 4 | BO210: 406 | BP210: 119 | BQ210: 39
BA211: 5 | BB211: 12:00 hrs. to 15:00 hrs. (Day) | BC211: 453 | BE211: 149 | BF211: 34 | BG211: 0 | BI211: 0 | BJ211: 0 | BK211: 3 | BM211: 0 | BN211: 3 | BO211: 456 | BP211: 149 | BQ211: 37
BA212: 6 | BB212: 15:00 hrs. to 18:00 hrs. (Day) | BC212: 463 | BE212: 165 | BF212: 35 | BG212: 0 | BI212: 0 | BJ212: 0 | BK212: 4 | BM212: 0 | BN212: 4 | BO212: 467 | BP212: 165 | BQ212: 39
BA213: 7 | BB213: 18:00 hrs. to 21;00 hrs. (Night) | BC213: 521 | BE213: 152 | BF213: 50 | BG213: 0 | BI213: 0 | BJ213: 0 | BK213: 10 | BM213: 0 | BN213: 10 | BO213: 531 | BP213: 152 | BQ213: 60
BA214: 8 | BB214: 21:00 hrs. to 24:00 hrs. (Night) | BC214: 347 | BE214: 99 | BF214: 30 | BG214: 0 | BI214: 0 | BJ214: 0 | BK214: 9 | BM214: 0 | BN214: 9 | BO214: 356 | BP214: 99 | BQ214: 39
BA215: 9 | BB215: =C16 -> Total (sum of (Sl. 1 to 8)) | BC215: =D16 -> 2850 | BE215: 856 | BF215: 226 | BG215: =H16 -> 0 | BI215: =J16 -> 0 | BJ215: 0 | BK215: 49 | BM215: =N16 -> 0 | BN215: 49 | BO215: 2899 | BP215: 856 | BQ215: 275
BA216: =A17 -> PROFORMA–II VALUES [Sl.– 12.1 (Road), Sl.– 12.2 (Railway Crossing) and Sl.– 12.3 (Railway) Accidents] | BC216: =D17 -> 2850 | BE216: 856 | BF216: 226 | BG216: =H17 -> 0 | BI216: 0 | BJ216: 0 | BK216: 49 | BM216: =N17 -> 0 | BN216: 49 | BO216: 2899 | BP216: 856 | BQ216: 275
BA217: =A18 -> VALIDATION WITH PROFORMA–II [Sl.– 12.1 (Road), Sl.– 12.2 (Railway Crossing) and Sl.– 12.3 (Railway) Accidents] | BC217: =D18 ->  | BG217: =H18 -> 
A500: StateUTCityCode | B500: DistrictCode | C500: CrimeCode | D500: DataYear | E500: Road Accident_Cases | F500: Road Accident_Injured | G500: Road Accident_Died | H500: Railway Crossing_Cases | I500: Railway Crossing_Injured | J500: Railway Crossing_Died | K500: Railway Accident_Cases | L500: Railway Accident_Injured | M500: Railway Accident_Died | N500: Total Traffic_Cases | O500: Total Traffic_Injured | P500: Total Traffic_Died
A501: =IF(ADSI!$G$12="",ADSI!$H$16,ADSI!$H$12) -> 6 | B501: =IF(ADSI!$G$12="",ADSI!$H$16,ADSI!$H$14) ->  | C501: =A8 -> 625 | D501: =ADSI!$K$12 -> 2021 | E501: =D8 -> 237 | F501: =F8 -> 49 | G501: =G8 -> 14 | H501: =H8 -> 0 | I501: =J8 -> 0 | J501: =K8 -> 0 | K501: =L8 -> 9 | L501: =N8 -> 0 | M501: =O8 -> 9 | N501: =P8 -> 246 | O501: =Q8 -> 49 | P501: 23
A502: =IF(ADSI!$G$12="",ADSI!$H$16,ADSI!$H$12) -> 6 | B502: =IF(ADSI!$G$12="",ADSI!$H$16,ADSI!$H$14) ->  | C502: =A9 -> 626 | D502: =ADSI!$K$12 -> 2021 | E502: =D9 -> 164 | F502: =F9 -> 35 | G502: 14 | H502: 0 | I502: =J9 -> 0 | J502: 0 | K502: 5 | L502: =N9 -> 0 | M502: 5 | N502: 169 | O502: =Q9 -> 35 | P502: =R9 -> 19
A503: =IF(ADSI!$G$12="",ADSI!$H$16,ADSI!$H$12) -> 6 | B503: =IF(ADSI!$G$12="",ADSI!$H$16,ADSI!$H$14) ->  | C503: 627 | D503: =ADSI!$K$12 -> 2021 | E503: 263 | F503: =F10 -> 88 | G503: 14 | H503: 0 | I503: =J10 -> 0 | J503: 0 | K503: 5 | L503: =N10 -> 0 | M503: 5 | N503: 268 | O503: 88 | P503: 19
A504: =IF(ADSI!$G$12="",ADSI!$H$16,ADSI!$H$12) -> 6 | B504: =IF(ADSI!$G$12="",ADSI!$H$16,ADSI!$H$14) ->  | C504: 628 | D504: =ADSI!$K$12 -> 2021 | E504: 402 | F504: =F11 -> 119 | G504: 35 | H504: 0 | I504: =J11 -> 0 | J504: 0 | K504: 4 | L504: =N11 -> 0 | M504: 4 | N504: 406 | O504: 119 | P504: 39
A505: =IF(ADSI!$G$12="",ADSI!$H$16,ADSI!$H$12) -> 6 | B505: =IF(ADSI!$G$12="",ADSI!$H$16,ADSI!$H$14) ->  | C505: 629 | D505: =ADSI!$K$12 -> 2021 | E505: 453 | F505: =F12 -> 149 | G505: 34 | H505: 0 | I505: =J12 -> 0 | J505: 0 | K505: 3 | L505: =N12 -> 0 | M505: 3 | N505: 456 | O505: 149 | P505: 37
A506: =IF(ADSI!$G$12="",ADSI!$H$16,ADSI!$H$12) -> 6 | B506: =IF(ADSI!$G$12="",ADSI!$H$16,ADSI!$H$14) ->  | C506: 630 | D506: =ADSI!$K$12 -> 2021 | E506: 463 | F506: =F13 -> 165 | G506: 35 | H506: 0 | I506: =J13 -> 0 | J506: 0 | K506: 4 | L506: =N13 -> 0 | M506: 4 | N506: 467 | O506: 165 | P506: 39
A507: =IF(ADSI!$G$12="",ADSI!$H$16,ADSI!$H$12) -> 6 | B507: =IF(ADSI!$G$12="",ADSI!$H$16,ADSI!$H$14) ->  | C507: 631 | D507: =ADSI!$K$12 -> 2021 | E507: 521 | F507: =F14 -> 152 | G507: 50 | H507: 0 | I507: =J14 -> 0 | J507: 0 | K507: 10 | L507: =N14 -> 0 | M507: 10 | N507: 531 | O507: 152 | P507: 60
A508: =IF(ADSI!$G$12="",ADSI!$H$16,ADSI!$H$12) -> 6 | B508: =IF(ADSI!$G$12="",ADSI!$H$16,ADSI!$H$14) ->  | C508: 632 | D508: =ADSI!$K$12 -> 2021 | E508: 347 | F508: =F15 -> 99 | G508: 30 | H508: 0 | I508: =J15 -> 0 | J508: 0 | K508: 9 | L508: =N15 -> 0 | M508: 9 | N508: 356 | O508: 99 | P508: 39
A509: =IF(ADSI!$G$12="",ADSI!$H$16,ADSI!$H$12) -> 6 | B509: =IF(ADSI!$G$12="",ADSI!$H$16,ADSI!$H$14) ->  | C509: 633 | D509: =ADSI!$K$12 -> 2021 | E509: 2850 | F509: =F16 -> 856 | G509: 226 | H509: 0 | I509: =J16 -> 0 | J509: 0 | K509: 49 | L509: =N16 -> 0 | M509: 49 | N509: 2899 | O509: 856 | P509: 275

Sheet P-XII
A1: =ADSI!$B$1 -> Goa, , ADSI-2021
A2: Errors | C2: =COUNTIF(D16:M16,FALSE)+COUNTIF(D24:M24,FALSE)+COUNTIF(D26:M26,FALSE)+COUNTIF(E9:E14,FALSE)+COUNTIF(E18:E23,FALSE) -> 0 | E2: Abnormal Variations | F2: =COUNTIF(D27:M30,"ABVAR") -> 4
A3: Proforma–XII
A4: Classification of Railway Accidents and Causes of Railway Accidents
A5: Code | B5: Sl. No. | C5: Classification/Causes | D5: No. of Cases | E5: VALIDATION WITH NUMBER OF CASES | F5: No. of Persons Injured | J5: No. of Persons Died
F6: Male | G6: Female | H6: Transgender | I6: Total [sum of (4) to (6)] | J6: Male | K6: Female | L6: Transgender | M6: Total [sum of (8) to (10)]
B7: (1) | C7: (2) | D7: (3) | F7: (4) | G7: (5) | H7: (6) | I7: (7) | J7: (8) | K7: (9) | L7: (10) | M7: (11)
A8: Part-I; Classification of Railway Accidents
A9: 650 | B9: 1 | C9: Train Collisions | D9: 0 | E9: =IF(AND(OR(I9>0,M9>0),D9=0),FALSE,"") ->  | F9: 0 | G9: 0 | H9: 0 | I9: =SUM(F9:H9) -> 0 | J9: 0 | K9: 0 | L9: 0 | M9: =SUM(J9:L9) -> 0
A10: 651 | B10: 2 | C10: Train Derailments | D10: 0 | E10: =IF(AND(OR(I10>0,M10>0),D10=0),FALSE,"") ->  | F10: 0 | G10: 0 | H10: 0 | I10: =SUM(F10:H10) -> 0 | J10: 0 | K10: 0 | L10: 0 | M10: =SUM(J10:L10) -> 0
A11: 652 | B11: 3 | C11: Fall from train/Collision with people at tracks | D11: 49 | F11: 0 | G11: 0 | H11: 0 | I11: 0 | J11: 45 | K11: 4 | L11: 0 | M11: 49
A12: 653 | B12: 4 | C12: Explosion/Fire in Train | D12: 0 | F12: 0 | G12: 0 | H12: 0 | I12: 0 | J12: 0 | K12: 0 | L12: 0 | M12: 0
A13: 654 | B13: 5 | C13: Other Classifications | D13: 0 | F13: 0 | G13: 0 | H13: 0 | I13: 0 | J13: 0 | K13: 0 | L13: 0 | M13: 0
A14: 665 | B14: 6 | C14: Total (Classification) (sum of Sl. 1 to 5) | D14: =SUM(D9:D13) -> 49 | F14: =SUM(F9:F13) -> 0 | G14: 0 | H14: 0 | I14: 0 | J14: =SUM(J9:J13) -> 45 | K14: =SUM(K9:K13) -> 4 | L14: 0 | M14: 49
A15: PROFORMA–II VALUES [Sl.– 12.3 (Railway Accidents)] | D15: ='P-II'!D47 -> 49 | F15: ='P-II'!F47 -> 0 | G15: ='P-II'!G47 -> 0 | H15: ='P-II'!H47 -> 0 | I15: ='P-II'!I47 -> 0 | J15: ='P-II'!J47 -> 45 | K15: ='P-II'!K47 -> 4 | L15: ='P-II'!L47 -> 0 | M15: ='P-II'!M47 -> 49
A16: VALIDATION FOR PART-I WITH PROFORMA–II [Sl.– 12.3 (Railway Accidents)] | D16: =IF(D14='P-II'!D47,"",FALSE) ->  | F16: =IF(F14='P-II'!F47,"",FALSE) ->  | G16: =IF(G14='P-II'!G47,"",FALSE) ->  | H16: =IF(H14='P-II'!H47,"",FALSE) ->  | I16: =IF(I14='P-II'!I47,"",FALSE) ->  | J16: =IF(J14='P-II'!J47,"",FALSE) ->  | K16: =IF(K14='P-II'!K47,"",FALSE) ->  | L16: =IF(L14='P-II'!L47,"",FALSE) ->  | M16: =IF(M14='P-II'!M47,"",FALSE) -> 
A17: Part-II; Causes of Railway Accidents
A18: 675 | B18: 7 | C18: Fault of Driver | D18: 0 | E18: =IF(AND(OR(I18>0,M18>0),D18=0),FALSE,"") ->  | F18: 0 | G18: 0 | H18: 0 | I18: =SUM(F18:H18) -> 0 | J18: 0 | K18: 0 | L18: 0 | M18: =SUM(J18:L18) -> 0
A19: 676 | B19: 8 | C19: Sabotage by Extremist/Terrorist/others | D19: 0 | E19: =IF(AND(OR(I19>0,M19>0),D19=0),FALSE,"") ->  | F19: 0 | G19: 0 | H19: 0 | I19: =SUM(F19:H19) -> 0 | J19: 0 | K19: 0 | L19: 0 | M19: =SUM(J19:L19) -> 0
A20: 677 | B20: 9 | C20: Signalmen's Error | D20: 0 | F20: 0 | G20: 0 | H20: 0 | I20: 0 | J20: 0 | K20: 0 | L20: 0 | M20: 0
A21: 678 | B21: 10 | C21: Mechanical Failures (like poor design, track faults, bridge/tunnel collapse, etc.) | D21: 1 | F21: 0 | G21: 0 | H21: 0 | I21: 0 | J21: 0 | K21: 1 | L21: 0 | M21: 1
A22: 679 | B22: 11 | C22: Other Causes | D22: 48 | F22: 0 | G22: 0 | H22: 0 | I22: =SUM(F22:H22) -> 0 | J22: 45 | K22: 3 | L22: 0 | M22: =SUM(J22:L22) -> 48
A23: 690 | B23: 12 | C23: Total (Causes) (sum of Sl. 7 to 11) | D23: =SUM(D18:D22) -> 49 | F23: =SUM(F18:F22) -> 0 | G23: 0 | H23: 0 | I23: 0 | J23: 45 | K23: 4 | L23: 0 | M23: 49
A24: VALIDATION WITHIN PROFORMA–XII PART–I & PART–II | D24: =IF(D23=D14,"",FALSE) ->  | F24: =IF(F23=F14,"",FALSE) -> 
A25: PROFORMA–II VALUES [Sl.– 12.3 (Railway Accidents)] | D25: ='P-II'!D47 -> 49 | F25: ='P-II'!F47 -> 0 | G25: ='P-II'!G47 -> 0 | H25: ='P-II'!H47 -> 0 | I25: ='P-II'!I47 -> 0 | J25: ='P-II'!J47 -> 45 | K25: ='P-II'!K47 -> 4 | L25: ='P-II'!L47 -> 0 | M25: ='P-II'!M47 -> 49
A26: VALIDATION FOR PART–II WITH PROFORMA–II [Sl.– 12.3 (Railway Accidents)] | D26: =IF(D23='P-II'!D47,"",FALSE) ->  | F26: =IF(F23='P-II'!F47,"",FALSE) ->  | G26: =IF(G23='P-II'!G47,"",FALSE) ->  | H26: =IF(H23='P-II'!H47,"",FALSE) ->  | I26: =IF(I23='P-II'!I47,"",FALSE) ->  | J26: =IF(J23='P-II'!J47,"",FALSE) ->  | K26: =IF(K23='P-II'!K47,"",FALSE) ->  | L26: =IF(L23='P-II'!L47,"",FALSE) ->  | M26: =IF(M23='P-II'!M47,"",FALSE) -> 
A27: SL-1 ABNORMAL VARIATION IN "TRAIN COLLISIONS" DATA | D27: =IF(D9>0,IF((M9>D9),"","ABVAR"),"") ->  | I27: =IF(I9>0,IF((I9>D9),"","ABVAR"),"") ->  | M27: =IF(M9>0,IF((M9>D9),"","ABVAR"),"") -> 
A28: SL-2 ABNORMAL VARIATION IN "TRAIN DERAILMENTS" DATA | D28: =IF(D10>0,IF((M10>D10),"","ABVAR"),"") ->  | I28: =IF(I10>0,IF((I10>D10),"","ABVAR"),"") ->  | M28: =IF(M10>0,IF((M10>D10),"","ABVAR"),"") -> 
A29: SL-5 ABNORMAL VARIATION IN "OTHER CLASSIFICATIONS" DATA | D29: =IF(D14>0,IF((D13/D14*100)>20,"ABVAR",""),"") ->  | F29: =IF(F14>0,IF((F13/F14*100)>20,"ABVAR",""),"") -> 
A30: SL-11 ABNORMAL VARIATION IN "OTHER CAUSES" DATA | D30: =IF(D23>0,IF((D22/D23*100)>20,"ABVAR",""),"") -> ABVAR | F30: =IF(F23>0,IF((F22/F23*100)>20,"ABVAR",""),"") ->  | J30: ABVAR | K30: ABVAR | M30: ABVAR
BA200: =A1 -> Goa, , ADSI-2021
BA201: =A2 -> Errors | BB201: =C2 -> 0 | BD201: =E2 -> Abnormal Variations | BE201: =F2 -> 4
BA202: =A3 -> Proforma–XII
BA203: =A4 -> Classification of Railway Accidents and Causes of Railway Accidents
BA204: =B5 -> Sl. No. | BB204: =C5 -> Classification/Causes | BC204: =D5 -> No. of Cases | BD204: =E5 -> VALIDATION WITH NUMBER OF CASES | BE204: =F5 -> No. of Persons Injured | BI204: =J5 -> No. of Persons Died
BE205: =F6 -> Male | BF205: Female | BG205: Transgender | BH205: Total [sum of (4) to (6)] | BI205: =J6 -> Male | BJ205: =K6 -> Female | BK205: Transgender | BL205: Total [sum of (8) to (10)]
BA206: =B7 -> (1) | BB206: =C7 -> (2) | BC206: =D7 -> (3) | BE206: (4) | BF206: (5) | BG206: (6) | BH206: (7) | BI206: =J7 -> (8) | BJ206: (9) | BK206: (10) | BL206: (11)
BA207: =A8 -> Part-I; Classification of Railway Accidents
BA208: =B9 -> 1 | BB208: Train Collisions | BC208: 0 | BE208: 0 | BF208: 0 | BG208: 0 | BH208: 0 | BI208: 0 | BJ208: 0 | BK208: 0 | BL208: 0
BA209: 2 | BB209: Train Derailments | BC209: 0 | BE209: 0 | BF209: 0 | BG209: 0 | BH209: 0 | BI209: 0 | BJ209: 0 | BK209: 0 | BL209: 0
BA210: 3 | BB210: Fall from train/Collision with people at tracks | BC210: 49 | BE210: 0 | BF210: 0 | BG210: 0 | BH210: 0 | BI210: 45 | BJ210: 4 | BK210: 0 | BL210: 49
BA211: 4 | BB211: Explosion/Fire in Train | BC211: 0 | BE211: 0 | BF211: 0 | BG211: 0 | BH211: 0 | BI211: 0 | BJ211: 0 | BK211: 0 | BL211: 0
BA212: 5 | BB212: Other Classifications | BC212: 0 | BE212: 0 | BF212: 0 | BG212: 0 | BH212: 0 | BI212: 0 | BJ212: 0 | BK212: 0 | BL212: 0
BA213: 6 | BB213: Total (Classification) (sum of Sl. 1 to 5) | BC213: 49 | BE213: 0 | BF213: 0 | BG213: 0 | BH213: 0 | BI213: 45 | BJ213: 4 | BK213: 0 | BL213: 49
BA214: =A15 -> PROFORMA–II VALUES [Sl.– 12.3 (Railway Accidents)] | BC214: =D15 -> 49 | BE214: =F15 -> 0 | BF214: 0 | BG214: 0 | BH214: 0 | BI214: 45 | BJ214: 4 | BK214: 0 | BL214: 49
BA215: =A16 -> VALIDATION FOR PART-I WITH PROFORMA–II [Sl.– 12.3 (Railway Accidents)] | BC215: =D16 -> 
BA216: =A17 -> Part-II; Causes of Railway Accidents
BA217: =B18 -> 7 | BB217: Fault of Driver | BC217: 0 | BE217: 0 | BF217: 0 | BG217: 0 | BH217: 0 | BI217: 0 | BJ217: 0 | BK217: 0 | BL217: 0
BA218: 8 | BB218: Sabotage by Extremist/Terrorist/others | BC218: 0 | BE218: 0 | BF218: 0 | BG218: 0 | BH218: 0 | BI218: 0 | BJ218: 0 | BK218: 0 | BL218: 0
BA219: 9 | BB219: Signalmen's Error | BC219: 0 | BE219: 0 | BF219: 0 | BG219: 0 | BH219: 0 | BI219: 0 | BJ219: 0 | BK219: 0 | BL219: 0
BA220: 10 | BB220: Mechanical Failures (like poor design, track faults, bridge/tunnel collapse, etc.) | BC220: 1 | BE220: 0 | BF220: 0 | BG220: 0 | BH220: 0 | BI220: 0 | BJ220: 1 | BK220: 0 | BL220: 1
BA221: 11 | BB221: Other Causes | BC221: 48 | BE221: 0 | BF221: 0 | BG221: 0 | BH221: 0 | BI221: 45 | BJ221: 3 | BK221: 0 | BL221: 48
BA222: 12 | BB222: Total (Causes) (sum of Sl. 7 to 11) | BC222: 49 | BE222: 0 | BF222: 0 | BG222: 0 | BH222: 0 | BI222: 45 | BJ222: 4 | BK222: 0 | BL222: 49
BA223: =A24 -> VALIDATION WITHIN PROFORMA–XII PART–I & PART–II | BC223: =D24 ->  | BE223: =F24 -> 
BA224: PROFORMA–II VALUES [Sl.– 12.3 (Railway Accidents)] | BC224: 49 | BE224: 0 | BF224: 0 | BG224: 0 | BH224: 0 | BI224: 45 | BJ224: 4 | BK224: 0 | BL224: 49
BA225: VALIDATION FOR PART–II WITH PROFORMA–II [Sl.– 12.3 (Railway Accidents)]
BA226: SL-1 ABNORMAL VARIATION IN "TRAIN COLLISIONS" DATA
BA227: SL-2 ABNORMAL VARIATION IN "TRAIN DERAILMENTS" DATA | BH227: =I28 ->  | BL227: =M28 -> 
BA228: SL-5 ABNORMAL VARIATION IN "OTHER CLASSIFICATIONS" DATA | BE228: =F29 -> 
BA229: SL-11 ABNORMAL VARIATION IN "OTHER CAUSES" DATA | BC229: ABVAR | BI229: ABVAR | BJ229: ABVAR | BL229: ABVAR
A500: StateUTCityCode | B500: DistrictCode | C500: CrimeCode | D500: DataYear | E500: Number of Cases | F500: Injured_Male | G500: Injured_Female | H500: Injured_Trans | I500: Injured_Total | J500: Died_Male | K500: Died_Female | L500: Died_Trans | M500: Died_Total
A501: =IF(ADSI!$G$12="",ADSI!$H$16,ADSI!$H$12) -> 6 | B501: =IF(ADSI!$G$12="",ADSI!$H$16,ADSI!$H$14) ->  | C501: =A9 -> 650 | D501: =ADSI!$K$12 -> 2021 | E501: =D9 -> 0 | F501: =F9 -> 0 | G501: =G9 -> 0 | H501: 0 | I501: 0 | J501: 0 | K501: 0 | L501: 0 | M501: 0
A502: =IF(ADSI!$G$12="",ADSI!$H$16,ADSI!$H$12) -> 6 | B502: =IF(ADSI!$G$12="",ADSI!$H$16,ADSI!$H$14) ->  | C502: =A10 -> 651 | D502: =ADSI!$K$12 -> 2021 | E502: =D10 -> 0 | F502: =F10 -> 0 | G502: 0 | H502: 0 | I502: 0 | J502: 0 | K502: 0 | L502: 0 | M502: 0
A503: =IF(ADSI!$G$12="",ADSI!$H$16,ADSI!$H$12) -> 6 | B503: =IF(ADSI!$G$12="",ADSI!$H$16,ADSI!$H$14) ->  | C503: 652 | D503: =ADSI!$K$12 -> 2021 | E503: 49 | F503: =F11 -> 0 | G503: 0 | H503: 0 | I503: 0 | J503: 45 | K503: 4 | L503: 0 | M503: 49
A504: =IF(ADSI!$G$12="",ADSI!$H$16,ADSI!$H$12) -> 6 | B504: =IF(ADSI!$G$12="",ADSI!$H$16,ADSI!$H$14) ->  | C504: 653 | D504: =ADSI!$K$12 -> 2021 | E504: 0 | F504: =F12 -> 0 | G504: 0 | H504: 0 | I504: 0 | J504: 0 | K504: 0 | L504: 0 | M504: 0
A505: =IF(ADSI!$G$12="",ADSI!$H$16,ADSI!$H$12) -> 6 | B505: =IF(ADSI!$G$12="",ADSI!$H$16,ADSI!$H$14) ->  | C505: 654 | D505: =ADSI!$K$12 -> 2021 | E505: 0 | F505: =F13 -> 0 | G505: 0 | H505: 0 | I505: 0 | J505: 0 | K505: 0 | L505: 0 | M505: 0
A506: =IF(ADSI!$G$12="",ADSI!$H$16,ADSI!$H$12) -> 6 | B506: =IF(ADSI!$G$12="",ADSI!$H$16,ADSI!$H$14) ->  | C506: 665 | D506: =ADSI!$K$12 -> 2021 | E506: 49 | F506: =F14 -> 0 | G506: 0 | H506: 0 | I506: 0 | J506: 45 | K506: 4 | L506: 0 | M506: 49
A507: =IF(ADSI!$G$12="",ADSI!$H$16,ADSI!$H$12) -> 6 | B507: =IF(ADSI!$G$12="",ADSI!$H$16,ADSI!$H$14) ->  | C507: =A18 -> 675 | D507: =ADSI!$K$12 -> 2021 | E507: =D18 -> 0 | F507: =F18 -> 0 | G507: =G18 -> 0 | H507: 0 | I507: 0 | J507: 0 | K507: 0 | L507: 0 | M507: 0
A508: =IF(ADSI!$G$12="",ADSI!$H$16,ADSI!$H$12) -> 6 | B508: =IF(ADSI!$G$12="",ADSI!$H$16,ADSI!$H$14) ->  | C508: =A19 -> 676 | D508: =ADSI!$K$12 -> 2021 | E508: =D19 -> 0 | F508: =F19 -> 0 | G508: 0 | H508: 0 | I508: 0 | J508: 0 | K508: 0 | L508: 0 | M508: 0
A509: =IF(ADSI!$G$12="",ADSI!$H$16,ADSI!$H$12) -> 6 | B509: =IF(ADSI!$G$12="",ADSI!$H$16,ADSI!$H$14) ->  | C509: 677 | D509: =ADSI!$K$12 -> 2021 | E509: 0 | F509: =F20 -> 0 | G509: 0 | H509: 0 | I509: 0 | J509: 0 | K509: 0 | L509: 0 | M509: 0
A510: =IF(ADSI!$G$12="",ADSI!$H$16,ADSI!$H$12) -> 6 | B510: =IF(ADSI!$G$12="",ADSI!$H$16,ADSI!$H$14) ->  | C510: 678 | D510: =ADSI!$K$12 -> 2021 | E510: 1 | F510: =F21 -> 0 | G510: 0 | H510: 0 | I510: 0 | J510: 0 | K510: 1 | L510: 0 | M510: 1
A511: =IF(ADSI!$G$12="",ADSI!$H$16,ADSI!$H$12) -> 6 | B511: =IF(ADSI!$G$12="",ADSI!$H$16,ADSI!$H$14) ->  | C511: 679 | D511: =ADSI!$K$12 -> 2021 | E511: 48 | F511: =F22 -> 0 | G511: 0 | H511: 0 | I511: 0 | J511: 45 | K511: 3 | L511: 0 | M511: 48
A512: =IF(ADSI!$G$12="",ADSI!$H$16,ADSI!$H$12) -> 6 | B512: =IF(ADSI!$G$12="",ADSI!$H$16,ADSI!$H$14) ->  | C512: 690 | D512: =ADSI!$K$12 -> 2021 | E512: 49 | F512: =F23 -> 0 | G512: 0 | H512: 0 | I512: 0 | J512: 45 | K512: 4 | L512: 0 | M512: 49

Sheet P-XIII
A1: =ADSI!$B$1 -> Goa, , ADSI-2021
A2: Errors | C2: =COUNTIF(D17:S17,FALSE) -> 0 | E2: Abnormal Variations | F2: =COUNTIF(D18:S18,"ABVAR") -> 0
A3: Proforma–XIII
A4: Details on Deaths of Central Armed Police Force (CAPF) Personnel
A5: Code | B5: Sl. No. | C5: Causes | D5: Number of Accidental Deaths | S5: Grand Total [col. (7)+(12)+(17)]
D6: Male | I6: Female | N6: Transgender
D7: 18 and above – below 30 years | E7: 30 and above – below 45 years | F7: 45 and above – below 60 years | G7: 60 years & above | H7: Total [(sum of (3) to (6)] | I7: 18 and above – below 30 years | J7: 30 and above – below 45 years | K7: 45 and above – below 60 years | L7: 60 years & above | M7: Total [sum of (8) to (11)] | N7: 18 and above – below 30 years | O7: 30 and above – below 45 years | P7: 45 and above – below 60 years | Q7: 60 years & above | R7: Total [sum of (13) to (16)]
B8: (1) | C8: (2) | D8: (3) | E8: (4) | F8: (5) | G8: (6) | H8: (7) | I8: (8) | J8: (9) | K8: (10) | L8: (11) | M8: (12) | N8: (13) | O8: (14) | P8: (15) | Q8: (16) | R8: (17) | S8: (18)
A9: 700 | B9: 1 | C9: Fratricide | D9: 0 | E9: 0 | F9: 0 | G9: 0 | H9: =SUM(D9:G9) -> 0 | I9: 0 | J9: 0 | K9: 0 | L9: 0 | M9: =SUM(I9:L9) -> 0 | N9: 0 | O9: 0 | P9: 0 | Q9: 0 | R9: =SUM(N9:Q9) -> 0 | S9: =SUM(H9+M9+R9) -> 0
A10: 701 | B10: 1 | C10: Deaths due to Road/Railway Accidents | D10: 0 | E10: 0 | F10: 0 | G10: 0 | H10: =SUM(D10:G10) -> 0 | I10: 0 | J10: 0 | K10: 0 | L10: 0 | M10: =SUM(I10:L10) -> 0 | N10: 0 | O10: 0 | P10: 0 | Q10: 0 | R10: =SUM(N10:Q10) -> 0 | S10: =SUM(H10+M10+R10) -> 0
A11: 702 | B11: 2 | C11: Deaths due to Natural Calamities | D11: 0 | E11: 0 | F11: 0 | G11: 0 | H11: 0 | I11: 0 | J11: 0 | K11: 0 | L11: 0 | M11: 0 | N11: 0 | O11: 0 | P11: 0 | Q11: 0 | R11: 0 | S11: 0
A12: 703 | B12: 3 | C12: Deaths Due to Unnatural Causes (Except Road/Railway Accidents) | D12: 0 | E12: 0 | F12: 0 | G12: 0 | H12: 0 | I12: 0 | J12: 0 | K12: 0 | L12: 0 | M12: 0 | N12: 0 | O12: 0 | P12: 0 | Q12: 0 | R12: 0 | S12: 0
A13: 704 | B13: 4 | C13: Killed in Action/Operation/ Encounters/etc. | D13: 0 | E13: 0 | F13: 0 | G13: 0 | H13: 0 | I13: 0 | J13: 0 | K13: 0 | L13: 0 | M13: 0 | N13: 0 | O13: 0 | P13: 0 | Q13: 0 | R13: 0 | S13: 0
A14: 705 | B14: 5 | C14: Other/Unknown Causes | D14: 0 | E14: 0 | F14: 0 | G14: 0 | H14: 0 | I14: 0 | J14: 0 | K14: 0 | L14: 0 | M14: 0 | N14: 0 | O14: 0 | P14: 0 | Q14: 0 | R14: 0 | S14: 0
A15: 715 | B15: 6 | C15: Total (sum of Sl. 1 to 6) | D15: =SUM(D9:D14) -> 0 | E15: =SUM(E9:E14) -> 0 | F15: 0 | G15: 0 | H15: =SUM(H9:H14) -> 0 | I15: =SUM(I9:I14) -> 0 | J15: =SUM(J9:J14) -> 0 | K15: =SUM(K9:K14) -> 0 | L15: =SUM(L9:L14) -> 0 | M15: =SUM(M9:M14) -> 0 | N15: =SUM(N9:N14) -> 0 | O15: =SUM(O9:O14) -> 0 | P15: =SUM(P9:P14) -> 0 | Q15: =SUM(Q9:Q14) -> 0 | R15: =SUM(R9:R14) -> 0 | S15: 0
A16: PROFORMA–III VALUES [Sl.– 16 (Total)] | D16: ='P-III'!F52 -> 152 | E16: ='P-III'!G52 -> 155 | F16: ='P-III'!H52 -> 103 | G16: ='P-III'!I52 -> 70 | H16: ='P-III'!J52 -> 489 | I16: ='P-III'!O52 -> 14 | J16: ='P-III'!P52 -> 18 | K16: ='P-III'!Q52 -> 15 | L16: ='P-III'!R52 -> 22 | M16: ='P-III'!S52 -> 73 | N16: ='P-III'!X52 -> 0 | O16: ='P-III'!Y52 -> 0 | P16: ='P-III'!Z52 -> 0 | Q16: ='P-III'!AA52 -> 0 | R16: ='P-III'!AB52 -> 0 | S16: ='P-III'!AE52 -> 562
A17: VALIDATION WITH PROFORMA–III [Sl.– 16 (Total)] | D17: =IF(D15<='P-III'!F52,"",FALSE) ->  | E17: =IF(E15<='P-III'!G52,"",FALSE) ->  | F17: =IF(F15<='P-III'!H52,"",FALSE) ->  | G17: =IF(G15<='P-III'!I52,"",FALSE) ->  | H17: =IF(H15<='P-III'!J52,"",FALSE) ->  | I17: =IF(I15<='P-III'!O52,"",FALSE) ->  | J17: =IF(J15<='P-III'!P52,"",FALSE) ->  | K17: =IF(K15<='P-III'!Q52,"",FALSE) ->  | L17: =IF(L15<='P-III'!R52,"",FALSE) ->  | M17: =IF(M15<='P-III'!S52,"",FALSE) ->  | N17: =IF(N15<='P-III'!X52,"",FALSE) ->  | O17: =IF(O15<='P-III'!Y52,"",FALSE) ->  | P17: =IF(P15<='P-III'!Z52,"",FALSE) ->  | Q17: =IF(Q15<='P-III'!AA52,"",FALSE) ->  | R17: =IF(R15<='P-III'!AB52,"",FALSE) ->  | S17: =IF(S15<='P-III'!AE52,"",FALSE) -> 
A18: SL-6 ABNORMAL VARIATION IN "OTHER/UNKNOWN CAUSES" DATA | D18: =IF(D15>0,IF((D14/D15*100)>10,"ABVAR",""),"") ->  | E18: =IF(E15>0,IF((E14/E15*100)>10,"ABVAR",""),"") -> 
D19: Central Armed Police Force (CAPF) includes Assam Rifles (AR), Border Security Force (BSF), Central Industrial Security Force (CISF), Central Reserve Police Force (CRPF), Indo Tibetan Border Police (ITBP), National Security Guard (NSG) and Sashastra Seema Bal (SSB)
BA200: =A1 -> Goa, , ADSI-2021
BA201: =A2 -> Errors | BB201: =C2 -> 0 | BD201: =E2 -> Abnormal Variations | BE201: =F2 -> 0
BA202: =A3 -> Proforma–XIII
BA203: =A4 -> Details on Deaths of Central Armed Police Force (CAPF) Personnel
BA204: =B5 -> Sl. No. | BB204: =C5 -> Causes | BC204: =D5 -> Number of Accidental Deaths | BR204: =S5 -> Grand Total [col. (7)+(12)+(17)]
BC205: =D6 -> Male | BH205: =I6 -> Female | BM205: =N6 -> Transgender
BC206: 18 and above – below 30 years | BD206: =E7 -> 30 and above – below 45 years | BE206: 45 and above – below 60 years | BF206: 60 years & above | BG206: Total [(sum of (3) to (6)] | BH206: 18 and above – below 30 years | BI206: =J7 -> 30 and above – below 45 years | BJ206: 45 and above – below 60 years | BK206: 60 years & above | BL206: Total [sum of (8) to (11)] | BM206: 18 and above – below 30 years | BN206: =O7 -> 30 and above – below 45 years | BO206: 45 and above – below 60 years | BP206: 60 years & above | BQ206: Total [sum of (13) to (16)]
BA207: =B8 -> (1) | BB207: (2) | BC207: (3) | BD207: (4) | BE207: (5) | BF207: (6) | BG207: (7) | BH207: (8) | BI207: (9) | BJ207: (10) | BK207: (11) | BL207: (12) | BM207: (13) | BN207: (14) | BO207: (15) | BP207: (16) | BQ207: (17) | BR207: =S8 -> (18)
BA208: 1 | BB208: Fratricide | BC208: 0 | BD208: 0 | BE208: 0 | BF208: 0 | BG208: 0 | BH208: 0 | BI208: 0 | BJ208: 0 | BK208: 0 | BL208: 0 | BM208: 0 | BN208: 0 | BO208: 0 | BP208: 0 | BQ208: 0 | BR208: =S9 -> 0
BA209: 1 | BB209: Deaths due to Road/Railway Accidents | BC209: 0 | BD209: 0 | BE209: 0 | BF209: 0 | BG209: 0 | BH209: 0 | BI209: 0 | BJ209: 0 | BK209: 0 | BL209: 0 | BM209: 0 | BN209: 0 | BO209: 0 | BP209: 0 | BQ209: 0 | BR209: =S10 -> 0
BA210: 2 | BB210: Deaths due to Natural Calamities | BC210: 0 | BD210: 0 | BE210: 0 | BF210: 0 | BG210: 0 | BH210: 0 | BI210: 0 | BJ210: 0 | BK210: 0 | BL210: 0 | BM210: 0 | BN210: 0 | BO210: 0 | BP210: 0 | BQ210: 0 | BR210: =S11 -> 0
BA211: 3 | BB211: Deaths Due to Unnatural Causes (Except Road/Railway Accidents) | BC211: 0 | BD211: 0 | BE211: 0 | BF211: 0 | BG211: 0 | BH211: 0 | BI211: 0 | BJ211: 0 | BK211: 0 | BL211: 0 | BM211: 0 | BN211: 0 | BO211: 0 | BP211: 0 | BQ211: 0 | BR211: =S12 -> 0
BA212: =B13 -> 4 | BB212: Killed in Action/Operation/ Encounters/etc. | BC212: =D13 -> 0 | BD212: =E13 -> 0 | BE212: 0 | BF212: 0 | BG212: 0 | BH212: =I13 -> 0 | BI212: =J13 -> 0 | BJ212: 0 | BK212: 0 | BL212: 0 | BM212: =N13 -> 0 | BN212: =O13 -> 0 | BO212: 0 | BP212: 0 | BQ212: 0 | BR212: =S13 -> 0
BA213: 5 | BB213: =C14 -> Other/Unknown Causes | BC213: 0 | BD213: 0 | BE213: 0 | BF213: 0 | BG213: 0 | BH213: 0 | BI213: 0 | BJ213: 0 | BK213: 0 | BL213: 0 | BM213: 0 | BN213: 0 | BO213: 0 | BP213: 0 | BQ213: 0 | BR213: 0
BA214: =B15 -> 6 | BB214: =C15 -> Total (sum of Sl. 1 to 6) | BC214: 0 | BD214: 0 | BE214: 0 | BF214: 0 | BG214: 0 | BH214: 0 | BI214: 0 | BJ214: 0 | BK214: 0 | BL214: 0 | BM214: 0 | BN214: 0 | BO214: 0 | BP214: =Q15 -> 0 | BQ214: =R15 -> 0 | BR214: =S15 -> 0
BA215: =A16 -> PROFORMA–III VALUES [Sl.– 16 (Total)] | BC215: =D16 -> 152 | BD215: 155 | BE215: 103 | BF215: 70 | BG215: 489 | BH215: 14 | BI215: 18 | BJ215: 15 | BK215: 22 | BL215: 73 | BM215: 0 | BN215: 0 | BO215: 0 | BP215: 0 | BQ215: 0 | BR215: 562
BA216: =A17 -> VALIDATION WITH PROFORMA–III [Sl.– 16 (Total)] | BC216: =D17 -> 
BA217: =A18 -> SL-6 ABNORMAL VARIATION IN "OTHER/UNKNOWN CAUSES" DATA | BC217: =D18 -> 
BA218: =D19 -> Central Armed Police Force (CAPF) includes Assam Rifles (AR), Border Security Force (BSF), Central Industrial Security Force (CISF), Central Reserve Police Force (CRPF), Indo Tibetan Border Police (ITBP), National Security Guard (NSG) and Sashastra Seema Bal (SSB)
A500: StateUTCityCode | B500: DistrictCode | C500: CrimeCode | D500: DataYear | E500: Male_18 and above – below 30 years | F500: Male_30 and above – below 45 years | G500: Male_45 and above – below 60 years | H500: Male_60 years & above | I500: Male_Total | J500: Female_18 and above – below 30 years | K500: Female_30 and above – below 45 years | L500: Female_45 and above – below 60 years | M500: Female_60 years & above | N500: Female_Total | O500: Trans_18 and above – below 30 years | P500: Trans_30 and above – below 45 years | Q500: Trans_45 and above – below 60 years | R500: Trans_60 years & above | S500: Trans_Total | T500: Grand Total
A501: =IF(ADSI!$G$12="",ADSI!$H$16,ADSI!$H$12) -> 6 | B501: =IF(ADSI!$G$12="",ADSI!$H$16,ADSI!$H$14) ->  | C501: =A9 -> 700 | D501: =ADSI!$K$12 -> 2021 | E501: =D9 -> 0 | F501: 0 | G501: 0 | H501: 0 | I501: 0 | J501: 0 | K501: 0 | L501: 0 | M501: 0 | N501: 0 | O501: 0 | P501: 0 | Q501: 0 | R501: 0 | S501: 0 | T501: 0
A502: =IF(ADSI!$G$12="",ADSI!$H$16,ADSI!$H$12) -> 6 | B502: =IF(ADSI!$G$12="",ADSI!$H$16,ADSI!$H$14) ->  | C502: 701 | D502: =ADSI!$K$12 -> 2021 | E502: =D10 -> 0 | F502: 0 | G502: 0 | H502: 0 | I502: 0 | J502: 0 | K502: 0 | L502: 0 | M502: 0 | N502: 0 | O502: 0 | P502: 0 | Q502: 0 | R502: 0 | S502: 0 | T502: 0
A503: =IF(ADSI!$G$12="",ADSI!$H$16,ADSI!$H$12) -> 6 | B503: =IF(ADSI!$G$12="",ADSI!$H$16,ADSI!$H$14) ->  | C503: 702 | D503: =ADSI!$K$12 -> 2021 | E503: =D11 -> 0 | F503: 0 | G503: 0 | H503: 0 | I503: 0 | J503: 0 | K503: 0 | L503: 0 | M503: 0 | N503: 0 | O503: 0 | P503: 0 | Q503: 0 | R503: 0 | S503: 0 | T503: 0
A504: =IF(ADSI!$G$12="",ADSI!$H$16,ADSI!$H$12) -> 6 | B504: =IF(ADSI!$G$12="",ADSI!$H$16,ADSI!$H$14) ->  | C504: 703 | D504: =ADSI!$K$12 -> 2021 | E504: =D12 -> 0 | F504: 0 | G504: 0 | H504: 0 | I504: 0 | J504: 0 | K504: 0 | L504: 0 | M504: 0 | N504: 0 | O504: 0 | P504: 0 | Q504: 0 | R504: 0 | S504: 0 | T504: 0
A505: =IF(ADSI!$G$12="",ADSI!$H$16,ADSI!$H$12) -> 6 | B505: =IF(ADSI!$G$12="",ADSI!$H$16,ADSI!$H$14) ->  | C505: 704 | D505: =ADSI!$K$12 -> 2021 | E505: =D13 -> 0 | F505: 0 | G505: 0 | H505: 0 | I505: 0 | J505: 0 | K505: 0 | L505: 0 | M505: 0 | N505: 0 | O505: 0 | P505: 0 | Q505: 0 | R505: 0 | S505: 0 | T505: 0
A506: =IF(ADSI!$G$12="",ADSI!$H$16,ADSI!$H$12) -> 6 | B506: =IF(ADSI!$G$12="",ADSI!$H$16,ADSI!$H$14) ->  | C506: 705 | D506: =ADSI!$K$12 -> 2021 | E506: =D14 -> 0 | F506: 0 | G506: 0 | H506: 0 | I506: 0 | J506: 0 | K506: 0 | L506: 0 | M506: 0 | N506: 0 | O506: 0 | P506: 0 | Q506: 0 | R506: 0 | S506: 0 | T506: 0
A507: =IF(ADSI!$G$12="",ADSI!$H$16,ADSI!$H$12) -> 6 | B507: =IF(ADSI!$G$12="",ADSI!$H$16,ADSI!$H$14) ->  | C507: 715 | D507: =ADSI!$K$12 -> 2021 | E507: =D15 -> 0 | F507: 0 | G507: 0 | H507: 0 | I507: 0 | J507: 0 | K507: 0 | L507: 0 | M507: 0 | N507: 0 | O507: 0 | P507: 0 | Q507: 0 | R507: 0 | S507: 0 | T507: 0

Sheet P-XIV
A1: =ADSI!$B$1 -> Goa, , ADSI-2021
A2: Proforma–XIV | E2: Abnormal Variations | F2: =COUNTIF(D39:Y42,"ABVAR") -> 15
A3: Distribution of Suicides by Causes
A4: Code | B4: Sl. No. | C4: Causes | D4: Number of Suicidal Deaths | Y4: Grand Total [col. (9)+(16)+(23)]
D5: Male | K5: Female | R5: Transgender
D6: below 14 years | E6: 14 and above – below 18 yrs | F6: 18 and above – below 30 years | G6: 30 and above – below 45 years | H6: 45 and above – below 60 years | I6: 60 years & above | J6: Total [sum of (3) to (8)] | K6: below 14 years | L6: 14 and above – below 18 yrs | M6: 18 and above – below 30 years | N6: 30 and above – below 45 years | O6: 45 and above – below 60 years | P6: 60 years & above | Q6: Total [sum of (10) to (15) | R6: below 14 years | S6: 14 and above – below 18 yrs | T6: 18 and above – below 30 years | U6: 30 and above – below 45 years | V6: 45 and above – below 60 years | W6: 60 years & above | X6: Total [sum of (17) to (22)
B7: (1) | C7: (2) | D7: (3) | E7: (4) | F7: (5) | G7: (6) | H7: (7) | I7: (8) | J7: (9) | K7: (10) | L7: (11) | M7: (12) | N7: (13) | O7: (14) | P7: (15) | Q7: (16) | R7: (17) | S7: (18) | T7: (19) | U7: (20) | V7: (21) | W7: (22) | X7: (23) | Y7: (24)
A8: 725 | B8: 1 | C8: Bankruptcy or indebtedness | D8: 0 | E8: 0 | F8: 2 | G8: 3 | H8: 3 | I8: 0 | J8: =SUM(D8:I8) -> 8 | K8: 0 | L8: 0 | M8: 0 | N8: 1 | O8: 0 | P8: 0 | Q8: =SUM(K8:P8) -> 1 | R8: 0 | S8: 0 | T8: 0 | U8: 0 | V8: 0 | W8: 0 | X8: =SUM(R8:W8) -> 0 | Y8: =SUM(J8+Q8+X8) -> 9
A9: 726 | B9: 2 | C9: Marriage Related Issues (sum of 2.1 to 2.5) | D9: =SUM(D10:D14) -> 0 | E9: 0 | F9: 2 | G9: 0 | H9: 1 | I9: 0 | J9: 3 | K9: =SUM(K10:K14) -> 0 | L9: 0 | M9: 1 | N9: 0 | O9: 0 | P9: 0 | Q9: 1 | R9: =SUM(R10:R14) -> 0 | S9: 0 | T9: 0 | U9: 0 | V9: 0 | W9: 0 | X9: 0 | Y9: 4
A10: 727 | C10: 2.1 Non Settlement of Marriage | D10: 0 | E10: 0 | F10: 2 | G10: 0 | H10: 0 | I10: 0 | J10: 2 | K10: 0 | L10: 0 | M10: 1 | N10: 0 | O10: 0 | P10: 0 | Q10: 1 | R10: 0 | S10: 0 | T10: 0 | U10: 0 | V10: 0 | W10: 0 | X10: 0 | Y10: 3
A11: 728 | C11: 2.2 Dowry Related Issues | D11: 0 | E11: 0 | F11: 0 | G11: 0 | H11: 0 | I11: 0 | J11: 0 | K11: 0 | L11: 0 | M11: 0 | N11: 0 | O11: 0 | P11: 0 | Q11: 0 | R11: 0 | S11: 0 | T11: 0 | U11: 0 | V11: 0 | W11: 0 | X11: 0 | Y11: 0
A12: 729 | C12: 2.3 Extra Marital affairs | D12: 0 | E12: 0 | F12: 0 | G12: 0 | H12: 1 | I12: 0 | J12: 1 | K12: 0 | L12: 0 | M12: 0 | N12: 0 | O12: 0 | P12: 0 | Q12: 0 | R12: 0 | S12: 0 | T12: 0 | U12: 0 | V12: 0 | W12: 0 | X12: 0 | Y12: 1
A13: 730 | C13: 2.4 Divorce | D13: 0 | E13: 0 | F13: 0 | G13: 0 | H13: 0 | I13: 0 | J13: 0 | K13: 0 | L13: 0 | M13: 0 | N13: 0 | O13: 0 | P13: 0 | Q13: 0 | R13: 0 | S13: 0 | T13: 0 | U13: 0 | V13: 0 | W13: 0 | X13: 0 | Y13: 0
A14: 731 | C14: 2.5 Others | D14: 0 | E14: 0 | F14: 0 | G14: 0 | H14: 0 | I14: 0 | J14: 0 | K14: 0 | L14: 0 | M14: 0 | N14: 0 | O14: 0 | P14: 0 | Q14: 0 | R14: 0 | S14: 0 | T14: 0 | U14: 0 | V14: 0 | W14: 0 | X14: 0 | Y14: 0
A15: 732 | B15: 3 | C15: Failure in Examination | D15: 0 | E15: 0 | F15: 1 | G15: 0 | H15: 0 | I15: 0 | J15: 1 | K15: 0 | L15: 1 | M15: 0 | N15: 0 | O15: 0 | P15: 0 | Q15: 1 | R15: 0 | S15: 0 | T15: 0 | U15: 0 | V15: 0 | W15: 0 | X15: 0 | Y15: 2
A16: 733 | B16: 4 | C16: Impotency/Infertility | D16: 0 | E16: 0 | F16: 0 | G16: 0 | H16: 0 | I16: 0 | J16: 0 | K16: 0 | L16: 0 | M16: 0 | N16: 0 | O16: 0 | P16: 0 | Q16: 0 | R16: 0 | S16: 0 | T16: 0 | U16: 0 | V16: 0 | W16: 0 | X16: 0 | Y16: 0
A17: 734 | B17: 5 | C17: Family problems | D17: 0 | E17: 3 | F17: 22 | G17: 21 | H17: 27 | I17: 5 | J17: 78 | K17: 0 | L17: 1 | M17: 5 | N17: 6 | O17: 6 | P17: 7 | Q17: 25 | R17: 0 | S17: 0 | T17: 0 | U17: 0 | V17: 0 | W17: 0 | X17: 0 | Y17: 103
A18: 735 | B18: 6 | C18: Illness (sum of 6.1 to 6.5) | D18: =SUM(D19:D23) -> 0 | E18: 0 | F18: 9 | G18: 10 | H18: 23 | I18: 10 | J18: 52 | K18: =SUM(K19:K23) -> 0 | L18: 0 | M18: 4 | N18: 8 | O18: 3 | P18: 6 | Q18: 21 | R18: =SUM(R19:R23) -> 0 | S18: 0 | T18: 0 | U18: 0 | V18: 0 | W18: 0 | X18: 0 | Y18: 73
A19: 736 | C19: 6.1 AIDS/STD | D19: 0 | E19: 0 | F19: 0 | G19: 0 | H19: 1 | I19: 0 | J19: 1 | K19: 0 | L19: 0 | M19: 0 | N19: 0 | O19: 0 | P19: 0 | Q19: 0 | R19: 0 | S19: 0 | T19: 0 | U19: 0 | V19: 0 | W19: 0 | X19: 0 | Y19: 1
A20: 737 | C20: 6.2 Cancer | D20: 0 | E20: 0 | F20: 0 | G20: 1 | H20: 2 | I20: 1 | J20: 4 | K20: 0 | L20: 0 | M20: 0 | N20: 0 | O20: 0 | P20: 0 | Q20: 0 | R20: 0 | S20: 0 | T20: 0 | U20: 0 | V20: 0 | W20: 0 | X20: 0 | Y20: 4
A21: 738 | C21: 6.3 Paralysis | D21: 0 | E21: 0 | F21: 0 | G21: 0 | H21: 1 | I21: 0 | J21: 1 | K21: 0 | L21: 0 | M21: 0 | N21: 0 | O21: 0 | P21: 0 | Q21: 0 | R21: 0 | S21: 0 | T21: 0 | U21: 0 | V21: 0 | W21: 0 | X21: 0 | Y21: 1
A22: 739 | C22: 6.4 Insanity/Mental illness | D22: 0 | E22: 0 | F22: 9 | G22: 8 | H22: 11 | I22: 5 | J22: 33 | K22: 0 | L22: 0 | M22: 2 | N22: 6 | O22: 3 | P22: 3 | Q22: 14 | R22: 0 | S22: 0 | T22: 0 | U22: 0 | V22: 0 | W22: 0 | X22: 0 | Y22: 47
A23: 740 | C23: 6.5 Other prolonged illness | D23: 0 | E23: 0 | F23: 0 | G23: 1 | H23: 8 | I23: 4 | J23: 13 | K23: 0 | L23: 0 | M23: 2 | N23: 2 | O23: 0 | P23: 3 | Q23: 7 | R23: 0 | S23: 0 | T23: 0 | U23: 0 | V23: 0 | W23: 0 | X23: 0 | Y23: 20
A24: 741 | B24: 7 | C24: Death of dear person | D24: 0 | E24: 0 | F24: 1 | G24: 1 | H24: 2 | I24: 0 | J24: 4 | K24: 0 | L24: 0 | M24: 0 | N24: 1 | O24: 0 | P24: 1 | Q24: 2 | R24: 0 | S24: 0 | T24: 0 | U24: 0 | V24: 0 | W24: 0 | X24: 0 | Y24: 6
A25: 742 | B25: 8 | C25: Drug abuse/Alcoholic addiction | D25: 0 | E25: 0 | F25: 2 | G25: 20 | H25: 12 | I25: 0 | J25: 34 | K25: 0 | L25: 0 | M25: 0 | N25: 1 | O25: 0 | P25: 0 | Q25: 1 | R25: 0 | S25: 0 | T25: 0 | U25: 0 | V25: 0 | W25: 0 | X25: 0 | Y25: 35
A26: 743 | B26: 9 | C26: Fall in social reputation | D26: 0 | E26: 0 | F26: 0 | G26: 0 | H26: 0 | I26: 0 | J26: 0 | K26: 0 | L26: 0 | M26: 0 | N26: 0 | O26: 0 | P26: 0 | Q26: 0 | R26: 0 | S26: 0 | T26: 0 | U26: 0 | V26: 0 | W26: 0 | X26: 0 | Y26: 0
A27: 744 | B27: 10 | C27: Ideological causes/Hero worshipping | D27: 0 | E27: 0 | F27: 0 | G27: 0 | H27: 0 | I27: 0 | J27: 0 | K27: 0 | L27: 0 | M27: 0 | N27: 0 | O27: 0 | P27: 0 | Q27: 0 | R27: 0 | S27: 0 | T27: 0 | U27: 0 | V27: 0 | W27: 0 | X27: 0 | Y27: 0
A28: 745 | B28: 11 | C28: Love affairs | D28: 0 | E28: 1 | F28: 13 | G28: 1 | H28: 0 | I28: 0 | J28: 15 | K28: 0 | L28: 0 | M28: 3 | N28: 1 | O28: 0 | P28: 0 | Q28: 4 | R28: 0 | S28: 0 | T28: 0 | U28: 0 | V28: 0 | W28: 0 | X28: 0 | Y28: 19
A29: 746 | B29: 12 | C29: Poverty | D29: 0 | E29: 0 | F29: 0 | G29: 1 | H29: 0 | I29: 1 | J29: 2 | K29: 0 | L29: 0 | M29: 0 | N29: 0 | O29: 2 | P29: 1 | Q29: 3 | R29: 0 | S29: 0 | T29: 0 | U29: 0 | V29: 0 | W29: 0 | X29: 0 | Y29: 5
A30: 747 | B30: 13 | C30: Unemployment | D30: 0 | E30: 0 | F30: 8 | G30: 9 | H30: 6 | I30: 0 | J30: 23 | K30: 0 | L30: 0 | M30: 0 | N30: 0 | O30: 0 | P30: 0 | Q30: 0 | R30: 0 | S30: 0 | T30: 0 | U30: 0 | V30: 0 | W30: 0 | X30: 0 | Y30: 23
A31: 748 | B31: 14 | C31: Property dispute | D31: 0 | E31: 0 | F31: 0 | G31: 0 | H31: 0 | I31: 0 | J31: 0 | K31: 0 | L31: 0 | M31: 0 | N31: 0 | O31: 0 | P31: 0 | Q31: 0 | R31: 0 | S31: 0 | T31: 0 | U31: 0 | V31: 0 | W31: 0 | X31: 0 | Y31: 0
A32: 749 | B32: 15 | C32: Suspected/Illicit relation (other than item 2.3) | D32: 0 | E32: 0 | F32: 0 | G32: 1 | H32: 0 | I32: 0 | J32: 1 | K32: 0 | L32: 0 | M32: 0 | N32: 0 | O32: 0 | P32: 0 | Q32: 0 | R32: 0 | S32: 0 | T32: 0 | U32: 0 | V32: 0 | W32: 0 | X32: 0 | Y32: 1
A33: 750 | B33: 16 | C33: Illegitimate Pregnancy (other than item 2.3) | D33: 0 | E33: 0 | F33: 0 | G33: 0 | H33: 0 | I33: 0 | J33: 0 | K33: 0 | L33: 0 | M33: 0 | N33: 0 | O33: 0 | P33: 0 | Q33: 0 | R33: 0 | S33: 0 | T33: 0 | U33: 0 | V33: 0 | W33: 0 | X33: 0 | Y33: 0
A34: 751 | B34: 17 | C34: Physical Abuse (Rape, etc.) | D34: 1 | E34: 0 | F34: 0 | G34: 0 | H34: 0 | I34: 0 | J34: 1 | K34: 0 | L34: 0 | M34: 0 | N34: 0 | O34: 0 | P34: 0 | Q34: 0 | R34: 0 | S34: 0 | T34: 0 | U34: 0 | V34: 0 | W34: 0 | X34: 0 | Y34: 1
A35: 752 | B35: 18 | C35: Professional/Career Problem | D35: 0 | E35: 0 | F35: 1 | G35: 3 | H35: 2 | I35: 0 | J35: 6 | K35: 0 | L35: 0 | M35: 0 | N35: 1 | O35: 0 | P35: 0 | Q35: 1 | R35: 0 | S35: 0 | T35: 0 | U35: 0 | V35: 0 | W35: 0 | X35: 0 | Y35: 7
A36: 753 | B36: 19 | C36: Causes not known | D36: 0 | E36: 1 | F36: 1 | G36: 5 | H36: 2 | I36: 0 | J36: 9 | K36: 1 | L36: 0 | M36: 4 | N36: 0 | O36: 0 | P36: 1 | Q36: 6 | R36: 0 | S36: 0 | T36: 0 | U36: 0 | V36: 0 | W36: 0 | X36: 0 | Y36: 15
A37: 754 | B37: 20 | C37: Other causes | D37: 1 | E37: 1 | F37: 3 | G37: 4 | H37: 3 | I37: 0 | J37: 12 | K37: 0 | L37: 2 | M37: 2 | N37: 2 | O37: 0 | P37: 0 | Q37: 6 | R37: 0 | S37: 0 | T37: 0 | U37: 0 | V37: 0 | W37: 0 | X37: 0 | Y37: 18
A38: 780 | B38: 21 | C38: Total (sum of Sl. 1 to 20) | D38: =SUM(D8:D9,D15:D18,D24:D37) -> 2 | E38: 6 | F38: 65 | G38: 79 | H38: 81 | I38: 16 | J38: 249 | K38: =SUM(K8:K9,K15:K18,K24:K37) -> 1 | L38: 4 | M38: 19 | N38: 21 | O38: 11 | P38: 16 | Q38: 72 | R38: =SUM(R8:R9,R15:R18,R24:R37) -> 0 | S38: 0 | T38: 0 | U38: 0 | V38: 0 | W38: 0 | X38: 0 | Y38: 321
A39: SL-2.5 ABNORMAL VARIATION IN "OTHERS" DATA | D39: =IF(D9>0,IF((D14/D9*100)>10,"ABVAR",""),"") ->  | E39: =IF(E9>0,IF((E14/E9*100)>10,"ABVAR",""),"") -> 
A40: SL-6.5 ABNORMAL VARIATION IN "OTHER PROLONGED ILLNESS" DATA | D40: =IF(D18>0,IF((D23/D18*100)>10,"ABVAR",""),"") ->  | E40: =IF(E18>0,IF((E23/E18*100)>10,"ABVAR",""),"") ->  | H40: ABVAR | I40: ABVAR | J40: ABVAR | M40: ABVAR | N40: ABVAR | P40: ABVAR | Q40: ABVAR | Y40: ABVAR
A41: SL-19 ABNORMAL VARIATION IN "CAUSES NOT KNOWN" DATA | D41: =IF(D38>0,IF((D36/D38*100)>10,"ABVAR",""),"") ->  | E41: =IF(E38>0,IF((E36/E38*100)>10,"ABVAR",""),"") -> ABVAR | K41: ABVAR | M41: ABVAR
A42: SL-20 ABNORMAL VARIATION IN "OTHER CAUSES" DATA | D42: =IF(D38>0,IF((D37/D38*100)>10,"ABVAR",""),"") -> ABVAR | E42: =IF(E38>0,IF((E37/E38*100)>10,"ABVAR",""),"") -> ABVAR | L42: ABVAR | M42: ABVAR
A44: Note: If causes of suicides is found as more than one, the most immediate cause of suicides should be considered.
BA200: =A1 -> Goa, , ADSI-2021
BA201: =A2 -> Proforma–XIV | BE201: =E2 -> Abnormal Variations | BF201: =F2 -> 15
BA202: =A3 -> Distribution of Suicides by Causes
BA203: =B4 -> Sl. No. | BB203: =C4 -> Causes | BC203: =D4 -> Number of Suicidal Deaths | BQ203: Number of Suicidal Deaths | BX203: =Y4 -> Grand Total [col. (9)+(16)+(23)]
BC204: =D5 -> Male | BJ204: =K5 -> Female | BQ204: =R5 -> Transgender
BC205: below 14 years | BD205: =E6 -> 14 and above – below 18 yrs | BE205: =F6 -> 18 and above – below 30 years | BF205: =G6 -> 30 and above – below 45 years | BG205: =H6 -> 45 and above – below 60 years | BH205: =I6 -> 60 years & above | BI205: =J6 -> Total [sum of (3) to (8)] | BJ205: below 14 years | BK205: =L6 -> 14 and above – below 18 yrs | BL205: =M6 -> 18 and above – below 30 years | BM205: =N6 -> 30 and above – below 45 years | BN205: =O6 -> 45 and above – below 60 years | BO205: =P6 -> 60 years & above | BP205: =Q6 -> Total [sum of (10) to (15) | BQ205: below 14 years | BR205: =S6 -> 14 and above – below 18 yrs | BS205: =T6 -> 18 and above – below 30 years | BT205: =U6 -> 30 and above – below 45 years | BU205: =V6 -> 45 and above – below 60 years | BV205: =W6 -> 60 years & above | BW205: =X6 -> Total [sum of (17) to (22)
BA206: =B7 -> (1) | BB206: =C7 -> (2) | BC206: (3) | BD206: (4) | BE206: (5) | BF206: (6) | BG206: (7) | BH206: (8) | BI206: (9) | BJ206: (10) | BK206: (11) | BL206: (12) | BM206: (13) | BN206: (14) | BO206: (15) | BP206: (16) | BQ206: (17) | BR206: (18) | BS206: (19) | BT206: (20) | BU206: (21) | BV206: (22) | BW206: (23) | BX206: =Y7 -> (24)
BA207: 1 | BB207: Bankruptcy or indebtedness | BC207: 0 | BD207: 0 | BE207: 2 | BF207: 3 | BG207: 3 | BH207: 0 | BI207: 8 | BJ207: 0 | BK207: 0 | BL207: 0 | BM207: 1 | BN207: 0 | BO207: 0 | BP207: 1 | BQ207: 0 | BR207: 0 | BS207: 0 | BT207: 0 | BU207: 0 | BV207: 0 | BW207: 0 | BX207: 9
BA208: 2 | BB208: Marriage Related Issues (sum of 2.1 to 2.5) | BC208: 0 | BD208: 0 | BE208: 2 | BF208: 0 | BG208: 1 | BH208: 0 | BI208: 3 | BJ208: 0 | BK208: 0 | BL208: 1 | BM208: 0 | BN208: 0 | BO208: 0 | BP208: 1 | BQ208: 0 | BR208: 0 | BS208: 0 | BT208: 0 | BU208: 0 | BV208: 0 | BW208: 0 | BX208: 4
